Workbook

Sheet Simolatiom Model
L1: Chart 7
C2: Historic Growth | E2: 0.15
C3: Stable Period | E3: =E5*2+1 -> 61 | M3: Actual
C4: Terminal Growth | E4: 0.03 | M4: Simulated 1
C5: Life | E5: 30 | M5: Simulated 2
C6: Inflation Rate | E6: 0 | M6: Function
C7: High Growth Rate | E7: 0.1
C8: Tax Rate | E8: 0.4 | M8: 4
C9: Discount Rate | E9: 0.08
C10: High Growth Years | E10: 5
C12: Simulated Value with Stable Ratio | E12: =E130 -> 909939.5076 | F12: Method 1 (Sim 1) | G12: =E82 -> 1.53057778
C13: Actual Value with Long-term Model | E13: =E116 -> 908467.3896 | G13: =SUMIF(125:125,TRUE,103:103)*G12/1000000 -> 6.672162565 | M13: =F140 -> 1.020101385 | N13: Nom
C14: Percent Difference | E14: =E140 -> 1.001620441 | F14: Function | G14: =E87 -> 1.304692314
G15: =SUMIF(125:125,TRUE,103:103)*G14/1000000 -> 5.687472621
C16: Year | E16: 0 | F16: =E16+1 -> 1 | G16: 2 | H16: 3 | I16: =H16+1 -> 4 | J16: 5 | K16: 6 | L16: 7 | M16: 8 | N16: 9 | O16: 10 | P16: 11 | Q16: 12 | R16: 13 | S16: 14 | T16: 15 | U16: 16 | V16: 17 | W16: 18 | X16: 19 | Y16: 20 | Z16: 21 | AA16: 22 | AB16: 23 | AC16: 24 | AD16: 25 | AE16: 26 | AF16: 27 | AG16: 28 | AH16: 29 | AI16: 30 | AJ16: 31 | AK16: 32 | AL16: 33 | AM16: 34 | AN16: 35 | AO16: 36 | AP16: 37 | AQ16: 38 | AR16: 39 | AS16: 40 | AT16: 41 | AU16: 42 | AV16: 43 | AW16: 44 | AX16: 45 | AY16: 46 | AZ16: 47 | BA16: 48 | BB16: 49 | BC16: 50 | BD16: 51 | BE16: 52 | BF16: 53 | BG16: 54 | BH16: 55 | BI16: 56 | BJ16: 57 | BK16: 58 | BL16: 59 | BM16: 60 | BN16: 61 | BO16: 62 | BP16: 63 | BQ16: 64 | BR16: =BQ16+1 -> 65 | BS16: 66 | BT16: 67 | BU16: 68 | BV16: 69 | BW16: 70 | BX16: 71 | BY16: 72 | BZ16: 73 | CA16: 74 | CB16: 75 | CC16: 76 | CD16: 77 | CE16: 78 | CF16: 79 | CG16: 80 | CH16: 81 | CI16: 82 | CJ16: 83 | CK16: 84 | CL16: 85 | CM16: 86 | CN16: 87 | CO16: 88 | CP16: 89 | CQ16: 90 | CR16: 91 | CS16: 92 | CT16: 93 | CU16: 94 | CV16: 95 | CW16: 96 | CX16: 97 | CY16: 98 | CZ16: 99 | DA16: 100 | DB16: 101 | DC16: 102 | DD16: 103 | DE16: 104 | DF16: 105 | DG16: 106 | DH16: 107 | DI16: 108 | DJ16: 109 | DK16: 110 | DL16: 111 | DM16: 112 | DN16: 113 | DO16: 114 | DP16: 115 | DQ16: 116 | DR16: 117 | DS16: 118 | DT16: 119 | DU16: 120 | DV16: 121 | DW16: 122 | DX16: 123 | DY16: 124 | DZ16: 125 | EA16: 126 | EB16: 127 | EC16: 128 | ED16: =EC16+1 -> 129 | EE16: 130 | EF16: 131 | EG16: 132 | EH16: 133 | EI16: 134 | EJ16: 135 | EK16: 136 | EL16: 137 | EM16: 138 | EN16: 139 | EO16: 140 | EP16: 141 | EQ16: 142 | ER16: 143 | ES16: 144 | ET16: 145 | EU16: 146 | EV16: 147 | EW16: 148 | EX16: 149 | EY16: 150 | EZ16: 151 | FA16: 152 | FB16: 153 | FC16: 154 | FD16: 155 | FE16: 156 | FF16: 157 | FG16: 158 | FH16: 159 | FI16: 160 | FJ16: 161 | FK16: 162 | FL16: 163 | FM16: 164 | FN16: 165 | FO16: 166 | FP16: 167 | FQ16: 168 | FR16: 169 | FS16: 170 | FT16: 171 | FU16: 172 | FV16: 173 | FW16: 174 | FX16: 175 | FY16: 176 | FZ16: 177 | GA16: 178 | GB16: 179 | GC16: 180 | GD16: 181 | GE16: 182 | GF16: 183 | GG16: 184 | GH16: 185 | GI16: 186 | GJ16: 187 | GK16: 188 | GL16: 189 | GM16: 190 | GN16: 191 | GO16: 192 | GP16: =GO16+1 -> 193 | GQ16: 194 | GR16: 195 | GS16: 196 | GT16: 197 | GU16: 198 | GV16: 199 | GW16: 200 | GX16: 201 | GY16: 202 | GZ16: 203 | HA16: 204 | HB16: 205 | HC16: 206 | HD16: 207 | HE16: 208 | HF16: 209 | HG16: 210 | HH16: 211 | HI16: 212 | HJ16: 213 | HK16: 214 | HL16: 215 | HM16: 216 | HN16: 217 | HO16: 218 | HP16: 219 | HQ16: 220 | HR16: 221 | HS16: 222 | HT16: 223 | HU16: 224 | HV16: 225 | HW16: 226 | HX16: 227 | HY16: 228 | HZ16: 229 | IA16: 230 | IB16: 231 | IC16: 232 | ID16: 233 | IE16: 234 | IF16: 235 | IG16: 236 | IH16: 237 | II16: 238 | IJ16: 239 | IK16: 240 | IL16: 241 | IM16: 242 | IN16: 243 | IO16: 244 | IP16: 245 | IQ16: 246 | IR16: 247 | IS16: 248 | IT16: 249 | IU16: 250 | IV16: 251 | IW16: 252 | IX16: 253 | IY16: 254 | IZ16: 255 | JA16: 256 | JB16: =JA16+1 -> 257 | JC16: 258 | JD16: 259 | JE16: 260 | JF16: 261 | JG16: 262 | JH16: 263 | JI16: 264 | JJ16: 265 | JK16: 266 | JL16: 267 | JM16: 268 | JN16: 269 | JO16: 270 | JP16: 271 | JQ16: 272 | JR16: 273 | JS16: 274 | JT16: 275 | JU16: 276 | JV16: 277 | JW16: 278 | JX16: 279 | JY16: 280 | JZ16: 281 | KA16: 282 | KB16: 283 | KC16: 284 | KD16: 285 | KE16: 286 | KF16: 287 | KG16: 288 | KH16: 289 | KI16: 290 | KJ16: 291 | KK16: 292 | KL16: 293 | KM16: 294 | KN16: 295 | KO16: 296 | KP16: 297 | KQ16: 298 | KR16: 299 | KS16: 300 | KT16: 301 | KU16: 302 | KV16: 303 | KW16: 304 | KX16: 305 | KY16: 306 | KZ16: 307 | LA16: 308 | LB16: 309 | LC16: 310 | LD16: 311 | LE16: 312 | LF16: 313 | LG16: 314 | LH16: 315 | LI16: 316 | LJ16: 317 | LK16: 318 | LL16: 319 | LM16: 320 | LN16: =LM16+1 -> 321 | LO16: 322 | LP16: 323 | LQ16: 324 | LR16: 325 | LS16: 326 | LT16: 327 | LU16: 328 | LV16: 329 | LW16: 330 | LX16: 331 | LY16: 332 | LZ16: 333 | MA16: 334 | MB16: 335 | MC16: 336 | MD16: 337 | ME16: 338 | MF16: 339 | MG16: 340 | MH16: 341 | MI16: 342 | MJ16: 343 | MK16: 344 | ML16: 345 | MM16: 346 | MN16: 347 | MO16: 348 | MP16: 349 | MQ16: 350 | MR16: 351 | MS16: 352 | MT16: 353 | MU16: 354 | MV16: 355 | MW16: 356 | MX16: 357 | MY16: 358 | MZ16: 359 | NA16: 360 | NB16: 361 | NC16: 362 | ND16: 363 | NE16: 364 | NF16: 365 | NG16: 366 | NH16: 367 | NI16: 368 | NJ16: 369 | NK16: 370 | NL16: 371 | NM16: 372 | NN16: 373 | NO16: 374 | NP16: 375 | NQ16: 376 | NR16: 377 | NS16: 378 | NT16: 379 | NU16: 380 | NV16: 381 | NW16: 382 | NX16: 383 | NY16: 384 | NZ16: =NY16+1 -> 385 | OA16: 386 | OB16: 387 | OC16: 388 | OD16: 389 | OE16: 390 | OF16: 391 | OG16: 392 | OH16: 393 | OI16: 394 | OJ16: 395 | OK16: 396 | OL16: 397 | OM16: 398 | ON16: 399 | OO16: 400 | OP16: 401 | OQ16: 402 | OR16: 403 | OS16: 404 | OT16: 405 | OU16: 406 | OV16: 407 | OW16: 408 | OX16: 409 | OY16: 410 | OZ16: 411 | PA16: 412 | PB16: 413 | PC16: 414 | PD16: 415 | PE16: 416 | PF16: 417 | PG16: 418 | PH16: 419 | PI16: 420 | PJ16: 421 | PK16: 422 | PL16: 423 | PM16: 424 | PN16: 425 | PO16: 426 | PP16: 427 | PQ16: 428 | PR16: 429 | PS16: 430 | PT16: 431 | PU16: 432 | PV16: 433 | PW16: 434 | PX16: 435 | PY16: 436 | PZ16: 437 | QA16: 438 | QB16: 439 | QC16: 440 | QD16: 441 | QE16: 442 | QF16: 443 | QG16: 444 | QH16: 445 | QI16: 446 | QJ16: 447 | QK16: 448 | QL16: =QK16+1 -> 449 | QM16: 450 | QN16: 451 | QO16: 452 | QP16: 453 | QQ16: 454 | QR16: 455 | QS16: 456 | QT16: 457 | QU16: 458 | QV16: 459 | QW16: 460 | QX16: 461 | QY16: 462 | QZ16: 463 | RA16: 464 | RB16: 465 | RC16: 466 | RD16: 467 | RE16: 468 | RF16: 469 | RG16: 470 | RH16: 471 | RI16: 472 | RJ16: 473 | RK16: 474 | RL16: 475 | RM16: 476 | RN16: 477 | RO16: 478 | RP16: 479 | RQ16: 480 | RR16: 481 | RS16: 482 | RT16: 483 | RU16: 484 | RV16: 485 | RW16: 486 | RX16: 487 | RY16: 488 | RZ16: 489 | SA16: 490 | SB16: 491 | SC16: 492 | SD16: 493 | SE16: 494 | SF16: 495 | SG16: 496 | SH16: 497 | SI16: 498 | SJ16: 499 | SK16: 500 | SL16: 501 | SM16: 502 | SN16: 503 | SO16: 504 | SP16: 505 | SQ16: 506 | SR16: 507 | SS16: 508 | ST16: 509 | SU16: 510 | SV16: 511 | SW16: 512 | SX16: =SW16+1 -> 513 | SY16: 514 | SZ16: 515 | TA16: 516 | TB16: 517 | TC16: 518 | TD16: 519 | TE16: 520 | TF16: 521 | TG16: 522 | TH16: 523 | TI16: 524 | TJ16: 525 | TK16: 526 | TL16: 527 | TM16: 528 | TN16: 529 | TO16: 530 | TP16: 531 | TQ16: 532 | TR16: 533 | TS16: 534 | TT16: 535 | TU16: 536 | TV16: 537 | TW16: 538 | TX16: 539 | TY16: 540 | TZ16: 541 | UA16: 542 | UB16: 543 | UC16: 544 | UD16: 545 | UE16: 546 | UF16: 547 | UG16: 548 | UH16: 549 | UI16: 550 | UJ16: 551 | UK16: 552 | UL16: 553 | UM16: 554 | UN16: 555 | UO16: 556 | UP16: 557 | UQ16: 558 | UR16: 559 | US16: 560 | UT16: 561 | UU16: 562 | UV16: 563 | UW16: 564 | UX16: 565 | UY16: 566
C17: History | E17: =E16<=$E$3 -> TRUE | F17: TRUE | G17: =G16<=$E$3 -> TRUE | H17: =H16<=$E$3 -> TRUE | I17: TRUE | J17: TRUE | K17: TRUE | L17: TRUE | M17: TRUE | N17: TRUE | O17: TRUE | P17: TRUE | Q17: TRUE | R17: TRUE | S17: TRUE | T17: TRUE | U17: TRUE | V17: TRUE | W17: TRUE | X17: TRUE | Y17: TRUE | Z17: TRUE | AA17: TRUE | AB17: TRUE | AC17: TRUE | AD17: TRUE | AE17: TRUE | AF17: TRUE | AG17: TRUE | AH17: TRUE | AI17: TRUE | AJ17: TRUE | AK17: TRUE | AL17: TRUE | AM17: TRUE | AN17: TRUE | AO17: TRUE | AP17: TRUE | AQ17: TRUE | AR17: TRUE | AS17: TRUE | AT17: TRUE | AU17: TRUE | AV17: TRUE | AW17: TRUE | AX17: TRUE | AY17: TRUE | AZ17: TRUE | BA17: TRUE | BB17: TRUE | BC17: TRUE | BD17: TRUE | BE17: TRUE | BF17: TRUE | BG17: TRUE | BH17: TRUE | BI17: TRUE | BJ17: TRUE | BK17: TRUE | BL17: TRUE | BM17: TRUE | BN17: TRUE | BO17: FALSE | BP17: FALSE | BQ17: =BQ16<=$E$3 -> FALSE | BR17: FALSE | BS17: FALSE | BT17: FALSE | BU17: FALSE | BV17: FALSE | BW17: FALSE | BX17: FALSE | BY17: FALSE | BZ17: FALSE | CA17: FALSE | CB17: FALSE | CC17: FALSE | CD17: FALSE | CE17: FALSE | CF17: FALSE | CG17: FALSE | CH17: FALSE | CI17: FALSE | CJ17: FALSE | CK17: FALSE | CL17: FALSE | CM17: FALSE | CN17: FALSE | CO17: FALSE | CP17: FALSE | CQ17: FALSE | CR17: FALSE | CS17: FALSE | CT17: FALSE | CU17: FALSE | CV17: FALSE | CW17: FALSE | CX17: FALSE | CY17: FALSE | CZ17: FALSE | DA17: FALSE | DB17: FALSE | DC17: FALSE | DD17: FALSE | DE17: FALSE | DF17: FALSE | DG17: FALSE | DH17: FALSE | DI17: FALSE | DJ17: FALSE | DK17: FALSE | DL17: FALSE | DM17: FALSE | DN17: FALSE | DO17: FALSE | DP17: FALSE | DQ17: FALSE | DR17: FALSE | DS17: FALSE | DT17: FALSE | DU17: FALSE | DV17: FALSE | DW17: FALSE | DX17: FALSE | DY17: FALSE | DZ17: FALSE | EA17: FALSE | EB17: FALSE | EC17: =EC16<=$E$3 -> FALSE | ED17: FALSE | EE17: FALSE | EF17: FALSE | EG17: FALSE | EH17: FALSE | EI17: FALSE | EJ17: FALSE | EK17: FALSE | EL17: FALSE | EM17: FALSE | EN17: FALSE | EO17: FALSE | EP17: FALSE | EQ17: FALSE | ER17: FALSE | ES17: FALSE | ET17: FALSE | EU17: FALSE | EV17: FALSE | EW17: FALSE | EX17: FALSE | EY17: FALSE | EZ17: FALSE | FA17: FALSE | FB17: FALSE | FC17: FALSE | FD17: FALSE | FE17: FALSE | FF17: FALSE | FG17: FALSE | FH17: FALSE | FI17: FALSE | FJ17: FALSE | FK17: FALSE | FL17: FALSE | FM17: FALSE | FN17: FALSE | FO17: FALSE | FP17: FALSE | FQ17: FALSE | FR17: FALSE | FS17: FALSE | FT17: FALSE | FU17: FALSE | FV17: FALSE | FW17: FALSE | FX17: FALSE | FY17: FALSE | FZ17: FALSE | GA17: FALSE | GB17: FALSE | GC17: FALSE | GD17: FALSE | GE17: FALSE | GF17: FALSE | GG17: FALSE | GH17: FALSE | GI17: FALSE | GJ17: FALSE | GK17: FALSE | GL17: FALSE | GM17: FALSE | GN17: FALSE | GO17: =GO16<=$E$3 -> FALSE | GP17: FALSE | GQ17: FALSE | GR17: FALSE | GS17: FALSE | GT17: FALSE | GU17: FALSE | GV17: FALSE | GW17: FALSE | GX17: FALSE | GY17: FALSE | GZ17: FALSE | HA17: FALSE | HB17: FALSE | HC17: FALSE | HD17: FALSE | HE17: FALSE | HF17: FALSE | HG17: FALSE | HH17: FALSE | HI17: FALSE | HJ17: FALSE | HK17: FALSE | HL17: FALSE | HM17: FALSE | HN17: FALSE | HO17: FALSE | HP17: FALSE | HQ17: FALSE | HR17: FALSE | HS17: FALSE | HT17: FALSE | HU17: FALSE | HV17: FALSE | HW17: FALSE | HX17: FALSE | HY17: FALSE | HZ17: FALSE | IA17: FALSE | IB17: FALSE | IC17: FALSE | ID17: FALSE | IE17: FALSE | IF17: FALSE | IG17: FALSE | IH17: FALSE | II17: FALSE | IJ17: FALSE | IK17: FALSE | IL17: FALSE | IM17: FALSE | IN17: FALSE | IO17: FALSE | IP17: FALSE | IQ17: FALSE | IR17: FALSE | IS17: FALSE | IT17: FALSE | IU17: FALSE | IV17: FALSE | IW17: FALSE | IX17: FALSE | IY17: FALSE | IZ17: FALSE | JA17: =JA16<=$E$3 -> FALSE | JB17: FALSE | JC17: FALSE | JD17: FALSE | JE17: FALSE | JF17: FALSE | JG17: FALSE | JH17: FALSE | JI17: FALSE | JJ17: FALSE | JK17: FALSE | JL17: FALSE | JM17: FALSE | JN17: FALSE | JO17: FALSE | JP17: FALSE | JQ17: FALSE | JR17: FALSE | JS17: FALSE | JT17: FALSE | JU17: FALSE | JV17: FALSE | JW17: FALSE | JX17: FALSE | JY17: FALSE | JZ17: FALSE | KA17: FALSE | KB17: FALSE | KC17: FALSE | KD17: FALSE | KE17: FALSE | KF17: FALSE | KG17: FALSE | KH17: FALSE | KI17: FALSE | KJ17: FALSE | KK17: FALSE | KL17: FALSE | KM17: FALSE | KN17: FALSE | KO17: FALSE | KP17: FALSE | KQ17: FALSE | KR17: FALSE | KS17: FALSE | KT17: FALSE | KU17: FALSE | KV17: FALSE | KW17: FALSE | KX17: FALSE | KY17: FALSE | KZ17: FALSE | LA17: FALSE | LB17: FALSE | LC17: FALSE | LD17: FALSE | LE17: FALSE | LF17: FALSE | LG17: FALSE | LH17: FALSE | LI17: FALSE | LJ17: FALSE | LK17: FALSE | LL17: FALSE | LM17: =LM16<=$E$3 -> FALSE | LN17: FALSE | LO17: FALSE | LP17: FALSE | LQ17: FALSE | LR17: FALSE | LS17: FALSE | LT17: FALSE | LU17: FALSE | LV17: FALSE | LW17: FALSE | LX17: FALSE | LY17: FALSE | LZ17: FALSE | MA17: FALSE | MB17: FALSE | MC17: FALSE | MD17: FALSE | ME17: FALSE | MF17: FALSE | MG17: FALSE | MH17: FALSE | MI17: FALSE | MJ17: FALSE | MK17: FALSE | ML17: FALSE | MM17: FALSE | MN17: FALSE | MO17: FALSE | MP17: FALSE | MQ17: FALSE | MR17: FALSE | MS17: FALSE | MT17: FALSE | MU17: FALSE | MV17: FALSE | MW17: FALSE | MX17: FALSE | MY17: FALSE | MZ17: FALSE | NA17: FALSE | NB17: FALSE | NC17: FALSE | ND17: FALSE | NE17: FALSE | NF17: FALSE | NG17: FALSE | NH17: FALSE | NI17: FALSE | NJ17: FALSE | NK17: FALSE | NL17: FALSE | NM17: FALSE | NN17: FALSE | NO17: FALSE | NP17: FALSE | NQ17: FALSE | NR17: FALSE | NS17: FALSE | NT17: FALSE | NU17: FALSE | NV17: FALSE | NW17: FALSE | NX17: FALSE | NY17: =NY16<=$E$3 -> FALSE | NZ17: FALSE | OA17: FALSE | OB17: FALSE | OC17: FALSE | OD17: FALSE | OE17: FALSE | OF17: FALSE | OG17: FALSE | OH17: FALSE | OI17: FALSE | OJ17: FALSE | OK17: FALSE | OL17: FALSE | OM17: FALSE | ON17: FALSE | OO17: FALSE | OP17: FALSE | OQ17: FALSE | OR17: FALSE | OS17: FALSE | OT17: FALSE | OU17: FALSE | OV17: FALSE | OW17: FALSE | OX17: FALSE | OY17: FALSE | OZ17: FALSE | PA17: FALSE | PB17: FALSE | PC17: FALSE | PD17: FALSE | PE17: FALSE | PF17: FALSE | PG17: FALSE | PH17: FALSE | PI17: FALSE | PJ17: FALSE | PK17: FALSE | PL17: FALSE | PM17: FALSE | PN17: FALSE | PO17: FALSE | PP17: FALSE | PQ17: FALSE | PR17: FALSE | PS17: FALSE | PT17: FALSE | PU17: FALSE | PV17: FALSE | PW17: FALSE | PX17: FALSE | PY17: FALSE | PZ17: FALSE | QA17: FALSE | QB17: FALSE | QC17: FALSE | QD17: FALSE | QE17: FALSE | QF17: FALSE | QG17: FALSE | QH17: FALSE | QI17: FALSE | QJ17: FALSE | QK17: =QK16<=$E$3 -> FALSE | QL17: FALSE | QM17: FALSE | QN17: FALSE | QO17: FALSE | QP17: FALSE | QQ17: FALSE | QR17: FALSE | QS17: FALSE | QT17: FALSE | QU17: FALSE | QV17: FALSE | QW17: FALSE | QX17: FALSE | QY17: FALSE | QZ17: FALSE | RA17: FALSE | RB17: FALSE | RC17: FALSE | RD17: FALSE | RE17: FALSE | RF17: FALSE | RG17: FALSE | RH17: FALSE | RI17: FALSE | RJ17: FALSE | RK17: FALSE | RL17: FALSE | RM17: FALSE | RN17: FALSE | RO17: FALSE | RP17: FALSE | RQ17: FALSE | RR17: FALSE | RS17: FALSE | RT17: FALSE | RU17: FALSE | RV17: FALSE | RW17: FALSE | RX17: FALSE | RY17: FALSE | RZ17: FALSE | SA17: FALSE | SB17: FALSE | SC17: FALSE | SD17: FALSE | SE17: FALSE | SF17: FALSE | SG17: FALSE | SH17: FALSE | SI17: FALSE | SJ17: FALSE | SK17: FALSE | SL17: FALSE | SM17: FALSE | SN17: FALSE | SO17: FALSE | SP17: FALSE | SQ17: FALSE | SR17: FALSE | SS17: FALSE | ST17: FALSE | SU17: FALSE | SV17: FALSE | SW17: =SW16<=$E$3 -> FALSE | SX17: FALSE | SY17: FALSE | SZ17: FALSE | TA17: FALSE | TB17: FALSE | TC17: FALSE | TD17: FALSE | TE17: FALSE | TF17: FALSE | TG17: FALSE | TH17: FALSE | TI17: FALSE | TJ17: FALSE | TK17: FALSE | TL17: FALSE | TM17: FALSE | TN17: FALSE | TO17: FALSE | TP17: FALSE | TQ17: FALSE | TR17: FALSE | TS17: FALSE | TT17: FALSE | TU17: FALSE | TV17: FALSE | TW17: FALSE | TX17: FALSE | TY17: FALSE | TZ17: FALSE | UA17: FALSE | UB17: FALSE | UC17: FALSE | UD17: FALSE | UE17: FALSE | UF17: FALSE | UG17: FALSE | UH17: FALSE | UI17: FALSE | UJ17: FALSE | UK17: FALSE | UL17: FALSE | UM17: FALSE | UN17: FALSE | UO17: FALSE | UP17: FALSE | UQ17: FALSE | UR17: FALSE | US17: FALSE | UT17: FALSE | UU17: FALSE | UV17: FALSE | UW17: FALSE | UX17: FALSE | UY17: FALSE
C18: New Life Cycle | E18: =MOD(E16,$E$5)=0 -> TRUE | F18: FALSE | G18: =MOD(G16,$E$5)=0 -> FALSE | H18: =MOD(H16,$E$5)=0 -> FALSE | I18: FALSE | J18: FALSE | K18: FALSE | L18: FALSE | M18: FALSE | N18: FALSE | O18: FALSE | P18: FALSE | Q18: FALSE | R18: FALSE | S18: FALSE | T18: FALSE | U18: FALSE | V18: FALSE | W18: FALSE | X18: FALSE | Y18: FALSE | Z18: FALSE | AA18: FALSE | AB18: FALSE | AC18: FALSE | AD18: FALSE | AE18: FALSE | AF18: FALSE | AG18: FALSE | AH18: FALSE | AI18: TRUE | AJ18: FALSE | AK18: FALSE | AL18: FALSE | AM18: FALSE | AN18: FALSE | AO18: FALSE | AP18: FALSE | AQ18: FALSE | AR18: FALSE | AS18: FALSE | AT18: FALSE | AU18: FALSE | AV18: FALSE | AW18: FALSE | AX18: FALSE | AY18: FALSE | AZ18: FALSE | BA18: FALSE | BB18: FALSE | BC18: FALSE | BD18: FALSE | BE18: FALSE | BF18: FALSE | BG18: FALSE | BH18: FALSE | BI18: FALSE | BJ18: FALSE | BK18: FALSE | BL18: FALSE | BM18: TRUE | BN18: FALSE | BO18: FALSE | BP18: FALSE | BQ18: =MOD(BQ16,$E$5)=0 -> FALSE | BR18: FALSE | BS18: FALSE | BT18: FALSE | BU18: FALSE | BV18: FALSE | BW18: FALSE | BX18: FALSE | BY18: FALSE | BZ18: FALSE | CA18: FALSE | CB18: FALSE | CC18: FALSE | CD18: FALSE | CE18: FALSE | CF18: FALSE | CG18: FALSE | CH18: FALSE | CI18: FALSE | CJ18: FALSE | CK18: FALSE | CL18: FALSE | CM18: FALSE | CN18: FALSE | CO18: FALSE | CP18: FALSE | CQ18: TRUE | CR18: FALSE | CS18: FALSE | CT18: FALSE | CU18: FALSE | CV18: FALSE | CW18: FALSE | CX18: FALSE | CY18: FALSE | CZ18: FALSE | DA18: FALSE | DB18: FALSE | DC18: FALSE | DD18: FALSE | DE18: FALSE | DF18: FALSE | DG18: FALSE | DH18: FALSE | DI18: FALSE | DJ18: FALSE | DK18: FALSE | DL18: FALSE | DM18: FALSE | DN18: FALSE | DO18: FALSE | DP18: FALSE | DQ18: FALSE | DR18: FALSE | DS18: FALSE | DT18: FALSE | DU18: TRUE | DV18: FALSE | DW18: FALSE | DX18: FALSE | DY18: FALSE | DZ18: FALSE | EA18: FALSE | EB18: FALSE | EC18: =MOD(EC16,$E$5)=0 -> FALSE | ED18: FALSE | EE18: FALSE | EF18: FALSE | EG18: FALSE | EH18: FALSE | EI18: FALSE | EJ18: FALSE | EK18: FALSE | EL18: FALSE | EM18: FALSE | EN18: FALSE | EO18: FALSE | EP18: FALSE | EQ18: FALSE | ER18: FALSE | ES18: FALSE | ET18: FALSE | EU18: FALSE | EV18: FALSE | EW18: FALSE | EX18: FALSE | EY18: TRUE | EZ18: FALSE | FA18: FALSE | FB18: FALSE | FC18: FALSE | FD18: FALSE | FE18: FALSE | FF18: FALSE | FG18: FALSE | FH18: FALSE | FI18: FALSE | FJ18: FALSE | FK18: FALSE | FL18: FALSE | FM18: FALSE | FN18: FALSE | FO18: FALSE | FP18: FALSE | FQ18: FALSE | FR18: FALSE | FS18: FALSE | FT18: FALSE | FU18: FALSE | FV18: FALSE | FW18: FALSE | FX18: FALSE | FY18: FALSE | FZ18: FALSE | GA18: FALSE | GB18: FALSE | GC18: TRUE | GD18: FALSE | GE18: FALSE | GF18: FALSE | GG18: FALSE | GH18: FALSE | GI18: FALSE | GJ18: FALSE | GK18: FALSE | GL18: FALSE | GM18: FALSE | GN18: FALSE | GO18: =MOD(GO16,$E$5)=0 -> FALSE | GP18: FALSE | GQ18: FALSE | GR18: FALSE | GS18: FALSE | GT18: FALSE | GU18: FALSE | GV18: FALSE | GW18: FALSE | GX18: FALSE | GY18: FALSE | GZ18: FALSE | HA18: FALSE | HB18: FALSE | HC18: FALSE | HD18: FALSE | HE18: FALSE | HF18: FALSE | HG18: TRUE | HH18: FALSE | HI18: FALSE | HJ18: FALSE | HK18: FALSE | HL18: FALSE | HM18: FALSE | HN18: FALSE | HO18: FALSE | HP18: FALSE | HQ18: FALSE | HR18: FALSE | HS18: FALSE | HT18: FALSE | HU18: FALSE | HV18: FALSE | HW18: FALSE | HX18: FALSE | HY18: FALSE | HZ18: FALSE | IA18: FALSE | IB18: FALSE | IC18: FALSE | ID18: FALSE | IE18: FALSE | IF18: FALSE | IG18: FALSE | IH18: FALSE | II18: FALSE | IJ18: FALSE | IK18: TRUE | IL18: FALSE | IM18: FALSE | IN18: FALSE | IO18: FALSE | IP18: FALSE | IQ18: FALSE | IR18: FALSE | IS18: FALSE | IT18: FALSE | IU18: FALSE | IV18: FALSE | IW18: FALSE | IX18: FALSE | IY18: FALSE | IZ18: FALSE | JA18: =MOD(JA16,$E$5)=0 -> FALSE | JB18: FALSE | JC18: FALSE | JD18: FALSE | JE18: FALSE | JF18: FALSE | JG18: FALSE | JH18: FALSE | JI18: FALSE | JJ18: FALSE | JK18: FALSE | JL18: FALSE | JM18: FALSE | JN18: FALSE | JO18: TRUE | JP18: FALSE | JQ18: FALSE | JR18: FALSE | JS18: FALSE | JT18: FALSE | JU18: FALSE | JV18: FALSE | JW18: FALSE | JX18: FALSE | JY18: FALSE | JZ18: FALSE | KA18: FALSE | KB18: FALSE | KC18: FALSE | KD18: FALSE | KE18: FALSE | KF18: FALSE | KG18: FALSE | KH18: FALSE | KI18: FALSE | KJ18: FALSE | KK18: FALSE | KL18: FALSE | KM18: FALSE | KN18: FALSE | KO18: FALSE | KP18: FALSE | KQ18: FALSE | KR18: FALSE | KS18: TRUE | KT18: FALSE | KU18: FALSE | KV18: FALSE | KW18: FALSE | KX18: FALSE | KY18: FALSE | KZ18: FALSE | LA18: FALSE | LB18: FALSE | LC18: FALSE | LD18: FALSE | LE18: FALSE | LF18: FALSE | LG18: FALSE | LH18: FALSE | LI18: FALSE | LJ18: FALSE | LK18: FALSE | LL18: FALSE | LM18: =MOD(LM16,$E$5)=0 -> FALSE | LN18: FALSE | LO18: FALSE | LP18: FALSE | LQ18: FALSE | LR18: FALSE | LS18: FALSE | LT18: FALSE | LU18: FALSE | LV18: FALSE | LW18: TRUE | LX18: FALSE | LY18: FALSE | LZ18: FALSE | MA18: FALSE | MB18: FALSE | MC18: FALSE | MD18: FALSE | ME18: FALSE | MF18: FALSE | MG18: FALSE | MH18: FALSE | MI18: FALSE | MJ18: FALSE | MK18: FALSE | ML18: FALSE | MM18: FALSE | MN18: FALSE | MO18: FALSE | MP18: FALSE | MQ18: FALSE | MR18: FALSE | MS18: FALSE | MT18: FALSE | MU18: FALSE | MV18: FALSE | MW18: FALSE | MX18: FALSE | MY18: FALSE | MZ18: FALSE | NA18: TRUE | NB18: FALSE | NC18: FALSE | ND18: FALSE | NE18: FALSE | NF18: FALSE | NG18: FALSE | NH18: FALSE | NI18: FALSE | NJ18: FALSE | NK18: FALSE | NL18: FALSE | NM18: FALSE | NN18: FALSE | NO18: FALSE | NP18: FALSE | NQ18: FALSE | NR18: FALSE | NS18: FALSE | NT18: FALSE | NU18: FALSE | NV18: FALSE | NW18: FALSE | NX18: FALSE | NY18: =MOD(NY16,$E$5)=0 -> FALSE | NZ18: FALSE | OA18: FALSE | OB18: FALSE | OC18: FALSE | OD18: FALSE | OE18: TRUE | OF18: FALSE | OG18: FALSE | OH18: FALSE | OI18: FALSE | OJ18: FALSE | OK18: FALSE | OL18: FALSE | OM18: FALSE | ON18: FALSE | OO18: FALSE | OP18: FALSE | OQ18: FALSE | OR18: FALSE | OS18: FALSE | OT18: FALSE | OU18: FALSE | OV18: FALSE | OW18: FALSE | OX18: FALSE | OY18: FALSE | OZ18: FALSE | PA18: FALSE | PB18: FALSE | PC18: FALSE | PD18: FALSE | PE18: FALSE | PF18: FALSE | PG18: FALSE | PH18: FALSE | PI18: TRUE | PJ18: FALSE | PK18: FALSE | PL18: FALSE | PM18: FALSE | PN18: FALSE | PO18: FALSE | PP18: FALSE | PQ18: FALSE | PR18: FALSE | PS18: FALSE | PT18: FALSE | PU18: FALSE | PV18: FALSE | PW18: FALSE | PX18: FALSE | PY18: FALSE | PZ18: FALSE | QA18: FALSE | QB18: FALSE | QC18: FALSE | QD18: FALSE | QE18: FALSE | QF18: FALSE | QG18: FALSE | QH18: FALSE | QI18: FALSE | QJ18: FALSE | QK18: =MOD(QK16,$E$5)=0 -> FALSE | QL18: FALSE | QM18: TRUE | QN18: FALSE | QO18: FALSE | QP18: FALSE | QQ18: FALSE | QR18: FALSE | QS18: FALSE | QT18: FALSE | QU18: FALSE | QV18: FALSE | QW18: FALSE | QX18: FALSE | QY18: FALSE | QZ18: FALSE | RA18: FALSE | RB18: FALSE | RC18: FALSE | RD18: FALSE | RE18: FALSE | RF18: FALSE | RG18: FALSE | RH18: FALSE | RI18: FALSE | RJ18: FALSE | RK18: FALSE | RL18: FALSE | RM18: FALSE | RN18: FALSE | RO18: FALSE | RP18: FALSE | RQ18: TRUE | RR18: FALSE | RS18: FALSE | RT18: FALSE | RU18: FALSE | RV18: FALSE | RW18: FALSE | RX18: FALSE | RY18: FALSE | RZ18: FALSE | SA18: FALSE | SB18: FALSE | SC18: FALSE | SD18: FALSE | SE18: FALSE | SF18: FALSE | SG18: FALSE | SH18: FALSE | SI18: FALSE | SJ18: FALSE | SK18: FALSE | SL18: FALSE | SM18: FALSE | SN18: FALSE | SO18: FALSE | SP18: FALSE | SQ18: FALSE | SR18: FALSE | SS18: FALSE | ST18: FALSE | SU18: TRUE | SV18: FALSE | SW18: =MOD(SW16,$E$5)=0 -> FALSE | SX18: FALSE | SY18: FALSE | SZ18: FALSE | TA18: FALSE | TB18: FALSE | TC18: FALSE | TD18: FALSE | TE18: FALSE | TF18: FALSE | TG18: FALSE | TH18: FALSE | TI18: FALSE | TJ18: FALSE | TK18: FALSE | TL18: FALSE | TM18: FALSE | TN18: FALSE | TO18: FALSE | TP18: FALSE | TQ18: FALSE | TR18: FALSE | TS18: FALSE | TT18: FALSE | TU18: FALSE | TV18: FALSE | TW18: FALSE | TX18: FALSE | TY18: TRUE | TZ18: FALSE | UA18: FALSE | UB18: FALSE | UC18: FALSE | UD18: FALSE | UE18: FALSE | UF18: FALSE | UG18: FALSE | UH18: FALSE | UI18: FALSE | UJ18: FALSE | UK18: FALSE | UL18: FALSE | UM18: FALSE | UN18: FALSE | UO18: FALSE | UP18: FALSE | UQ18: FALSE | UR18: FALSE | US18: FALSE | UT18: FALSE | UU18: FALSE | UV18: FALSE | UW18: FALSE | UX18: FALSE | UY18: FALSE
C19: Initial Build-up Stage | E19: =E16<=$E$10 -> TRUE | F19: =F16<=$E$10 -> TRUE | G19: =G16<=$E$10 -> TRUE | H19: =H16<=$E$10 -> TRUE | I19: TRUE | J19: TRUE | K19: FALSE | L19: FALSE | M19: FALSE | N19: FALSE | O19: FALSE | P19: FALSE | Q19: FALSE | R19: FALSE | S19: FALSE | T19: FALSE | U19: FALSE | V19: FALSE | W19: FALSE | X19: FALSE | Y19: FALSE | Z19: FALSE | AA19: FALSE | AB19: FALSE | AC19: FALSE | AD19: FALSE | AE19: FALSE | AF19: FALSE | AG19: FALSE | AH19: FALSE | AI19: FALSE | AJ19: FALSE | AK19: FALSE | AL19: FALSE | AM19: FALSE | AN19: FALSE | AO19: FALSE | AP19: FALSE | AQ19: FALSE | AR19: FALSE | AS19: FALSE | AT19: FALSE | AU19: FALSE | AV19: FALSE | AW19: FALSE | AX19: FALSE | AY19: FALSE | AZ19: FALSE | BA19: FALSE | BB19: FALSE | BC19: FALSE | BD19: FALSE | BE19: FALSE | BF19: FALSE | BG19: FALSE | BH19: FALSE | BI19: FALSE | BJ19: FALSE | BK19: FALSE | BL19: FALSE | BM19: FALSE | BN19: FALSE | BO19: FALSE | BP19: FALSE | BQ19: FALSE | BR19: =BR16<=$E$10 -> FALSE | BS19: FALSE | BT19: FALSE | BU19: FALSE | BV19: FALSE | BW19: FALSE | BX19: FALSE | BY19: FALSE | BZ19: FALSE | CA19: FALSE | CB19: FALSE | CC19: FALSE | CD19: FALSE | CE19: FALSE | CF19: FALSE | CG19: FALSE | CH19: FALSE | CI19: FALSE | CJ19: FALSE | CK19: FALSE | CL19: FALSE | CM19: FALSE | CN19: FALSE | CO19: FALSE | CP19: FALSE | CQ19: FALSE | CR19: FALSE | CS19: FALSE | CT19: FALSE | CU19: FALSE | CV19: FALSE | CW19: FALSE | CX19: FALSE | CY19: FALSE | CZ19: FALSE | DA19: FALSE | DB19: FALSE | DC19: FALSE | DD19: FALSE | DE19: FALSE | DF19: FALSE | DG19: FALSE | DH19: FALSE | DI19: FALSE | DJ19: FALSE | DK19: FALSE | DL19: FALSE | DM19: FALSE | DN19: FALSE | DO19: FALSE | DP19: FALSE | DQ19: FALSE | DR19: FALSE | DS19: FALSE | DT19: FALSE | DU19: FALSE | DV19: FALSE | DW19: FALSE | DX19: FALSE | DY19: FALSE | DZ19: FALSE | EA19: FALSE | EB19: FALSE | EC19: FALSE | ED19: =ED16<=$E$10 -> FALSE | EE19: FALSE | EF19: FALSE | EG19: FALSE | EH19: FALSE | EI19: FALSE | EJ19: FALSE | EK19: FALSE | EL19: FALSE | EM19: FALSE | EN19: FALSE | EO19: FALSE | EP19: FALSE | EQ19: FALSE | ER19: FALSE | ES19: FALSE | ET19: FALSE | EU19: FALSE | EV19: FALSE | EW19: FALSE | EX19: FALSE | EY19: FALSE | EZ19: FALSE | FA19: FALSE | FB19: FALSE | FC19: FALSE | FD19: FALSE | FE19: FALSE | FF19: FALSE | FG19: FALSE | FH19: FALSE | FI19: FALSE | FJ19: FALSE | FK19: FALSE | FL19: FALSE | FM19: FALSE | FN19: FALSE | FO19: FALSE | FP19: FALSE | FQ19: FALSE | FR19: FALSE | FS19: FALSE | FT19: FALSE | FU19: FALSE | FV19: FALSE | FW19: FALSE | FX19: FALSE | FY19: FALSE | FZ19: FALSE | GA19: FALSE | GB19: FALSE | GC19: FALSE | GD19: FALSE | GE19: FALSE | GF19: FALSE | GG19: FALSE | GH19: FALSE | GI19: FALSE | GJ19: FALSE | GK19: FALSE | GL19: FALSE | GM19: FALSE | GN19: FALSE | GO19: FALSE | GP19: =GP16<=$E$10 -> FALSE | GQ19: FALSE | GR19: FALSE | GS19: FALSE | GT19: FALSE | GU19: FALSE | GV19: FALSE | GW19: FALSE | GX19: FALSE | GY19: FALSE | GZ19: FALSE | HA19: FALSE | HB19: FALSE | HC19: FALSE | HD19: FALSE | HE19: FALSE | HF19: FALSE | HG19: FALSE | HH19: FALSE | HI19: FALSE | HJ19: FALSE | HK19: FALSE | HL19: FALSE | HM19: FALSE | HN19: FALSE | HO19: FALSE | HP19: FALSE | HQ19: FALSE | HR19: FALSE | HS19: FALSE | HT19: FALSE | HU19: FALSE | HV19: FALSE | HW19: FALSE | HX19: FALSE | HY19: FALSE | HZ19: FALSE | IA19: FALSE | IB19: FALSE | IC19: FALSE | ID19: FALSE | IE19: FALSE | IF19: FALSE | IG19: FALSE | IH19: FALSE | II19: FALSE | IJ19: FALSE | IK19: FALSE | IL19: FALSE | IM19: FALSE | IN19: FALSE | IO19: FALSE | IP19: FALSE | IQ19: FALSE | IR19: FALSE | IS19: FALSE | IT19: FALSE | IU19: FALSE | IV19: FALSE | IW19: FALSE | IX19: FALSE | IY19: FALSE | IZ19: FALSE | JA19: FALSE | JB19: =JB16<=$E$10 -> FALSE | JC19: FALSE | JD19: FALSE | JE19: FALSE | JF19: FALSE | JG19: FALSE | JH19: FALSE | JI19: FALSE | JJ19: FALSE | JK19: FALSE | JL19: FALSE | JM19: FALSE | JN19: FALSE | JO19: FALSE | JP19: FALSE | JQ19: FALSE | JR19: FALSE | JS19: FALSE | JT19: FALSE | JU19: FALSE | JV19: FALSE | JW19: FALSE | JX19: FALSE | JY19: FALSE | JZ19: FALSE | KA19: FALSE | KB19: FALSE | KC19: FALSE | KD19: FALSE | KE19: FALSE | KF19: FALSE | KG19: FALSE | KH19: FALSE | KI19: FALSE | KJ19: FALSE | KK19: FALSE | KL19: FALSE | KM19: FALSE | KN19: FALSE | KO19: FALSE | KP19: FALSE | KQ19: FALSE | KR19: FALSE | KS19: FALSE | KT19: FALSE | KU19: FALSE | KV19: FALSE | KW19: FALSE | KX19: FALSE | KY19: FALSE | KZ19: FALSE | LA19: FALSE | LB19: FALSE | LC19: FALSE | LD19: FALSE | LE19: FALSE | LF19: FALSE | LG19: FALSE | LH19: FALSE | LI19: FALSE | LJ19: FALSE | LK19: FALSE | LL19: FALSE | LM19: FALSE | LN19: =LN16<=$E$10 -> FALSE | LO19: FALSE | LP19: FALSE | LQ19: FALSE | LR19: FALSE | LS19: FALSE | LT19: FALSE | LU19: FALSE | LV19: FALSE | LW19: FALSE | LX19: FALSE | LY19: FALSE | LZ19: FALSE | MA19: FALSE | MB19: FALSE | MC19: FALSE | MD19: FALSE | ME19: FALSE | MF19: FALSE | MG19: FALSE | MH19: FALSE | MI19: FALSE | MJ19: FALSE | MK19: FALSE | ML19: FALSE | MM19: FALSE | MN19: FALSE | MO19: FALSE | MP19: FALSE | MQ19: FALSE | MR19: FALSE | MS19: FALSE | MT19: FALSE | MU19: FALSE | MV19: FALSE | MW19: FALSE | MX19: FALSE | MY19: FALSE | MZ19: FALSE | NA19: FALSE | NB19: FALSE | NC19: FALSE | ND19: FALSE | NE19: FALSE | NF19: FALSE | NG19: FALSE | NH19: FALSE | NI19: FALSE | NJ19: FALSE | NK19: FALSE | NL19: FALSE | NM19: FALSE | NN19: FALSE | NO19: FALSE | NP19: FALSE | NQ19: FALSE | NR19: FALSE | NS19: FALSE | NT19: FALSE | NU19: FALSE | NV19: FALSE | NW19: FALSE | NX19: FALSE | NY19: FALSE | NZ19: =NZ16<=$E$10 -> FALSE | OA19: FALSE | OB19: FALSE | OC19: FALSE | OD19: FALSE | OE19: FALSE | OF19: FALSE | OG19: FALSE | OH19: FALSE | OI19: FALSE | OJ19: FALSE | OK19: FALSE | OL19: FALSE | OM19: FALSE | ON19: FALSE | OO19: FALSE | OP19: FALSE | OQ19: FALSE | OR19: FALSE | OS19: FALSE | OT19: FALSE | OU19: FALSE | OV19: FALSE | OW19: FALSE | OX19: FALSE | OY19: FALSE | OZ19: FALSE | PA19: FALSE | PB19: FALSE | PC19: FALSE | PD19: FALSE | PE19: FALSE | PF19: FALSE | PG19: FALSE | PH19: FALSE | PI19: FALSE | PJ19: FALSE | PK19: FALSE | PL19: FALSE | PM19: FALSE | PN19: FALSE | PO19: FALSE | PP19: FALSE | PQ19: FALSE | PR19: FALSE | PS19: FALSE | PT19: FALSE | PU19: FALSE | PV19: FALSE | PW19: FALSE | PX19: FALSE | PY19: FALSE | PZ19: FALSE | QA19: FALSE | QB19: FALSE | QC19: FALSE | QD19: FALSE | QE19: FALSE | QF19: FALSE | QG19: FALSE | QH19: FALSE | QI19: FALSE | QJ19: FALSE | QK19: FALSE | QL19: =QL16<=$E$10 -> FALSE | QM19: FALSE | QN19: FALSE | QO19: FALSE | QP19: FALSE | QQ19: FALSE | QR19: FALSE | QS19: FALSE | QT19: FALSE | QU19: FALSE | QV19: FALSE | QW19: FALSE | QX19: FALSE | QY19: FALSE | QZ19: FALSE | RA19: FALSE | RB19: FALSE | RC19: FALSE | RD19: FALSE | RE19: FALSE | RF19: FALSE | RG19: FALSE | RH19: FALSE | RI19: FALSE | RJ19: FALSE | RK19: FALSE | RL19: FALSE | RM19: FALSE | RN19: FALSE | RO19: FALSE | RP19: FALSE | RQ19: FALSE | RR19: FALSE | RS19: FALSE | RT19: FALSE | RU19: FALSE | RV19: FALSE | RW19: FALSE | RX19: FALSE | RY19: FALSE | RZ19: FALSE | SA19: FALSE | SB19: FALSE | SC19: FALSE | SD19: FALSE | SE19: FALSE | SF19: FALSE | SG19: FALSE | SH19: FALSE | SI19: FALSE | SJ19: FALSE | SK19: FALSE | SL19: FALSE | SM19: FALSE | SN19: FALSE | SO19: FALSE | SP19: FALSE | SQ19: FALSE | SR19: FALSE | SS19: FALSE | ST19: FALSE | SU19: FALSE | SV19: FALSE | SW19: FALSE | SX19: =SX16<=$E$10 -> FALSE | SY19: FALSE | SZ19: FALSE | TA19: FALSE | TB19: FALSE | TC19: FALSE | TD19: FALSE | TE19: FALSE | TF19: FALSE | TG19: FALSE | TH19: FALSE | TI19: FALSE | TJ19: FALSE | TK19: FALSE | TL19: FALSE | TM19: FALSE | TN19: FALSE | TO19: FALSE | TP19: FALSE | TQ19: FALSE | TR19: FALSE | TS19: FALSE | TT19: FALSE | TU19: FALSE | TV19: FALSE | TW19: FALSE | TX19: FALSE | TY19: FALSE | TZ19: FALSE | UA19: FALSE | UB19: FALSE | UC19: FALSE | UD19: FALSE | UE19: FALSE | UF19: FALSE | UG19: FALSE | UH19: FALSE | UI19: FALSE | UJ19: FALSE | UK19: FALSE | UL19: FALSE | UM19: FALSE | UN19: FALSE | UO19: FALSE | UP19: FALSE | UQ19: FALSE | UR19: FALSE | US19: FALSE | UT19: FALSE | UU19: FALSE | UV19: FALSE | UW19: FALSE | UX19: FALSE | UY19: FALSE
C21: Growth | E21: =IF(E16<=$E$10,$E$7,E17*$E$2+NOT(E17)*$E$4) -> 0.1 | F21: 0.1 | G21: =IF(G16<=$E$10,$E$7,G17*$E$2+NOT(G17)*$E$4) -> 0.1 | H21: =IF(H16<=$E$10,$E$7,H17*$E$2+NOT(H17)*$E$4) -> 0.1 | I21: 0.1 | J21: 0.1 | K21: 0.15 | L21: 0.15 | M21: 0.15 | N21: 0.15 | O21: =IF(O16<=$E$10,$E$7,O17*$E$2+NOT(O17)*$E$4) -> 0.15 | P21: =IF(P16<=$E$10,$E$7,P17*$E$2+NOT(P17)*$E$4) -> 0.15 | Q21: 0.15 | R21: 0.15 | S21: 0.15 | T21: 0.15 | U21: 0.15 | V21: 0.15 | W21: 0.15 | X21: 0.15 | Y21: 0.15 | Z21: 0.15 | AA21: 0.15 | AB21: 0.15 | AC21: 0.15 | AD21: 0.15 | AE21: 0.15 | AF21: 0.15 | AG21: 0.15 | AH21: 0.15 | AI21: 0.15 | AJ21: 0.15 | AK21: 0.15 | AL21: 0.15 | AM21: 0.15 | AN21: 0.15 | AO21: 0.15 | AP21: 0.15 | AQ21: 0.15 | AR21: 0.15 | AS21: 0.15 | AT21: 0.15 | AU21: 0.15 | AV21: 0.15 | AW21: 0.15 | AX21: 0.15 | AY21: 0.15 | AZ21: 0.15 | BA21: 0.15 | BB21: 0.15 | BC21: 0.15 | BD21: 0.15 | BE21: 0.15 | BF21: 0.15 | BG21: 0.15 | BH21: 0.15 | BI21: 0.15 | BJ21: 0.15 | BK21: 0.15 | BL21: 0.15 | BM21: 0.15 | BN21: 0.15 | BO21: 0.03 | BP21: 0.03 | BQ21: 0.03 | BR21: 0.03 | BS21: 0.03 | BT21: 0.03 | BU21: 0.03 | BV21: 0.03 | BW21: 0.03 | BX21: 0.03 | BY21: 0.03 | BZ21: 0.03 | CA21: 0.03 | CB21: =IF(CB16<=$E$10,$E$7,CB17*$E$2+NOT(CB17)*$E$4) -> 0.03 | CC21: 0.03 | CD21: 0.03 | CE21: 0.03 | CF21: 0.03 | CG21: 0.03 | CH21: 0.03 | CI21: 0.03 | CJ21: 0.03 | CK21: 0.03 | CL21: 0.03 | CM21: 0.03 | CN21: 0.03 | CO21: 0.03 | CP21: 0.03 | CQ21: 0.03 | CR21: 0.03 | CS21: 0.03 | CT21: 0.03 | CU21: 0.03 | CV21: 0.03 | CW21: 0.03 | CX21: 0.03 | CY21: 0.03 | CZ21: 0.03 | DA21: 0.03 | DB21: 0.03 | DC21: 0.03 | DD21: 0.03 | DE21: 0.03 | DF21: 0.03 | DG21: 0.03 | DH21: 0.03 | DI21: 0.03 | DJ21: 0.03 | DK21: 0.03 | DL21: 0.03 | DM21: 0.03 | DN21: 0.03 | DO21: 0.03 | DP21: 0.03 | DQ21: 0.03 | DR21: 0.03 | DS21: 0.03 | DT21: 0.03 | DU21: 0.03 | DV21: 0.03 | DW21: 0.03 | DX21: 0.03 | DY21: 0.03 | DZ21: 0.03 | EA21: 0.03 | EB21: 0.03 | EC21: 0.03 | ED21: 0.03 | EE21: 0.03 | EF21: 0.03 | EG21: 0.03 | EH21: 0.03 | EI21: 0.03 | EJ21: 0.03 | EK21: 0.03 | EL21: 0.03 | EM21: 0.03 | EN21: =IF(EN16<=$E$10,$E$7,EN17*$E$2+NOT(EN17)*$E$4) -> 0.03 | EO21: 0.03 | EP21: 0.03 | EQ21: 0.03 | ER21: 0.03 | ES21: 0.03 | ET21: 0.03 | EU21: 0.03 | EV21: 0.03 | EW21: 0.03 | EX21: 0.03 | EY21: 0.03 | EZ21: 0.03 | FA21: 0.03 | FB21: 0.03 | FC21: 0.03 | FD21: 0.03 | FE21: 0.03 | FF21: 0.03 | FG21: 0.03 | FH21: 0.03 | FI21: 0.03 | FJ21: 0.03 | FK21: 0.03 | FL21: 0.03 | FM21: 0.03 | FN21: 0.03 | FO21: 0.03 | FP21: 0.03 | FQ21: 0.03 | FR21: 0.03 | FS21: 0.03 | FT21: 0.03 | FU21: 0.03 | FV21: 0.03 | FW21: 0.03 | FX21: 0.03 | FY21: 0.03 | FZ21: 0.03 | GA21: 0.03 | GB21: 0.03 | GC21: 0.03 | GD21: 0.03 | GE21: 0.03 | GF21: 0.03 | GG21: 0.03 | GH21: 0.03 | GI21: 0.03 | GJ21: 0.03 | GK21: 0.03 | GL21: 0.03 | GM21: 0.03 | GN21: 0.03 | GO21: 0.03 | GP21: 0.03 | GQ21: 0.03 | GR21: 0.03 | GS21: 0.03 | GT21: 0.03 | GU21: 0.03 | GV21: 0.03 | GW21: 0.03 | GX21: 0.03 | GY21: 0.03 | GZ21: =IF(GZ16<=$E$10,$E$7,GZ17*$E$2+NOT(GZ17)*$E$4) -> 0.03 | HA21: 0.03 | HB21: 0.03 | HC21: 0.03 | HD21: 0.03 | HE21: 0.03 | HF21: 0.03 | HG21: 0.03 | HH21: 0.03 | HI21: 0.03 | HJ21: 0.03 | HK21: 0.03 | HL21: 0.03 | HM21: 0.03 | HN21: 0.03 | HO21: 0.03 | HP21: 0.03 | HQ21: 0.03 | HR21: 0.03 | HS21: 0.03 | HT21: 0.03 | HU21: 0.03 | HV21: 0.03 | HW21: 0.03 | HX21: 0.03 | HY21: 0.03 | HZ21: 0.03 | IA21: 0.03 | IB21: 0.03 | IC21: 0.03 | ID21: 0.03 | IE21: 0.03 | IF21: 0.03 | IG21: 0.03 | IH21: 0.03 | II21: 0.03 | IJ21: 0.03 | IK21: 0.03 | IL21: 0.03 | IM21: 0.03 | IN21: 0.03 | IO21: 0.03 | IP21: 0.03 | IQ21: 0.03 | IR21: 0.03 | IS21: 0.03 | IT21: 0.03 | IU21: 0.03 | IV21: 0.03 | IW21: 0.03 | IX21: 0.03 | IY21: 0.03 | IZ21: 0.03 | JA21: 0.03 | JB21: 0.03 | JC21: 0.03 | JD21: 0.03 | JE21: 0.03 | JF21: 0.03 | JG21: 0.03 | JH21: 0.03 | JI21: 0.03 | JJ21: 0.03 | JK21: 0.03 | JL21: =IF(JL16<=$E$10,$E$7,JL17*$E$2+NOT(JL17)*$E$4) -> 0.03 | JM21: 0.03 | JN21: 0.03 | JO21: 0.03 | JP21: 0.03 | JQ21: 0.03 | JR21: 0.03 | JS21: 0.03 | JT21: 0.03 | JU21: 0.03 | JV21: 0.03 | JW21: 0.03 | JX21: 0.03 | JY21: 0.03 | JZ21: 0.03 | KA21: 0.03 | KB21: 0.03 | KC21: 0.03 | KD21: 0.03 | KE21: 0.03 | KF21: 0.03 | KG21: 0.03 | KH21: 0.03 | KI21: 0.03 | KJ21: 0.03 | KK21: 0.03 | KL21: 0.03 | KM21: 0.03 | KN21: 0.03 | KO21: 0.03 | KP21: 0.03 | KQ21: 0.03 | KR21: 0.03 | KS21: 0.03 | KT21: 0.03 | KU21: 0.03 | KV21: 0.03 | KW21: 0.03 | KX21: 0.03 | KY21: 0.03 | KZ21: 0.03 | LA21: 0.03 | LB21: 0.03 | LC21: 0.03 | LD21: 0.03 | LE21: 0.03 | LF21: 0.03 | LG21: 0.03 | LH21: 0.03 | LI21: 0.03 | LJ21: 0.03 | LK21: 0.03 | LL21: 0.03 | LM21: 0.03 | LN21: 0.03 | LO21: 0.03 | LP21: 0.03 | LQ21: 0.03 | LR21: 0.03 | LS21: 0.03 | LT21: 0.03 | LU21: 0.03 | LV21: 0.03 | LW21: 0.03 | LX21: =IF(LX16<=$E$10,$E$7,LX17*$E$2+NOT(LX17)*$E$4) -> 0.03 | LY21: 0.03 | LZ21: 0.03 | MA21: 0.03 | MB21: 0.03 | MC21: 0.03 | MD21: 0.03 | ME21: 0.03 | MF21: 0.03 | MG21: 0.03 | MH21: 0.03 | MI21: 0.03 | MJ21: 0.03 | MK21: 0.03 | ML21: 0.03 | MM21: 0.03 | MN21: 0.03 | MO21: 0.03 | MP21: 0.03 | MQ21: 0.03 | MR21: 0.03 | MS21: 0.03 | MT21: 0.03 | MU21: 0.03 | MV21: 0.03 | MW21: 0.03 | MX21: 0.03 | MY21: 0.03 | MZ21: 0.03 | NA21: 0.03 | NB21: 0.03 | NC21: 0.03 | ND21: 0.03 | NE21: 0.03 | NF21: 0.03 | NG21: 0.03 | NH21: 0.03 | NI21: 0.03 | NJ21: 0.03 | NK21: 0.03 | NL21: 0.03 | NM21: 0.03 | NN21: 0.03 | NO21: 0.03 | NP21: 0.03 | NQ21: 0.03 | NR21: 0.03 | NS21: 0.03 | NT21: 0.03 | NU21: 0.03 | NV21: 0.03 | NW21: 0.03 | NX21: 0.03 | NY21: 0.03 | NZ21: 0.03 | OA21: 0.03 | OB21: 0.03 | OC21: 0.03 | OD21: 0.03 | OE21: 0.03 | OF21: 0.03 | OG21: 0.03 | OH21: 0.03 | OI21: 0.03 | OJ21: =IF(OJ16<=$E$10,$E$7,OJ17*$E$2+NOT(OJ17)*$E$4) -> 0.03 | OK21: 0.03 | OL21: 0.03 | OM21: 0.03 | ON21: 0.03 | OO21: 0.03 | OP21: 0.03 | OQ21: 0.03 | OR21: 0.03 | OS21: 0.03 | OT21: 0.03 | OU21: 0.03 | OV21: 0.03 | OW21: 0.03 | OX21: 0.03 | OY21: 0.03 | OZ21: 0.03 | PA21: 0.03 | PB21: 0.03 | PC21: 0.03 | PD21: 0.03 | PE21: 0.03 | PF21: 0.03 | PG21: 0.03 | PH21: 0.03 | PI21: 0.03 | PJ21: 0.03 | PK21: 0.03 | PL21: 0.03 | PM21: 0.03 | PN21: 0.03 | PO21: 0.03 | PP21: 0.03 | PQ21: 0.03 | PR21: 0.03 | PS21: 0.03 | PT21: 0.03 | PU21: 0.03 | PV21: 0.03 | PW21: 0.03 | PX21: 0.03 | PY21: 0.03 | PZ21: 0.03 | QA21: 0.03 | QB21: 0.03 | QC21: 0.03 | QD21: 0.03 | QE21: 0.03 | QF21: 0.03 | QG21: 0.03 | QH21: 0.03 | QI21: 0.03 | QJ21: 0.03 | QK21: 0.03 | QL21: 0.03 | QM21: 0.03 | QN21: 0.03 | QO21: 0.03 | QP21: 0.03 | QQ21: 0.03 | QR21: 0.03 | QS21: 0.03 | QT21: 0.03 | QU21: 0.03 | QV21: =IF(QV16<=$E$10,$E$7,QV17*$E$2+NOT(QV17)*$E$4) -> 0.03 | QW21: 0.03 | QX21: 0.03 | QY21: 0.03 | QZ21: 0.03 | RA21: 0.03 | RB21: 0.03 | RC21: 0.03 | RD21: 0.03 | RE21: 0.03 | RF21: 0.03 | RG21: 0.03 | RH21: 0.03 | RI21: 0.03 | RJ21: 0.03 | RK21: 0.03 | RL21: 0.03 | RM21: 0.03 | RN21: 0.03 | RO21: 0.03 | RP21: 0.03 | RQ21: 0.03 | RR21: 0.03 | RS21: 0.03 | RT21: 0.03 | RU21: 0.03 | RV21: 0.03 | RW21: 0.03 | RX21: 0.03 | RY21: 0.03 | RZ21: 0.03 | SA21: 0.03 | SB21: 0.03 | SC21: 0.03 | SD21: 0.03 | SE21: 0.03 | SF21: 0.03 | SG21: 0.03 | SH21: 0.03 | SI21: 0.03 | SJ21: 0.03 | SK21: 0.03 | SL21: 0.03 | SM21: 0.03 | SN21: 0.03 | SO21: 0.03 | SP21: 0.03 | SQ21: 0.03 | SR21: 0.03 | SS21: 0.03 | ST21: 0.03 | SU21: 0.03 | SV21: 0.03 | SW21: 0.03 | SX21: 0.03 | SY21: 0.03 | SZ21: 0.03 | TA21: 0.03 | TB21: 0.03 | TC21: 0.03 | TD21: 0.03 | TE21: 0.03 | TF21: 0.03 | TG21: 0.03 | TH21: =IF(TH16<=$E$10,$E$7,TH17*$E$2+NOT(TH17)*$E$4) -> 0.03 | TI21: 0.03 | TJ21: 0.03 | TK21: 0.03 | TL21: 0.03 | TM21: 0.03 | TN21: 0.03 | TO21: 0.03 | TP21: 0.03 | TQ21: 0.03 | TR21: 0.03 | TS21: 0.03 | TT21: 0.03 | TU21: 0.03 | TV21: 0.03 | TW21: 0.03 | TX21: 0.03 | TY21: 0.03 | TZ21: 0.03 | UA21: 0.03 | UB21: 0.03 | UC21: 0.03 | UD21: 0.03 | UE21: 0.03 | UF21: 0.03 | UG21: 0.03 | UH21: 0.03 | UI21: 0.03 | UJ21: 0.03 | UK21: 0.03 | UL21: 0.03 | UM21: 0.03 | UN21: 0.03 | UO21: 0.03 | UP21: 0.03 | UQ21: 0.03 | UR21: 0.03 | US21: 0.03 | UT21: 0.03 | UU21: 0.03 | UV21: 0.03 | UW21: 0.03 | UX21: 0.03 | UY21: 0.03
C22: Inflation | E22: =E6 -> 0 | F22: =E22 -> 0 | G22: 0 | H22: 0 | I22: 0 | J22: 0 | K22: 0 | L22: 0 | M22: 0 | N22: 0 | O22: 0 | P22: 0 | Q22: 0 | R22: 0 | S22: 0 | T22: 0 | U22: 0 | V22: 0 | W22: 0 | X22: 0 | Y22: 0 | Z22: 0 | AA22: 0 | AB22: 0 | AC22: 0 | AD22: 0 | AE22: 0 | AF22: 0 | AG22: 0 | AH22: 0 | AI22: 0 | AJ22: 0 | AK22: 0 | AL22: 0 | AM22: 0 | AN22: 0 | AO22: 0 | AP22: 0 | AQ22: 0 | AR22: 0 | AS22: 0 | AT22: 0 | AU22: 0 | AV22: 0 | AW22: 0 | AX22: 0 | AY22: 0 | AZ22: 0 | BA22: 0 | BB22: 0 | BC22: 0 | BD22: 0 | BE22: 0 | BF22: 0 | BG22: 0 | BH22: 0 | BI22: 0 | BJ22: 0 | BK22: 0 | BL22: 0 | BM22: 0 | BN22: 0 | BO22: 0 | BP22: 0 | BQ22: 0 | BR22: =BQ22 -> 0 | BS22: 0 | BT22: 0 | BU22: 0 | BV22: 0 | BW22: 0 | BX22: 0 | BY22: 0 | BZ22: 0 | CA22: 0 | CB22: 0 | CC22: 0 | CD22: 0 | CE22: 0 | CF22: 0 | CG22: 0 | CH22: 0 | CI22: 0 | CJ22: 0 | CK22: 0 | CL22: 0 | CM22: 0 | CN22: 0 | CO22: 0 | CP22: 0 | CQ22: 0 | CR22: 0 | CS22: 0 | CT22: 0 | CU22: 0 | CV22: 0 | CW22: 0 | CX22: 0 | CY22: 0 | CZ22: 0 | DA22: 0 | DB22: 0 | DC22: 0 | DD22: 0 | DE22: 0 | DF22: 0 | DG22: 0 | DH22: 0 | DI22: 0 | DJ22: 0 | DK22: 0 | DL22: 0 | DM22: 0 | DN22: 0 | DO22: 0 | DP22: 0 | DQ22: 0 | DR22: 0 | DS22: 0 | DT22: 0 | DU22: 0 | DV22: 0 | DW22: 0 | DX22: 0 | DY22: 0 | DZ22: 0 | EA22: 0 | EB22: 0 | EC22: 0 | ED22: =EC22 -> 0 | EE22: 0 | EF22: 0 | EG22: 0 | EH22: 0 | EI22: 0 | EJ22: 0 | EK22: 0 | EL22: 0 | EM22: 0 | EN22: 0 | EO22: 0 | EP22: 0 | EQ22: 0 | ER22: 0 | ES22: 0 | ET22: 0 | EU22: 0 | EV22: 0 | EW22: 0 | EX22: 0 | EY22: 0 | EZ22: 0 | FA22: 0 | FB22: 0 | FC22: 0 | FD22: 0 | FE22: 0 | FF22: 0 | FG22: 0 | FH22: 0 | FI22: 0 | FJ22: 0 | FK22: 0 | FL22: 0 | FM22: 0 | FN22: 0 | FO22: 0 | FP22: 0 | FQ22: 0 | FR22: 0 | FS22: 0 | FT22: 0 | FU22: 0 | FV22: 0 | FW22: 0 | FX22: 0 | FY22: 0 | FZ22: 0 | GA22: 0 | GB22: 0 | GC22: 0 | GD22: 0 | GE22: 0 | GF22: 0 | GG22: 0 | GH22: 0 | GI22: 0 | GJ22: 0 | GK22: 0 | GL22: 0 | GM22: 0 | GN22: 0 | GO22: 0 | GP22: =GO22 -> 0 | GQ22: 0 | GR22: 0 | GS22: 0 | GT22: 0 | GU22: 0 | GV22: 0 | GW22: 0 | GX22: 0 | GY22: 0 | GZ22: 0 | HA22: 0 | HB22: 0 | HC22: 0 | HD22: 0 | HE22: 0 | HF22: 0 | HG22: 0 | HH22: 0 | HI22: 0 | HJ22: 0 | HK22: 0 | HL22: 0 | HM22: 0 | HN22: 0 | HO22: 0 | HP22: 0 | HQ22: 0 | HR22: 0 | HS22: 0 | HT22: 0 | HU22: 0 | HV22: 0 | HW22: 0 | HX22: 0 | HY22: 0 | HZ22: 0 | IA22: 0 | IB22: 0 | IC22: 0 | ID22: 0 | IE22: 0 | IF22: 0 | IG22: 0 | IH22: 0 | II22: 0 | IJ22: 0 | IK22: 0 | IL22: 0 | IM22: 0 | IN22: 0 | IO22: 0 | IP22: 0 | IQ22: 0 | IR22: 0 | IS22: 0 | IT22: 0 | IU22: 0 | IV22: 0 | IW22: 0 | IX22: 0 | IY22: 0 | IZ22: 0 | JA22: 0 | JB22: =JA22 -> 0 | JC22: 0 | JD22: 0 | JE22: 0 | JF22: 0 | JG22: 0 | JH22: 0 | JI22: 0 | JJ22: 0 | JK22: 0 | JL22: 0 | JM22: 0 | JN22: 0 | JO22: 0 | JP22: 0 | JQ22: 0 | JR22: 0 | JS22: 0 | JT22: 0 | JU22: 0 | JV22: 0 | JW22: 0 | JX22: 0 | JY22: 0 | JZ22: 0 | KA22: 0 | KB22: 0 | KC22: 0 | KD22: 0 | KE22: 0 | KF22: 0 | KG22: 0 | KH22: 0 | KI22: 0 | KJ22: 0 | KK22: 0 | KL22: 0 | KM22: 0 | KN22: 0 | KO22: 0 | KP22: 0 | KQ22: 0 | KR22: 0 | KS22: 0 | KT22: 0 | KU22: 0 | KV22: 0 | KW22: 0 | KX22: 0 | KY22: 0 | KZ22: 0 | LA22: 0 | LB22: 0 | LC22: 0 | LD22: 0 | LE22: 0 | LF22: 0 | LG22: 0 | LH22: 0 | LI22: 0 | LJ22: 0 | LK22: 0 | LL22: 0 | LM22: 0 | LN22: =LM22 -> 0 | LO22: 0 | LP22: 0 | LQ22: 0 | LR22: 0 | LS22: 0 | LT22: 0 | LU22: 0 | LV22: 0 | LW22: 0 | LX22: 0 | LY22: 0 | LZ22: 0 | MA22: 0 | MB22: 0 | MC22: 0 | MD22: 0 | ME22: 0 | MF22: 0 | MG22: 0 | MH22: 0 | MI22: 0 | MJ22: 0 | MK22: 0 | ML22: 0 | MM22: 0 | MN22: 0 | MO22: 0 | MP22: 0 | MQ22: 0 | MR22: 0 | MS22: 0 | MT22: 0 | MU22: 0 | MV22: 0 | MW22: 0 | MX22: 0 | MY22: 0 | MZ22: 0 | NA22: 0 | NB22: 0 | NC22: 0 | ND22: 0 | NE22: 0 | NF22: 0 | NG22: 0 | NH22: 0 | NI22: 0 | NJ22: 0 | NK22: 0 | NL22: 0 | NM22: 0 | NN22: 0 | NO22: 0 | NP22: 0 | NQ22: 0 | NR22: 0 | NS22: 0 | NT22: 0 | NU22: 0 | NV22: 0 | NW22: 0 | NX22: 0 | NY22: 0 | NZ22: =NY22 -> 0 | OA22: 0 | OB22: 0 | OC22: 0 | OD22: 0 | OE22: 0 | OF22: 0 | OG22: 0 | OH22: 0 | OI22: 0 | OJ22: 0 | OK22: 0 | OL22: 0 | OM22: 0 | ON22: 0 | OO22: 0 | OP22: 0 | OQ22: 0 | OR22: 0 | OS22: 0 | OT22: 0 | OU22: 0 | OV22: 0 | OW22: 0 | OX22: 0 | OY22: 0 | OZ22: 0 | PA22: 0 | PB22: 0 | PC22: 0 | PD22: 0 | PE22: 0 | PF22: 0 | PG22: 0 | PH22: 0 | PI22: 0 | PJ22: 0 | PK22: 0 | PL22: 0 | PM22: 0 | PN22: 0 | PO22: 0 | PP22: 0 | PQ22: 0 | PR22: 0 | PS22: 0 | PT22: 0 | PU22: 0 | PV22: 0 | PW22: 0 | PX22: 0 | PY22: 0 | PZ22: 0 | QA22: 0 | QB22: 0 | QC22: 0 | QD22: 0 | QE22: 0 | QF22: 0 | QG22: 0 | QH22: 0 | QI22: 0 | QJ22: 0 | QK22: 0 | QL22: =QK22 -> 0 | QM22: 0 | QN22: 0 | QO22: 0 | QP22: 0 | QQ22: 0 | QR22: 0 | QS22: 0 | QT22: 0 | QU22: 0 | QV22: 0 | QW22: 0 | QX22: 0 | QY22: 0 | QZ22: 0 | RA22: 0 | RB22: 0 | RC22: 0 | RD22: 0 | RE22: 0 | RF22: 0 | RG22: 0 | RH22: 0 | RI22: 0 | RJ22: 0 | RK22: 0 | RL22: 0 | RM22: 0 | RN22: 0 | RO22: 0 | RP22: 0 | RQ22: 0 | RR22: 0 | RS22: 0 | RT22: 0 | RU22: 0 | RV22: 0 | RW22: 0 | RX22: 0 | RY22: 0 | RZ22: 0 | SA22: 0 | SB22: 0 | SC22: 0 | SD22: 0 | SE22: 0 | SF22: 0 | SG22: 0 | SH22: 0 | SI22: 0 | SJ22: 0 | SK22: 0 | SL22: 0 | SM22: 0 | SN22: 0 | SO22: 0 | SP22: 0 | SQ22: 0 | SR22: 0 | SS22: 0 | ST22: 0 | SU22: 0 | SV22: 0 | SW22: 0 | SX22: =SW22 -> 0 | SY22: 0 | SZ22: 0 | TA22: 0 | TB22: 0 | TC22: 0 | TD22: 0 | TE22: 0 | TF22: 0 | TG22: 0 | TH22: 0 | TI22: 0 | TJ22: 0 | TK22: 0 | TL22: 0 | TM22: 0 | TN22: 0 | TO22: 0 | TP22: 0 | TQ22: 0 | TR22: 0 | TS22: 0 | TT22: 0 | TU22: 0 | TV22: 0 | TW22: 0 | TX22: 0 | TY22: 0 | TZ22: 0 | UA22: 0 | UB22: 0 | UC22: 0 | UD22: 0 | UE22: 0 | UF22: 0 | UG22: 0 | UH22: 0 | UI22: 0 | UJ22: 0 | UK22: 0 | UL22: 0 | UM22: 0 | UN22: 0 | UO22: 0 | UP22: 0 | UQ22: 0 | UR22: 0 | US22: 0 | UT22: 0 | UU22: 0 | UV22: 0 | UW22: 0 | UX22: 0 | UY22: 0
C24: Opening Capacity Balance | D24: MW | E24: 0 | F24: =E27 -> 10 | G24: 20 | H24: 30 | I24: 40 | J24: 50 | K24: 60 | L24: 69 | M24: 79.35 | N24: 91.2525 | O24: 104.940375 | P24: 120.6814312 | Q24: 138.7836459 | R24: 159.6011928 | S24: 183.5413718 | T24: 211.0725775 | U24: 242.7334641 | V24: 279.1434838 | W24: 321.0150063 | X24: 369.1672573 | Y24: 424.5423459 | Z24: 488.2236977 | AA24: 561.4572524 | AB24: 645.6758403 | AC24: 742.5272163 | AD24: 853.9062988 | AE24: 981.9922436 | AF24: 1129.29108 | AG24: 1298.684742 | AH24: 1493.487453 | AI24: 1717.510571 | AJ24: 1975.137157 | AK24: 2271.407731 | AL24: 2612.11889 | AM24: 3003.936724 | AN24: 3454.527233 | AO24: 3972.706317 | AP24: 4568.612265 | AQ24: 5253.904105 | AR24: 6041.98972 | AS24: 6948.288179 | AT24: 7990.531405 | AU24: 9189.111116 | AV24: 10567.47778 | AW24: 12152.59945 | AX24: 13975.48937 | AY24: 16071.81277 | AZ24: 18482.58469 | BA24: 21254.97239 | BB24: 24443.21825 | BC24: 28109.70099 | BD24: 32326.15614 | BE24: 37175.07956 | BF24: 42751.34149 | BG24: 49164.04272 | BH24: 56538.64913 | BI24: 65019.4465 | BJ24: 74772.36347 | BK24: 85988.21799 | BL24: 98886.45069 | BM24: 113719.4183 | BN24: 130777.331 | BO24: 134700.651 | BP24: 138741.6705 | BQ24: 142903.9206 | BR24: =BQ27 -> 147191.0382 | BS24: 151606.7694 | BT24: 156154.9725 | BU24: 160839.6216 | BV24: 165664.8103 | BW24: 170634.7546 | BX24: 175753.7972 | BY24: 181026.4111 | BZ24: 186457.2035 | CA24: 192050.9196 | CB24: 197812.4472 | CC24: 203746.8206 | CD24: 209859.2252 | CE24: 216155.002 | CF24: 222639.652 | CG24: 229318.8416 | CH24: 236198.4068 | CI24: 243284.359 | CJ24: 250582.8898 | CK24: 258100.3765 | CL24: 265843.3878 | CM24: 273818.6894 | CN24: 282033.2501 | CO24: 290494.2476 | CP24: 299209.075 | CQ24: 308185.3473 | CR24: 317430.9077 | CS24: 326953.8349 | CT24: 336762.45 | CU24: 346865.3235 | CV24: 357271.2832 | CW24: 367989.4217 | CX24: 379029.1043 | CY24: 390399.9775 | CZ24: 402111.9768 | DA24: 414175.3361 | DB24: 426600.5962 | DC24: 439398.6141 | DD24: 452580.5725 | DE24: 466157.9897 | DF24: 480142.7293 | DG24: 494547.0112 | DH24: 509383.4216 | DI24: 524664.9242 | DJ24: 540404.8719 | DK24: 556617.0181 | DL24: 573315.5286 | DM24: 590514.9945 | DN24: 608230.4443 | DO24: 626477.3577 | DP24: 645271.6784 | DQ24: 664629.8287 | DR24: 684568.7236 | DS24: 705105.7853 | DT24: 726258.9589 | DU24: 748046.7276 | DV24: 770488.1295 | DW24: 793602.7733 | DX24: 817410.8565 | DY24: 841933.1822 | DZ24: 867191.1777 | EA24: 893206.913 | EB24: 920003.1204 | EC24: 947603.214 | ED24: =EC27 -> 976031.3105 | EE24: 1005312.25 | EF24: 1035471.617 | EG24: 1066535.766 | EH24: 1098531.839 | EI24: 1131487.794 | EJ24: 1165432.428 | EK24: 1200395.401 | EL24: 1236407.263 | EM24: 1273499.48 | EN24: 1311704.465 | EO24: 1351055.599 | EP24: 1391587.267 | EQ24: 1433334.885 | ER24: 1476334.931 | ES24: 1520624.979 | ET24: 1566243.729 | EU24: 1613231.041 | EV24: 1661627.972 | EW24: 1711476.811 | EX24: 1762821.115 | EY24: 1815705.749 | EZ24: 1870176.921 | FA24: 1926282.229 | FB24: 1984070.696 | FC24: 2043592.817 | FD24: 2104900.601 | FE24: 2168047.619 | FF24: 2233089.048 | FG24: 2300081.719 | FH24: 2369084.171 | FI24: 2440156.696 | FJ24: 2513361.397 | FK24: 2588762.238 | FL24: 2666425.106 | FM24: 2746417.859 | FN24: 2828810.395 | FO24: 2913674.706 | FP24: 3001084.948 | FQ24: 3091117.496 | FR24: 3183851.021 | FS24: 3279366.552 | FT24: 3377747.548 | FU24: 3479079.975 | FV24: 3583452.374 | FW24: 3690955.945 | FX24: 3801684.623 | FY24: 3915735.162 | FZ24: 4033207.217 | GA24: 4154203.433 | GB24: 4278829.536 | GC24: 4407194.423 | GD24: 4539410.255 | GE24: 4675592.563 | GF24: 4815860.34 | GG24: 4960336.15 | GH24: 5109146.234 | GI24: 5262420.621 | GJ24: 5420293.24 | GK24: 5582902.037 | GL24: 5750389.098 | GM24: 5922900.771 | GN24: 6100587.795 | GO24: 6283605.428 | GP24: =GO27 -> 6472113.591 | GQ24: 6666276.999 | GR24: 6866265.309 | GS24: 7072253.268 | GT24: 7284420.866 | GU24: 7502953.492 | GV24: 7728042.097 | GW24: 7959883.36 | GX24: 8198679.861 | GY24: 8444640.256 | GZ24: 8697979.464 | HA24: 8958918.848 | HB24: 9227686.414 | HC24: 9504517.006 | HD24: 9789652.516 | HE24: 10083342.09 | HF24: 10385842.35 | HG24: 10697417.62 | HH24: 11018340.15 | HI24: 11348890.36 | HJ24: 11689357.07 | HK24: 12040037.78 | HL24: 12401238.91 | HM24: 12773276.08 | HN24: 13156474.36 | HO24: 13551168.6 | HP24: 13957703.65 | HQ24: 14376434.76 | HR24: 14807727.81 | HS24: 15251959.64 | HT24: 15709518.43 | HU24: 16180803.98 | HV24: 16666228.1 | HW24: 17166214.94 | HX24: 17681201.39 | HY24: 18211637.43 | HZ24: 18757986.56 | IA24: 19320726.15 | IB24: 19900347.94 | IC24: 20497358.38 | ID24: 21112279.13 | IE24: 21745647.5 | IF24: 22398016.93 | IG24: 23069957.44 | IH24: 23762056.16 | II24: 24474917.84 | IJ24: 25209165.38 | IK24: 25965440.34 | IL24: 26744403.55 | IM24: 27546735.66 | IN24: 28373137.73 | IO24: 29224331.86 | IP24: 30101061.81 | IQ24: 31004093.67 | IR24: 31934216.48 | IS24: 32892242.97 | IT24: 33879010.26 | IU24: 34895380.57 | IV24: 35942241.99 | IW24: 37020509.25 | IX24: 38131124.52 | IY24: 39275058.26 | IZ24: 40453310.01 | JA24: 41666909.31 | JB24: =JA27 -> 42916916.59 | JC24: 44204424.08 | JD24: 45530556.81 | JE24: 46896473.51 | JF24: 48303367.72 | JG24: 49752468.75 | JH24: 51245042.81 | JI24: 52782394.09 | JJ24: 54365865.92 | JK24: 55996841.89 | JL24: 57676747.15 | JM24: 59407049.57 | JN24: 61189261.05 | JO24: 63024938.88 | JP24: 64915687.05 | JQ24: 66863157.66 | JR24: 68869052.39 | JS24: 70935123.96 | JT24: 73063177.68 | JU24: 75255073.01 | JV24: 77512725.2 | JW24: 79838106.96 | JX24: 82233250.17 | JY24: 84700247.67 | JZ24: 87241255.1 | KA24: 89858492.76 | KB24: 92554247.54 | KC24: 95330874.97 | KD24: 98190801.22 | KE24: 101136525.3 | KF24: 104170621 | KG24: 107295739.6 | KH24: 110514611.8 | KI24: 113830050.2 | KJ24: 117244951.7 | KK24: 120762300.2 | KL24: 124385169.2 | KM24: 128116724.3 | KN24: 131960226.1 | KO24: 135919032.8 | KP24: 139996603.8 | KQ24: 144196501.9 | KR24: 148522397 | KS24: 152978068.9 | KT24: 157567411 | KU24: 162294433.3 | KV24: 167163266.3 | KW24: 172178164.3 | KX24: 177343509.2 | KY24: 182663814.5 | KZ24: 188143728.9 | LA24: 193788040.8 | LB24: 199601682 | LC24: 205589732.5 | LD24: 211757424.5 | LE24: 218110147.2 | LF24: 224653451.6 | LG24: 231393055.2 | LH24: 238334846.8 | LI24: 245484892.2 | LJ24: 252849439 | LK24: 260434922.1 | LL24: 268247969.8 | LM24: 276295408.9 | LN24: =LM27 -> 284584271.2 | LO24: 293121799.3 | LP24: 301915453.3 | LQ24: 310972916.9 | LR24: 320302104.4 | LS24: 329911167.5 | LT24: 339808502.5 | LU24: 350002757.6 | LV24: 360502840.4 | LW24: 371317925.6 | LX24: 382457463.3 | LY24: 393931187.2 | LZ24: 405749122.8 | MA24: 417921596.5 | MB24: 430459244.4 | MC24: 443373021.8 | MD24: 456674212.4 | ME24: 470374438.8 | MF24: 484485672 | MG24: 499020242.1 | MH24: 513990849.4 | MI24: 529410574.9 | MJ24: 545292892.1 | MK24: 561651678.9 | ML24: 578501229.2 | MM24: 595856266.1 | MN24: 613731954.1 | MO24: 632143912.7 | MP24: 651108230.1 | MQ24: 670641477 | MR24: 690760721.3 | MS24: 711483542.9 | MT24: 732828049.2 | MU24: 754812890.7 | MV24: 777457277.4 | MW24: 800780995.8 | MX24: 824804425.6 | MY24: 849548558.4 | MZ24: 875035015.2 | NA24: 901286065.6 | NB24: 928324647.6 | NC24: 956174387 | ND24: 984859618.6 | NE24: 1014405407 | NF24: 1044837569 | NG24: 1076182696 | NH24: 1108468177 | NI24: 1141722223 | NJ24: 1175973889 | NK24: 1211253106 | NL24: 1247590699 | NM24: 1285018420 | NN24: 1323568973 | NO24: 1363276042 | NP24: 1404174323 | NQ24: 1446299553 | NR24: 1489688540 | NS24: 1534379196 | NT24: 1580410572 | NU24: 1627822889 | NV24: 1676657575 | NW24: 1726957303 | NX24: 1778766022 | NY24: 1832129002 | NZ24: =NY27 -> 1887092872 | OA24: 1943705659 | OB24: 2002016828 | OC24: 2062077333 | OD24: 2123939653 | OE24: 2187657843 | OF24: 2253287578 | OG24: 2320886205 | OH24: 2390512792 | OI24: 2462228175 | OJ24: 2536095021 | OK24: 2612177871 | OL24: 2690543207 | OM24: 2771259504 | ON24: 2854397289 | OO24: 2940029207 | OP24: 3028230084 | OQ24: 3119076986 | OR24: 3212649296 | OS24: 3309028775 | OT24: 3408299638 | OU24: 3510548627 | OV24: 3615865086 | OW24: 3724341038 | OX24: 3836071269 | OY24: 3951153408 | OZ24: 4069688010 | PA24: 4191778650 | PB24: 4317532010 | PC24: 4447057970 | PD24: 4580469709 | PE24: 4717883800 | PF24: 4859420314 | PG24: 5005202924 | PH24: 5155359011 | PI24: 5310019782 | PJ24: 5469320375 | PK24: 5633399986 | PL24: 5802401986 | PM24: 5976474046 | PN24: 6155768267 | PO24: 6340441315 | PP24: 6530654554 | PQ24: 6726574191 | PR24: 6928371417 | PS24: 7136222559 | PT24: 7350309236 | PU24: 7570818513 | PV24: 7797943069 | PW24: 8031881361 | PX24: 8272837801 | PY24: 8521022936 | PZ24: 8776653624 | QA24: 9039953232 | QB24: 9311151829 | QC24: 9590486384 | QD24: 9878200976 | QE24: 1.0174547e+10 | QF24: 1.047978342e+10 | QG24: 1.079417692e+10 | QH24: 1.111800223e+10 | QI24: 1.145154229e+10 | QJ24: 1.179508856e+10 | QK24: 1.214894122e+10 | QL24: =QK27 -> 1.251340945e+10 | QM24: 1.288881174e+10 | QN24: 1.327547609e+10 | QO24: 1.367374037e+10 | QP24: 1.408395258e+10 | QQ24: 1.450647116e+10 | QR24: 1.49416653e+10 | QS24: 1.538991525e+10 | QT24: 1.585161271e+10 | QU24: 1.632716109e+10 | QV24: 1.681697593e+10 | QW24: 1.73214852e+10 | QX24: 1.784112976e+10 | QY24: 1.837636365e+10 | QZ24: 1.892765456e+10 | RA24: 1.94954842e+10 | RB24: 2.008034873e+10 | RC24: 2.068275919e+10 | RD24: 2.130324196e+10 | RE24: 2.194233922e+10 | RF24: 2.26006094e+10 | RG24: 2.327862768e+10 | RH24: 2.397698651e+10 | RI24: 2.469629611e+10 | RJ24: 2.543718499e+10 | RK24: 2.620030054e+10 | RL24: 2.698630956e+10 | RM24: 2.779589884e+10 | RN24: 2.862977581e+10 | RO24: 2.948866908e+10 | RP24: 3.037332915e+10 | RQ24: 3.128452903e+10 | RR24: 3.22230649e+10 | RS24: 3.318975685e+10 | RT24: 3.418544955e+10 | RU24: 3.521101304e+10 | RV24: 3.626734343e+10 | RW24: 3.735536373e+10 | RX24: 3.847602464e+10 | RY24: 3.963030538e+10 | RZ24: 4.081921455e+10 | SA24: 4.204379098e+10 | SB24: 4.330510471e+10 | SC24: 4.460425785e+10 | SD24: 4.594238559e+10 | SE24: 4.732065716e+10 | SF24: 4.874027687e+10 | SG24: 5.020248518e+10 | SH24: 5.170855973e+10 | SI24: 5.325981652e+10 | SJ24: 5.485761102e+10 | SK24: 5.650333935e+10 | SL24: 5.819843953e+10 | SM24: 5.994439272e+10 | SN24: 6.17427245e+10 | SO24: 6.359500623e+10 | SP24: 6.550285642e+10 | SQ24: 6.746794211e+10 | SR24: 6.949198038e+10 | SS24: 7.157673979e+10 | ST24: 7.372404198e+10 | SU24: 7.593576324e+10 | SV24: 7.821383614e+10 | SW24: 8.056025122e+10 | SX24: =SW27 -> 8.297705876e+10 | SY24: 8.546637052e+10 | SZ24: 8.803036164e+10 | TA24: 9.067127249e+10 | TB24: 9.339141066e+10 | TC24: 9.619315298e+10 | TD24: 9.907894757e+10 | TE24: 1.02051316e+11 | TF24: 1.051128555e+11 | TG24: 1.082662411e+11 | TH24: 1.115142284e+11 | TI24: 1.148596552e+11 | TJ24: 1.183054449e+11 | TK24: 1.218546082e+11 | TL24: 1.255102465e+11 | TM24: 1.292755539e+11 | TN24: 1.331538205e+11 | TO24: 1.371484351e+11 | TP24: 1.412628882e+11 | TQ24: 1.455007748e+11 | TR24: 1.49865798e+11 | TS24: 1.54361772e+11 | TT24: 1.589926251e+11 | TU24: 1.637624039e+11 | TV24: 1.68675276e+11 | TW24: 1.737355343e+11 | TX24: 1.789476003e+11 | TY24: 1.843160283e+11 | TZ24: 1.898455092e+11 | UA24: 1.955408745e+11 | UB24: 2.014071007e+11 | UC24: 2.074493137e+11 | UD24: 2.136727931e+11 | UE24: 2.200829769e+11 | UF24: 2.266854662e+11 | UG24: 2.334860302e+11 | UH24: 2.404906111e+11 | UI24: 2.477053295e+11 | UJ24: 2.551364893e+11 | UK24: 2.62790584e+11 | UL24: 2.706743015e+11 | UM24: 2.787945306e+11 | UN24: 2.871583665e+11 | UO24: 2.957731175e+11 | UP24: 3.04646311e+11 | UQ24: 3.137857004e+11 | UR24: 3.231992714e+11 | US24: 3.328952495e+11 | UT24: 3.42882107e+11 | UU24: 3.531685702e+11 | UV24: 3.637636273e+11 | UW24: 3.746765361e+11 | UX24: 3.859168322e+11 | UY24: 3.974943372e+11
C25: Add: Capacity Additions | D25: MW | E25: =IF(E19,10,E27-E24+E26) -> 10 | F25: =IF(F19,10,F27-F24+F26) -> 10 | G25: 10 | H25: 10 | I25: 10 | J25: 10 | K25: 9 | L25: 10.35 | M25: 11.9025 | N25: 13.687875 | O25: 15.74105625 | P25: 18.10221469 | Q25: 20.81754689 | R25: 23.94017892 | S25: 27.53120576 | T25: 31.66088663 | U25: 36.41001962 | V25: 41.87152256 | W25: 48.15225095 | X25: 55.37508859 | Y25: 63.68135188 | Z25: 73.23355466 | AA25: 84.21858786 | AB25: 96.85137604 | AC25: 111.3790824 | AD25: 128.0859448 | AE25: 147.2988365 | AF25: 169.393662 | AG25: 194.8027113 | AH25: 224.023118 | AI25: 267.6265857 | AJ25: 306.2705736 | AK25: 350.7111596 | AL25: 401.8178336 | AM25: 460.5905086 | AN25: 528.1790849 | AO25: 604.9059476 | AP25: 695.6418398 | AQ25: 799.9881157 | AR25: 919.9863331 | AS25: 1057.984283 | AT25: 1216.681925 | AU25: 1399.184214 | AV25: 1609.061846 | AW25: 1850.421123 | AX25: 2127.984292 | AY25: 2447.181936 | AZ25: 2814.259226 | BA25: 3236.39811 | BB25: 3721.857827 | BC25: 4280.1365 | BD25: 4922.156976 | BE25: 5660.480522 | BF25: 6509.5526 | BG25: 7485.98549 | BH25: 8608.883314 | BI25: 9900.215811 | BJ25: 11385.24818 | BK25: 13093.03541 | BL25: 15056.99072 | BM25: 17325.53933 | BN25: 4229.590505 | BO25: 4391.730689 | BP25: 4564.067948 | BQ25: 4747.708127 | BR25: =IF(BR19,10,BR27-BR24+BR26) -> 4943.910232 | BS25: 5153.109029 | BT25: 5380.291013 | BU25: 5625.176765 | BV25: 5889.930641 | BW25: 6177.026921 | BX25: 6489.295842 | BY25: 6829.976549 | BZ25: 7202.777951 | CA25: 7611.948711 | CB25: 8062.357707 | CC25: 8559.586553 | CD25: 9110.035982 | CE25: 9721.048169 | CF25: 10401.04739 | CG25: 11159.70175 | CH25: 12008.10918 | CI25: 12959.01129 | CJ25: 14027.03929 | CK25: 15228.99678 | CL25: 16584.18495 | CM25: 18114.77649 | CN25: 19846.24569 | CO25: 21807.86284 | CP25: 24033.26297 | CQ25: 26571.09975 | CR25: 13752.51774 | CS25: 14200.34574 | CT25: 14666.94145 | CU25: 15153.66783 | CV25: 15662.04873 | CW25: 16192.79168 | CX25: 16751.16414 | CY25: 17337.17609 | CZ25: 17953.28995 | DA25: 18602.287 | DB25: 19287.31373 | DC25: 20011.93497 | DD25: 20780.19513 | DE25: 21596.6884 | DF25: 22466.63959 | DG25: 23395.99689 | DH25: 24391.53863 | DI25: 25460.99589 | DJ25: 26613.19354 | DK25: 27858.21229 | DL25: 29207.57504 | DM25: 30674.46113 | DN25: 32273.95262 | DO25: 34023.31751 | DP25: 35942.3353 | DQ25: 38053.67136 | DR25: 40383.30739 | DS25: 42961.0364 | DT25: 45821.03174 | DU25: 49012.50158 | DV25: 36867.16162 | DW25: 38008.42894 | DX25: 39189.26714 | DY25: 40411.6633 | DZ25: 41677.78406 | EA25: 42988.99907 | EB25: 44351.25776 | EC25: 45765.27251 | ED25: =IF(ED19,10,ED27-ED24+ED26) -> 47234.22926 | EE25: 48761.6545 | EF25: 50351.46225 | EG25: 52008.00794 | EH25: 53736.15029 | EI25: 55541.32222 | EJ25: 57429.61242 | EK25: 59407.85891 | EL25: 61483.75651 | EM25: 63665.98031 | EN25: 65964.32749 | EO25: 68389.88026 | EP25: 70955.19304 | EQ25: 73674.50767 | ER25: 76564.00056 | ES25: 79642.06689 | ET25: 82929.64716 | EU25: 86450.60257 | EV25: 90232.14655 | EW25: 94305.34072 | EX25: 98705.6652 | EY25: 103483.674 | EZ25: 92972.46925 | FA25: 95796.8958 | FB25: 98711.38801 | FC25: 101719.4478 | FD25: 104824.8021 | FE25: 108030.4276 | FF25: 111343.9292 | FG25: 114767.7241 | FH25: 118306.7544 | FI25: 121966.3554 | FJ25: 125752.3041 | FK25: 129670.8751 | FL25: 133728.9035 | FM25: 137933.858 | FN25: 142293.9243 | FO25: 146818.1001 | FP25: 151516.3049 | FQ25: 156399.5052 | FR25: 161479.8581 | FS25: 166770.8768 | FT25: 172287.6195 | FU25: 178046.9069 | FV25: 184067.5718 | FW25: 190370.7452 | FX25: 196980.1859 | FY25: 203922.6574 | FZ25: 211228.3631 | GA25: 218931.4437 | GB25: 227070.5513 | GC25: 235699.5067 | GD25: 229154.7769 | GE25: 236064.6727 | GF25: 243187.1982 | GG25: 250529.5323 | GH25: 258099.1891 | GI25: 265903.0463 | GJ25: 273952.7264 | GK25: 282254.7852 | GL25: 290818.4273 | GM25: 299653.3785 | GN25: 308769.938 | GO25: 318179.0379 | GP25: =IF(GP19,10,GP27-GP24+GP26) -> 327892.3112 | GQ25: 337922.168 | GR25: 348281.8835 | GS25: 358985.6981 | GT25: 370048.9309 | GU25: 381488.11 | GV25: 393321.121 | GW25: 405567.3776 | GX25: 418248.0153 | GY25: 431386.1146 | GZ25: 445006.9557 | HA25: 459138.3107 | HB25: 473810.7783 | HC25: 489058.1676 | HD25: 504917.9385 | HE25: 521431.7065 | HF25: 538645.8219 | HG25: 556622.0355 | HH25: 559704.9815 | HI25: 576531.3834 | HJ25: 593867.9103 | HK25: 611730.6657 | HL25: 630136.3566 | HM25: 649101.3287 | HN25: 668646.9573 | HO25: 688789.8431 | HP25: 709549.5369 | HQ25: 730946.4214 | HR25: 753001.7722 | HS25: 775737.8271 | HT25: 799177.8641 | HU25: 823346.2874 | HV25: 848268.7266 | HW25: 873972.1465 | HX25: 900484.9727 | HY25: 927837.233 | HZ25: 956060.7178 | IA25: 985189.1622 | IB25: 1015258.453 | IC25: 1046306.866 | ID25: 1078375.33 | IE25: 1111507.736 | IF25: 1145751.286 | IG25: 1181156.891 | IH25: 1217779.623 | II25: 1255679.242 | IJ25: 1294920.783 | IK25: 1335585.246 | IL25: 1362037.088 | IM25: 1402933.453 | IN25: 1445062.042 | IO25: 1488460.621 | IP25: 1533168.211 | IQ25: 1579224.139 | IR25: 1626673.452 | IS25: 1675557.132 | IT25: 1725919.845 | IU25: 1777807.838 | IV25: 1831269.032 | IW25: 1886353.105 | IX25: 1943111.6 | IY25: 2001598.035 | IZ25: 2061868.027 | JA25: 2123979.426 | JB25: =IF(JB19,10,JB27-JB24+JB26) -> 2187992.47 | JC25: 2253969.956 | JD25: 2321977.422 | JE25: 2392083.368 | JF25: 2464359.485 | JG25: 2538880.928 | JH25: 2615726.614 | JI25: 2694979.559 | JJ25: 2776727.264 | JK25: 2861062.148 | JL25: 2948082.038 | JM25: 3037890.729 | JN25: 3130598.615 | JO25: 3226333.412 | JP25: 3309507.7 | JQ25: 3408828.183 | JR25: 3511133.614 | JS25: 3616514.34 | JT25: 3725063.541 | JU25: 3836876.329 | JV25: 3952055.208 | JW25: 4070700.341 | JX25: 4192917.35 | JY25: 4318815.269 | JZ25: 4448506.685 | KA25: 4582107.887 | KB25: 4719739.026 | KC25: 4861524.284 | KD25: 5007592.063 | KE25: 5158075.183 | KF25: 5313111.101 | KG25: 5472842.145 | KH25: 5637415.777 | KI25: 5806984.873 | KJ25: 5981708.036 | KK25: 6161749.936 | KL25: 6347281.691 | KM25: 6538481.288 | KN25: 6735534.045 | KO25: 6938633.133 | KP25: 7147980.152 | KQ25: 7363785.787 | KR25: 7586270.525 | KS25: 7815675.479 | KT25: 8036530.029 | KU25: 8277661.182 | KV25: 8526031.603 | KW25: 8781859.269 | KX25: 9045368.818 | KY25: 9316790.764 | KZ25: 9596367.076 | LA25: 9884341.565 | LB25: 10180967.81 | LC25: 10486507.24 | LD25: 10801229.42 | LE25: 11125412.3 | LF25: 11459342.57 | LG25: 11803315.94 | LH25: 12157637.47 | LI25: 12522621.95 | LJ25: 12898594.27 | LK25: 13285889.81 | LL25: 13684854.87 | LM25: 14095847.14 | LN25: =IF(LN19,10,LN27-LN24+LN26) -> 14519236.17 | LO25: 14955403.91 | LP25: 15404745.29 | LQ25: 15867668.79 | LR25: 16344597.18 | LS25: 16835968.16 | LT25: 17342235.23 | LU25: 17863868.52 | LV25: 18401355.74 | LW25: 18955213.25 | LX25: 19510253.93 | LY25: 20095596.8 | LZ25: 20698505.29 | MA25: 21319507.17 | MB25: 21959146.15 | MC25: 22617981.42 | MD25: 23296593.45 | ME25: 23995574.73 | MF25: 24715537.97 | MG25: 25457114.51 | MH25: 26220954.9 | MI25: 27007729.55 | MJ25: 27818129.34 | MK25: 28652866.3 | ML25: 29512674.34 | MM25: 30398309.93 | MN25: 31310552.89 | MO25: 32250207.19 | MP25: 33218101.77 | MQ25: 34215091.45 | MR25: 35242057.81 | MS25: 36299910.2 | MT25: 37389586.77 | MU25: 38512055.52 | MV25: 39668315.5 | MW25: 40859398.03 | MX25: 42086368 | MY25: 43350325.27 | MZ25: 44652406.19 | NA25: 45993795.21 | NB25: 47359993.36 | NC25: 48780828.41 | ND25: 50244293.85 | NE25: 51751669.38 | NF25: 53304273.23 | NG25: 54903462.31 | NH25: 56550638.77 | NI25: 58247241.41 | NJ25: 59994754.65 | NK25: 61794707.69 | NL25: 63648675.88 | NM25: 65558282.15 | NN25: 67525198.52 | NO25: 69551147.56 | NP25: 71637904.04 | NQ25: 73787296.52 | NR25: 76001209.08 | NS25: 78281583.06 | NT25: 80630418.92 | NU25: 83049778.11 | NV25: 85541785.07 | NW25: 88108629.28 | NX25: 90752567.42 | NY25: 93475925.59 | NZ25: =IF(NZ19,10,NZ27-NZ24+NZ26) -> 96281101.67 | OA25: 99170567.79 | OB25: 102146872.8 | OC25: 105212645.3 | OD25: 108370595.8 | OE25: 111623530.5 | OF25: 114958620.7 | OG25: 118407414.6 | OH25: 121959677.6 | OI25: 125618514.6 | OJ25: 129387123.9 | OK25: 133268798.4 | OL25: 137266935 | OM25: 141385026.5 | ON25: 145626673.3 | OO25: 149995583.9 | OP25: 154495578.4 | OQ25: 159130591.7 | OR25: 163904677.4 | OS25: 168822010.8 | OT25: 173886893.2 | OU25: 179103755.3 | OV25: 184477161.7 | OW25: 190011814.2 | OX25: 195712557 | OY25: 201584380.3 | OZ25: 207632425.4 | PA25: 213861988.8 | PB25: 220278527.7 | PC25: 226887664.7 | PD25: 233695192.9 | PE25: 240707081.8 | PF25: 247929482.3 | PG25: 255368733 | PH25: 263031366.1 | PI25: 270924124 | PJ25: 279038232 | PK25: 287409414.2 | PL25: 296031737.2 | PM25: 304912736 | PN25: 314060171.9 | PO25: 323482037.9 | PP25: 333186571.6 | PQ25: 343182252.3 | PR25: 353477815.8 | PS25: 364082260.7 | PT25: 375004855.5 | PU25: 386255147.1 | PV25: 397842969.5 | PW25: 409778451.6 | PX25: 422072027.2 | PY25: 434734443.4 | PZ25: 447776770.4 | QA25: 461210411.2 | QB25: 475047111.9 | QC25: 489298971.9 | QD25: 503978454.6 | QE25: 519098398.9 | QF25: 534672030.2 | QG25: 550712972.2 | QH25: 567235259.7 | QI25: 584253350.6 | QJ25: 601782139.1 | QK25: 619836969.5 | QL25: =IF(QL19,10,QL27-QL24+QL26) -> 638433649.7 | QM25: 657588476.1 | QN25: 677302514.6 | QO25: 697621625.3 | QP25: 718550314.7 | QQ25: 740106870.8 | QR25: 762310130.7 | QS25: 785179495.5 | QT25: 808734953 | QU25: 832997085.1 | QV25: 857987093.6 | QW25: 883726816.8 | QX25: 910238748.3 | QY25: 937546056.7 | QZ25: 965672606.3 | RA25: 994642977.6 | RB25: 1024482489 | RC25: 1055217219 | RD25: 1086874029 | RE25: 1119480588 | RF25: 1153065394 | RG25: 1187657802 | RH25: 1223288050 | RI25: 1259987282 | RJ25: 1297787580 | RK25: 1336721988 | RL25: 1376824546 | RM25: 1418130316 | RN25: 1460675413 | RO25: 1504497042 | RP25: 1549633524 | RQ25: 1596124347 | RR25: 1643994462 | RS25: 1693314331 | RT25: 1744113801 | RU25: 1796437262 | RV25: 1850330434 | RW25: 1905840408 | RX25: 1963015692 | RY25: 2021906247 | RZ25: 2082563530 | SA25: 2145040546 | SB25: 2209391890 | SC25: 2275673792 | SD25: 2343944174 | SE25: 2414262692 | SF25: 2486690795 | SG25: 2561291774 | SH25: 2638130821 | SI25: 2717275084 | SJ25: 2798793724 | SK25: 2882757983 | SL25: 2969241236 | SM25: 3058319064 | SN25: 3150069315 | SO25: 3244572175 | SP25: 3341910239 | SQ25: 3442168579 | SR25: 3545434825 | SS25: 3651799236 | ST25: 3761354784 | SU25: 3874197244 | SV25: 3990409546 | SW25: 4110121867 | SX25: =IF(SX19,10,SX27-SX24+SX26) -> 4233425564 | SY25: 4360428378 | SZ25: 4491241283 | TA25: 4625978582 | TB25: 4764758012 | TC25: 4907700836 | TD25: 5054931957 | TE25: 5206580026 | TF25: 5362777554 | TG25: 5523661027 | TH25: 5689371025 | TI25: 5860052349 | TJ25: 6035854142 | TK25: 6216930021 | TL25: 6403438216 | TM25: 6595541700 | TN25: 6793408339 | TO25: 6997211036 | TP25: 7207127881 | TQ25: 7423342308 | TR25: 7646043256 | TS25: 7875425335 | TT25: 8111688993 | TU25: 8355040696 | TV25: 8605693105 | TW25: 8863865264 | TX25: 9129782794 | TY25: 9403678094 | TZ25: 9685774821 | UA25: 9976348101 | UB25: 1.027563858e+10 | UC25: 1.058390779e+10 | UD25: 1.090142508e+10 | UE25: 1.122846789e+10 | UF25: 1.1565322e+10 | UG25: 1.191228174e+10 | UH25: 1.226965029e+10 | UI25: 1.263773991e+10 | UJ25: 1.301687223e+10 | UK25: 1.340737855e+10 | UL25: 1.380960007e+10 | UM25: 1.422388827e+10 | UN25: 1.465060514e+10 | UO25: 1.509012355e+10 | UP25: 1.554282755e+10 | UQ25: 1.600911271e+10 | UR25: 1.648938648e+10 | US25: 1.698406852e+10 | UT25: 1.749359109e+10 | UU25: 1.801839941e+10 | UV25: 1.855895208e+10 | UW25: 1.911572142e+10 | UX25: 1.968919396e+10 | UY25: 8355040696
C26: Less: Capacity Retirements | D26: MW | F26: =IF(F16>=$E$5,OFFSET(F25,0,-$E$5)) -> FALSE | G26: =IF(G16>=$E$5,OFFSET(G25,0,-$E$5)) -> FALSE | H26: =IF(H16>=$E$5,OFFSET(H25,0,-$E$5)) -> FALSE | I26: FALSE | J26: FALSE | K26: FALSE | L26: FALSE | M26: FALSE | N26: FALSE | O26: FALSE | P26: FALSE | Q26: FALSE | R26: FALSE | S26: FALSE | T26: FALSE | U26: FALSE | V26: FALSE | W26: FALSE | X26: FALSE | Y26: FALSE | Z26: FALSE | AA26: FALSE | AB26: FALSE | AC26: FALSE | AD26: FALSE | AE26: FALSE | AF26: FALSE | AG26: FALSE | AH26: FALSE | AI26: 10 | AJ26: 10 | AK26: 10 | AL26: 10 | AM26: 10 | AN26: 10 | AO26: 9 | AP26: 10.35 | AQ26: 11.9025 | AR26: 13.687875 | AS26: 15.74105625 | AT26: 18.10221469 | AU26: 20.81754689 | AV26: 23.94017892 | AW26: 27.53120576 | AX26: 31.66088663 | AY26: 36.41001962 | AZ26: 41.87152256 | BA26: 48.15225095 | BB26: 55.37508859 | BC26: 63.68135188 | BD26: 73.23355466 | BE26: 84.21858786 | BF26: 96.85137604 | BG26: 111.3790824 | BH26: 128.0859448 | BI26: 147.2988365 | BJ26: 169.393662 | BK26: 194.8027113 | BL26: 224.023118 | BM26: 267.6265857 | BN26: 306.2705736 | BO26: 350.7111596 | BP26: 401.8178336 | BQ26: 460.5905086 | BR26: =IF(BR16>=$E$5,OFFSET(BR25,0,-$E$5)) -> 528.1790849 | BS26: 604.9059476 | BT26: 695.6418398 | BU26: 799.9881157 | BV26: 919.9863331 | BW26: 1057.984283 | BX26: 1216.681925 | BY26: 1399.184214 | BZ26: 1609.061846 | CA26: 1850.421123 | CB26: 2127.984292 | CC26: 2447.181936 | CD26: 2814.259226 | CE26: 3236.39811 | CF26: 3721.857827 | CG26: 4280.1365 | CH26: 4922.156976 | CI26: 5660.480522 | CJ26: 6509.5526 | CK26: 7485.98549 | CL26: 8608.883314 | CM26: 9900.215811 | CN26: 11385.24818 | CO26: 13093.03541 | CP26: 15056.99072 | CQ26: 17325.53933 | CR26: 4229.590505 | CS26: 4391.730689 | CT26: 4564.067948 | CU26: 4747.708127 | CV26: 4943.910232 | CW26: 5153.109029 | CX26: 5380.291013 | CY26: 5625.176765 | CZ26: 5889.930641 | DA26: 6177.026921 | DB26: 6489.295842 | DC26: 6829.976549 | DD26: 7202.777951 | DE26: 7611.948711 | DF26: 8062.357707 | DG26: 8559.586553 | DH26: 9110.035982 | DI26: 9721.048169 | DJ26: 10401.04739 | DK26: 11159.70175 | DL26: 12008.10918 | DM26: 12959.01129 | DN26: 14027.03929 | DO26: 15228.99678 | DP26: 16584.18495 | DQ26: 18114.77649 | DR26: 19846.24569 | DS26: 21807.86284 | DT26: 24033.26297 | DU26: 26571.09975 | DV26: 13752.51774 | DW26: 14200.34574 | DX26: 14666.94145 | DY26: 15153.66783 | DZ26: 15662.04873 | EA26: 16192.79168 | EB26: 16751.16414 | EC26: 17337.17609 | ED26: =IF(ED16>=$E$5,OFFSET(ED25,0,-$E$5)) -> 17953.28995 | EE26: 18602.287 | EF26: 19287.31373 | EG26: 20011.93497 | EH26: 20780.19513 | EI26: 21596.6884 | EJ26: 22466.63959 | EK26: 23395.99689 | EL26: 24391.53863 | EM26: 25460.99589 | EN26: 26613.19354 | EO26: 27858.21229 | EP26: 29207.57504 | EQ26: 30674.46113 | ER26: 32273.95262 | ES26: 34023.31751 | ET26: 35942.3353 | EU26: 38053.67136 | EV26: 40383.30739 | EW26: 42961.0364 | EX26: 45821.03174 | EY26: 49012.50158 | EZ26: 36867.16162 | FA26: 38008.42894 | FB26: 39189.26714 | FC26: 40411.6633 | FD26: 41677.78406 | FE26: 42988.99907 | FF26: 44351.25776 | FG26: 45765.27251 | FH26: 47234.22926 | FI26: 48761.6545 | FJ26: 50351.46225 | FK26: 52008.00794 | FL26: 53736.15029 | FM26: 55541.32222 | FN26: 57429.61242 | FO26: 59407.85891 | FP26: 61483.75651 | FQ26: 63665.98031 | FR26: 65964.32749 | FS26: 68389.88026 | FT26: 70955.19304 | FU26: 73674.50767 | FV26: 76564.00056 | FW26: 79642.06689 | FX26: 82929.64716 | FY26: 86450.60257 | FZ26: 90232.14655 | GA26: 94305.34072 | GB26: 98705.6652 | GC26: 103483.674 | GD26: 92972.46925 | GE26: 95796.8958 | GF26: 98711.38801 | GG26: 101719.4478 | GH26: 104824.8021 | GI26: 108030.4276 | GJ26: 111343.9292 | GK26: 114767.7241 | GL26: 118306.7544 | GM26: 121966.3554 | GN26: 125752.3041 | GO26: 129670.8751 | GP26: =IF(GP16>=$E$5,OFFSET(GP25,0,-$E$5)) -> 133728.9035 | GQ26: 137933.858 | GR26: 142293.9243 | GS26: 146818.1001 | GT26: 151516.3049 | GU26: 156399.5052 | GV26: 161479.8581 | GW26: 166770.8768 | GX26: 172287.6195 | GY26: 178046.9069 | GZ26: 184067.5718 | HA26: 190370.7452 | HB26: 196980.1859 | HC26: 203922.6574 | HD26: 211228.3631 | HE26: 218931.4437 | HF26: 227070.5513 | HG26: 235699.5067 | HH26: 229154.7769 | HI26: 236064.6727 | HJ26: 243187.1982 | HK26: 250529.5323 | HL26: 258099.1891 | HM26: 265903.0463 | HN26: 273952.7264 | HO26: 282254.7852 | HP26: 290818.4273 | HQ26: 299653.3785 | HR26: 308769.938 | HS26: 318179.0379 | HT26: 327892.3112 | HU26: 337922.168 | HV26: 348281.8835 | HW26: 358985.6981 | HX26: 370048.9309 | HY26: 381488.11 | HZ26: 393321.121 | IA26: 405567.3776 | IB26: 418248.0153 | IC26: 431386.1146 | ID26: 445006.9557 | IE26: 459138.3107 | IF26: 473810.7783 | IG26: 489058.1676 | IH26: 504917.9385 | II26: 521431.7065 | IJ26: 538645.8219 | IK26: 556622.0355 | IL26: 559704.9815 | IM26: 576531.3834 | IN26: 593867.9103 | IO26: 611730.6657 | IP26: 630136.3566 | IQ26: 649101.3287 | IR26: 668646.9573 | IS26: 688789.8431 | IT26: 709549.5369 | IU26: 730946.4214 | IV26: 753001.7722 | IW26: 775737.8271 | IX26: 799177.8641 | IY26: 823346.2874 | IZ26: 848268.7266 | JA26: 873972.1465 | JB26: =IF(JB16>=$E$5,OFFSET(JB25,0,-$E$5)) -> 900484.9727 | JC26: 927837.233 | JD26: 956060.7178 | JE26: 985189.1622 | JF26: 1015258.453 | JG26: 1046306.866 | JH26: 1078375.33 | JI26: 1111507.736 | JJ26: 1145751.286 | JK26: 1181156.891 | JL26: 1217779.623 | JM26: 1255679.242 | JN26: 1294920.783 | JO26: 1335585.246 | JP26: 1362037.088 | JQ26: 1402933.453 | JR26: 1445062.042 | JS26: 1488460.621 | JT26: 1533168.211 | JU26: 1579224.139 | JV26: 1626673.452 | JW26: 1675557.132 | JX26: 1725919.845 | JY26: 1777807.838 | JZ26: 1831269.032 | KA26: 1886353.105 | KB26: 1943111.6 | KC26: 2001598.035 | KD26: 2061868.027 | KE26: 2123979.426 | KF26: 2187992.47 | KG26: 2253969.956 | KH26: 2321977.422 | KI26: 2392083.368 | KJ26: 2464359.485 | KK26: 2538880.928 | KL26: 2615726.614 | KM26: 2694979.559 | KN26: 2776727.264 | KO26: 2861062.148 | KP26: 2948082.038 | KQ26: 3037890.729 | KR26: 3130598.615 | KS26: 3226333.412 | KT26: 3309507.7 | KU26: 3408828.183 | KV26: 3511133.614 | KW26: 3616514.34 | KX26: 3725063.541 | KY26: 3836876.329 | KZ26: 3952055.208 | LA26: 4070700.341 | LB26: 4192917.35 | LC26: 4318815.269 | LD26: 4448506.685 | LE26: 4582107.887 | LF26: 4719739.026 | LG26: 4861524.284 | LH26: 5007592.063 | LI26: 5158075.183 | LJ26: 5313111.101 | LK26: 5472842.145 | LL26: 5637415.777 | LM26: 5806984.873 | LN26: =IF(LN16>=$E$5,OFFSET(LN25,0,-$E$5)) -> 5981708.036 | LO26: 6161749.936 | LP26: 6347281.691 | LQ26: 6538481.288 | LR26: 6735534.045 | LS26: 6938633.133 | LT26: 7147980.152 | LU26: 7363785.787 | LV26: 7586270.525 | LW26: 7815675.479 | LX26: 8036530.029 | LY26: 8277661.182 | LZ26: 8526031.603 | MA26: 8781859.269 | MB26: 9045368.818 | MC26: 9316790.764 | MD26: 9596367.076 | ME26: 9884341.565 | MF26: 10180967.81 | MG26: 10486507.24 | MH26: 10801229.42 | MI26: 11125412.3 | MJ26: 11459342.57 | MK26: 11803315.94 | ML26: 12157637.47 | MM26: 12522621.95 | MN26: 12898594.27 | MO26: 13285889.81 | MP26: 13684854.87 | MQ26: 14095847.14 | MR26: 14519236.17 | MS26: 14955403.91 | MT26: 15404745.29 | MU26: 15867668.79 | MV26: 16344597.18 | MW26: 16835968.16 | MX26: 17342235.23 | MY26: 17863868.52 | MZ26: 18401355.74 | NA26: 18955213.25 | NB26: 19510253.93 | NC26: 20095596.8 | ND26: 20698505.29 | NE26: 21319507.17 | NF26: 21959146.15 | NG26: 22617981.42 | NH26: 23296593.45 | NI26: 23995574.73 | NJ26: 24715537.97 | NK26: 25457114.51 | NL26: 26220954.9 | NM26: 27007729.55 | NN26: 27818129.34 | NO26: 28652866.3 | NP26: 29512674.34 | NQ26: 30398309.93 | NR26: 31310552.89 | NS26: 32250207.19 | NT26: 33218101.77 | NU26: 34215091.45 | NV26: 35242057.81 | NW26: 36299910.2 | NX26: 37389586.77 | NY26: 38512055.52 | NZ26: =IF(NZ16>=$E$5,OFFSET(NZ25,0,-$E$5)) -> 39668315.5 | OA26: 40859398.03 | OB26: 42086368 | OC26: 43350325.27 | OD26: 44652406.19 | OE26: 45993795.21 | OF26: 47359993.36 | OG26: 48780828.41 | OH26: 50244293.85 | OI26: 51751669.38 | OJ26: 53304273.23 | OK26: 54903462.31 | OL26: 56550638.77 | OM26: 58247241.41 | ON26: 59994754.65 | OO26: 61794707.69 | OP26: 63648675.88 | OQ26: 65558282.15 | OR26: 67525198.52 | OS26: 69551147.56 | OT26: 71637904.04 | OU26: 73787296.52 | OV26: 76001209.08 | OW26: 78281583.06 | OX26: 80630418.92 | OY26: 83049778.11 | OZ26: 85541785.07 | PA26: 88108629.28 | PB26: 90752567.42 | PC26: 93475925.59 | PD26: 96281101.67 | PE26: 99170567.79 | PF26: 102146872.8 | PG26: 105212645.3 | PH26: 108370595.8 | PI26: 111623530.5 | PJ26: 114958620.7 | PK26: 118407414.6 | PL26: 121959677.6 | PM26: 125618514.6 | PN26: 129387123.9 | PO26: 133268798.4 | PP26: 137266935 | PQ26: 141385026.5 | PR26: 145626673.3 | PS26: 149995583.9 | PT26: 154495578.4 | PU26: 159130591.7 | PV26: 163904677.4 | PW26: 168822010.8 | PX26: 173886893.2 | PY26: 179103755.3 | PZ26: 184477161.7 | QA26: 190011814.2 | QB26: 195712557 | QC26: 201584380.3 | QD26: 207632425.4 | QE26: 213861988.8 | QF26: 220278527.7 | QG26: 226887664.7 | QH26: 233695192.9 | QI26: 240707081.8 | QJ26: 247929482.3 | QK26: 255368733 | QL26: =IF(QL16>=$E$5,OFFSET(QL25,0,-$E$5)) -> 263031366.1 | QM26: 270924124 | QN26: 279038232 | QO26: 287409414.2 | QP26: 296031737.2 | QQ26: 304912736 | QR26: 314060171.9 | QS26: 323482037.9 | QT26: 333186571.6 | QU26: 343182252.3 | QV26: 353477815.8 | QW26: 364082260.7 | QX26: 375004855.5 | QY26: 386255147.1 | QZ26: 397842969.5 | RA26: 409778451.6 | RB26: 422072027.2 | RC26: 434734443.4 | RD26: 447776770.4 | RE26: 461210411.2 | RF26: 475047111.9 | RG26: 489298971.9 | RH26: 503978454.6 | RI26: 519098398.9 | RJ26: 534672030.2 | RK26: 550712972.2 | RL26: 567235259.7 | RM26: 584253350.6 | RN26: 601782139.1 | RO26: 619836969.5 | RP26: 638433649.7 | RQ26: 657588476.1 | RR26: 677302514.6 | RS26: 697621625.3 | RT26: 718550314.7 | RU26: 740106870.8 | RV26: 762310130.7 | RW26: 785179495.5 | RX26: 808734953 | RY26: 832997085.1 | RZ26: 857987093.6 | SA26: 883726816.8 | SB26: 910238748.3 | SC26: 937546056.7 | SD26: 965672606.3 | SE26: 994642977.6 | SF26: 1024482489 | SG26: 1055217219 | SH26: 1086874029 | SI26: 1119480588 | SJ26: 1153065394 | SK26: 1187657802 | SL26: 1223288050 | SM26: 1259987282 | SN26: 1297787580 | SO26: 1336721988 | SP26: 1376824546 | SQ26: 1418130316 | SR26: 1460675413 | SS26: 1504497042 | ST26: 1549633524 | SU26: 1596124347 | SV26: 1643994462 | SW26: 1693314331 | SX26: =IF(SX16>=$E$5,OFFSET(SX25,0,-$E$5)) -> 1744113801 | SY26: 1796437262 | SZ26: 1850330434 | TA26: 1905840408 | TB26: 1963015692 | TC26: 2021906247 | TD26: 2082563530 | TE26: 2145040546 | TF26: 2209391890 | TG26: 2275673792 | TH26: 2343944174 | TI26: 2414262692 | TJ26: 2486690795 | TK26: 2561291774 | TL26: 2638130821 | TM26: 2717275084 | TN26: 2798793724 | TO26: 2882757983 | TP26: 2969241236 | TQ26: 3058319064 | TR26: 3150069315 | TS26: 3244572175 | TT26: 3341910239 | TU26: 3442168579 | TV26: 3545434825 | TW26: 3651799236 | TX26: 3761354784 | TY26: 3874197244 | TZ26: 3990409546 | UA26: 4110121867 | UB26: 4233425564 | UC26: 4360428378 | UD26: 4491241283 | UE26: 4625978582 | UF26: 4764758012 | UG26: 4907700836 | UH26: 5054931957 | UI26: 5206580026 | UJ26: 5362777554 | UK26: 5523661027 | UL26: 5689371025 | UM26: 5860052349 | UN26: 6035854142 | UO26: 6216930021 | UP26: 6403438216 | UQ26: 6595541700 | UR26: 6793408339 | US26: 6997211036 | UT26: 7207127881 | UU26: 7423342308 | UV26: 7646043256 | UW26: 7875425335 | UX26: 8111688993 | UY26: 8355040696
C27: Closing Capacity Balance | D27: MW | E27: =IF(E19,E24+E25-E26,D27*(1+F21)) -> 10 | F27: =IF(F19,F24+F25-F26,E27*(1+G21)) -> 20 | G27: 30 | H27: 40 | I27: 50 | J27: 60 | K27: 69 | L27: 79.35 | M27: 91.2525 | N27: 104.940375 | O27: 120.6814312 | P27: 138.7836459 | Q27: 159.6011928 | R27: 183.5413718 | S27: 211.0725775 | T27: 242.7334641 | U27: 279.1434838 | V27: 321.0150063 | W27: 369.1672573 | X27: 424.5423459 | Y27: 488.2236977 | Z27: 561.4572524 | AA27: 645.6758403 | AB27: 742.5272163 | AC27: 853.9062988 | AD27: 981.9922436 | AE27: 1129.29108 | AF27: 1298.684742 | AG27: 1493.487453 | AH27: 1717.510571 | AI27: 1975.137157 | AJ27: 2271.407731 | AK27: 2612.11889 | AL27: 3003.936724 | AM27: 3454.527233 | AN27: 3972.706317 | AO27: 4568.612265 | AP27: 5253.904105 | AQ27: 6041.98972 | AR27: 6948.288179 | AS27: 7990.531405 | AT27: 9189.111116 | AU27: 10567.47778 | AV27: 12152.59945 | AW27: 13975.48937 | AX27: 16071.81277 | AY27: 18482.58469 | AZ27: 21254.97239 | BA27: 24443.21825 | BB27: 28109.70099 | BC27: 32326.15614 | BD27: 37175.07956 | BE27: 42751.34149 | BF27: 49164.04272 | BG27: 56538.64913 | BH27: 65019.4465 | BI27: 74772.36347 | BJ27: 85988.21799 | BK27: 98886.45069 | BL27: 113719.4183 | BM27: 130777.331 | BN27: 134700.651 | BO27: 138741.6705 | BP27: 142903.9206 | BQ27: 147191.0382 | BR27: =IF(BR19,BR24+BR25-BR26,BQ27*(1+BS21)) -> 151606.7694 | BS27: 156154.9725 | BT27: 160839.6216 | BU27: 165664.8103 | BV27: 170634.7546 | BW27: 175753.7972 | BX27: 181026.4111 | BY27: 186457.2035 | BZ27: 192050.9196 | CA27: 197812.4472 | CB27: 203746.8206 | CC27: 209859.2252 | CD27: 216155.002 | CE27: 222639.652 | CF27: 229318.8416 | CG27: 236198.4068 | CH27: 243284.359 | CI27: 250582.8898 | CJ27: 258100.3765 | CK27: 265843.3878 | CL27: 273818.6894 | CM27: 282033.2501 | CN27: 290494.2476 | CO27: 299209.075 | CP27: 308185.3473 | CQ27: 317430.9077 | CR27: 326953.8349 | CS27: 336762.45 | CT27: 346865.3235 | CU27: 357271.2832 | CV27: 367989.4217 | CW27: 379029.1043 | CX27: 390399.9775 | CY27: 402111.9768 | CZ27: 414175.3361 | DA27: 426600.5962 | DB27: 439398.6141 | DC27: 452580.5725 | DD27: 466157.9897 | DE27: 480142.7293 | DF27: 494547.0112 | DG27: 509383.4216 | DH27: 524664.9242 | DI27: 540404.8719 | DJ27: 556617.0181 | DK27: 573315.5286 | DL27: 590514.9945 | DM27: 608230.4443 | DN27: 626477.3577 | DO27: 645271.6784 | DP27: 664629.8287 | DQ27: 684568.7236 | DR27: 705105.7853 | DS27: 726258.9589 | DT27: 748046.7276 | DU27: 770488.1295 | DV27: 793602.7733 | DW27: 817410.8565 | DX27: 841933.1822 | DY27: 867191.1777 | DZ27: 893206.913 | EA27: 920003.1204 | EB27: 947603.214 | EC27: 976031.3105 | ED27: =IF(ED19,ED24+ED25-ED26,EC27*(1+EE21)) -> 1005312.25 | EE27: 1035471.617 | EF27: 1066535.766 | EG27: 1098531.839 | EH27: 1131487.794 | EI27: 1165432.428 | EJ27: 1200395.401 | EK27: 1236407.263 | EL27: 1273499.48 | EM27: 1311704.465 | EN27: 1351055.599 | EO27: 1391587.267 | EP27: 1433334.885 | EQ27: 1476334.931 | ER27: 1520624.979 | ES27: 1566243.729 | ET27: 1613231.041 | EU27: 1661627.972 | EV27: 1711476.811 | EW27: 1762821.115 | EX27: 1815705.749 | EY27: 1870176.921 | EZ27: 1926282.229 | FA27: 1984070.696 | FB27: 2043592.817 | FC27: 2104900.601 | FD27: 2168047.619 | FE27: 2233089.048 | FF27: 2300081.719 | FG27: 2369084.171 | FH27: 2440156.696 | FI27: 2513361.397 | FJ27: 2588762.238 | FK27: 2666425.106 | FL27: 2746417.859 | FM27: 2828810.395 | FN27: 2913674.706 | FO27: 3001084.948 | FP27: 3091117.496 | FQ27: 3183851.021 | FR27: 3279366.552 | FS27: 3377747.548 | FT27: 3479079.975 | FU27: 3583452.374 | FV27: 3690955.945 | FW27: 3801684.623 | FX27: 3915735.162 | FY27: 4033207.217 | FZ27: 4154203.433 | GA27: 4278829.536 | GB27: 4407194.423 | GC27: 4539410.255 | GD27: 4675592.563 | GE27: 4815860.34 | GF27: 4960336.15 | GG27: 5109146.234 | GH27: 5262420.621 | GI27: 5420293.24 | GJ27: 5582902.037 | GK27: 5750389.098 | GL27: 5922900.771 | GM27: 6100587.795 | GN27: 6283605.428 | GO27: 6472113.591 | GP27: =IF(GP19,GP24+GP25-GP26,GO27*(1+GQ21)) -> 6666276.999 | GQ27: 6866265.309 | GR27: 7072253.268 | GS27: 7284420.866 | GT27: 7502953.492 | GU27: 7728042.097 | GV27: 7959883.36 | GW27: 8198679.861 | GX27: 8444640.256 | GY27: 8697979.464 | GZ27: 8958918.848 | HA27: 9227686.414 | HB27: 9504517.006 | HC27: 9789652.516 | HD27: 10083342.09 | HE27: 10385842.35 | HF27: 10697417.62 | HG27: 11018340.15 | HH27: 11348890.36 | HI27: 11689357.07 | HJ27: 12040037.78 | HK27: 12401238.91 | HL27: 12773276.08 | HM27: 13156474.36 | HN27: 13551168.6 | HO27: 13957703.65 | HP27: 14376434.76 | HQ27: 14807727.81 | HR27: 15251959.64 | HS27: 15709518.43 | HT27: 16180803.98 | HU27: 16666228.1 | HV27: 17166214.94 | HW27: 17681201.39 | HX27: 18211637.43 | HY27: 18757986.56 | HZ27: 19320726.15 | IA27: 19900347.94 | IB27: 20497358.38 | IC27: 21112279.13 | ID27: 21745647.5 | IE27: 22398016.93 | IF27: 23069957.44 | IG27: 23762056.16 | IH27: 24474917.84 | II27: 25209165.38 | IJ27: 25965440.34 | IK27: 26744403.55 | IL27: 27546735.66 | IM27: 28373137.73 | IN27: 29224331.86 | IO27: 30101061.81 | IP27: 31004093.67 | IQ27: 31934216.48 | IR27: 32892242.97 | IS27: 33879010.26 | IT27: 34895380.57 | IU27: 35942241.99 | IV27: 37020509.25 | IW27: 38131124.52 | IX27: 39275058.26 | IY27: 40453310.01 | IZ27: 41666909.31 | JA27: 42916916.59 | JB27: =IF(JB19,JB24+JB25-JB26,JA27*(1+JC21)) -> 44204424.08 | JC27: 45530556.81 | JD27: 46896473.51 | JE27: 48303367.72 | JF27: 49752468.75 | JG27: 51245042.81 | JH27: 52782394.09 | JI27: 54365865.92 | JJ27: 55996841.89 | JK27: 57676747.15 | JL27: 59407049.57 | JM27: 61189261.05 | JN27: 63024938.88 | JO27: 64915687.05 | JP27: 66863157.66 | JQ27: 68869052.39 | JR27: 70935123.96 | JS27: 73063177.68 | JT27: 75255073.01 | JU27: 77512725.2 | JV27: 79838106.96 | JW27: 82233250.17 | JX27: 84700247.67 | JY27: 87241255.1 | JZ27: 89858492.76 | KA27: 92554247.54 | KB27: 95330874.97 | KC27: 98190801.22 | KD27: 101136525.3 | KE27: 104170621 | KF27: 107295739.6 | KG27: 110514611.8 | KH27: 113830050.2 | KI27: 117244951.7 | KJ27: 120762300.2 | KK27: 124385169.2 | KL27: 128116724.3 | KM27: 131960226.1 | KN27: 135919032.8 | KO27: 139996603.8 | KP27: 144196501.9 | KQ27: 148522397 | KR27: 152978068.9 | KS27: 157567411 | KT27: 162294433.3 | KU27: 167163266.3 | KV27: 172178164.3 | KW27: 177343509.2 | KX27: 182663814.5 | KY27: 188143728.9 | KZ27: 193788040.8 | LA27: 199601682 | LB27: 205589732.5 | LC27: 211757424.5 | LD27: 218110147.2 | LE27: 224653451.6 | LF27: 231393055.2 | LG27: 238334846.8 | LH27: 245484892.2 | LI27: 252849439 | LJ27: 260434922.1 | LK27: 268247969.8 | LL27: 276295408.9 | LM27: 284584271.2 | LN27: =IF(LN19,LN24+LN25-LN26,LM27*(1+LO21)) -> 293121799.3 | LO27: 301915453.3 | LP27: 310972916.9 | LQ27: 320302104.4 | LR27: 329911167.5 | LS27: 339808502.5 | LT27: 350002757.6 | LU27: 360502840.4 | LV27: 371317925.6 | LW27: 382457463.3 | LX27: 393931187.2 | LY27: 405749122.8 | LZ27: 417921596.5 | MA27: 430459244.4 | MB27: 443373021.8 | MC27: 456674212.4 | MD27: 470374438.8 | ME27: 484485672 | MF27: 499020242.1 | MG27: 513990849.4 | MH27: 529410574.9 | MI27: 545292892.1 | MJ27: 561651678.9 | MK27: 578501229.2 | ML27: 595856266.1 | MM27: 613731954.1 | MN27: 632143912.7 | MO27: 651108230.1 | MP27: 670641477 | MQ27: 690760721.3 | MR27: 711483542.9 | MS27: 732828049.2 | MT27: 754812890.7 | MU27: 777457277.4 | MV27: 800780995.8 | MW27: 824804425.6 | MX27: 849548558.4 | MY27: 875035015.2 | MZ27: 901286065.6 | NA27: 928324647.6 | NB27: 956174387 | NC27: 984859618.6 | ND27: 1014405407 | NE27: 1044837569 | NF27: 1076182696 | NG27: 1108468177 | NH27: 1141722223 | NI27: 1175973889 | NJ27: 1211253106 | NK27: 1247590699 | NL27: 1285018420 | NM27: 1323568973 | NN27: 1363276042 | NO27: 1404174323 | NP27: 1446299553 | NQ27: 1489688540 | NR27: 1534379196 | NS27: 1580410572 | NT27: 1627822889 | NU27: 1676657575 | NV27: 1726957303 | NW27: 1778766022 | NX27: 1832129002 | NY27: 1887092872 | NZ27: =IF(NZ19,NZ24+NZ25-NZ26,NY27*(1+OA21)) -> 1943705659 | OA27: 2002016828 | OB27: 2062077333 | OC27: 2123939653 | OD27: 2187657843 | OE27: 2253287578 | OF27: 2320886205 | OG27: 2390512792 | OH27: 2462228175 | OI27: 2536095021 | OJ27: 2612177871 | OK27: 2690543207 | OL27: 2771259504 | OM27: 2854397289 | ON27: 2940029207 | OO27: 3028230084 | OP27: 3119076986 | OQ27: 3212649296 | OR27: 3309028775 | OS27: 3408299638 | OT27: 3510548627 | OU27: 3615865086 | OV27: 3724341038 | OW27: 3836071269 | OX27: 3951153408 | OY27: 4069688010 | OZ27: 4191778650 | PA27: 4317532010 | PB27: 4447057970 | PC27: 4580469709 | PD27: 4717883800 | PE27: 4859420314 | PF27: 5005202924 | PG27: 5155359011 | PH27: 5310019782 | PI27: 5469320375 | PJ27: 5633399986 | PK27: 5802401986 | PL27: 5976474046 | PM27: 6155768267 | PN27: 6340441315 | PO27: 6530654554 | PP27: 6726574191 | PQ27: 6928371417 | PR27: 7136222559 | PS27: 7350309236 | PT27: 7570818513 | PU27: 7797943069 | PV27: 8031881361 | PW27: 8272837801 | PX27: 8521022936 | PY27: 8776653624 | PZ27: 9039953232 | QA27: 9311151829 | QB27: 9590486384 | QC27: 9878200976 | QD27: 1.0174547e+10 | QE27: 1.047978342e+10 | QF27: 1.079417692e+10 | QG27: 1.111800223e+10 | QH27: 1.145154229e+10 | QI27: 1.179508856e+10 | QJ27: 1.214894122e+10 | QK27: 1.251340945e+10 | QL27: =IF(QL19,QL24+QL25-QL26,QK27*(1+QM21)) -> 1.288881174e+10 | QM27: 1.327547609e+10 | QN27: 1.367374037e+10 | QO27: 1.408395258e+10 | QP27: 1.450647116e+10 | QQ27: 1.49416653e+10 | QR27: 1.538991525e+10 | QS27: 1.585161271e+10 | QT27: 1.632716109e+10 | QU27: 1.681697593e+10 | QV27: 1.73214852e+10 | QW27: 1.784112976e+10 | QX27: 1.837636365e+10 | QY27: 1.892765456e+10 | QZ27: 1.94954842e+10 | RA27: 2.008034873e+10 | RB27: 2.068275919e+10 | RC27: 2.130324196e+10 | RD27: 2.194233922e+10 | RE27: 2.26006094e+10 | RF27: 2.327862768e+10 | RG27: 2.397698651e+10 | RH27: 2.469629611e+10 | RI27: 2.543718499e+10 | RJ27: 2.620030054e+10 | RK27: 2.698630956e+10 | RL27: 2.779589884e+10 | RM27: 2.862977581e+10 | RN27: 2.948866908e+10 | RO27: 3.037332915e+10 | RP27: 3.128452903e+10 | RQ27: 3.22230649e+10 | RR27: 3.318975685e+10 | RS27: 3.418544955e+10 | RT27: 3.521101304e+10 | RU27: 3.626734343e+10 | RV27: 3.735536373e+10 | RW27: 3.847602464e+10 | RX27: 3.963030538e+10 | RY27: 4.081921455e+10 | RZ27: 4.204379098e+10 | SA27: 4.330510471e+10 | SB27: 4.460425785e+10 | SC27: 4.594238559e+10 | SD27: 4.732065716e+10 | SE27: 4.874027687e+10 | SF27: 5.020248518e+10 | SG27: 5.170855973e+10 | SH27: 5.325981652e+10 | SI27: 5.485761102e+10 | SJ27: 5.650333935e+10 | SK27: 5.819843953e+10 | SL27: 5.994439272e+10 | SM27: 6.17427245e+10 | SN27: 6.359500623e+10 | SO27: 6.550285642e+10 | SP27: 6.746794211e+10 | SQ27: 6.949198038e+10 | SR27: 7.157673979e+10 | SS27: 7.372404198e+10 | ST27: 7.593576324e+10 | SU27: 7.821383614e+10 | SV27: 8.056025122e+10 | SW27: 8.297705876e+10 | SX27: =IF(SX19,SX24+SX25-SX26,SW27*(1+SY21)) -> 8.546637052e+10 | SY27: 8.803036164e+10 | SZ27: 9.067127249e+10 | TA27: 9.339141066e+10 | TB27: 9.619315298e+10 | TC27: 9.907894757e+10 | TD27: 1.02051316e+11 | TE27: 1.051128555e+11 | TF27: 1.082662411e+11 | TG27: 1.115142284e+11 | TH27: 1.148596552e+11 | TI27: 1.183054449e+11 | TJ27: 1.218546082e+11 | TK27: 1.255102465e+11 | TL27: 1.292755539e+11 | TM27: 1.331538205e+11 | TN27: 1.371484351e+11 | TO27: 1.412628882e+11 | TP27: 1.455007748e+11 | TQ27: 1.49865798e+11 | TR27: 1.54361772e+11 | TS27: 1.589926251e+11 | TT27: 1.637624039e+11 | TU27: 1.68675276e+11 | TV27: 1.737355343e+11 | TW27: 1.789476003e+11 | TX27: 1.843160283e+11 | TY27: 1.898455092e+11 | TZ27: 1.955408745e+11 | UA27: 2.014071007e+11 | UB27: 2.074493137e+11 | UC27: 2.136727931e+11 | UD27: 2.200829769e+11 | UE27: 2.266854662e+11 | UF27: 2.334860302e+11 | UG27: 2.404906111e+11 | UH27: 2.477053295e+11 | UI27: 2.551364893e+11 | UJ27: 2.62790584e+11 | UK27: 2.706743015e+11 | UL27: 2.787945306e+11 | UM27: 2.871583665e+11 | UN27: 2.957731175e+11 | UO27: 3.04646311e+11 | UP27: 3.137857004e+11 | UQ27: 3.231992714e+11 | UR27: 3.328952495e+11 | US27: 3.42882107e+11 | UT27: 3.531685702e+11 | UU27: 3.637636273e+11 | UV27: 3.746765361e+11 | UW27: 3.859168322e+11 | UX27: 3.974943372e+11 | UY27: 3.974943372e+11
C29: Capacity Factor | D29: Pct | E29: 0.7 | F29: 0.7 | G29: 0.7 | H29: 0.7 | I29: 0.7 | J29: 0.7 | K29: 0.7 | L29: 0.7 | M29: 0.7 | N29: 0.7 | O29: 0.7 | P29: 0.7 | Q29: 0.7 | R29: 0.7 | S29: 0.7 | T29: 0.7 | U29: 0.7 | V29: 0.7 | W29: 0.7 | X29: 0.7 | Y29: 0.7 | Z29: 0.7 | AA29: 0.7 | AB29: 0.7 | AC29: 0.7 | AD29: 0.7 | AE29: 0.7 | AF29: 0.7 | AG29: 0.7 | AH29: 0.7 | AI29: 0.7 | AJ29: 0.7 | AK29: 0.7 | AL29: 0.7 | AM29: 0.7 | AN29: 0.7 | AO29: 0.7 | AP29: 0.7 | AQ29: 0.7 | AR29: 0.7 | AS29: 0.7 | AT29: 0.7 | AU29: 0.7 | AV29: 0.7 | AW29: 0.7 | AX29: 0.7 | AY29: 0.7 | AZ29: 0.7 | BA29: 0.7 | BB29: 0.7 | BC29: 0.7 | BD29: 0.7 | BE29: 0.7 | BF29: 0.7 | BG29: 0.7 | BH29: 0.7 | BI29: 0.7 | BJ29: 0.7 | BK29: 0.7 | BL29: 0.7 | BM29: 0.7 | BN29: 0.7 | BO29: 0.7 | BP29: 0.7 | BQ29: 0.7 | BR29: 0.7 | BS29: 0.7 | BT29: 0.7 | BU29: 0.7 | BV29: 0.7 | BW29: 0.7 | BX29: 0.7 | BY29: 0.7 | BZ29: 0.7 | CA29: 0.7 | CB29: 0.7 | CC29: 0.7 | CD29: 0.7 | CE29: 0.7 | CF29: 0.7 | CG29: 0.7 | CH29: 0.7 | CI29: 0.7 | CJ29: 0.7 | CK29: 0.7 | CL29: 0.7 | CM29: 0.7 | CN29: 0.7 | CO29: 0.7 | CP29: 0.7 | CQ29: 0.7 | CR29: 0.7 | CS29: 0.7 | CT29: 0.7 | CU29: 0.7 | CV29: 0.7 | CW29: 0.7 | CX29: 0.7 | CY29: 0.7 | CZ29: 0.7 | DA29: 0.7 | DB29: 0.7 | DC29: 0.7 | DD29: 0.7 | DE29: 0.7 | DF29: 0.7 | DG29: 0.7 | DH29: 0.7 | DI29: 0.7 | DJ29: 0.7 | DK29: 0.7 | DL29: 0.7 | DM29: 0.7 | DN29: 0.7 | DO29: 0.7 | DP29: 0.7 | DQ29: 0.7 | DR29: 0.7 | DS29: 0.7 | DT29: 0.7 | DU29: 0.7 | DV29: 0.7 | DW29: 0.7 | DX29: 0.7 | DY29: 0.7 | DZ29: 0.7 | EA29: 0.7 | EB29: 0.7 | EC29: 0.7 | ED29: 0.7 | EE29: 0.7 | EF29: 0.7 | EG29: 0.7 | EH29: 0.7 | EI29: 0.7 | EJ29: 0.7 | EK29: 0.7 | EL29: 0.7 | EM29: 0.7 | EN29: 0.7 | EO29: 0.7 | EP29: 0.7 | EQ29: 0.7 | ER29: 0.7 | ES29: 0.7 | ET29: 0.7 | EU29: 0.7 | EV29: 0.7 | EW29: 0.7 | EX29: 0.7 | EY29: 0.7 | EZ29: 0.7 | FA29: 0.7 | FB29: 0.7 | FC29: 0.7 | FD29: 0.7 | FE29: 0.7 | FF29: 0.7 | FG29: 0.7 | FH29: 0.7 | FI29: 0.7 | FJ29: 0.7 | FK29: 0.7 | FL29: 0.7 | FM29: 0.7 | FN29: 0.7 | FO29: 0.7 | FP29: 0.7 | FQ29: 0.7 | FR29: 0.7 | FS29: 0.7 | FT29: 0.7 | FU29: 0.7 | FV29: 0.7 | FW29: 0.7 | FX29: 0.7 | FY29: 0.7 | FZ29: 0.7 | GA29: 0.7 | GB29: 0.7 | GC29: 0.7 | GD29: 0.7 | GE29: 0.7 | GF29: 0.7 | GG29: 0.7 | GH29: 0.7 | GI29: 0.7 | GJ29: 0.7 | GK29: 0.7 | GL29: 0.7 | GM29: 0.7 | GN29: 0.7 | GO29: 0.7 | GP29: 0.7 | GQ29: 0.7 | GR29: 0.7 | GS29: 0.7 | GT29: 0.7 | GU29: 0.7 | GV29: 0.7 | GW29: 0.7 | GX29: 0.7 | GY29: 0.7 | GZ29: 0.7 | HA29: 0.7 | HB29: 0.7 | HC29: 0.7 | HD29: 0.7 | HE29: 0.7 | HF29: 0.7 | HG29: 0.7 | HH29: 0.7 | HI29: 0.7 | HJ29: 0.7 | HK29: 0.7 | HL29: 0.7 | HM29: 0.7 | HN29: 0.7 | HO29: 0.7 | HP29: 0.7 | HQ29: 0.7 | HR29: 0.7 | HS29: 0.7 | HT29: 0.7 | HU29: 0.7 | HV29: 0.7 | HW29: 0.7 | HX29: 0.7 | HY29: 0.7 | HZ29: 0.7 | IA29: 0.7 | IB29: 0.7 | IC29: 0.7 | ID29: 0.7 | IE29: 0.7 | IF29: 0.7 | IG29: 0.7 | IH29: 0.7 | II29: 0.7 | IJ29: 0.7 | IK29: 0.7 | IL29: 0.7 | IM29: 0.7 | IN29: 0.7 | IO29: 0.7 | IP29: 0.7 | IQ29: 0.7 | IR29: 0.7 | IS29: 0.7 | IT29: 0.7 | IU29: 0.7 | IV29: 0.7 | IW29: 0.7 | IX29: 0.7 | IY29: 0.7 | IZ29: 0.7 | JA29: 0.7 | JB29: 0.7 | JC29: 0.7 | JD29: 0.7 | JE29: 0.7 | JF29: 0.7 | JG29: 0.7 | JH29: 0.7 | JI29: 0.7 | JJ29: 0.7 | JK29: 0.7 | JL29: 0.7 | JM29: 0.7 | JN29: 0.7 | JO29: 0.7 | JP29: 0.7 | JQ29: 0.7 | JR29: 0.7 | JS29: 0.7 | JT29: 0.7 | JU29: 0.7 | JV29: 0.7 | JW29: 0.7 | JX29: 0.7 | JY29: 0.7 | JZ29: 0.7 | KA29: 0.7 | KB29: 0.7 | KC29: 0.7 | KD29: 0.7 | KE29: 0.7 | KF29: 0.7 | KG29: 0.7 | KH29: 0.7 | KI29: 0.7 | KJ29: 0.7 | KK29: 0.7 | KL29: 0.7 | KM29: 0.7 | KN29: 0.7 | KO29: 0.7 | KP29: 0.7 | KQ29: 0.7 | KR29: 0.7 | KS29: 0.7 | KT29: 0.7 | KU29: 0.7 | KV29: 0.7 | KW29: 0.7 | KX29: 0.7 | KY29: 0.7 | KZ29: 0.7 | LA29: 0.7 | LB29: 0.7 | LC29: 0.7 | LD29: 0.7 | LE29: 0.7 | LF29: 0.7 | LG29: 0.7 | LH29: 0.7 | LI29: 0.7 | LJ29: 0.7 | LK29: 0.7 | LL29: 0.7 | LM29: 0.7 | LN29: 0.7 | LO29: 0.7 | LP29: 0.7 | LQ29: 0.7 | LR29: 0.7 | LS29: 0.7 | LT29: 0.7 | LU29: 0.7 | LV29: 0.7 | LW29: 0.7 | LX29: 0.7 | LY29: 0.7 | LZ29: 0.7 | MA29: 0.7 | MB29: 0.7 | MC29: 0.7 | MD29: 0.7 | ME29: 0.7 | MF29: 0.7 | MG29: 0.7 | MH29: 0.7 | MI29: 0.7 | MJ29: 0.7 | MK29: 0.7 | ML29: 0.7 | MM29: 0.7 | MN29: 0.7 | MO29: 0.7 | MP29: 0.7 | MQ29: 0.7 | MR29: 0.7 | MS29: 0.7 | MT29: 0.7 | MU29: 0.7 | MV29: 0.7 | MW29: 0.7 | MX29: 0.7 | MY29: 0.7 | MZ29: 0.7 | NA29: 0.7 | NB29: 0.7 | NC29: 0.7 | ND29: 0.7 | NE29: 0.7 | NF29: 0.7 | NG29: 0.7 | NH29: 0.7 | NI29: 0.7 | NJ29: 0.7 | NK29: 0.7 | NL29: 0.7 | NM29: 0.7 | NN29: 0.7 | NO29: 0.7 | NP29: 0.7 | NQ29: 0.7 | NR29: 0.7 | NS29: 0.7 | NT29: 0.7 | NU29: 0.7 | NV29: 0.7 | NW29: 0.7 | NX29: 0.7 | NY29: 0.7 | NZ29: 0.7 | OA29: 0.7 | OB29: 0.7 | OC29: 0.7 | OD29: 0.7 | OE29: 0.7 | OF29: 0.7 | OG29: 0.7 | OH29: 0.7 | OI29: 0.7 | OJ29: 0.7 | OK29: 0.7 | OL29: 0.7 | OM29: 0.7 | ON29: 0.7 | OO29: 0.7 | OP29: 0.7 | OQ29: 0.7 | OR29: 0.7 | OS29: 0.7 | OT29: 0.7 | OU29: 0.7 | OV29: 0.7 | OW29: 0.7 | OX29: 0.7 | OY29: 0.7 | OZ29: 0.7 | PA29: 0.7 | PB29: 0.7 | PC29: 0.7 | PD29: 0.7 | PE29: 0.7 | PF29: 0.7 | PG29: 0.7 | PH29: 0.7 | PI29: 0.7 | PJ29: 0.7 | PK29: 0.7 | PL29: 0.7 | PM29: 0.7 | PN29: 0.7 | PO29: 0.7 | PP29: 0.7 | PQ29: 0.7 | PR29: 0.7 | PS29: 0.7 | PT29: 0.7 | PU29: 0.7 | PV29: 0.7 | PW29: 0.7 | PX29: 0.7 | PY29: 0.7 | PZ29: 0.7 | QA29: 0.7 | QB29: 0.7 | QC29: 0.7 | QD29: 0.7 | QE29: 0.7 | QF29: 0.7 | QG29: 0.7 | QH29: 0.7 | QI29: 0.7 | QJ29: 0.7 | QK29: 0.7 | QL29: 0.7 | QM29: 0.7 | QN29: 0.7 | QO29: 0.7 | QP29: 0.7 | QQ29: 0.7 | QR29: 0.7 | QS29: 0.7 | QT29: 0.7 | QU29: 0.7 | QV29: 0.7 | QW29: 0.7 | QX29: 0.7 | QY29: 0.7 | QZ29: 0.7 | RA29: 0.7 | RB29: 0.7 | RC29: 0.7 | RD29: 0.7 | RE29: 0.7 | RF29: 0.7 | RG29: 0.7 | RH29: 0.7 | RI29: 0.7 | RJ29: 0.7 | RK29: 0.7 | RL29: 0.7 | RM29: 0.7 | RN29: 0.7 | RO29: 0.7 | RP29: 0.7 | RQ29: 0.7 | RR29: 0.7 | RS29: 0.7 | RT29: 0.7 | RU29: 0.7 | RV29: 0.7 | RW29: 0.7 | RX29: 0.7 | RY29: 0.7 | RZ29: 0.7 | SA29: 0.7 | SB29: 0.7 | SC29: 0.7 | SD29: 0.7 | SE29: 0.7 | SF29: 0.7 | SG29: 0.7 | SH29: 0.7 | SI29: 0.7 | SJ29: 0.7 | SK29: 0.7 | SL29: 0.7 | SM29: 0.7 | SN29: 0.7 | SO29: 0.7 | SP29: 0.7 | SQ29: 0.7 | SR29: 0.7 | SS29: 0.7 | ST29: 0.7 | SU29: 0.7 | SV29: 0.7 | SW29: 0.7 | SX29: 0.7 | SY29: 0.7 | SZ29: 0.7 | TA29: 0.7 | TB29: 0.7 | TC29: 0.7 | TD29: 0.7 | TE29: 0.7 | TF29: 0.7 | TG29: 0.7 | TH29: 0.7 | TI29: 0.7 | TJ29: 0.7 | TK29: 0.7 | TL29: 0.7 | TM29: 0.7 | TN29: 0.7 | TO29: 0.7 | TP29: 0.7 | TQ29: 0.7 | TR29: 0.7 | TS29: 0.7 | TT29: 0.7 | TU29: 0.7 | TV29: 0.7 | TW29: 0.7 | TX29: 0.7 | TY29: 0.7 | TZ29: 0.7 | UA29: 0.7 | UB29: 0.7 | UC29: 0.7 | UD29: 0.7 | UE29: 0.7 | UF29: 0.7 | UG29: 0.7 | UH29: 0.7 | UI29: 0.7 | UJ29: 0.7 | UK29: 0.7 | UL29: 0.7 | UM29: 0.7 | UN29: 0.7 | UO29: 0.7 | UP29: 0.7 | UQ29: 0.7 | UR29: 0.7 | US29: 0.7 | UT29: 0.7 | UU29: 0.7 | UV29: 0.7 | UW29: 0.7 | UX29: 0.7 | UY29: 0.7
C30: Quantity Sold | D30: MWH | E30: =E24*E29*8760 -> 0 | F30: 61320 | G30: 122640 | H30: 183960 | I30: 245280 | J30: 306600 | K30: 367920 | L30: 423108 | M30: 486574.2 | N30: 559560.33 | O30: 643494.3795 | P30: 740018.5364 | Q30: 851021.3169 | R30: 978674.5144 | S30: 1125475.692 | T30: 1294297.045 | U30: 1488441.602 | V30: 1711707.842 | W30: 1968464.019 | X30: 2263733.622 | Y30: 2603293.665 | Z30: 2993787.715 | AA30: 3442855.872 | AB30: 3959284.253 | AC30: 4553176.89 | AD30: 5236153.424 | AE30: 6021576.438 | AF30: 6924812.903 | AG30: 7963534.839 | AH30: 9158065.065 | AI30: 10531774.82 | AJ30: 12111541.05 | AK30: 13928272.21 | AL30: 16017513.04 | AM30: 18420139.99 | AN30: 21183160.99 | AO30: 24360635.14 | AP30: 28014730.41 | AQ30: 32216939.97 | AR30: 37049480.97 | AS30: 42606903.11 | AT30: 48997938.58 | AU30: 56347629.36 | AV30: 64799773.77 | AW30: 74519739.83 | AX30: 85697700.81 | AY30: 98552355.93 | AZ30: 113335209.3 | BA30: 130335490.7 | BB30: 149885814.3 | BC30: 172368686.5 | BD30: 198223989.4 | BE30: 227957587.9 | BF30: 262151226 | BG30: 301473909.9 | BH30: 346694996.4 | BI30: 398699245.9 | BJ30: 458504132.8 | BK30: 527279752.7 | BL30: 606371715.6 | BM30: 697327473 | BN30: 801926593.9 | BO30: 825984391.7 | BP30: 850763923.5 | BQ30: =BQ24*BQ29*8760 -> 876286841.2 | BR30: 902575446.4 | BS30: 929652709.8 | BT30: 957542291.1 | BU30: 986268559.8 | BV30: 1015856617 | BW30: 1046332315 | BX30: 1077722285 | BY30: 1110053953 | BZ30: 1143355572 | CA30: 1177656239 | CB30: 1212985926 | CC30: 1249375504 | CD30: 1286856769 | CE30: 1325462472 | CF30: 1365226346 | CG30: 1406183137 | CH30: 1448368631 | CI30: 1491819690 | CJ30: 1536574280 | CK30: 1582671509 | CL30: 1630151654 | CM30: 1679056204 | CN30: 1729427890 | CO30: 1781310726 | CP30: 1834750048 | CQ30: 1889792550 | CR30: 1946486326 | CS30: 2004880916 | CT30: 2065027343 | CU30: 2126978164 | CV30: 2190787509 | CW30: 2256511134 | CX30: 2324206468 | CY30: 2393932662 | CZ30: 2465750642 | DA30: 2539723161 | DB30: 2615914856 | DC30: 2694392301 | DD30: 2775224070 | DE30: 2858480793 | DF30: 2944235216 | DG30: 3032562273 | DH30: 3123539141 | DI30: 3217245315 | DJ30: 3313762675 | DK30: 3413175555 | DL30: 3515570822 | DM30: 3621037946 | DN30: 3729669085 | DO30: 3841559157 | DP30: 3956805932 | DQ30: 4075510110 | DR30: 4197775413 | DS30: 4323708676 | DT30: 4453419936 | DU30: 4587022534 | DV30: 4724633210 | DW30: 4866372206 | DX30: 5012363372 | DY30: 5162734274 | DZ30: 5317616302 | EA30: 5477144791 | EB30: 5641459135 | EC30: =EC24*EC29*8760 -> 5810702909 | ED30: 5985023996 | EE30: 6164574716 | EF30: 6349511957 | EG30: 6539997316 | EH30: 6736197235 | EI30: 6938283152 | EJ30: 7146431647 | EK30: 7360824596 | EL30: 7581649334 | EM30: 7809098814 | EN30: 8043371779 | EO30: 8284672932 | EP30: 8533213120 | EQ30: 8789209514 | ER30: 9052885799 | ES30: 9324472373 | ET30: 9604206544 | EU30: 9892332741 | EV30: 1.018910272e+10 | EW30: 1.04947758e+10 | EX30: 1.080961908e+10 | EY30: 1.113390765e+10 | EZ30: 1.146792488e+10 | FA30: 1.181196263e+10 | FB30: 1.216632151e+10 | FC30: 1.253131115e+10 | FD30: 1.290725049e+10 | FE30: 1.3294468e+10 | FF30: 1.369330204e+10 | FG30: 1.41041011e+10 | FH30: 1.452722413e+10 | FI30: 1.496304086e+10 | FJ30: 1.541193208e+10 | FK30: 1.587429005e+10 | FL30: 1.635051875e+10 | FM30: 1.684103431e+10 | FN30: 1.734626534e+10 | FO30: 1.78666533e+10 | FP30: 1.84026529e+10 | FQ30: 1.895473249e+10 | FR30: 1.952337446e+10 | FS30: 2.010907569e+10 | FT30: 2.071234796e+10 | FU30: 2.13337184e+10 | FV30: 2.197372996e+10 | FW30: 2.263294185e+10 | FX30: 2.331193011e+10 | FY30: 2.401128801e+10 | FZ30: 2.473162665e+10 | GA30: 2.547357545e+10 | GB30: 2.623778272e+10 | GC30: 2.70249162e+10 | GD30: 2.783566368e+10 | GE30: 2.86707336e+10 | GF30: 2.95308556e+10 | GG30: 3.041678127e+10 | GH30: 3.132928471e+10 | GI30: 3.226916325e+10 | GJ30: 3.323723815e+10 | GK30: 3.423435529e+10 | GL30: 3.526138595e+10 | GM30: 3.631922753e+10 | GN30: 3.740880436e+10 | GO30: =GO24*GO29*8760 -> 3.853106849e+10 | GP30: 3.968700054e+10 | GQ30: 4.087761056e+10 | GR30: 4.210393887e+10 | GS30: 4.336705704e+10 | GT30: 4.466806875e+10 | GU30: 4.600811081e+10 | GV30: 4.738835414e+10 | GW30: 4.881000476e+10 | GX30: 5.027430491e+10 | GY30: 5.178253405e+10 | GZ30: 5.333601007e+10 | HA30: 5.493609038e+10 | HB30: 5.658417309e+10 | HC30: 5.828169828e+10 | HD30: 6.003014923e+10 | HE30: 6.183105371e+10 | HF30: 6.368598532e+10 | HG30: 6.559656488e+10 | HH30: 6.756446182e+10 | HI30: 6.959139568e+10 | HJ30: 7.167913755e+10 | HK30: 7.382951167e+10 | HL30: 7.604439702e+10 | HM30: 7.832572894e+10 | HN30: 8.06755008e+10 | HO30: 8.309576583e+10 | HP30: 8.55886388e+10 | HQ30: 8.815629797e+10 | HR30: 9.080098691e+10 | HS30: 9.352501651e+10 | HT30: 9.633076701e+10 | HU30: 9.922069002e+10 | HV30: 1.021973107e+11 | HW30: 1.0526323e+11 | HX30: 1.084211269e+11 | HY30: 1.116737607e+11 | HZ30: 1.150239736e+11 | IA30: 1.184746928e+11 | IB30: 1.220289336e+11 | IC30: 1.256898016e+11 | ID30: 1.294604956e+11 | IE30: 1.333443105e+11 | IF30: 1.373446398e+11 | IG30: 1.41464979e+11 | IH30: 1.457089284e+11 | II30: 1.500801962e+11 | IJ30: 1.545826021e+11 | IK30: 1.592200802e+11 | IL30: 1.639966826e+11 | IM30: 1.68916583e+11 | IN30: 1.739840805e+11 | IO30: 1.79203603e+11 | IP30: 1.84579711e+11 | IQ30: 1.901171024e+11 | IR30: 1.958206154e+11 | IS30: 2.016952339e+11 | IT30: 2.077460909e+11 | IU30: 2.139784737e+11 | IV30: 2.203978279e+11 | IW30: 2.270097627e+11 | IX30: 2.338200556e+11 | IY30: 2.408346572e+11 | IZ30: 2.48059697e+11 | JA30: =JA24*JA29*8760 -> 2.555014879e+11 | JB30: 2.631665325e+11 | JC30: 2.710615285e+11 | JD30: 2.791933743e+11 | JE30: 2.875691756e+11 | JF30: 2.961962508e+11 | JG30: 3.050821384e+11 | JH30: 3.142346025e+11 | JI30: 3.236616406e+11 | JJ30: 3.333714898e+11 | JK30: 3.433726345e+11 | JL30: 3.536738135e+11 | JM30: 3.642840279e+11 | JN30: 3.752125488e+11 | JO30: 3.864689252e+11 | JP30: 3.98062993e+11 | JQ30: 4.100048828e+11 | JR30: 4.223050293e+11 | JS30: 4.349741802e+11 | JT30: 4.480234056e+11 | JU30: 4.614641077e+11 | JV30: 4.75308031e+11 | JW30: 4.895672719e+11 | JX30: 5.0425429e+11 | JY30: 5.193819187e+11 | JZ30: 5.349633763e+11 | KA30: 5.510122776e+11 | KB30: 5.675426459e+11 | KC30: 5.845689253e+11 | KD30: 6.021059931e+11 | KE30: 6.201691728e+11 | KF30: 6.38774248e+11 | KG30: 6.579374755e+11 | KH30: 6.776755997e+11 | KI30: 6.980058677e+11 | KJ30: 7.189460438e+11 | KK30: 7.405144251e+11 | KL30: 7.627298578e+11 | KM30: 7.856117536e+11 | KN30: 8.091801062e+11 | KO30: 8.334555094e+11 | KP30: 8.584591746e+11 | KQ30: 8.842129499e+11 | KR30: 9.107393384e+11 | KS30: 9.380615185e+11 | KT30: 9.662033641e+11 | KU30: 9.95189465e+11 | KV30: 1.025045149e+12 | KW30: 1.055796503e+12 | KX30: 1.087470399e+12 | KY30: 1.12009451e+12 | KZ30: 1.153697346e+12 | LA30: 1.188308266e+12 | LB30: 1.223957514e+12 | LC30: 1.26067624e+12 | LD30: 1.298496527e+12 | LE30: 1.337451423e+12 | LF30: 1.377574965e+12 | LG30: 1.418902214e+12 | LH30: 1.461469281e+12 | LI30: 1.505313359e+12 | LJ30: 1.55047276e+12 | LK30: 1.596986943e+12 | LL30: 1.644896551e+12 | LM30: =LM24*LM29*8760 -> 1.694243447e+12 | LN30: 1.745070751e+12 | LO30: 1.797422873e+12 | LP30: 1.85134556e+12 | LQ30: 1.906885926e+12 | LR30: 1.964092504e+12 | LS30: 2.023015279e+12 | LT30: 2.083705738e+12 | LU30: 2.14621691e+12 | LV30: 2.210603417e+12 | LW30: 2.27692152e+12 | LX30: 2.345229165e+12 | LY30: 2.41558604e+12 | LZ30: 2.488053621e+12 | MA30: 2.56269523e+12 | MB30: 2.639576087e+12 | MC30: 2.718763369e+12 | MD30: 2.800326271e+12 | ME30: 2.884336059e+12 | MF30: 2.97086614e+12 | MG30: 3.059992125e+12 | MH30: 3.151791888e+12 | MI30: 3.246345645e+12 | MJ30: 3.343736014e+12 | MK30: 3.444048095e+12 | ML30: 3.547369538e+12 | MM30: 3.653790624e+12 | MN30: 3.763404342e+12 | MO30: 3.876306473e+12 | MP30: 3.992595667e+12 | MQ30: 4.112373537e+12 | MR30: 4.235744743e+12 | MS30: 4.362817085e+12 | MT30: 4.493701598e+12 | MU30: 4.628512646e+12 | MV30: 4.767368025e+12 | MW30: 4.910389066e+12 | MX30: 5.057700738e+12 | MY30: 5.20943176e+12 | MZ30: 5.365714713e+12 | NA30: 5.526686154e+12 | NB30: 5.692486739e+12 | NC30: 5.863261341e+12 | ND30: 6.039159181e+12 | NE30: 6.220333957e+12 | NF30: 6.406943975e+12 | NG30: 6.599152295e+12 | NH30: 6.797126864e+12 | NI30: 7.001040669e+12 | NJ30: 7.21107189e+12 | NK30: 7.427404046e+12 | NL30: 7.650226168e+12 | NM30: 7.879732953e+12 | NN30: 8.116124941e+12 | NO30: 8.359608689e+12 | NP30: 8.61039695e+12 | NQ30: 8.868708859e+12 | NR30: 9.134770124e+12 | NS30: 9.408813228e+12 | NT30: 9.691077625e+12 | NU30: 9.981809954e+12 | NV30: 1.028126425e+13 | NW30: 1.058970218e+13 | NX30: 1.090739325e+13 | NY30: =NY24*NY29*8760 -> 1.123461504e+13 | NZ30: 1.157165349e+13 | OA30: 1.19188031e+13 | OB30: 1.227636719e+13 | OC30: 1.264465821e+13 | OD30: 1.302399795e+13 | OE30: 1.341471789e+13 | OF30: 1.381715943e+13 | OG30: 1.423167421e+13 | OH30: 1.465862444e+13 | OI30: 1.509838317e+13 | OJ30: 1.555133467e+13 | OK30: 1.601787471e+13 | OL30: 1.649841095e+13 | OM30: 1.699336328e+13 | ON30: 1.750316417e+13 | OO30: 1.80282591e+13 | OP30: 1.856910687e+13 | OQ30: 1.912618008e+13 | OR30: 1.969996548e+13 | OS30: 2.029096445e+13 | OT30: 2.089969338e+13 | OU30: 2.152668418e+13 | OV30: 2.217248471e+13 | OW30: 2.283765925e+13 | OX30: 2.352278902e+13 | OY30: 2.42284727e+13 | OZ30: 2.495532688e+13 | PA30: 2.570398668e+13 | PB30: 2.647510628e+13 | PC30: 2.726935947e+13 | PD30: 2.808744026e+13 | PE30: 2.893006346e+13 | PF30: 2.979796537e+13 | PG30: 3.069190433e+13 | PH30: 3.161266146e+13 | PI30: 3.25610413e+13 | PJ30: 3.353787254e+13 | PK30: 3.454400872e+13 | PL30: 3.558032898e+13 | PM30: 3.664773885e+13 | PN30: 3.774717101e+13 | PO30: 3.887958614e+13 | PP30: 4.004597373e+13 | PQ30: 4.124735294e+13 | PR30: 4.248477353e+13 | PS30: 4.375931673e+13 | PT30: 4.507209624e+13 | PU30: 4.642425912e+13 | PV30: 4.78169869e+13 | PW30: 4.92514965e+13 | PX30: 5.07290414e+13 | PY30: 5.225091264e+13 | PZ30: 5.381844002e+13 | QA30: 5.543299322e+13 | QB30: 5.709598302e+13 | QC30: 5.880886251e+13 | QD30: 6.057312838e+13 | QE30: 6.239032223e+13 | QF30: 6.42620319e+13 | QG30: 6.618989286e+13 | QH30: 68175589644061 | QI30: 7.022085733e+13 | QJ30: 7.232748305e+13 | QK30: =QK24*QK29*8760 -> 7.449730754e+13 | QL30: 7.673222677e+13 | QM30: 7.903419357e+13 | QN30: 8.140521938e+13 | QO30: 8.384737596e+13 | QP30: 8.636279724e+13 | QQ30: 8.895368116e+13 | QR30: 9.162229159e+13 | QS30: 9.437096034e+13 | QT30: 9.720208915e+13 | QU30: 1.001181518e+14 | QV30: 1.031216964e+14 | QW30: 1.062153473e+14 | QX30: 1.094018077e+14 | QY30: 1.126838619e+14 | QZ30: 1.160643778e+14 | RA30: 1.195463091e+14 | RB30: 1.231326984e+14 | RC30: 1.268266793e+14 | RD30: 1.306314797e+14 | RE30: 1.345504241e+14 | RF30: 1.385869368e+14 | RG30: 1.427445449e+14 | RH30: 1.470268813e+14 | RI30: 1.514376877e+14 | RJ30: 1.559808184e+14 | RK30: 1.606602429e+14 | RL30: 1.654800502e+14 | RM30: 1.704444517e+14 | RN30: 1.755577853e+14 | RO30: 1.808245188e+14 | RP30: 1.862492544e+14 | RQ30: 1.91836732e+14 | RR30: 1.97591834e+14 | RS30: 2.03519589e+14 | RT30: 2.096251767e+14 | RU30: 2.15913932e+14 | RV30: 2.223913499e+14 | RW30: 2.290630904e+14 | RX30: 2.359349831e+14 | RY30: 2.430130326e+14 | RZ30: 2.503034236e+14 | SA30: 2.578125263e+14 | SB30: 2.655469021e+14 | SC30: 2.735133092e+14 | SD30: 2.817187084e+14 | SE30: 2.901702697e+14 | SF30: 2.988753778e+14 | SG30: 3.078416391e+14 | SH30: 317076888275667 | SI30: 3.265891949e+14 | SJ30: 3.363868708e+14 | SK30: 3.464784769e+14 | SL30: 356872831201649 | SM30: 3.675790161e+14 | SN30: 3.786063866e+14 | SO30: 3.899645782e+14 | SP30: 4.016635156e+14 | SQ30: 4.13713421e+14 | SR30: 4.261248237e+14 | SS30: 4.389085684e+14 | ST30: 4.520758254e+14 | SU30: 4.656381002e+14 | SV30: 4.796072432e+14 | SW30: =SW24*SW29*8760 -> 4.939954605e+14 | SX30: 508815324305370 | SY30: 5.24079784e+14 | SZ30: 5.398021776e+14 | TA30: 5.559962429e+14 | TB30: 5.726761302e+14 | TC30: 5.898564141e+14 | TD30: 6.075521065e+14 | TE30: 6.257786697e+14 | TF30: 644552029781580 | TG30: 6.638885907e+14 | TH30: 6.838052484e+14 | TI30: 7.043194058e+14 | TJ30: 7.25448988e+14 | TK30: 7.472124577e+14 | TL30: 7.696288314e+14 | TM30: 7.927176963e+14 | TN30: 8.164992272e+14 | TO30: 8.40994204e+14 | TP30: 8.662240302e+14 | TQ30: 8.922107511e+14 | TR30: 9.189770736e+14 | TS30: 9.465463858e+14 | TT30: 9.749427774e+14 | TU30: 1.004191061e+15 | TV30: 1.034316793e+15 | TW30: 1.065346296e+15 | TX30: 1097306685189449 | TY30: 1.130225886e+15 | TZ30: 1.164132662e+15 | UA30: 1.199056642e+15 | UB30: 1.235028341e+15 | UC30: 1.272079192e+15 | UD30: 1.310241567e+15 | UE30: 1.349548814e+15 | UF30: 1390035278904614 | UG30: 1.431736337e+15 | UH30: 1474688427389905 | UI30: 1518929080211602 | UJ30: 1.564496953e+15 | UK30: 1.611431861e+15 | UL30: 1.659774817e+15 | UM30: 1709568061543355 | UN30: 1.760855103e+15 | UO30: 1.813680756e+15 | UP30: 1.868091179e+15 | UQ30: 1.924133915e+15 | UR30: 1.981857932e+15 | US30: 2041313669958474 | UT30: 2.10255308e+15 | UU30: 2165629672458945 | UV30: 2.230598563e+15 | UW30: 2.29751652e+15 | UX30: 2.366442015e+15 | UY30: 2437435275549958
C32: Cost | D32: USD/kW | E32: 1000 | F32: =E32*(1+F22) -> 1000 | G32: 1000 | H32: 1000 | I32: 1000 | J32: 1000 | K32: 1000 | L32: 1000 | M32: 1000 | N32: 1000 | O32: 1000 | P32: 1000 | Q32: 1000 | R32: 1000 | S32: 1000 | T32: 1000 | U32: 1000 | V32: 1000 | W32: 1000 | X32: 1000 | Y32: 1000 | Z32: 1000 | AA32: 1000 | AB32: 1000 | AC32: 1000 | AD32: 1000 | AE32: 1000 | AF32: 1000 | AG32: 1000 | AH32: 1000 | AI32: 1000 | AJ32: 1000 | AK32: 1000 | AL32: 1000 | AM32: 1000 | AN32: 1000 | AO32: 1000 | AP32: 1000 | AQ32: 1000 | AR32: 1000 | AS32: 1000 | AT32: 1000 | AU32: 1000 | AV32: 1000 | AW32: 1000 | AX32: 1000 | AY32: 1000 | AZ32: 1000 | BA32: 1000 | BB32: 1000 | BC32: 1000 | BD32: 1000 | BE32: 1000 | BF32: 1000 | BG32: 1000 | BH32: 1000 | BI32: 1000 | BJ32: 1000 | BK32: 1000 | BL32: 1000 | BM32: 1000 | BN32: 1000 | BO32: 1000 | BP32: 1000 | BQ32: 1000 | BR32: =BQ32*(1+BR22) -> 1000 | BS32: 1000 | BT32: 1000 | BU32: 1000 | BV32: 1000 | BW32: 1000 | BX32: 1000 | BY32: 1000 | BZ32: 1000 | CA32: 1000 | CB32: 1000 | CC32: 1000 | CD32: 1000 | CE32: 1000 | CF32: 1000 | CG32: 1000 | CH32: 1000 | CI32: 1000 | CJ32: 1000 | CK32: 1000 | CL32: 1000 | CM32: 1000 | CN32: 1000 | CO32: 1000 | CP32: 1000 | CQ32: 1000 | CR32: 1000 | CS32: 1000 | CT32: 1000 | CU32: 1000 | CV32: 1000 | CW32: 1000 | CX32: 1000 | CY32: 1000 | CZ32: 1000 | DA32: 1000 | DB32: 1000 | DC32: 1000 | DD32: 1000 | DE32: 1000 | DF32: 1000 | DG32: 1000 | DH32: 1000 | DI32: 1000 | DJ32: 1000 | DK32: 1000 | DL32: 1000 | DM32: 1000 | DN32: 1000 | DO32: 1000 | DP32: 1000 | DQ32: 1000 | DR32: 1000 | DS32: 1000 | DT32: 1000 | DU32: 1000 | DV32: 1000 | DW32: 1000 | DX32: 1000 | DY32: 1000 | DZ32: 1000 | EA32: 1000 | EB32: 1000 | EC32: 1000 | ED32: =EC32*(1+ED22) -> 1000 | EE32: 1000 | EF32: 1000 | EG32: 1000 | EH32: 1000 | EI32: 1000 | EJ32: 1000 | EK32: 1000 | EL32: 1000 | EM32: 1000 | EN32: 1000 | EO32: 1000 | EP32: 1000 | EQ32: 1000 | ER32: 1000 | ES32: 1000 | ET32: 1000 | EU32: 1000 | EV32: 1000 | EW32: 1000 | EX32: 1000 | EY32: 1000 | EZ32: 1000 | FA32: 1000 | FB32: 1000 | FC32: 1000 | FD32: 1000 | FE32: 1000 | FF32: 1000 | FG32: 1000 | FH32: 1000 | FI32: 1000 | FJ32: 1000 | FK32: 1000 | FL32: 1000 | FM32: 1000 | FN32: 1000 | FO32: 1000 | FP32: 1000 | FQ32: 1000 | FR32: 1000 | FS32: 1000 | FT32: 1000 | FU32: 1000 | FV32: 1000 | FW32: 1000 | FX32: 1000 | FY32: 1000 | FZ32: 1000 | GA32: 1000 | GB32: 1000 | GC32: 1000 | GD32: 1000 | GE32: 1000 | GF32: 1000 | GG32: 1000 | GH32: 1000 | GI32: 1000 | GJ32: 1000 | GK32: 1000 | GL32: 1000 | GM32: 1000 | GN32: 1000 | GO32: 1000 | GP32: =GO32*(1+GP22) -> 1000 | GQ32: 1000 | GR32: 1000 | GS32: 1000 | GT32: 1000 | GU32: 1000 | GV32: 1000 | GW32: 1000 | GX32: 1000 | GY32: 1000 | GZ32: 1000 | HA32: 1000 | HB32: 1000 | HC32: 1000 | HD32: 1000 | HE32: 1000 | HF32: 1000 | HG32: 1000 | HH32: 1000 | HI32: 1000 | HJ32: 1000 | HK32: 1000 | HL32: 1000 | HM32: 1000 | HN32: 1000 | HO32: 1000 | HP32: 1000 | HQ32: 1000 | HR32: 1000 | HS32: 1000 | HT32: 1000 | HU32: 1000 | HV32: 1000 | HW32: 1000 | HX32: 1000 | HY32: 1000 | HZ32: 1000 | IA32: 1000 | IB32: 1000 | IC32: 1000 | ID32: 1000 | IE32: 1000 | IF32: 1000 | IG32: 1000 | IH32: 1000 | II32: 1000 | IJ32: 1000 | IK32: 1000 | IL32: 1000 | IM32: 1000 | IN32: 1000 | IO32: 1000 | IP32: 1000 | IQ32: 1000 | IR32: 1000 | IS32: 1000 | IT32: 1000 | IU32: 1000 | IV32: 1000 | IW32: 1000 | IX32: 1000 | IY32: 1000 | IZ32: 1000 | JA32: 1000 | JB32: =JA32*(1+JB22) -> 1000 | JC32: 1000 | JD32: 1000 | JE32: 1000 | JF32: 1000 | JG32: 1000 | JH32: 1000 | JI32: 1000 | JJ32: 1000 | JK32: 1000 | JL32: 1000 | JM32: 1000 | JN32: 1000 | JO32: 1000 | JP32: 1000 | JQ32: 1000 | JR32: 1000 | JS32: 1000 | JT32: 1000 | JU32: 1000 | JV32: 1000 | JW32: 1000 | JX32: 1000 | JY32: 1000 | JZ32: 1000 | KA32: 1000 | KB32: 1000 | KC32: 1000 | KD32: 1000 | KE32: 1000 | KF32: 1000 | KG32: 1000 | KH32: 1000 | KI32: 1000 | KJ32: 1000 | KK32: 1000 | KL32: 1000 | KM32: 1000 | KN32: 1000 | KO32: 1000 | KP32: 1000 | KQ32: 1000 | KR32: 1000 | KS32: 1000 | KT32: 1000 | KU32: 1000 | KV32: 1000 | KW32: 1000 | KX32: 1000 | KY32: 1000 | KZ32: 1000 | LA32: 1000 | LB32: 1000 | LC32: 1000 | LD32: 1000 | LE32: 1000 | LF32: 1000 | LG32: 1000 | LH32: 1000 | LI32: 1000 | LJ32: 1000 | LK32: 1000 | LL32: 1000 | LM32: 1000 | LN32: =LM32*(1+LN22) -> 1000 | LO32: 1000 | LP32: 1000 | LQ32: 1000 | LR32: 1000 | LS32: 1000 | LT32: 1000 | LU32: 1000 | LV32: 1000 | LW32: 1000 | LX32: 1000 | LY32: 1000 | LZ32: 1000 | MA32: 1000 | MB32: 1000 | MC32: 1000 | MD32: 1000 | ME32: 1000 | MF32: 1000 | MG32: 1000 | MH32: 1000 | MI32: 1000 | MJ32: 1000 | MK32: 1000 | ML32: 1000 | MM32: 1000 | MN32: 1000 | MO32: 1000 | MP32: 1000 | MQ32: 1000 | MR32: 1000 | MS32: 1000 | MT32: 1000 | MU32: 1000 | MV32: 1000 | MW32: 1000 | MX32: 1000 | MY32: 1000 | MZ32: 1000 | NA32: 1000 | NB32: 1000 | NC32: 1000 | ND32: 1000 | NE32: 1000 | NF32: 1000 | NG32: 1000 | NH32: 1000 | NI32: 1000 | NJ32: 1000 | NK32: 1000 | NL32: 1000 | NM32: 1000 | NN32: 1000 | NO32: 1000 | NP32: 1000 | NQ32: 1000 | NR32: 1000 | NS32: 1000 | NT32: 1000 | NU32: 1000 | NV32: 1000 | NW32: 1000 | NX32: 1000 | NY32: 1000 | NZ32: =NY32*(1+NZ22) -> 1000 | OA32: 1000 | OB32: 1000 | OC32: 1000 | OD32: 1000 | OE32: 1000 | OF32: 1000 | OG32: 1000 | OH32: 1000 | OI32: 1000 | OJ32: 1000 | OK32: 1000 | OL32: 1000 | OM32: 1000 | ON32: 1000 | OO32: 1000 | OP32: 1000 | OQ32: 1000 | OR32: 1000 | OS32: 1000 | OT32: 1000 | OU32: 1000 | OV32: 1000 | OW32: 1000 | OX32: 1000 | OY32: 1000 | OZ32: 1000 | PA32: 1000 | PB32: 1000 | PC32: 1000 | PD32: 1000 | PE32: 1000 | PF32: 1000 | PG32: 1000 | PH32: 1000 | PI32: 1000 | PJ32: 1000 | PK32: 1000 | PL32: 1000 | PM32: 1000 | PN32: 1000 | PO32: 1000 | PP32: 1000 | PQ32: 1000 | PR32: 1000 | PS32: 1000 | PT32: 1000 | PU32: 1000 | PV32: 1000 | PW32: 1000 | PX32: 1000 | PY32: 1000 | PZ32: 1000 | QA32: 1000 | QB32: 1000 | QC32: 1000 | QD32: 1000 | QE32: 1000 | QF32: 1000 | QG32: 1000 | QH32: 1000 | QI32: 1000 | QJ32: 1000 | QK32: 1000 | QL32: =QK32*(1+QL22) -> 1000 | QM32: 1000 | QN32: 1000 | QO32: 1000 | QP32: 1000 | QQ32: 1000 | QR32: 1000 | QS32: 1000 | QT32: 1000 | QU32: 1000 | QV32: 1000 | QW32: 1000 | QX32: 1000 | QY32: 1000 | QZ32: 1000 | RA32: 1000 | RB32: 1000 | RC32: 1000 | RD32: 1000 | RE32: 1000 | RF32: 1000 | RG32: 1000 | RH32: 1000 | RI32: 1000 | RJ32: 1000 | RK32: 1000 | RL32: 1000 | RM32: 1000 | RN32: 1000 | RO32: 1000 | RP32: 1000 | RQ32: 1000 | RR32: 1000 | RS32: 1000 | RT32: 1000 | RU32: 1000 | RV32: 1000 | RW32: 1000 | RX32: 1000 | RY32: 1000 | RZ32: 1000 | SA32: 1000 | SB32: 1000 | SC32: 1000 | SD32: 1000 | SE32: 1000 | SF32: 1000 | SG32: 1000 | SH32: 1000 | SI32: 1000 | SJ32: 1000 | SK32: 1000 | SL32: 1000 | SM32: 1000 | SN32: 1000 | SO32: 1000 | SP32: 1000 | SQ32: 1000 | SR32: 1000 | SS32: 1000 | ST32: 1000 | SU32: 1000 | SV32: 1000 | SW32: 1000 | SX32: =SW32*(1+SX22) -> 1000 | SY32: 1000 | SZ32: 1000 | TA32: 1000 | TB32: 1000 | TC32: 1000 | TD32: 1000 | TE32: 1000 | TF32: 1000 | TG32: 1000 | TH32: 1000 | TI32: 1000 | TJ32: 1000 | TK32: 1000 | TL32: 1000 | TM32: 1000 | TN32: 1000 | TO32: 1000 | TP32: 1000 | TQ32: 1000 | TR32: 1000 | TS32: 1000 | TT32: 1000 | TU32: 1000 | TV32: 1000 | TW32: 1000 | TX32: 1000 | TY32: 1000 | TZ32: 1000 | UA32: 1000 | UB32: 1000 | UC32: 1000 | UD32: 1000 | UE32: 1000 | UF32: 1000 | UG32: 1000 | UH32: 1000 | UI32: 1000 | UJ32: 1000 | UK32: 1000 | UL32: 1000 | UM32: 1000 | UN32: 1000 | UO32: 1000 | UP32: 1000 | UQ32: 1000 | UR32: 1000 | US32: 1000 | UT32: 1000 | UU32: 1000 | UV32: 1000 | UW32: 1000 | UX32: 1000 | UY32: 1000
C33: Capital Expenditures | D33: USD 000's | E33: =E25*E32 -> 10000 | F33: 10000 | G33: 10000 | H33: 10000 | I33: 10000 | J33: 10000 | K33: 9000 | L33: 10350 | M33: 11902.5 | N33: 13687.875 | O33: 15741.05625 | P33: 18102.21469 | Q33: 20817.54689 | R33: 23940.17892 | S33: 27531.20576 | T33: 31660.88663 | U33: 36410.01962 | V33: 41871.52256 | W33: 48152.25095 | X33: 55375.08859 | Y33: 63681.35188 | Z33: 73233.55466 | AA33: 84218.58786 | AB33: 96851.37604 | AC33: 111379.0824 | AD33: 128085.9448 | AE33: 147298.8365 | AF33: 169393.662 | AG33: 194802.7113 | AH33: 224023.118 | AI33: 267626.5857 | AJ33: 306270.5736 | AK33: 350711.1596 | AL33: 401817.8336 | AM33: 460590.5086 | AN33: 528179.0849 | AO33: 604905.9476 | AP33: 695641.8398 | AQ33: 799988.1157 | AR33: 919986.3331 | AS33: 1057984.283 | AT33: 1216681.925 | AU33: 1399184.214 | AV33: 1609061.846 | AW33: 1850421.123 | AX33: 2127984.292 | AY33: 2447181.936 | AZ33: 2814259.226 | BA33: 3236398.11 | BB33: 3721857.827 | BC33: 4280136.5 | BD33: 4922156.976 | BE33: 5660480.522 | BF33: 6509552.6 | BG33: 7485985.49 | BH33: 8608883.314 | BI33: 9900215.811 | BJ33: 11385248.18 | BK33: 13093035.41 | BL33: 15056990.72 | BM33: 17325539.33 | BN33: 4229590.505 | BO33: 4391730.689 | BP33: 4564067.948 | BQ33: =BQ25*BQ32 -> 4747708.127 | BR33: 4943910.232 | BS33: 5153109.029 | BT33: 5380291.013 | BU33: 5625176.765 | BV33: 5889930.641 | BW33: 6177026.921 | BX33: 6489295.842 | BY33: 6829976.549 | BZ33: 7202777.951 | CA33: 7611948.711 | CB33: 8062357.707 | CC33: 8559586.553 | CD33: 9110035.982 | CE33: 9721048.169 | CF33: 10401047.39 | CG33: 11159701.75 | CH33: 12008109.18 | CI33: 12959011.29 | CJ33: 14027039.29 | CK33: 15228996.78 | CL33: 16584184.95 | CM33: 18114776.49 | CN33: 19846245.69 | CO33: 21807862.84 | CP33: 24033262.97 | CQ33: 26571099.75 | CR33: 13752517.74 | CS33: 14200345.74 | CT33: 14666941.45 | CU33: 15153667.83 | CV33: 15662048.73 | CW33: 16192791.68 | CX33: 16751164.14 | CY33: 17337176.09 | CZ33: 17953289.95 | DA33: 18602287 | DB33: 19287313.73 | DC33: 20011934.97 | DD33: 20780195.13 | DE33: 21596688.4 | DF33: 22466639.59 | DG33: 23395996.89 | DH33: 24391538.63 | DI33: 25460995.89 | DJ33: 26613193.54 | DK33: 27858212.29 | DL33: 29207575.04 | DM33: 30674461.13 | DN33: 32273952.62 | DO33: 34023317.51 | DP33: 35942335.3 | DQ33: 38053671.36 | DR33: 40383307.39 | DS33: 42961036.4 | DT33: 45821031.74 | DU33: 49012501.58 | DV33: 36867161.62 | DW33: 38008428.94 | DX33: 39189267.14 | DY33: 40411663.3 | DZ33: 41677784.06 | EA33: 42988999.07 | EB33: 44351257.76 | EC33: =EC25*EC32 -> 45765272.51 | ED33: 47234229.26 | EE33: 48761654.5 | EF33: 50351462.25 | EG33: 52008007.94 | EH33: 53736150.29 | EI33: 55541322.22 | EJ33: 57429612.42 | EK33: 59407858.91 | EL33: 61483756.51 | EM33: 63665980.31 | EN33: 65964327.49 | EO33: 68389880.26 | EP33: 70955193.04 | EQ33: 73674507.67 | ER33: 76564000.56 | ES33: 79642066.89 | ET33: 82929647.16 | EU33: 86450602.57 | EV33: 90232146.55 | EW33: 94305340.72 | EX33: 98705665.2 | EY33: 103483674 | EZ33: 92972469.25 | FA33: 95796895.8 | FB33: 98711388.01 | FC33: 101719447.8 | FD33: 104824802.1 | FE33: 108030427.6 | FF33: 111343929.2 | FG33: 114767724.1 | FH33: 118306754.4 | FI33: 121966355.4 | FJ33: 125752304.1 | FK33: 129670875.1 | FL33: 133728903.5 | FM33: 137933858 | FN33: 142293924.3 | FO33: 146818100.1 | FP33: 151516304.9 | FQ33: 156399505.2 | FR33: 161479858.1 | FS33: 166770876.8 | FT33: 172287619.5 | FU33: 178046906.9 | FV33: 184067571.8 | FW33: 190370745.2 | FX33: 196980185.9 | FY33: 203922657.4 | FZ33: 211228363.1 | GA33: 218931443.7 | GB33: 227070551.3 | GC33: 235699506.7 | GD33: 229154776.9 | GE33: 236064672.7 | GF33: 243187198.2 | GG33: 250529532.3 | GH33: 258099189.1 | GI33: 265903046.3 | GJ33: 273952726.4 | GK33: 282254785.2 | GL33: 290818427.3 | GM33: 299653378.5 | GN33: 308769938 | GO33: =GO25*GO32 -> 318179037.9 | GP33: 327892311.2 | GQ33: 337922168 | GR33: 348281883.5 | GS33: 358985698.1 | GT33: 370048930.9 | GU33: 381488110 | GV33: 393321121 | GW33: 405567377.6 | GX33: 418248015.3 | GY33: 431386114.6 | GZ33: 445006955.7 | HA33: 459138310.7 | HB33: 473810778.3 | HC33: 489058167.6 | HD33: 504917938.5 | HE33: 521431706.5 | HF33: 538645821.9 | HG33: 556622035.5 | HH33: 559704981.5 | HI33: 576531383.4 | HJ33: 593867910.3 | HK33: 611730665.7 | HL33: 630136356.6 | HM33: 649101328.7 | HN33: 668646957.3 | HO33: 688789843.1 | HP33: 709549536.9 | HQ33: 730946421.4 | HR33: 753001772.2 | HS33: 775737827.1 | HT33: 799177864.1 | HU33: 823346287.4 | HV33: 848268726.6 | HW33: 873972146.5 | HX33: 900484972.7 | HY33: 927837233 | HZ33: 956060717.8 | IA33: 985189162.2 | IB33: 1015258453 | IC33: 1046306866 | ID33: 1078375330 | IE33: 1111507736 | IF33: 1145751286 | IG33: 1181156891 | IH33: 1217779623 | II33: 1255679242 | IJ33: 1294920783 | IK33: 1335585246 | IL33: 1362037088 | IM33: 1402933453 | IN33: 1445062042 | IO33: 1488460621 | IP33: 1533168211 | IQ33: 1579224139 | IR33: 1626673452 | IS33: 1675557132 | IT33: 1725919845 | IU33: 1777807838 | IV33: 1831269032 | IW33: 1886353105 | IX33: 1943111600 | IY33: 2001598035 | IZ33: 2061868027 | JA33: =JA25*JA32 -> 2123979426 | JB33: 2187992470 | JC33: 2253969956 | JD33: 2321977422 | JE33: 2392083368 | JF33: 2464359485 | JG33: 2538880928 | JH33: 2615726614 | JI33: 2694979559 | JJ33: 2776727264 | JK33: 2861062148 | JL33: 2948082038 | JM33: 3037890729 | JN33: 3130598615 | JO33: 3226333412 | JP33: 3309507700 | JQ33: 3408828183 | JR33: 3511133614 | JS33: 3616514340 | JT33: 3725063541 | JU33: 3836876329 | JV33: 3952055208 | JW33: 4070700341 | JX33: 4192917350 | JY33: 4318815269 | JZ33: 4448506685 | KA33: 4582107887 | KB33: 4719739026 | KC33: 4861524284 | KD33: 5007592063 | KE33: 5158075183 | KF33: 5313111101 | KG33: 5472842145 | KH33: 5637415777 | KI33: 5806984873 | KJ33: 5981708036 | KK33: 6161749936 | KL33: 6347281691 | KM33: 6538481288 | KN33: 6735534045 | KO33: 6938633133 | KP33: 7147980152 | KQ33: 7363785787 | KR33: 7586270525 | KS33: 7815675479 | KT33: 8036530029 | KU33: 8277661182 | KV33: 8526031603 | KW33: 8781859269 | KX33: 9045368818 | KY33: 9316790764 | KZ33: 9596367076 | LA33: 9884341565 | LB33: 1.018096781e+10 | LC33: 1.048650724e+10 | LD33: 1.080122942e+10 | LE33: 1.11254123e+10 | LF33: 1.145934257e+10 | LG33: 1.180331594e+10 | LH33: 1.215763747e+10 | LI33: 1.252262195e+10 | LJ33: 1.289859427e+10 | LK33: 1.328588981e+10 | LL33: 1.368485487e+10 | LM33: =LM25*LM32 -> 1.409584714e+10 | LN33: 1.451923617e+10 | LO33: 1.495540391e+10 | LP33: 1.540474529e+10 | LQ33: 1.586766879e+10 | LR33: 1.634459718e+10 | LS33: 1.683596816e+10 | LT33: 1.734223523e+10 | LU33: 1.786386852e+10 | LV33: 1.840135574e+10 | LW33: 1.895521325e+10 | LX33: 1.951025393e+10 | LY33: 2.00955968e+10 | LZ33: 2.069850529e+10 | MA33: 2.131950717e+10 | MB33: 2.195914615e+10 | MC33: 2.261798142e+10 | MD33: 2.329659345e+10 | ME33: 2.399557473e+10 | MF33: 2.471553797e+10 | MG33: 2.545711451e+10 | MH33: 2.62209549e+10 | MI33: 2.700772955e+10 | MJ33: 2.781812934e+10 | MK33: 2.86528663e+10 | ML33: 2.951267434e+10 | MM33: 3.039830993e+10 | MN33: 3.131055289e+10 | MO33: 3.225020719e+10 | MP33: 3.321810177e+10 | MQ33: 3.421509145e+10 | MR33: 3.524205781e+10 | MS33: 3.62999102e+10 | MT33: 3.738958677e+10 | MU33: 3.851205552e+10 | MV33: 3.96683155e+10 | MW33: 4.085939803e+10 | MX33: 4.2086368e+10 | MY33: 4.335032527e+10 | MZ33: 4.465240619e+10 | NA33: 4.599379521e+10 | NB33: 4.735999336e+10 | NC33: 4.878082841e+10 | ND33: 5.024429385e+10 | NE33: 5.175166938e+10 | NF33: 5.330427323e+10 | NG33: 5.490346231e+10 | NH33: 5.655063877e+10 | NI33: 5.824724141e+10 | NJ33: 5.999475465e+10 | NK33: 6.179470769e+10 | NL33: 6.364867588e+10 | NM33: 6.555828215e+10 | NN33: 6.752519852e+10 | NO33: 6.955114756e+10 | NP33: 7.163790404e+10 | NQ33: 7.378729652e+10 | NR33: 7.600120908e+10 | NS33: 7.828158306e+10 | NT33: 8.063041892e+10 | NU33: 8.304977811e+10 | NV33: 8.554178507e+10 | NW33: 8.810862928e+10 | NX33: 9.075256742e+10 | NY33: =NY25*NY32 -> 9.347592559e+10 | NZ33: 9.628110167e+10 | OA33: 9.917056779e+10 | OB33: 1.021468728e+11 | OC33: 1.052126453e+11 | OD33: 1.083705958e+11 | OE33: 1.116235305e+11 | OF33: 1.149586207e+11 | OG33: 1.184074146e+11 | OH33: 1.219596776e+11 | OI33: 1.256185146e+11 | OJ33: 1.293871239e+11 | OK33: 1.332687984e+11 | OL33: 1.37266935e+11 | OM33: 1.413850265e+11 | ON33: 1.456266733e+11 | OO33: 1.499955839e+11 | OP33: 1.544955784e+11 | OQ33: 1.591305917e+11 | OR33: 1.639046774e+11 | OS33: 1.688220108e+11 | OT33: 1.738868932e+11 | OU33: 1.791037553e+11 | OV33: 1.844771617e+11 | OW33: 1.900118142e+11 | OX33: 1.95712557e+11 | OY33: 2.015843803e+11 | OZ33: 2.076324254e+11 | PA33: 2.138619888e+11 | PB33: 2.202785277e+11 | PC33: 2.268876647e+11 | PD33: 2.336951929e+11 | PE33: 2.407070818e+11 | PF33: 2.479294823e+11 | PG33: 2.55368733e+11 | PH33: 2.630313661e+11 | PI33: 2.70924124e+11 | PJ33: 2.79038232e+11 | PK33: 2.874094142e+11 | PL33: 2.960317372e+11 | PM33: 3.04912736e+11 | PN33: 3.140601719e+11 | PO33: 3.234820379e+11 | PP33: 3.331865716e+11 | PQ33: 3.431822523e+11 | PR33: 3.534778158e+11 | PS33: 3.640822607e+11 | PT33: 3.750048555e+11 | PU33: 3.862551471e+11 | PV33: 3.978429695e+11 | PW33: 4.097784516e+11 | PX33: 4.220720272e+11 | PY33: 4.347344434e+11 | PZ33: 4.477767704e+11 | QA33: 4.612104112e+11 | QB33: 4.750471119e+11 | QC33: 4.892989719e+11 | QD33: 5.039784546e+11 | QE33: 5.190983989e+11 | QF33: 5.346720302e+11 | QG33: 5.507129722e+11 | QH33: 5.672352597e+11 | QI33: 5.842533506e+11 | QJ33: 6.017821391e+11 | QK33: =QK25*QK32 -> 6.198369695e+11 | QL33: 6.384336497e+11 | QM33: 6.575884761e+11 | QN33: 6.773025146e+11 | QO33: 6.976216253e+11 | QP33: 7.185503147e+11 | QQ33: 7.401068708e+11 | QR33: 7.623101307e+11 | QS33: 7.851794955e+11 | QT33: 8.08734953e+11 | QU33: 8.329970851e+11 | QV33: 8.579870936e+11 | QW33: 8.837268168e+11 | QX33: 9.102387483e+11 | QY33: 9.375460567e+11 | QZ33: 9.656726063e+11 | RA33: 9.946429776e+11 | RB33: 1.024482489e+12 | RC33: 1.055217219e+12 | RD33: 1.086874029e+12 | RE33: 1.119480588e+12 | RF33: 1.153065394e+12 | RG33: 1.187657802e+12 | RH33: 1.22328805e+12 | RI33: 1.259987282e+12 | RJ33: 1.29778758e+12 | RK33: 1.336721988e+12 | RL33: 1.376824546e+12 | RM33: 1.418130316e+12 | RN33: 1.460675413e+12 | RO33: 1.504497042e+12 | RP33: 1.549633524e+12 | RQ33: 1.596124347e+12 | RR33: 1.643994462e+12 | RS33: 1.693314331e+12 | RT33: 1.744113801e+12 | RU33: 1.796437262e+12 | RV33: 1.850330434e+12 | RW33: 1.905840408e+12 | RX33: 1.963015692e+12 | RY33: 2.021906247e+12 | RZ33: 2.08256353e+12 | SA33: 2.145040546e+12 | SB33: 2.20939189e+12 | SC33: 2.275673792e+12 | SD33: 2.343944174e+12 | SE33: 2.414262692e+12 | SF33: 2.486690795e+12 | SG33: 2.561291774e+12 | SH33: 2.638130821e+12 | SI33: 2.717275084e+12 | SJ33: 2.798793724e+12 | SK33: 2.882757983e+12 | SL33: 2.969241236e+12 | SM33: 3.058319064e+12 | SN33: 3.150069315e+12 | SO33: 3.244572175e+12 | SP33: 3.341910239e+12 | SQ33: 3.442168579e+12 | SR33: 3.545434825e+12 | SS33: 3.651799236e+12 | ST33: 3.761354784e+12 | SU33: 3.874197244e+12 | SV33: 3.990409546e+12 | SW33: =SW25*SW32 -> 4.110121867e+12 | SX33: 4.233425564e+12 | SY33: 4.360428378e+12 | SZ33: 4.491241283e+12 | TA33: 4.625978582e+12 | TB33: 4.764758012e+12 | TC33: 4.907700836e+12 | TD33: 5.054931957e+12 | TE33: 5.206580026e+12 | TF33: 5.362777554e+12 | TG33: 5.523661027e+12 | TH33: 5.689371025e+12 | TI33: 5.860052349e+12 | TJ33: 6.035854142e+12 | TK33: 6.216930021e+12 | TL33: 6.403438216e+12 | TM33: 6.5955417e+12 | TN33: 6.793408339e+12 | TO33: 6.997211036e+12 | TP33: 7.207127881e+12 | TQ33: 7.423342308e+12 | TR33: 7.646043256e+12 | TS33: 7.875425335e+12 | TT33: 8.111688993e+12 | TU33: 8.355040696e+12 | TV33: 8.605693105e+12 | TW33: 8.863865264e+12 | TX33: 9.129782794e+12 | TY33: 9.403678094e+12 | TZ33: 9.685774821e+12 | UA33: 9.976348101e+12 | UB33: 1.027563858e+13 | UC33: 1.058390779e+13 | UD33: 1.090142508e+13 | UE33: 1.122846789e+13 | UF33: 1.1565322e+13 | UG33: 1.191228174e+13 | UH33: 1.226965029e+13 | UI33: 1.263773991e+13 | UJ33: 1.301687223e+13 | UK33: 1.340737855e+13 | UL33: 1.380960007e+13 | UM33: 1.422388827e+13 | UN33: 1.465060514e+13 | UO33: 1.509012355e+13 | UP33: 1.554282755e+13 | UQ33: 1.600911271e+13 | UR33: 1.648938648e+13 | US33: 1.698406852e+13 | UT33: 1.749359109e+13 | UU33: 1.801839941e+13 | UV33: 1.855895208e+13 | UW33: 1.911572142e+13 | UX33: 1.968919396e+13 | UY33: 8.355040696e+12
C34: Retirements | D34: USD 000's | E34: =IF(E16>=$E$5,OFFSET(E33,0,-$E$5)) -> FALSE | F34: FALSE | G34: =IF(G16>=$E$5,OFFSET(G33,0,-$E$5)) -> FALSE | H34: =IF(H16>=$E$5,OFFSET(H33,0,-$E$5)) -> FALSE | I34: FALSE | J34: FALSE | K34: FALSE | L34: FALSE | M34: FALSE | N34: FALSE | O34: FALSE | P34: FALSE | Q34: FALSE | R34: FALSE | S34: FALSE | T34: FALSE | U34: FALSE | V34: FALSE | W34: FALSE | X34: FALSE | Y34: FALSE | Z34: FALSE | AA34: FALSE | AB34: FALSE | AC34: FALSE | AD34: FALSE | AE34: FALSE | AF34: FALSE | AG34: FALSE | AH34: FALSE | AI34: 10000 | AJ34: 10000 | AK34: 10000 | AL34: 10000 | AM34: 10000 | AN34: 10000 | AO34: 9000 | AP34: 10350 | AQ34: 11902.5 | AR34: 13687.875 | AS34: 15741.05625 | AT34: 18102.21469 | AU34: 20817.54689 | AV34: 23940.17892 | AW34: 27531.20576 | AX34: 31660.88663 | AY34: 36410.01962 | AZ34: 41871.52256 | BA34: 48152.25095 | BB34: 55375.08859 | BC34: 63681.35188 | BD34: 73233.55466 | BE34: 84218.58786 | BF34: 96851.37604 | BG34: 111379.0824 | BH34: 128085.9448 | BI34: 147298.8365 | BJ34: 169393.662 | BK34: 194802.7113 | BL34: 224023.118 | BM34: 267626.5857 | BN34: 306270.5736 | BO34: 350711.1596 | BP34: 401817.8336 | BQ34: =IF(BQ16>=$E$5,OFFSET(BQ33,0,-$E$5)) -> 460590.5086 | BR34: 528179.0849 | BS34: 604905.9476 | BT34: 695641.8398 | BU34: 799988.1157 | BV34: 919986.3331 | BW34: 1057984.283 | BX34: 1216681.925 | BY34: 1399184.214 | BZ34: 1609061.846 | CA34: 1850421.123 | CB34: 2127984.292 | CC34: 2447181.936 | CD34: 2814259.226 | CE34: 3236398.11 | CF34: 3721857.827 | CG34: 4280136.5 | CH34: 4922156.976 | CI34: 5660480.522 | CJ34: 6509552.6 | CK34: 7485985.49 | CL34: 8608883.314 | CM34: 9900215.811 | CN34: 11385248.18 | CO34: 13093035.41 | CP34: 15056990.72 | CQ34: 17325539.33 | CR34: 4229590.505 | CS34: 4391730.689 | CT34: 4564067.948 | CU34: 4747708.127 | CV34: 4943910.232 | CW34: 5153109.029 | CX34: 5380291.013 | CY34: 5625176.765 | CZ34: 5889930.641 | DA34: 6177026.921 | DB34: 6489295.842 | DC34: 6829976.549 | DD34: 7202777.951 | DE34: 7611948.711 | DF34: 8062357.707 | DG34: 8559586.553 | DH34: 9110035.982 | DI34: 9721048.169 | DJ34: 10401047.39 | DK34: 11159701.75 | DL34: 12008109.18 | DM34: 12959011.29 | DN34: 14027039.29 | DO34: 15228996.78 | DP34: 16584184.95 | DQ34: 18114776.49 | DR34: 19846245.69 | DS34: 21807862.84 | DT34: 24033262.97 | DU34: 26571099.75 | DV34: 13752517.74 | DW34: 14200345.74 | DX34: 14666941.45 | DY34: 15153667.83 | DZ34: 15662048.73 | EA34: 16192791.68 | EB34: 16751164.14 | EC34: =IF(EC16>=$E$5,OFFSET(EC33,0,-$E$5)) -> 17337176.09 | ED34: 17953289.95 | EE34: 18602287 | EF34: 19287313.73 | EG34: 20011934.97 | EH34: 20780195.13 | EI34: 21596688.4 | EJ34: 22466639.59 | EK34: 23395996.89 | EL34: 24391538.63 | EM34: 25460995.89 | EN34: 26613193.54 | EO34: 27858212.29 | EP34: 29207575.04 | EQ34: 30674461.13 | ER34: 32273952.62 | ES34: 34023317.51 | ET34: 35942335.3 | EU34: 38053671.36 | EV34: 40383307.39 | EW34: 42961036.4 | EX34: 45821031.74 | EY34: 49012501.58 | EZ34: 36867161.62 | FA34: 38008428.94 | FB34: 39189267.14 | FC34: 40411663.3 | FD34: 41677784.06 | FE34: 42988999.07 | FF34: 44351257.76 | FG34: 45765272.51 | FH34: 47234229.26 | FI34: 48761654.5 | FJ34: 50351462.25 | FK34: 52008007.94 | FL34: 53736150.29 | FM34: 55541322.22 | FN34: 57429612.42 | FO34: 59407858.91 | FP34: 61483756.51 | FQ34: 63665980.31 | FR34: 65964327.49 | FS34: 68389880.26 | FT34: 70955193.04 | FU34: 73674507.67 | FV34: 76564000.56 | FW34: 79642066.89 | FX34: 82929647.16 | FY34: 86450602.57 | FZ34: 90232146.55 | GA34: 94305340.72 | GB34: 98705665.2 | GC34: 103483674 | GD34: 92972469.25 | GE34: 95796895.8 | GF34: 98711388.01 | GG34: 101719447.8 | GH34: 104824802.1 | GI34: 108030427.6 | GJ34: 111343929.2 | GK34: 114767724.1 | GL34: 118306754.4 | GM34: 121966355.4 | GN34: 125752304.1 | GO34: =IF(GO16>=$E$5,OFFSET(GO33,0,-$E$5)) -> 129670875.1 | GP34: 133728903.5 | GQ34: 137933858 | GR34: 142293924.3 | GS34: 146818100.1 | GT34: 151516304.9 | GU34: 156399505.2 | GV34: 161479858.1 | GW34: 166770876.8 | GX34: 172287619.5 | GY34: 178046906.9 | GZ34: 184067571.8 | HA34: 190370745.2 | HB34: 196980185.9 | HC34: 203922657.4 | HD34: 211228363.1 | HE34: 218931443.7 | HF34: 227070551.3 | HG34: 235699506.7 | HH34: 229154776.9 | HI34: 236064672.7 | HJ34: 243187198.2 | HK34: 250529532.3 | HL34: 258099189.1 | HM34: 265903046.3 | HN34: 273952726.4 | HO34: 282254785.2 | HP34: 290818427.3 | HQ34: 299653378.5 | HR34: 308769938 | HS34: 318179037.9 | HT34: 327892311.2 | HU34: 337922168 | HV34: 348281883.5 | HW34: 358985698.1 | HX34: 370048930.9 | HY34: 381488110 | HZ34: 393321121 | IA34: 405567377.6 | IB34: 418248015.3 | IC34: 431386114.6 | ID34: 445006955.7 | IE34: 459138310.7 | IF34: 473810778.3 | IG34: 489058167.6 | IH34: 504917938.5 | II34: 521431706.5 | IJ34: 538645821.9 | IK34: 556622035.5 | IL34: 559704981.5 | IM34: 576531383.4 | IN34: 593867910.3 | IO34: 611730665.7 | IP34: 630136356.6 | IQ34: 649101328.7 | IR34: 668646957.3 | IS34: 688789843.1 | IT34: 709549536.9 | IU34: 730946421.4 | IV34: 753001772.2 | IW34: 775737827.1 | IX34: 799177864.1 | IY34: 823346287.4 | IZ34: 848268726.6 | JA34: =IF(JA16>=$E$5,OFFSET(JA33,0,-$E$5)) -> 873972146.5 | JB34: 900484972.7 | JC34: 927837233 | JD34: 956060717.8 | JE34: 985189162.2 | JF34: 1015258453 | JG34: 1046306866 | JH34: 1078375330 | JI34: 1111507736 | JJ34: 1145751286 | JK34: 1181156891 | JL34: 1217779623 | JM34: 1255679242 | JN34: 1294920783 | JO34: 1335585246 | JP34: 1362037088 | JQ34: 1402933453 | JR34: 1445062042 | JS34: 1488460621 | JT34: 1533168211 | JU34: 1579224139 | JV34: 1626673452 | JW34: 1675557132 | JX34: 1725919845 | JY34: 1777807838 | JZ34: 1831269032 | KA34: 1886353105 | KB34: 1943111600 | KC34: 2001598035 | KD34: 2061868027 | KE34: 2123979426 | KF34: 2187992470 | KG34: 2253969956 | KH34: 2321977422 | KI34: 2392083368 | KJ34: 2464359485 | KK34: 2538880928 | KL34: 2615726614 | KM34: 2694979559 | KN34: 2776727264 | KO34: 2861062148 | KP34: 2948082038 | KQ34: 3037890729 | KR34: 3130598615 | KS34: 3226333412 | KT34: 3309507700 | KU34: 3408828183 | KV34: 3511133614 | KW34: 3616514340 | KX34: 3725063541 | KY34: 3836876329 | KZ34: 3952055208 | LA34: 4070700341 | LB34: 4192917350 | LC34: 4318815269 | LD34: 4448506685 | LE34: 4582107887 | LF34: 4719739026 | LG34: 4861524284 | LH34: 5007592063 | LI34: 5158075183 | LJ34: 5313111101 | LK34: 5472842145 | LL34: 5637415777 | LM34: =IF(LM16>=$E$5,OFFSET(LM33,0,-$E$5)) -> 5806984873 | LN34: 5981708036 | LO34: 6161749936 | LP34: 6347281691 | LQ34: 6538481288 | LR34: 6735534045 | LS34: 6938633133 | LT34: 7147980152 | LU34: 7363785787 | LV34: 7586270525 | LW34: 7815675479 | LX34: 8036530029 | LY34: 8277661182 | LZ34: 8526031603 | MA34: 8781859269 | MB34: 9045368818 | MC34: 9316790764 | MD34: 9596367076 | ME34: 9884341565 | MF34: 1.018096781e+10 | MG34: 1.048650724e+10 | MH34: 1.080122942e+10 | MI34: 1.11254123e+10 | MJ34: 1.145934257e+10 | MK34: 1.180331594e+10 | ML34: 1.215763747e+10 | MM34: 1.252262195e+10 | MN34: 1.289859427e+10 | MO34: 1.328588981e+10 | MP34: 1.368485487e+10 | MQ34: 1.409584714e+10 | MR34: 1.451923617e+10 | MS34: 1.495540391e+10 | MT34: 1.540474529e+10 | MU34: 1.586766879e+10 | MV34: 1.634459718e+10 | MW34: 1.683596816e+10 | MX34: 1.734223523e+10 | MY34: 1.786386852e+10 | MZ34: 1.840135574e+10 | NA34: 1.895521325e+10 | NB34: 1.951025393e+10 | NC34: 2.00955968e+10 | ND34: 2.069850529e+10 | NE34: 2.131950717e+10 | NF34: 2.195914615e+10 | NG34: 2.261798142e+10 | NH34: 2.329659345e+10 | NI34: 2.399557473e+10 | NJ34: 2.471553797e+10 | NK34: 2.545711451e+10 | NL34: 2.62209549e+10 | NM34: 2.700772955e+10 | NN34: 2.781812934e+10 | NO34: 2.86528663e+10 | NP34: 2.951267434e+10 | NQ34: 3.039830993e+10 | NR34: 3.131055289e+10 | NS34: 3.225020719e+10 | NT34: 3.321810177e+10 | NU34: 3.421509145e+10 | NV34: 3.524205781e+10 | NW34: 3.62999102e+10 | NX34: 3.738958677e+10 | NY34: =IF(NY16>=$E$5,OFFSET(NY33,0,-$E$5)) -> 3.851205552e+10 | NZ34: 3.96683155e+10 | OA34: 4.085939803e+10 | OB34: 4.2086368e+10 | OC34: 4.335032527e+10 | OD34: 4.465240619e+10 | OE34: 4.599379521e+10 | OF34: 4.735999336e+10 | OG34: 4.878082841e+10 | OH34: 5.024429385e+10 | OI34: 5.175166938e+10 | OJ34: 5.330427323e+10 | OK34: 5.490346231e+10 | OL34: 5.655063877e+10 | OM34: 5.824724141e+10 | ON34: 5.999475465e+10 | OO34: 6.179470769e+10 | OP34: 6.364867588e+10 | OQ34: 6.555828215e+10 | OR34: 6.752519852e+10 | OS34: 6.955114756e+10 | OT34: 7.163790404e+10 | OU34: 7.378729652e+10 | OV34: 7.600120908e+10 | OW34: 7.828158306e+10 | OX34: 8.063041892e+10 | OY34: 8.304977811e+10 | OZ34: 8.554178507e+10 | PA34: 8.810862928e+10 | PB34: 9.075256742e+10 | PC34: 9.347592559e+10 | PD34: 9.628110167e+10 | PE34: 9.917056779e+10 | PF34: 1.021468728e+11 | PG34: 1.052126453e+11 | PH34: 1.083705958e+11 | PI34: 1.116235305e+11 | PJ34: 1.149586207e+11 | PK34: 1.184074146e+11 | PL34: 1.219596776e+11 | PM34: 1.256185146e+11 | PN34: 1.293871239e+11 | PO34: 1.332687984e+11 | PP34: 1.37266935e+11 | PQ34: 1.413850265e+11 | PR34: 1.456266733e+11 | PS34: 1.499955839e+11 | PT34: 1.544955784e+11 | PU34: 1.591305917e+11 | PV34: 1.639046774e+11 | PW34: 1.688220108e+11 | PX34: 1.738868932e+11 | PY34: 1.791037553e+11 | PZ34: 1.844771617e+11 | QA34: 1.900118142e+11 | QB34: 1.95712557e+11 | QC34: 2.015843803e+11 | QD34: 2.076324254e+11 | QE34: 2.138619888e+11 | QF34: 2.202785277e+11 | QG34: 2.268876647e+11 | QH34: 2.336951929e+11 | QI34: 2.407070818e+11 | QJ34: 2.479294823e+11 | QK34: =IF(QK16>=$E$5,OFFSET(QK33,0,-$E$5)) -> 2.55368733e+11 | QL34: 2.630313661e+11 | QM34: 2.70924124e+11 | QN34: 2.79038232e+11 | QO34: 2.874094142e+11 | QP34: 2.960317372e+11 | QQ34: 3.04912736e+11 | QR34: 3.140601719e+11 | QS34: 3.234820379e+11 | QT34: 3.331865716e+11 | QU34: 3.431822523e+11 | QV34: 3.534778158e+11 | QW34: 3.640822607e+11 | QX34: 3.750048555e+11 | QY34: 3.862551471e+11 | QZ34: 3.978429695e+11 | RA34: 4.097784516e+11 | RB34: 4.220720272e+11 | RC34: 4.347344434e+11 | RD34: 4.477767704e+11 | RE34: 4.612104112e+11 | RF34: 4.750471119e+11 | RG34: 4.892989719e+11 | RH34: 5.039784546e+11 | RI34: 5.190983989e+11 | RJ34: 5.346720302e+11 | RK34: 5.507129722e+11 | RL34: 5.672352597e+11 | RM34: 5.842533506e+11 | RN34: 6.017821391e+11 | RO34: 6.198369695e+11 | RP34: 6.384336497e+11 | RQ34: 6.575884761e+11 | RR34: 6.773025146e+11 | RS34: 6.976216253e+11 | RT34: 7.185503147e+11 | RU34: 7.401068708e+11 | RV34: 7.623101307e+11 | RW34: 7.851794955e+11 | RX34: 8.08734953e+11 | RY34: 8.329970851e+11 | RZ34: 8.579870936e+11 | SA34: 8.837268168e+11 | SB34: 9.102387483e+11 | SC34: 9.375460567e+11 | SD34: 9.656726063e+11 | SE34: 9.946429776e+11 | SF34: 1.024482489e+12 | SG34: 1.055217219e+12 | SH34: 1.086874029e+12 | SI34: 1.119480588e+12 | SJ34: 1.153065394e+12 | SK34: 1.187657802e+12 | SL34: 1.22328805e+12 | SM34: 1.259987282e+12 | SN34: 1.29778758e+12 | SO34: 1.336721988e+12 | SP34: 1.376824546e+12 | SQ34: 1.418130316e+12 | SR34: 1.460675413e+12 | SS34: 1.504497042e+12 | ST34: 1.549633524e+12 | SU34: 1.596124347e+12 | SV34: 1.643994462e+12 | SW34: =IF(SW16>=$E$5,OFFSET(SW33,0,-$E$5)) -> 1.693314331e+12 | SX34: 1.744113801e+12 | SY34: 1.796437262e+12 | SZ34: 1.850330434e+12 | TA34: 1.905840408e+12 | TB34: 1.963015692e+12 | TC34: 2.021906247e+12 | TD34: 2.08256353e+12 | TE34: 2.145040546e+12 | TF34: 2.20939189e+12 | TG34: 2.275673792e+12 | TH34: 2.343944174e+12 | TI34: 2.414262692e+12 | TJ34: 2.486690795e+12 | TK34: 2.561291774e+12 | TL34: 2.638130821e+12 | TM34: 2.717275084e+12 | TN34: 2.798793724e+12 | TO34: 2.882757983e+12 | TP34: 2.969241236e+12 | TQ34: 3.058319064e+12 | TR34: 3.150069315e+12 | TS34: 3.244572175e+12 | TT34: 3.341910239e+12 | TU34: 3.442168579e+12 | TV34: 3.545434825e+12 | TW34: 3.651799236e+12 | TX34: 3.761354784e+12 | TY34: 3.874197244e+12 | TZ34: 3.990409546e+12 | UA34: 4.110121867e+12 | UB34: 4.233425564e+12 | UC34: 4.360428378e+12 | UD34: 4.491241283e+12 | UE34: 4.625978582e+12 | UF34: 4.764758012e+12 | UG34: 4.907700836e+12 | UH34: 5.054931957e+12 | UI34: 5.206580026e+12 | UJ34: 5.362777554e+12 | UK34: 5.523661027e+12 | UL34: 5.689371025e+12 | UM34: 5.860052349e+12 | UN34: 6.035854142e+12 | UO34: 6.216930021e+12 | UP34: 6.403438216e+12 | UQ34: 6.5955417e+12 | UR34: 6.793408339e+12 | US34: 6.997211036e+12 | UT34: 7.207127881e+12 | UU34: 7.423342308e+12 | UV34: 7.646043256e+12 | UW34: 7.875425335e+12 | UX34: 8.111688993e+12 | UY34: 8.355040696e+12
B36: Plant Balance
C37: Opening Balance | E37: =D40 -> 0 | F37: 10000 | G37: 20000 | H37: 30000 | I37: 40000 | J37: 50000 | K37: 60000 | L37: 69000 | M37: 79350 | N37: 91252.5 | O37: 104940.375 | P37: 120681.4312 | Q37: 138783.6459 | R37: 159601.1928 | S37: 183541.3718 | T37: 211072.5775 | U37: 242733.4641 | V37: 279143.4838 | W37: 321015.0063 | X37: 369167.2573 | Y37: 424542.3459 | Z37: 488223.6977 | AA37: 561457.2524 | AB37: 645675.8403 | AC37: 742527.2163 | AD37: 853906.2988 | AE37: 981992.2436 | AF37: 1129291.08 | AG37: 1298684.742 | AH37: 1493487.453 | AI37: 1717510.571 | AJ37: 1975137.157 | AK37: 2271407.731 | AL37: 2612118.89 | AM37: 3003936.724 | AN37: 3454527.233 | AO37: 3972706.317 | AP37: 4568612.265 | AQ37: 5253904.105 | AR37: 6041989.72 | AS37: 6948288.179 | AT37: 7990531.405 | AU37: 9189111.116 | AV37: 10567477.78 | AW37: 12152599.45 | AX37: 13975489.37 | AY37: 16071812.77 | AZ37: 18482584.69 | BA37: 21254972.39 | BB37: 24443218.25 | BC37: 28109700.99 | BD37: 32326156.14 | BE37: 37175079.56 | BF37: 42751341.49 | BG37: 49164042.72 | BH37: 56538649.13 | BI37: 65019446.5 | BJ37: 74772363.47 | BK37: 85988217.99 | BL37: 98886450.69 | BM37: 113719418.3 | BN37: 130777331 | BO37: 134700651 | BP37: 138741670.5 | BQ37: =BP40 -> 142903920.6 | BR37: 147191038.2 | BS37: 151606769.4 | BT37: 156154972.5 | BU37: 160839621.6 | BV37: 165664810.3 | BW37: 170634754.6 | BX37: 175753797.2 | BY37: 181026411.1 | BZ37: 186457203.5 | CA37: 192050919.6 | CB37: 197812447.2 | CC37: 203746820.6 | CD37: 209859225.2 | CE37: 216155002 | CF37: 222639652 | CG37: 229318841.6 | CH37: 236198406.8 | CI37: 243284359 | CJ37: 250582889.8 | CK37: 258100376.5 | CL37: 265843387.8 | CM37: 273818689.4 | CN37: 282033250.1 | CO37: 290494247.6 | CP37: 299209075 | CQ37: 308185347.3 | CR37: 317430907.7 | CS37: 326953834.9 | CT37: 336762450 | CU37: 346865323.5 | CV37: 357271283.2 | CW37: 367989421.7 | CX37: 379029104.3 | CY37: 390399977.5 | CZ37: 402111976.8 | DA37: 414175336.1 | DB37: 426600596.2 | DC37: 439398614.1 | DD37: 452580572.5 | DE37: 466157989.7 | DF37: 480142729.3 | DG37: 494547011.2 | DH37: 509383421.6 | DI37: 524664924.2 | DJ37: 540404871.9 | DK37: 556617018.1 | DL37: 573315528.6 | DM37: 590514994.5 | DN37: 608230444.3 | DO37: 626477357.7 | DP37: 645271678.4 | DQ37: 664629828.7 | DR37: 684568723.6 | DS37: 705105785.3 | DT37: 726258958.9 | DU37: 748046727.6 | DV37: 770488129.5 | DW37: 793602773.3 | DX37: 817410856.5 | DY37: 841933182.2 | DZ37: 867191177.7 | EA37: 893206913 | EB37: 920003120.4 | EC37: =EB40 -> 947603214 | ED37: 976031310.5 | EE37: 1005312250 | EF37: 1035471617 | EG37: 1066535766 | EH37: 1098531839 | EI37: 1131487794 | EJ37: 1165432428 | EK37: 1200395401 | EL37: 1236407263 | EM37: 1273499480 | EN37: 1311704465 | EO37: 1351055599 | EP37: 1391587267 | EQ37: 1433334885 | ER37: 1476334931 | ES37: 1520624979 | ET37: 1566243729 | EU37: 1613231041 | EV37: 1661627972 | EW37: 1711476811 | EX37: 1762821115 | EY37: 1815705749 | EZ37: 1870176921 | FA37: 1926282229 | FB37: 1984070696 | FC37: 2043592817 | FD37: 2104900601 | FE37: 2168047619 | FF37: 2233089048 | FG37: 2300081719 | FH37: 2369084171 | FI37: 2440156696 | FJ37: 2513361397 | FK37: 2588762238 | FL37: 2666425106 | FM37: 2746417859 | FN37: 2828810395 | FO37: 2913674706 | FP37: 3001084948 | FQ37: 3091117496 | FR37: 3183851021 | FS37: 3279366552 | FT37: 3377747548 | FU37: 3479079975 | FV37: 3583452374 | FW37: 3690955945 | FX37: 3801684623 | FY37: 3915735162 | FZ37: 4033207217 | GA37: 4154203433 | GB37: 4278829536 | GC37: 4407194423 | GD37: 4539410255 | GE37: 4675592563 | GF37: 4815860340 | GG37: 4960336150 | GH37: 5109146234 | GI37: 5262420621 | GJ37: 5420293240 | GK37: 5582902037 | GL37: 5750389098 | GM37: 5922900771 | GN37: 6100587795 | GO37: =GN40 -> 6283605428 | GP37: 6472113591 | GQ37: 6666276999 | GR37: 6866265309 | GS37: 7072253268 | GT37: 7284420866 | GU37: 7502953492 | GV37: 7728042097 | GW37: 7959883360 | GX37: 8198679861 | GY37: 8444640256 | GZ37: 8697979464 | HA37: 8958918848 | HB37: 9227686414 | HC37: 9504517006 | HD37: 9789652516 | HE37: 1.008334209e+10 | HF37: 1.038584235e+10 | HG37: 1.069741762e+10 | HH37: 1.101834015e+10 | HI37: 1.134889036e+10 | HJ37: 1.168935707e+10 | HK37: 1.204003778e+10 | HL37: 1.240123891e+10 | HM37: 1.277327608e+10 | HN37: 1.315647436e+10 | HO37: 1.35511686e+10 | HP37: 1.395770365e+10 | HQ37: 1.437643476e+10 | HR37: 1.480772781e+10 | HS37: 1.525195964e+10 | HT37: 1.570951843e+10 | HU37: 1.618080398e+10 | HV37: 1.66662281e+10 | HW37: 1.716621494e+10 | HX37: 1.768120139e+10 | HY37: 1.821163743e+10 | HZ37: 1.875798656e+10 | IA37: 1.932072615e+10 | IB37: 1.990034794e+10 | IC37: 2.049735838e+10 | ID37: 2.111227913e+10 | IE37: 2.17456475e+10 | IF37: 2.239801693e+10 | IG37: 2.306995744e+10 | IH37: 2.376205616e+10 | II37: 2.447491784e+10 | IJ37: 2.520916538e+10 | IK37: 2.596544034e+10 | IL37: 2.674440355e+10 | IM37: 2.754673566e+10 | IN37: 2.837313773e+10 | IO37: 2.922433186e+10 | IP37: 3.010106181e+10 | IQ37: 3.100409367e+10 | IR37: 3.193421648e+10 | IS37: 3.289224297e+10 | IT37: 3.387901026e+10 | IU37: 3.489538057e+10 | IV37: 3.594224199e+10 | IW37: 3.702050925e+10 | IX37: 3.813112452e+10 | IY37: 3.927505826e+10 | IZ37: 4.045331001e+10 | JA37: =IZ40 -> 4.166690931e+10 | JB37: 4.291691659e+10 | JC37: 4.420442408e+10 | JD37: 4.553055681e+10 | JE37: 4.689647351e+10 | JF37: 4.830336772e+10 | JG37: 4.975246875e+10 | JH37: 5.124504281e+10 | JI37: 5.278239409e+10 | JJ37: 5.436586592e+10 | JK37: 5.599684189e+10 | JL37: 5.767674715e+10 | JM37: 5.940704957e+10 | JN37: 6.118926105e+10 | JO37: 6.302493888e+10 | JP37: 6.491568705e+10 | JQ37: 6.686315766e+10 | JR37: 6.886905239e+10 | JS37: 7.093512396e+10 | JT37: 7.306317768e+10 | JU37: 7.525507301e+10 | JV37: 7.75127252e+10 | JW37: 7.983810696e+10 | JX37: 8.223325017e+10 | JY37: 8.470024767e+10 | JZ37: 8.72412551e+10 | KA37: 8.985849276e+10 | KB37: 9.255424754e+10 | KC37: 9.533087497e+10 | KD37: 9.819080122e+10 | KE37: 1.011365253e+11 | KF37: 1.04170621e+11 | KG37: 1.072957396e+11 | KH37: 1.105146118e+11 | KI37: 1.138300502e+11 | KJ37: 1.172449517e+11 | KK37: 1.207623002e+11 | KL37: 1.243851692e+11 | KM37: 1.281167243e+11 | KN37: 1.319602261e+11 | KO37: 1.359190328e+11 | KP37: 1.399966038e+11 | KQ37: 1.441965019e+11 | KR37: 1.48522397e+11 | KS37: 1.529780689e+11 | KT37: 1.57567411e+11 | KU37: 1.622944333e+11 | KV37: 1.671632663e+11 | KW37: 1.721781643e+11 | KX37: 1.773435092e+11 | KY37: 1.826638145e+11 | KZ37: 1.881437289e+11 | LA37: 1.937880408e+11 | LB37: 1.99601682e+11 | LC37: 2.055897325e+11 | LD37: 2.117574245e+11 | LE37: 2.181101472e+11 | LF37: 2.246534516e+11 | LG37: 2.313930552e+11 | LH37: 2.383348468e+11 | LI37: 2.454848922e+11 | LJ37: 2.52849439e+11 | LK37: 2.604349221e+11 | LL37: 2.682479698e+11 | LM37: =LL40 -> 2.762954089e+11 | LN37: 2.845842712e+11 | LO37: 2.931217993e+11 | LP37: 3.019154533e+11 | LQ37: 3.109729169e+11 | LR37: 3.203021044e+11 | LS37: 3.299111675e+11 | LT37: 3.398085025e+11 | LU37: 3.500027576e+11 | LV37: 3.605028404e+11 | LW37: 3.713179256e+11 | LX37: 3.824574633e+11 | LY37: 3.939311872e+11 | LZ37: 4.057491228e+11 | MA37: 4.179215965e+11 | MB37: 4.304592444e+11 | MC37: 4.433730218e+11 | MD37: 4.566742124e+11 | ME37: 4.703744388e+11 | MF37: 4.84485672e+11 | MG37: 4.990202421e+11 | MH37: 5.139908494e+11 | MI37: 5.294105749e+11 | MJ37: 5.452928921e+11 | MK37: 5.616516789e+11 | ML37: 5.785012292e+11 | MM37: 5.958562661e+11 | MN37: 6.137319541e+11 | MO37: 6.321439127e+11 | MP37: 6.511082301e+11 | MQ37: 6.70641477e+11 | MR37: 6.907607213e+11 | MS37: 7.114835429e+11 | MT37: 7.328280492e+11 | MU37: 7.548128907e+11 | MV37: 7.774572774e+11 | MW37: 8.007809958e+11 | MX37: 8.248044256e+11 | MY37: 8.495485584e+11 | MZ37: 8.750350152e+11 | NA37: 9.012860656e+11 | NB37: 9.283246476e+11 | NC37: 9.56174387e+11 | ND37: 9.848596186e+11 | NE37: 1.014405407e+12 | NF37: 1.044837569e+12 | NG37: 1.076182696e+12 | NH37: 1.108468177e+12 | NI37: 1.141722223e+12 | NJ37: 1.175973889e+12 | NK37: 1.211253106e+12 | NL37: 1.247590699e+12 | NM37: 1.28501842e+12 | NN37: 1.323568973e+12 | NO37: 1.363276042e+12 | NP37: 1.404174323e+12 | NQ37: 1.446299553e+12 | NR37: 1.48968854e+12 | NS37: 1.534379196e+12 | NT37: 1.580410572e+12 | NU37: 1.627822889e+12 | NV37: 1.676657575e+12 | NW37: 1.726957303e+12 | NX37: 1.778766022e+12 | NY37: =NX40 -> 1.832129002e+12 | NZ37: 1.887092872e+12 | OA37: 1.943705659e+12 | OB37: 2.002016828e+12 | OC37: 2.062077333e+12 | OD37: 2.123939653e+12 | OE37: 2.187657843e+12 | OF37: 2.253287578e+12 | OG37: 2.320886205e+12 | OH37: 2.390512792e+12 | OI37: 2.462228175e+12 | OJ37: 2.536095021e+12 | OK37: 2.612177871e+12 | OL37: 2.690543207e+12 | OM37: 2.771259504e+12 | ON37: 2.854397289e+12 | OO37: 2.940029207e+12 | OP37: 3.028230084e+12 | OQ37: 3.119076986e+12 | OR37: 3.212649296e+12 | OS37: 3.309028775e+12 | OT37: 3.408299638e+12 | OU37: 3.510548627e+12 | OV37: 3.615865086e+12 | OW37: 3.724341038e+12 | OX37: 3.836071269e+12 | OY37: 3.951153408e+12 | OZ37: 4.06968801e+12 | PA37: 4.19177865e+12 | PB37: 4.31753201e+12 | PC37: 4.44705797e+12 | PD37: 4.580469709e+12 | PE37: 4.7178838e+12 | PF37: 4.859420314e+12 | PG37: 5.005202924e+12 | PH37: 5.155359011e+12 | PI37: 5.310019782e+12 | PJ37: 5.469320375e+12 | PK37: 5.633399986e+12 | PL37: 5.802401986e+12 | PM37: 5.976474046e+12 | PN37: 6.155768267e+12 | PO37: 6.340441315e+12 | PP37: 6.530654554e+12 | PQ37: 6.726574191e+12 | PR37: 6.928371417e+12 | PS37: 7.136222559e+12 | PT37: 7.350309236e+12 | PU37: 7.570818513e+12 | PV37: 7.797943069e+12 | PW37: 8.031881361e+12 | PX37: 8.272837801e+12 | PY37: 8.521022936e+12 | PZ37: 8.776653624e+12 | QA37: 9.039953232e+12 | QB37: 9.311151829e+12 | QC37: 9.590486384e+12 | QD37: 9.878200976e+12 | QE37: 1.0174547e+13 | QF37: 1.047978342e+13 | QG37: 1.079417692e+13 | QH37: 1.111800223e+13 | QI37: 1.145154229e+13 | QJ37: 1.179508856e+13 | QK37: =QJ40 -> 1.214894122e+13 | QL37: 1.251340945e+13 | QM37: 1.288881174e+13 | QN37: 1.327547609e+13 | QO37: 1.367374037e+13 | QP37: 1.408395258e+13 | QQ37: 1.450647116e+13 | QR37: 1.49416653e+13 | QS37: 1.538991525e+13 | QT37: 1.585161271e+13 | QU37: 1.632716109e+13 | QV37: 1.681697593e+13 | QW37: 1.73214852e+13 | QX37: 1.784112976e+13 | QY37: 1.837636365e+13 | QZ37: 1.892765456e+13 | RA37: 1.94954842e+13 | RB37: 2.008034873e+13 | RC37: 2.068275919e+13 | RD37: 2.130324196e+13 | RE37: 2.194233922e+13 | RF37: 2.26006094e+13 | RG37: 2.327862768e+13 | RH37: 2.397698651e+13 | RI37: 2.469629611e+13 | RJ37: 2.543718499e+13 | RK37: 2.620030054e+13 | RL37: 2.698630956e+13 | RM37: 2.779589884e+13 | RN37: 2.862977581e+13 | RO37: 2.948866908e+13 | RP37: 3.037332915e+13 | RQ37: 3.128452903e+13 | RR37: 3.22230649e+13 | RS37: 3.318975685e+13 | RT37: 3.418544955e+13 | RU37: 3.521101304e+13 | RV37: 3.626734343e+13 | RW37: 3.735536373e+13 | RX37: 3.847602464e+13 | RY37: 3.963030538e+13 | RZ37: 4.081921455e+13 | SA37: 4.204379098e+13 | SB37: 4.330510471e+13 | SC37: 4.460425785e+13 | SD37: 4.594238559e+13 | SE37: 4.732065716e+13 | SF37: 4.874027687e+13 | SG37: 5.020248518e+13 | SH37: 5.170855973e+13 | SI37: 5.325981652e+13 | SJ37: 5.485761102e+13 | SK37: 5.650333935e+13 | SL37: 5.819843953e+13 | SM37: 5.994439272e+13 | SN37: 6.17427245e+13 | SO37: 6.359500623e+13 | SP37: 6.550285642e+13 | SQ37: 6.746794211e+13 | SR37: 6.949198038e+13 | SS37: 7.157673979e+13 | ST37: 7.372404198e+13 | SU37: 7.593576324e+13 | SV37: 7.821383614e+13 | SW37: =SV40 -> 8.056025122e+13 | SX37: 8.297705876e+13 | SY37: 8.546637052e+13 | SZ37: 8.803036164e+13 | TA37: 9.067127249e+13 | TB37: 9.339141066e+13 | TC37: 9.619315298e+13 | TD37: 9.907894757e+13 | TE37: 1.02051316e+14 | TF37: 1.051128555e+14 | TG37: 1.082662411e+14 | TH37: 1.115142284e+14 | TI37: 1.148596552e+14 | TJ37: 1.183054449e+14 | TK37: 1.218546082e+14 | TL37: 1.255102465e+14 | TM37: 1.292755539e+14 | TN37: 1.331538205e+14 | TO37: 1.371484351e+14 | TP37: 1.412628882e+14 | TQ37: 1.455007748e+14 | TR37: 1.49865798e+14 | TS37: 1.54361772e+14 | TT37: 1.589926251e+14 | TU37: 1.637624039e+14 | TV37: 1.68675276e+14 | TW37: 1.737355343e+14 | TX37: 1.789476003e+14 | TY37: 1.843160283e+14 | TZ37: 1.898455092e+14 | UA37: 1.955408745e+14 | UB37: 201407100693513 | UC37: 2.074493137e+14 | UD37: 213672793125748 | UE37: 2.200829769e+14 | UF37: 2.266854662e+14 | UG37: 2.334860302e+14 | UH37: 2.404906111e+14 | UI37: 2.477053295e+14 | UJ37: 2.551364893e+14 | UK37: 2.62790584e+14 | UL37: 2.706743015e+14 | UM37: 2.787945306e+14 | UN37: 2.871583665e+14 | UO37: 2.957731175e+14 | UP37: 3.04646311e+14 | UQ37: 3.137857004e+14 | UR37: 3.231992714e+14 | US37: 3.328952495e+14 | UT37: 342882106989111 | UU37: 3.531685702e+14 | UV37: 3.637636273e+14 | UW37: 3.746765361e+14 | UX37: 3.859168322e+14 | UY37: 3.974943372e+14
C38: Add: Capital Expenditures | E38: =E33 -> 10000 | F38: 10000 | G38: 10000 | H38: 10000 | I38: 10000 | J38: 10000 | K38: 9000 | L38: 10350 | M38: 11902.5 | N38: 13687.875 | O38: 15741.05625 | P38: 18102.21469 | Q38: 20817.54689 | R38: 23940.17892 | S38: 27531.20576 | T38: 31660.88663 | U38: 36410.01962 | V38: 41871.52256 | W38: 48152.25095 | X38: 55375.08859 | Y38: 63681.35188 | Z38: 73233.55466 | AA38: 84218.58786 | AB38: 96851.37604 | AC38: 111379.0824 | AD38: 128085.9448 | AE38: 147298.8365 | AF38: 169393.662 | AG38: 194802.7113 | AH38: 224023.118 | AI38: 267626.5857 | AJ38: 306270.5736 | AK38: 350711.1596 | AL38: 401817.8336 | AM38: 460590.5086 | AN38: 528179.0849 | AO38: 604905.9476 | AP38: 695641.8398 | AQ38: 799988.1157 | AR38: 919986.3331 | AS38: 1057984.283 | AT38: 1216681.925 | AU38: 1399184.214 | AV38: 1609061.846 | AW38: 1850421.123 | AX38: 2127984.292 | AY38: 2447181.936 | AZ38: 2814259.226 | BA38: 3236398.11 | BB38: 3721857.827 | BC38: 4280136.5 | BD38: 4922156.976 | BE38: 5660480.522 | BF38: 6509552.6 | BG38: 7485985.49 | BH38: 8608883.314 | BI38: 9900215.811 | BJ38: 11385248.18 | BK38: 13093035.41 | BL38: 15056990.72 | BM38: 17325539.33 | BN38: 4229590.505 | BO38: 4391730.689 | BP38: 4564067.948 | BQ38: =BQ33 -> 4747708.127 | BR38: 4943910.232 | BS38: 5153109.029 | BT38: 5380291.013 | BU38: 5625176.765 | BV38: 5889930.641 | BW38: 6177026.921 | BX38: 6489295.842 | BY38: 6829976.549 | BZ38: 7202777.951 | CA38: 7611948.711 | CB38: 8062357.707 | CC38: 8559586.553 | CD38: 9110035.982 | CE38: 9721048.169 | CF38: 10401047.39 | CG38: 11159701.75 | CH38: 12008109.18 | CI38: 12959011.29 | CJ38: 14027039.29 | CK38: 15228996.78 | CL38: 16584184.95 | CM38: 18114776.49 | CN38: 19846245.69 | CO38: 21807862.84 | CP38: 24033262.97 | CQ38: 26571099.75 | CR38: 13752517.74 | CS38: 14200345.74 | CT38: 14666941.45 | CU38: 15153667.83 | CV38: 15662048.73 | CW38: 16192791.68 | CX38: 16751164.14 | CY38: 17337176.09 | CZ38: 17953289.95 | DA38: 18602287 | DB38: 19287313.73 | DC38: 20011934.97 | DD38: 20780195.13 | DE38: 21596688.4 | DF38: 22466639.59 | DG38: 23395996.89 | DH38: 24391538.63 | DI38: 25460995.89 | DJ38: 26613193.54 | DK38: 27858212.29 | DL38: 29207575.04 | DM38: 30674461.13 | DN38: 32273952.62 | DO38: 34023317.51 | DP38: 35942335.3 | DQ38: 38053671.36 | DR38: 40383307.39 | DS38: 42961036.4 | DT38: 45821031.74 | DU38: 49012501.58 | DV38: 36867161.62 | DW38: 38008428.94 | DX38: 39189267.14 | DY38: 40411663.3 | DZ38: 41677784.06 | EA38: 42988999.07 | EB38: 44351257.76 | EC38: =EC33 -> 45765272.51 | ED38: 47234229.26 | EE38: 48761654.5 | EF38: 50351462.25 | EG38: 52008007.94 | EH38: 53736150.29 | EI38: 55541322.22 | EJ38: 57429612.42 | EK38: 59407858.91 | EL38: 61483756.51 | EM38: 63665980.31 | EN38: 65964327.49 | EO38: 68389880.26 | EP38: 70955193.04 | EQ38: 73674507.67 | ER38: 76564000.56 | ES38: 79642066.89 | ET38: 82929647.16 | EU38: 86450602.57 | EV38: 90232146.55 | EW38: 94305340.72 | EX38: 98705665.2 | EY38: 103483674 | EZ38: 92972469.25 | FA38: 95796895.8 | FB38: 98711388.01 | FC38: 101719447.8 | FD38: 104824802.1 | FE38: 108030427.6 | FF38: 111343929.2 | FG38: 114767724.1 | FH38: 118306754.4 | FI38: 121966355.4 | FJ38: 125752304.1 | FK38: 129670875.1 | FL38: 133728903.5 | FM38: 137933858 | FN38: 142293924.3 | FO38: 146818100.1 | FP38: 151516304.9 | FQ38: 156399505.2 | FR38: 161479858.1 | FS38: 166770876.8 | FT38: 172287619.5 | FU38: 178046906.9 | FV38: 184067571.8 | FW38: 190370745.2 | FX38: 196980185.9 | FY38: 203922657.4 | FZ38: 211228363.1 | GA38: 218931443.7 | GB38: 227070551.3 | GC38: 235699506.7 | GD38: 229154776.9 | GE38: 236064672.7 | GF38: 243187198.2 | GG38: 250529532.3 | GH38: 258099189.1 | GI38: 265903046.3 | GJ38: 273952726.4 | GK38: 282254785.2 | GL38: 290818427.3 | GM38: 299653378.5 | GN38: 308769938 | GO38: =GO33 -> 318179037.9 | GP38: 327892311.2 | GQ38: 337922168 | GR38: 348281883.5 | GS38: 358985698.1 | GT38: 370048930.9 | GU38: 381488110 | GV38: 393321121 | GW38: 405567377.6 | GX38: 418248015.3 | GY38: 431386114.6 | GZ38: 445006955.7 | HA38: 459138310.7 | HB38: 473810778.3 | HC38: 489058167.6 | HD38: 504917938.5 | HE38: 521431706.5 | HF38: 538645821.9 | HG38: 556622035.5 | HH38: 559704981.5 | HI38: 576531383.4 | HJ38: 593867910.3 | HK38: 611730665.7 | HL38: 630136356.6 | HM38: 649101328.7 | HN38: 668646957.3 | HO38: 688789843.1 | HP38: 709549536.9 | HQ38: 730946421.4 | HR38: 753001772.2 | HS38: 775737827.1 | HT38: 799177864.1 | HU38: 823346287.4 | HV38: 848268726.6 | HW38: 873972146.5 | HX38: 900484972.7 | HY38: 927837233 | HZ38: 956060717.8 | IA38: 985189162.2 | IB38: 1015258453 | IC38: 1046306866 | ID38: 1078375330 | IE38: 1111507736 | IF38: 1145751286 | IG38: 1181156891 | IH38: 1217779623 | II38: 1255679242 | IJ38: 1294920783 | IK38: 1335585246 | IL38: 1362037088 | IM38: 1402933453 | IN38: 1445062042 | IO38: 1488460621 | IP38: 1533168211 | IQ38: 1579224139 | IR38: 1626673452 | IS38: 1675557132 | IT38: 1725919845 | IU38: 1777807838 | IV38: 1831269032 | IW38: 1886353105 | IX38: 1943111600 | IY38: 2001598035 | IZ38: 2061868027 | JA38: =JA33 -> 2123979426 | JB38: 2187992470 | JC38: 2253969956 | JD38: 2321977422 | JE38: 2392083368 | JF38: 2464359485 | JG38: 2538880928 | JH38: 2615726614 | JI38: 2694979559 | JJ38: 2776727264 | JK38: 2861062148 | JL38: 2948082038 | JM38: 3037890729 | JN38: 3130598615 | JO38: 3226333412 | JP38: 3309507700 | JQ38: 3408828183 | JR38: 3511133614 | JS38: 3616514340 | JT38: 3725063541 | JU38: 3836876329 | JV38: 3952055208 | JW38: 4070700341 | JX38: 4192917350 | JY38: 4318815269 | JZ38: 4448506685 | KA38: 4582107887 | KB38: 4719739026 | KC38: 4861524284 | KD38: 5007592063 | KE38: 5158075183 | KF38: 5313111101 | KG38: 5472842145 | KH38: 5637415777 | KI38: 5806984873 | KJ38: 5981708036 | KK38: 6161749936 | KL38: 6347281691 | KM38: 6538481288 | KN38: 6735534045 | KO38: 6938633133 | KP38: 7147980152 | KQ38: 7363785787 | KR38: 7586270525 | KS38: 7815675479 | KT38: 8036530029 | KU38: 8277661182 | KV38: 8526031603 | KW38: 8781859269 | KX38: 9045368818 | KY38: 9316790764 | KZ38: 9596367076 | LA38: 9884341565 | LB38: 1.018096781e+10 | LC38: 1.048650724e+10 | LD38: 1.080122942e+10 | LE38: 1.11254123e+10 | LF38: 1.145934257e+10 | LG38: 1.180331594e+10 | LH38: 1.215763747e+10 | LI38: 1.252262195e+10 | LJ38: 1.289859427e+10 | LK38: 1.328588981e+10 | LL38: 1.368485487e+10 | LM38: =LM33 -> 1.409584714e+10 | LN38: 1.451923617e+10 | LO38: 1.495540391e+10 | LP38: 1.540474529e+10 | LQ38: 1.586766879e+10 | LR38: 1.634459718e+10 | LS38: 1.683596816e+10 | LT38: 1.734223523e+10 | LU38: 1.786386852e+10 | LV38: 1.840135574e+10 | LW38: 1.895521325e+10 | LX38: 1.951025393e+10 | LY38: 2.00955968e+10 | LZ38: 2.069850529e+10 | MA38: 2.131950717e+10 | MB38: 2.195914615e+10 | MC38: 2.261798142e+10 | MD38: 2.329659345e+10 | ME38: 2.399557473e+10 | MF38: 2.471553797e+10 | MG38: 2.545711451e+10 | MH38: 2.62209549e+10 | MI38: 2.700772955e+10 | MJ38: 2.781812934e+10 | MK38: 2.86528663e+10 | ML38: 2.951267434e+10 | MM38: 3.039830993e+10 | MN38: 3.131055289e+10 | MO38: 3.225020719e+10 | MP38: 3.321810177e+10 | MQ38: 3.421509145e+10 | MR38: 3.524205781e+10 | MS38: 3.62999102e+10 | MT38: 3.738958677e+10 | MU38: 3.851205552e+10 | MV38: 3.96683155e+10 | MW38: 4.085939803e+10 | MX38: 4.2086368e+10 | MY38: 4.335032527e+10 | MZ38: 4.465240619e+10 | NA38: 4.599379521e+10 | NB38: 4.735999336e+10 | NC38: 4.878082841e+10 | ND38: 5.024429385e+10 | NE38: 5.175166938e+10 | NF38: 5.330427323e+10 | NG38: 5.490346231e+10 | NH38: 5.655063877e+10 | NI38: 5.824724141e+10 | NJ38: 5.999475465e+10 | NK38: 6.179470769e+10 | NL38: 6.364867588e+10 | NM38: 6.555828215e+10 | NN38: 6.752519852e+10 | NO38: 6.955114756e+10 | NP38: 7.163790404e+10 | NQ38: 7.378729652e+10 | NR38: 7.600120908e+10 | NS38: 7.828158306e+10 | NT38: 8.063041892e+10 | NU38: 8.304977811e+10 | NV38: 8.554178507e+10 | NW38: 8.810862928e+10 | NX38: 9.075256742e+10 | NY38: =NY33 -> 9.347592559e+10 | NZ38: 9.628110167e+10 | OA38: 9.917056779e+10 | OB38: 1.021468728e+11 | OC38: 1.052126453e+11 | OD38: 1.083705958e+11 | OE38: 1.116235305e+11 | OF38: 1.149586207e+11 | OG38: 1.184074146e+11 | OH38: 1.219596776e+11 | OI38: 1.256185146e+11 | OJ38: 1.293871239e+11 | OK38: 1.332687984e+11 | OL38: 1.37266935e+11 | OM38: 1.413850265e+11 | ON38: 1.456266733e+11 | OO38: 1.499955839e+11 | OP38: 1.544955784e+11 | OQ38: 1.591305917e+11 | OR38: 1.639046774e+11 | OS38: 1.688220108e+11 | OT38: 1.738868932e+11 | OU38: 1.791037553e+11 | OV38: 1.844771617e+11 | OW38: 1.900118142e+11 | OX38: 1.95712557e+11 | OY38: 2.015843803e+11 | OZ38: 2.076324254e+11 | PA38: 2.138619888e+11 | PB38: 2.202785277e+11 | PC38: 2.268876647e+11 | PD38: 2.336951929e+11 | PE38: 2.407070818e+11 | PF38: 2.479294823e+11 | PG38: 2.55368733e+11 | PH38: 2.630313661e+11 | PI38: 2.70924124e+11 | PJ38: 2.79038232e+11 | PK38: 2.874094142e+11 | PL38: 2.960317372e+11 | PM38: 3.04912736e+11 | PN38: 3.140601719e+11 | PO38: 3.234820379e+11 | PP38: 3.331865716e+11 | PQ38: 3.431822523e+11 | PR38: 3.534778158e+11 | PS38: 3.640822607e+11 | PT38: 3.750048555e+11 | PU38: 3.862551471e+11 | PV38: 3.978429695e+11 | PW38: 4.097784516e+11 | PX38: 4.220720272e+11 | PY38: 4.347344434e+11 | PZ38: 4.477767704e+11 | QA38: 4.612104112e+11 | QB38: 4.750471119e+11 | QC38: 4.892989719e+11 | QD38: 5.039784546e+11 | QE38: 5.190983989e+11 | QF38: 5.346720302e+11 | QG38: 5.507129722e+11 | QH38: 5.672352597e+11 | QI38: 5.842533506e+11 | QJ38: 6.017821391e+11 | QK38: =QK33 -> 6.198369695e+11 | QL38: 6.384336497e+11 | QM38: 6.575884761e+11 | QN38: 6.773025146e+11 | QO38: 6.976216253e+11 | QP38: 7.185503147e+11 | QQ38: 7.401068708e+11 | QR38: 7.623101307e+11 | QS38: 7.851794955e+11 | QT38: 8.08734953e+11 | QU38: 8.329970851e+11 | QV38: 8.579870936e+11 | QW38: 8.837268168e+11 | QX38: 9.102387483e+11 | QY38: 9.375460567e+11 | QZ38: 9.656726063e+11 | RA38: 9.946429776e+11 | RB38: 1.024482489e+12 | RC38: 1.055217219e+12 | RD38: 1.086874029e+12 | RE38: 1.119480588e+12 | RF38: 1.153065394e+12 | RG38: 1.187657802e+12 | RH38: 1.22328805e+12 | RI38: 1.259987282e+12 | RJ38: 1.29778758e+12 | RK38: 1.336721988e+12 | RL38: 1.376824546e+12 | RM38: 1.418130316e+12 | RN38: 1.460675413e+12 | RO38: 1.504497042e+12 | RP38: 1.549633524e+12 | RQ38: 1.596124347e+12 | RR38: 1.643994462e+12 | RS38: 1.693314331e+12 | RT38: 1.744113801e+12 | RU38: 1.796437262e+12 | RV38: 1.850330434e+12 | RW38: 1.905840408e+12 | RX38: 1.963015692e+12 | RY38: 2.021906247e+12 | RZ38: 2.08256353e+12 | SA38: 2.145040546e+12 | SB38: 2.20939189e+12 | SC38: 2.275673792e+12 | SD38: 2.343944174e+12 | SE38: 2.414262692e+12 | SF38: 2.486690795e+12 | SG38: 2.561291774e+12 | SH38: 2.638130821e+12 | SI38: 2.717275084e+12 | SJ38: 2.798793724e+12 | SK38: 2.882757983e+12 | SL38: 2.969241236e+12 | SM38: 3.058319064e+12 | SN38: 3.150069315e+12 | SO38: 3.244572175e+12 | SP38: 3.341910239e+12 | SQ38: 3.442168579e+12 | SR38: 3.545434825e+12 | SS38: 3.651799236e+12 | ST38: 3.761354784e+12 | SU38: 3.874197244e+12 | SV38: 3.990409546e+12 | SW38: =SW33 -> 4.110121867e+12 | SX38: 4.233425564e+12 | SY38: 4.360428378e+12 | SZ38: 4.491241283e+12 | TA38: 4.625978582e+12 | TB38: 4.764758012e+12 | TC38: 4.907700836e+12 | TD38: 5.054931957e+12 | TE38: 5.206580026e+12 | TF38: 5.362777554e+12 | TG38: 5.523661027e+12 | TH38: 5.689371025e+12 | TI38: 5.860052349e+12 | TJ38: 6.035854142e+12 | TK38: 6.216930021e+12 | TL38: 6.403438216e+12 | TM38: 6.5955417e+12 | TN38: 6.793408339e+12 | TO38: 6.997211036e+12 | TP38: 7.207127881e+12 | TQ38: 7.423342308e+12 | TR38: 7.646043256e+12 | TS38: 7.875425335e+12 | TT38: 8.111688993e+12 | TU38: 8.355040696e+12 | TV38: 8.605693105e+12 | TW38: 8.863865264e+12 | TX38: 9.129782794e+12 | TY38: 9.403678094e+12 | TZ38: 9.685774821e+12 | UA38: 9.976348101e+12 | UB38: 1.027563858e+13 | UC38: 1.058390779e+13 | UD38: 1.090142508e+13 | UE38: 1.122846789e+13 | UF38: 1.1565322e+13 | UG38: 1.191228174e+13 | UH38: 1.226965029e+13 | UI38: 1.263773991e+13 | UJ38: 1.301687223e+13 | UK38: 1.340737855e+13 | UL38: 1.380960007e+13 | UM38: 1.422388827e+13 | UN38: 1.465060514e+13 | UO38: 1.509012355e+13 | UP38: 1.554282755e+13 | UQ38: 1.600911271e+13 | UR38: 1.648938648e+13 | US38: 1.698406852e+13 | UT38: 1.749359109e+13 | UU38: 1.801839941e+13 | UV38: 1.855895208e+13 | UW38: 1.911572142e+13 | UX38: 1.968919396e+13 | UY38: 8.355040696e+12
C39: Less: Retirements | E39: =-E34 -> 0 | F39: 0 | G39: 0 | H39: 0 | I39: 0 | J39: 0 | K39: 0 | L39: 0 | M39: 0 | N39: 0 | O39: 0 | P39: 0 | Q39: 0 | R39: 0 | S39: 0 | T39: 0 | U39: 0 | V39: 0 | W39: 0 | X39: 0 | Y39: 0 | Z39: 0 | AA39: 0 | AB39: 0 | AC39: 0 | AD39: 0 | AE39: 0 | AF39: 0 | AG39: 0 | AH39: 0 | AI39: -10000 | AJ39: -10000 | AK39: -10000 | AL39: -10000 | AM39: -10000 | AN39: -10000 | AO39: -9000 | AP39: -10350 | AQ39: -11902.5 | AR39: -13687.875 | AS39: -15741.05625 | AT39: -18102.21469 | AU39: -20817.54689 | AV39: -23940.17892 | AW39: -27531.20576 | AX39: -31660.88663 | AY39: -36410.01962 | AZ39: -41871.52256 | BA39: -48152.25095 | BB39: -55375.08859 | BC39: -63681.35188 | BD39: -73233.55466 | BE39: -84218.58786 | BF39: -96851.37604 | BG39: -111379.0824 | BH39: -128085.9448 | BI39: -147298.8365 | BJ39: -169393.662 | BK39: -194802.7113 | BL39: -224023.118 | BM39: -267626.5857 | BN39: -306270.5736 | BO39: -350711.1596 | BP39: -401817.8336 | BQ39: =-BQ34 -> -460590.5086 | BR39: -528179.0849 | BS39: -604905.9476 | BT39: -695641.8398 | BU39: -799988.1157 | BV39: -919986.3331 | BW39: -1057984.283 | BX39: -1216681.925 | BY39: -1399184.214 | BZ39: -1609061.846 | CA39: -1850421.123 | CB39: -2127984.292 | CC39: -2447181.936 | CD39: -2814259.226 | CE39: -3236398.11 | CF39: -3721857.827 | CG39: -4280136.5 | CH39: -4922156.976 | CI39: -5660480.522 | CJ39: -6509552.6 | CK39: -7485985.49 | CL39: -8608883.314 | CM39: -9900215.811 | CN39: -11385248.18 | CO39: -13093035.41 | CP39: -15056990.72 | CQ39: -17325539.33 | CR39: -4229590.505 | CS39: -4391730.689 | CT39: -4564067.948 | CU39: -4747708.127 | CV39: -4943910.232 | CW39: -5153109.029 | CX39: -5380291.013 | CY39: -5625176.765 | CZ39: -5889930.641 | DA39: -6177026.921 | DB39: -6489295.842 | DC39: -6829976.549 | DD39: -7202777.951 | DE39: -7611948.711 | DF39: -8062357.707 | DG39: -8559586.553 | DH39: -9110035.982 | DI39: -9721048.169 | DJ39: -10401047.39 | DK39: -11159701.75 | DL39: -12008109.18 | DM39: -12959011.29 | DN39: -14027039.29 | DO39: -15228996.78 | DP39: -16584184.95 | DQ39: -18114776.49 | DR39: -19846245.69 | DS39: -21807862.84 | DT39: -24033262.97 | DU39: -26571099.75 | DV39: -13752517.74 | DW39: -14200345.74 | DX39: -14666941.45 | DY39: -15153667.83 | DZ39: -15662048.73 | EA39: -16192791.68 | EB39: -16751164.14 | EC39: =-EC34 -> -17337176.09 | ED39: -17953289.95 | EE39: -18602287 | EF39: -19287313.73 | EG39: -20011934.97 | EH39: -20780195.13 | EI39: -21596688.4 | EJ39: -22466639.59 | EK39: -23395996.89 | EL39: -24391538.63 | EM39: -25460995.89 | EN39: -26613193.54 | EO39: -27858212.29 | EP39: -29207575.04 | EQ39: -30674461.13 | ER39: -32273952.62 | ES39: -34023317.51 | ET39: -35942335.3 | EU39: -38053671.36 | EV39: -40383307.39 | EW39: -42961036.4 | EX39: -45821031.74 | EY39: -49012501.58 | EZ39: -36867161.62 | FA39: -38008428.94 | FB39: -39189267.14 | FC39: -40411663.3 | FD39: -41677784.06 | FE39: -42988999.07 | FF39: -44351257.76 | FG39: -45765272.51 | FH39: -47234229.26 | FI39: -48761654.5 | FJ39: -50351462.25 | FK39: -52008007.94 | FL39: -53736150.29 | FM39: -55541322.22 | FN39: -57429612.42 | FO39: -59407858.91 | FP39: -61483756.51 | FQ39: -63665980.31 | FR39: -65964327.49 | FS39: -68389880.26 | FT39: -70955193.04 | FU39: -73674507.67 | FV39: -76564000.56 | FW39: -79642066.89 | FX39: -82929647.16 | FY39: -86450602.57 | FZ39: -90232146.55 | GA39: -94305340.72 | GB39: -98705665.2 | GC39: -103483674 | GD39: -92972469.25 | GE39: -95796895.8 | GF39: -98711388.01 | GG39: -101719447.8 | GH39: -104824802.1 | GI39: -108030427.6 | GJ39: -111343929.2 | GK39: -114767724.1 | GL39: -118306754.4 | GM39: -121966355.4 | GN39: -125752304.1 | GO39: =-GO34 -> -129670875.1 | GP39: -133728903.5 | GQ39: -137933858 | GR39: -142293924.3 | GS39: -146818100.1 | GT39: -151516304.9 | GU39: -156399505.2 | GV39: -161479858.1 | GW39: -166770876.8 | GX39: -172287619.5 | GY39: -178046906.9 | GZ39: -184067571.8 | HA39: -190370745.2 | HB39: -196980185.9 | HC39: -203922657.4 | HD39: -211228363.1 | HE39: -218931443.7 | HF39: -227070551.3 | HG39: -235699506.7 | HH39: -229154776.9 | HI39: -236064672.7 | HJ39: -243187198.2 | HK39: -250529532.3 | HL39: -258099189.1 | HM39: -265903046.3 | HN39: -273952726.4 | HO39: -282254785.2 | HP39: -290818427.3 | HQ39: -299653378.5 | HR39: -308769938 | HS39: -318179037.9 | HT39: -327892311.2 | HU39: -337922168 | HV39: -348281883.5 | HW39: -358985698.1 | HX39: -370048930.9 | HY39: -381488110 | HZ39: -393321121 | IA39: -405567377.6 | IB39: -418248015.3 | IC39: -431386114.6 | ID39: -445006955.7 | IE39: -459138310.7 | IF39: -473810778.3 | IG39: -489058167.6 | IH39: -504917938.5 | II39: -521431706.5 | IJ39: -538645821.9 | IK39: -556622035.5 | IL39: -559704981.5 | IM39: -576531383.4 | IN39: -593867910.3 | IO39: -611730665.7 | IP39: -630136356.6 | IQ39: -649101328.7 | IR39: -668646957.3 | IS39: -688789843.1 | IT39: -709549536.9 | IU39: -730946421.4 | IV39: -753001772.2 | IW39: -775737827.1 | IX39: -799177864.1 | IY39: -823346287.4 | IZ39: -848268726.6 | JA39: =-JA34 -> -873972146.5 | JB39: -900484972.7 | JC39: -927837233 | JD39: -956060717.8 | JE39: -985189162.2 | JF39: -1015258453 | JG39: -1046306866 | JH39: -1078375330 | JI39: -1111507736 | JJ39: -1145751286 | JK39: -1181156891 | JL39: -1217779623 | JM39: -1255679242 | JN39: -1294920783 | JO39: -1335585246 | JP39: -1362037088 | JQ39: -1402933453 | JR39: -1445062042 | JS39: -1488460621 | JT39: -1533168211 | JU39: -1579224139 | JV39: -1626673452 | JW39: -1675557132 | JX39: -1725919845 | JY39: -1777807838 | JZ39: -1831269032 | KA39: -1886353105 | KB39: -1943111600 | KC39: -2001598035 | KD39: -2061868027 | KE39: -2123979426 | KF39: -2187992470 | KG39: -2253969956 | KH39: -2321977422 | KI39: -2392083368 | KJ39: -2464359485 | KK39: -2538880928 | KL39: -2615726614 | KM39: -2694979559 | KN39: -2776727264 | KO39: -2861062148 | KP39: -2948082038 | KQ39: -3037890729 | KR39: -3130598615 | KS39: -3226333412 | KT39: -3309507700 | KU39: -3408828183 | KV39: -3511133614 | KW39: -3616514340 | KX39: -3725063541 | KY39: -3836876329 | KZ39: -3952055208 | LA39: -4070700341 | LB39: -4192917350 | LC39: -4318815269 | LD39: -4448506685 | LE39: -4582107887 | LF39: -4719739026 | LG39: -4861524284 | LH39: -5007592063 | LI39: -5158075183 | LJ39: -5313111101 | LK39: -5472842145 | LL39: -5637415777 | LM39: =-LM34 -> -5806984873 | LN39: -5981708036 | LO39: -6161749936 | LP39: -6347281691 | LQ39: -6538481288 | LR39: -6735534045 | LS39: -6938633133 | LT39: -7147980152 | LU39: -7363785787 | LV39: -7586270525 | LW39: -7815675479 | LX39: -8036530029 | LY39: -8277661182 | LZ39: -8526031603 | MA39: -8781859269 | MB39: -9045368818 | MC39: -9316790764 | MD39: -9596367076 | ME39: -9884341565 | MF39: -1.018096781e+10 | MG39: -1.048650724e+10 | MH39: -1.080122942e+10 | MI39: -1.11254123e+10 | MJ39: -1.145934257e+10 | MK39: -1.180331594e+10 | ML39: -1.215763747e+10 | MM39: -1.252262195e+10 | MN39: -1.289859427e+10 | MO39: -1.328588981e+10 | MP39: -1.368485487e+10 | MQ39: -1.409584714e+10 | MR39: -1.451923617e+10 | MS39: -1.495540391e+10 | MT39: -1.540474529e+10 | MU39: -1.586766879e+10 | MV39: -1.634459718e+10 | MW39: -1.683596816e+10 | MX39: -1.734223523e+10 | MY39: -1.786386852e+10 | MZ39: -1.840135574e+10 | NA39: -1.895521325e+10 | NB39: -1.951025393e+10 | NC39: -2.00955968e+10 | ND39: -2.069850529e+10 | NE39: -2.131950717e+10 | NF39: -2.195914615e+10 | NG39: -2.261798142e+10 | NH39: -2.329659345e+10 | NI39: -2.399557473e+10 | NJ39: -2.471553797e+10 | NK39: -2.545711451e+10 | NL39: -2.62209549e+10 | NM39: -2.700772955e+10 | NN39: -2.781812934e+10 | NO39: -2.86528663e+10 | NP39: -2.951267434e+10 | NQ39: -3.039830993e+10 | NR39: -3.131055289e+10 | NS39: -3.225020719e+10 | NT39: -3.321810177e+10 | NU39: -3.421509145e+10 | NV39: -3.524205781e+10 | NW39: -3.62999102e+10 | NX39: -3.738958677e+10 | NY39: =-NY34 -> -3.851205552e+10 | NZ39: -3.96683155e+10 | OA39: -4.085939803e+10 | OB39: -4.2086368e+10 | OC39: -4.335032527e+10 | OD39: -4.465240619e+10 | OE39: -4.599379521e+10 | OF39: -4.735999336e+10 | OG39: -4.878082841e+10 | OH39: -5.024429385e+10 | OI39: -5.175166938e+10 | OJ39: -5.330427323e+10 | OK39: -5.490346231e+10 | OL39: -5.655063877e+10 | OM39: -5.824724141e+10 | ON39: -5.999475465e+10 | OO39: -6.179470769e+10 | OP39: -6.364867588e+10 | OQ39: -6.555828215e+10 | OR39: -6.752519852e+10 | OS39: -6.955114756e+10 | OT39: -7.163790404e+10 | OU39: -7.378729652e+10 | OV39: -7.600120908e+10 | OW39: -7.828158306e+10 | OX39: -8.063041892e+10 | OY39: -8.304977811e+10 | OZ39: -8.554178507e+10 | PA39: -8.810862928e+10 | PB39: -9.075256742e+10 | PC39: -9.347592559e+10 | PD39: -9.628110167e+10 | PE39: -9.917056779e+10 | PF39: -1.021468728e+11 | PG39: -1.052126453e+11 | PH39: -1.083705958e+11 | PI39: -1.116235305e+11 | PJ39: -1.149586207e+11 | PK39: -1.184074146e+11 | PL39: -1.219596776e+11 | PM39: -1.256185146e+11 | PN39: -1.293871239e+11 | PO39: -1.332687984e+11 | PP39: -1.37266935e+11 | PQ39: -1.413850265e+11 | PR39: -1.456266733e+11 | PS39: -1.499955839e+11 | PT39: -1.544955784e+11 | PU39: -1.591305917e+11 | PV39: -1.639046774e+11 | PW39: -1.688220108e+11 | PX39: -1.738868932e+11 | PY39: -1.791037553e+11 | PZ39: -1.844771617e+11 | QA39: -1.900118142e+11 | QB39: -1.95712557e+11 | QC39: -2.015843803e+11 | QD39: -2.076324254e+11 | QE39: -2.138619888e+11 | QF39: -2.202785277e+11 | QG39: -2.268876647e+11 | QH39: -2.336951929e+11 | QI39: -2.407070818e+11 | QJ39: -2.479294823e+11 | QK39: =-QK34 -> -2.55368733e+11 | QL39: -2.630313661e+11 | QM39: -2.70924124e+11 | QN39: -2.79038232e+11 | QO39: -2.874094142e+11 | QP39: -2.960317372e+11 | QQ39: -3.04912736e+11 | QR39: -3.140601719e+11 | QS39: -3.234820379e+11 | QT39: -3.331865716e+11 | QU39: -3.431822523e+11 | QV39: -3.534778158e+11 | QW39: -3.640822607e+11 | QX39: -3.750048555e+11 | QY39: -3.862551471e+11 | QZ39: -3.978429695e+11 | RA39: -4.097784516e+11 | RB39: -4.220720272e+11 | RC39: -4.347344434e+11 | RD39: -4.477767704e+11 | RE39: -4.612104112e+11 | RF39: -4.750471119e+11 | RG39: -4.892989719e+11 | RH39: -5.039784546e+11 | RI39: -5.190983989e+11 | RJ39: -5.346720302e+11 | RK39: -5.507129722e+11 | RL39: -5.672352597e+11 | RM39: -5.842533506e+11 | RN39: -6.017821391e+11 | RO39: -6.198369695e+11 | RP39: -6.384336497e+11 | RQ39: -6.575884761e+11 | RR39: -6.773025146e+11 | RS39: -6.976216253e+11 | RT39: -7.185503147e+11 | RU39: -7.401068708e+11 | RV39: -7.623101307e+11 | RW39: -7.851794955e+11 | RX39: -8.08734953e+11 | RY39: -8.329970851e+11 | RZ39: -8.579870936e+11 | SA39: -8.837268168e+11 | SB39: -9.102387483e+11 | SC39: -9.375460567e+11 | SD39: -9.656726063e+11 | SE39: -9.946429776e+11 | SF39: -1.024482489e+12 | SG39: -1.055217219e+12 | SH39: -1.086874029e+12 | SI39: -1.119480588e+12 | SJ39: -1.153065394e+12 | SK39: -1.187657802e+12 | SL39: -1.22328805e+12 | SM39: -1.259987282e+12 | SN39: -1.29778758e+12 | SO39: -1.336721988e+12 | SP39: -1.376824546e+12 | SQ39: -1.418130316e+12 | SR39: -1.460675413e+12 | SS39: -1.504497042e+12 | ST39: -1.549633524e+12 | SU39: -1.596124347e+12 | SV39: -1.643994462e+12 | SW39: =-SW34 -> -1.693314331e+12 | SX39: -1.744113801e+12 | SY39: -1.796437262e+12 | SZ39: -1.850330434e+12 | TA39: -1.905840408e+12 | TB39: -1.963015692e+12 | TC39: -2.021906247e+12 | TD39: -2.08256353e+12 | TE39: -2.145040546e+12 | TF39: -2.20939189e+12 | TG39: -2.275673792e+12 | TH39: -2.343944174e+12 | TI39: -2.414262692e+12 | TJ39: -2.486690795e+12 | TK39: -2.561291774e+12 | TL39: -2.638130821e+12 | TM39: -2.717275084e+12 | TN39: -2.798793724e+12 | TO39: -2.882757983e+12 | TP39: -2.969241236e+12 | TQ39: -3.058319064e+12 | TR39: -3.150069315e+12 | TS39: -3.244572175e+12 | TT39: -3.341910239e+12 | TU39: -3.442168579e+12 | TV39: -3.545434825e+12 | TW39: -3.651799236e+12 | TX39: -3.761354784e+12 | TY39: -3.874197244e+12 | TZ39: -3.990409546e+12 | UA39: -4.110121867e+12 | UB39: -4.233425564e+12 | UC39: -4.360428378e+12 | UD39: -4.491241283e+12 | UE39: -4.625978582e+12 | UF39: -4.764758012e+12 | UG39: -4.907700836e+12 | UH39: -5.054931957e+12 | UI39: -5.206580026e+12 | UJ39: -5.362777554e+12 | UK39: -5.523661027e+12 | UL39: -5.689371025e+12 | UM39: -5.860052349e+12 | UN39: -6.035854142e+12 | UO39: -6.216930021e+12 | UP39: -6.403438216e+12 | UQ39: -6.5955417e+12 | UR39: -6.793408339e+12 | US39: -6.997211036e+12 | UT39: -7.207127881e+12 | UU39: -7.423342308e+12 | UV39: -7.646043256e+12 | UW39: -7.875425335e+12 | UX39: -8.111688993e+12 | UY39: -8.355040696e+12
C40: Closing Balance | E40: =SUM(E37:E39) -> 10000 | F40: 20000 | G40: 30000 | H40: 40000 | I40: 50000 | J40: 60000 | K40: 69000 | L40: 79350 | M40: 91252.5 | N40: 104940.375 | O40: 120681.4312 | P40: 138783.6459 | Q40: 159601.1928 | R40: 183541.3718 | S40: 211072.5775 | T40: 242733.4641 | U40: 279143.4838 | V40: 321015.0063 | W40: 369167.2573 | X40: 424542.3459 | Y40: 488223.6977 | Z40: 561457.2524 | AA40: 645675.8403 | AB40: 742527.2163 | AC40: 853906.2988 | AD40: 981992.2436 | AE40: 1129291.08 | AF40: 1298684.742 | AG40: 1493487.453 | AH40: 1717510.571 | AI40: 1975137.157 | AJ40: 2271407.731 | AK40: 2612118.89 | AL40: 3003936.724 | AM40: 3454527.233 | AN40: 3972706.317 | AO40: 4568612.265 | AP40: 5253904.105 | AQ40: 6041989.72 | AR40: 6948288.179 | AS40: 7990531.405 | AT40: 9189111.116 | AU40: 10567477.78 | AV40: 12152599.45 | AW40: 13975489.37 | AX40: 16071812.77 | AY40: 18482584.69 | AZ40: 21254972.39 | BA40: 24443218.25 | BB40: 28109700.99 | BC40: 32326156.14 | BD40: 37175079.56 | BE40: 42751341.49 | BF40: 49164042.72 | BG40: 56538649.13 | BH40: 65019446.5 | BI40: 74772363.47 | BJ40: 85988217.99 | BK40: 98886450.69 | BL40: 113719418.3 | BM40: 130777331 | BN40: 134700651 | BO40: 138741670.5 | BP40: 142903920.6 | BQ40: =SUM(BQ37:BQ39) -> 147191038.2 | BR40: 151606769.4 | BS40: 156154972.5 | BT40: 160839621.6 | BU40: 165664810.3 | BV40: 170634754.6 | BW40: 175753797.2 | BX40: 181026411.1 | BY40: 186457203.5 | BZ40: 192050919.6 | CA40: 197812447.2 | CB40: 203746820.6 | CC40: 209859225.2 | CD40: 216155002 | CE40: 222639652 | CF40: 229318841.6 | CG40: 236198406.8 | CH40: 243284359 | CI40: 250582889.8 | CJ40: 258100376.5 | CK40: 265843387.8 | CL40: 273818689.4 | CM40: 282033250.1 | CN40: 290494247.6 | CO40: 299209075 | CP40: 308185347.3 | CQ40: 317430907.7 | CR40: 326953834.9 | CS40: 336762450 | CT40: 346865323.5 | CU40: 357271283.2 | CV40: 367989421.7 | CW40: 379029104.3 | CX40: 390399977.5 | CY40: 402111976.8 | CZ40: 414175336.1 | DA40: 426600596.2 | DB40: 439398614.1 | DC40: 452580572.5 | DD40: 466157989.7 | DE40: 480142729.3 | DF40: 494547011.2 | DG40: 509383421.6 | DH40: 524664924.2 | DI40: 540404871.9 | DJ40: 556617018.1 | DK40: 573315528.6 | DL40: 590514994.5 | DM40: 608230444.3 | DN40: 626477357.7 | DO40: 645271678.4 | DP40: 664629828.7 | DQ40: 684568723.6 | DR40: 705105785.3 | DS40: 726258958.9 | DT40: 748046727.6 | DU40: 770488129.5 | DV40: 793602773.3 | DW40: 817410856.5 | DX40: 841933182.2 | DY40: 867191177.7 | DZ40: 893206913 | EA40: 920003120.4 | EB40: 947603214 | EC40: =SUM(EC37:EC39) -> 976031310.5 | ED40: 1005312250 | EE40: 1035471617 | EF40: 1066535766 | EG40: 1098531839 | EH40: 1131487794 | EI40: 1165432428 | EJ40: 1200395401 | EK40: 1236407263 | EL40: 1273499480 | EM40: 1311704465 | EN40: 1351055599 | EO40: 1391587267 | EP40: 1433334885 | EQ40: 1476334931 | ER40: 1520624979 | ES40: 1566243729 | ET40: 1613231041 | EU40: 1661627972 | EV40: 1711476811 | EW40: 1762821115 | EX40: 1815705749 | EY40: 1870176921 | EZ40: 1926282229 | FA40: 1984070696 | FB40: 2043592817 | FC40: 2104900601 | FD40: 2168047619 | FE40: 2233089048 | FF40: 2300081719 | FG40: 2369084171 | FH40: 2440156696 | FI40: 2513361397 | FJ40: 2588762238 | FK40: 2666425106 | FL40: 2746417859 | FM40: 2828810395 | FN40: 2913674706 | FO40: 3001084948 | FP40: 3091117496 | FQ40: 3183851021 | FR40: 3279366552 | FS40: 3377747548 | FT40: 3479079975 | FU40: 3583452374 | FV40: 3690955945 | FW40: 3801684623 | FX40: 3915735162 | FY40: 4033207217 | FZ40: 4154203433 | GA40: 4278829536 | GB40: 4407194423 | GC40: 4539410255 | GD40: 4675592563 | GE40: 4815860340 | GF40: 4960336150 | GG40: 5109146234 | GH40: 5262420621 | GI40: 5420293240 | GJ40: 5582902037 | GK40: 5750389098 | GL40: 5922900771 | GM40: 6100587795 | GN40: 6283605428 | GO40: =SUM(GO37:GO39) -> 6472113591 | GP40: 6666276999 | GQ40: 6866265309 | GR40: 7072253268 | GS40: 7284420866 | GT40: 7502953492 | GU40: 7728042097 | GV40: 7959883360 | GW40: 8198679861 | GX40: 8444640256 | GY40: 8697979464 | GZ40: 8958918848 | HA40: 9227686414 | HB40: 9504517006 | HC40: 9789652516 | HD40: 1.008334209e+10 | HE40: 1.038584235e+10 | HF40: 1.069741762e+10 | HG40: 1.101834015e+10 | HH40: 1.134889036e+10 | HI40: 1.168935707e+10 | HJ40: 1.204003778e+10 | HK40: 1.240123891e+10 | HL40: 1.277327608e+10 | HM40: 1.315647436e+10 | HN40: 1.35511686e+10 | HO40: 1.395770365e+10 | HP40: 1.437643476e+10 | HQ40: 1.480772781e+10 | HR40: 1.525195964e+10 | HS40: 1.570951843e+10 | HT40: 1.618080398e+10 | HU40: 1.66662281e+10 | HV40: 1.716621494e+10 | HW40: 1.768120139e+10 | HX40: 1.821163743e+10 | HY40: 1.875798656e+10 | HZ40: 1.932072615e+10 | IA40: 1.990034794e+10 | IB40: 2.049735838e+10 | IC40: 2.111227913e+10 | ID40: 2.17456475e+10 | IE40: 2.239801693e+10 | IF40: 2.306995744e+10 | IG40: 2.376205616e+10 | IH40: 2.447491784e+10 | II40: 2.520916538e+10 | IJ40: 2.596544034e+10 | IK40: 2.674440355e+10 | IL40: 2.754673566e+10 | IM40: 2.837313773e+10 | IN40: 2.922433186e+10 | IO40: 3.010106181e+10 | IP40: 3.100409367e+10 | IQ40: 3.193421648e+10 | IR40: 3.289224297e+10 | IS40: 3.387901026e+10 | IT40: 3.489538057e+10 | IU40: 3.594224199e+10 | IV40: 3.702050925e+10 | IW40: 3.813112452e+10 | IX40: 3.927505826e+10 | IY40: 4.045331001e+10 | IZ40: 4.166690931e+10 | JA40: =SUM(JA37:JA39) -> 4.291691659e+10 | JB40: 4.420442408e+10 | JC40: 4.553055681e+10 | JD40: 4.689647351e+10 | JE40: 4.830336772e+10 | JF40: 4.975246875e+10 | JG40: 5.124504281e+10 | JH40: 5.278239409e+10 | JI40: 5.436586592e+10 | JJ40: 5.599684189e+10 | JK40: 5.767674715e+10 | JL40: 5.940704957e+10 | JM40: 6.118926105e+10 | JN40: 6.302493888e+10 | JO40: 6.491568705e+10 | JP40: 6.686315766e+10 | JQ40: 6.886905239e+10 | JR40: 7.093512396e+10 | JS40: 7.306317768e+10 | JT40: 7.525507301e+10 | JU40: 7.75127252e+10 | JV40: 7.983810696e+10 | JW40: 8.223325017e+10 | JX40: 8.470024767e+10 | JY40: 8.72412551e+10 | JZ40: 8.985849276e+10 | KA40: 9.255424754e+10 | KB40: 9.533087497e+10 | KC40: 9.819080122e+10 | KD40: 1.011365253e+11 | KE40: 1.04170621e+11 | KF40: 1.072957396e+11 | KG40: 1.105146118e+11 | KH40: 1.138300502e+11 | KI40: 1.172449517e+11 | KJ40: 1.207623002e+11 | KK40: 1.243851692e+11 | KL40: 1.281167243e+11 | KM40: 1.319602261e+11 | KN40: 1.359190328e+11 | KO40: 1.399966038e+11 | KP40: 1.441965019e+11 | KQ40: 1.48522397e+11 | KR40: 1.529780689e+11 | KS40: 1.57567411e+11 | KT40: 1.622944333e+11 | KU40: 1.671632663e+11 | KV40: 1.721781643e+11 | KW40: 1.773435092e+11 | KX40: 1.826638145e+11 | KY40: 1.881437289e+11 | KZ40: 1.937880408e+11 | LA40: 1.99601682e+11 | LB40: 2.055897325e+11 | LC40: 2.117574245e+11 | LD40: 2.181101472e+11 | LE40: 2.246534516e+11 | LF40: 2.313930552e+11 | LG40: 2.383348468e+11 | LH40: 2.454848922e+11 | LI40: 2.52849439e+11 | LJ40: 2.604349221e+11 | LK40: 2.682479698e+11 | LL40: 2.762954089e+11 | LM40: =SUM(LM37:LM39) -> 2.845842712e+11 | LN40: 2.931217993e+11 | LO40: 3.019154533e+11 | LP40: 3.109729169e+11 | LQ40: 3.203021044e+11 | LR40: 3.299111675e+11 | LS40: 3.398085025e+11 | LT40: 3.500027576e+11 | LU40: 3.605028404e+11 | LV40: 3.713179256e+11 | LW40: 3.824574633e+11 | LX40: 3.939311872e+11 | LY40: 4.057491228e+11 | LZ40: 4.179215965e+11 | MA40: 4.304592444e+11 | MB40: 4.433730218e+11 | MC40: 4.566742124e+11 | MD40: 4.703744388e+11 | ME40: 4.84485672e+11 | MF40: 4.990202421e+11 | MG40: 5.139908494e+11 | MH40: 5.294105749e+11 | MI40: 5.452928921e+11 | MJ40: 5.616516789e+11 | MK40: 5.785012292e+11 | ML40: 5.958562661e+11 | MM40: 6.137319541e+11 | MN40: 6.321439127e+11 | MO40: 6.511082301e+11 | MP40: 6.70641477e+11 | MQ40: 6.907607213e+11 | MR40: 7.114835429e+11 | MS40: 7.328280492e+11 | MT40: 7.548128907e+11 | MU40: 7.774572774e+11 | MV40: 8.007809958e+11 | MW40: 8.248044256e+11 | MX40: 8.495485584e+11 | MY40: 8.750350152e+11 | MZ40: 9.012860656e+11 | NA40: 9.283246476e+11 | NB40: 9.56174387e+11 | NC40: 9.848596186e+11 | ND40: 1.014405407e+12 | NE40: 1.044837569e+12 | NF40: 1.076182696e+12 | NG40: 1.108468177e+12 | NH40: 1.141722223e+12 | NI40: 1.175973889e+12 | NJ40: 1.211253106e+12 | NK40: 1.247590699e+12 | NL40: 1.28501842e+12 | NM40: 1.323568973e+12 | NN40: 1.363276042e+12 | NO40: 1.404174323e+12 | NP40: 1.446299553e+12 | NQ40: 1.48968854e+12 | NR40: 1.534379196e+12 | NS40: 1.580410572e+12 | NT40: 1.627822889e+12 | NU40: 1.676657575e+12 | NV40: 1.726957303e+12 | NW40: 1.778766022e+12 | NX40: 1.832129002e+12 | NY40: =SUM(NY37:NY39) -> 1.887092872e+12 | NZ40: 1.943705659e+12 | OA40: 2.002016828e+12 | OB40: 2.062077333e+12 | OC40: 2.123939653e+12 | OD40: 2.187657843e+12 | OE40: 2.253287578e+12 | OF40: 2.320886205e+12 | OG40: 2.390512792e+12 | OH40: 2.462228175e+12 | OI40: 2.536095021e+12 | OJ40: 2.612177871e+12 | OK40: 2.690543207e+12 | OL40: 2.771259504e+12 | OM40: 2.854397289e+12 | ON40: 2.940029207e+12 | OO40: 3.028230084e+12 | OP40: 3.119076986e+12 | OQ40: 3.212649296e+12 | OR40: 3.309028775e+12 | OS40: 3.408299638e+12 | OT40: 3.510548627e+12 | OU40: 3.615865086e+12 | OV40: 3.724341038e+12 | OW40: 3.836071269e+12 | OX40: 3.951153408e+12 | OY40: 4.06968801e+12 | OZ40: 4.19177865e+12 | PA40: 4.31753201e+12 | PB40: 4.44705797e+12 | PC40: 4.580469709e+12 | PD40: 4.7178838e+12 | PE40: 4.859420314e+12 | PF40: 5.005202924e+12 | PG40: 5.155359011e+12 | PH40: 5.310019782e+12 | PI40: 5.469320375e+12 | PJ40: 5.633399986e+12 | PK40: 5.802401986e+12 | PL40: 5.976474046e+12 | PM40: 6.155768267e+12 | PN40: 6.340441315e+12 | PO40: 6.530654554e+12 | PP40: 6.726574191e+12 | PQ40: 6.928371417e+12 | PR40: 7.136222559e+12 | PS40: 7.350309236e+12 | PT40: 7.570818513e+12 | PU40: 7.797943069e+12 | PV40: 8.031881361e+12 | PW40: 8.272837801e+12 | PX40: 8.521022936e+12 | PY40: 8.776653624e+12 | PZ40: 9.039953232e+12 | QA40: 9.311151829e+12 | QB40: 9.590486384e+12 | QC40: 9.878200976e+12 | QD40: 1.0174547e+13 | QE40: 1.047978342e+13 | QF40: 1.079417692e+13 | QG40: 1.111800223e+13 | QH40: 1.145154229e+13 | QI40: 1.179508856e+13 | QJ40: 1.214894122e+13 | QK40: =SUM(QK37:QK39) -> 1.251340945e+13 | QL40: 1.288881174e+13 | QM40: 1.327547609e+13 | QN40: 1.367374037e+13 | QO40: 1.408395258e+13 | QP40: 1.450647116e+13 | QQ40: 1.49416653e+13 | QR40: 1.538991525e+13 | QS40: 1.585161271e+13 | QT40: 1.632716109e+13 | QU40: 1.681697593e+13 | QV40: 1.73214852e+13 | QW40: 1.784112976e+13 | QX40: 1.837636365e+13 | QY40: 1.892765456e+13 | QZ40: 1.94954842e+13 | RA40: 2.008034873e+13 | RB40: 2.068275919e+13 | RC40: 2.130324196e+13 | RD40: 2.194233922e+13 | RE40: 2.26006094e+13 | RF40: 2.327862768e+13 | RG40: 2.397698651e+13 | RH40: 2.469629611e+13 | RI40: 2.543718499e+13 | RJ40: 2.620030054e+13 | RK40: 2.698630956e+13 | RL40: 2.779589884e+13 | RM40: 2.862977581e+13 | RN40: 2.948866908e+13 | RO40: 3.037332915e+13 | RP40: 3.128452903e+13 | RQ40: 3.22230649e+13 | RR40: 3.318975685e+13 | RS40: 3.418544955e+13 | RT40: 3.521101304e+13 | RU40: 3.626734343e+13 | RV40: 3.735536373e+13 | RW40: 3.847602464e+13 | RX40: 3.963030538e+13 | RY40: 4.081921455e+13 | RZ40: 4.204379098e+13 | SA40: 4.330510471e+13 | SB40: 4.460425785e+13 | SC40: 4.594238559e+13 | SD40: 4.732065716e+13 | SE40: 4.874027687e+13 | SF40: 5.020248518e+13 | SG40: 5.170855973e+13 | SH40: 5.325981652e+13 | SI40: 5.485761102e+13 | SJ40: 5.650333935e+13 | SK40: 5.819843953e+13 | SL40: 5.994439272e+13 | SM40: 6.17427245e+13 | SN40: 6.359500623e+13 | SO40: 6.550285642e+13 | SP40: 6.746794211e+13 | SQ40: 6.949198038e+13 | SR40: 7.157673979e+13 | SS40: 7.372404198e+13 | ST40: 7.593576324e+13 | SU40: 7.821383614e+13 | SV40: 8.056025122e+13 | SW40: =SUM(SW37:SW39) -> 8.297705876e+13 | SX40: 8.546637052e+13 | SY40: 8.803036164e+13 | SZ40: 9.067127249e+13 | TA40: 9.339141066e+13 | TB40: 9.619315298e+13 | TC40: 9.907894757e+13 | TD40: 1.02051316e+14 | TE40: 1.051128555e+14 | TF40: 1.082662411e+14 | TG40: 1.115142284e+14 | TH40: 1.148596552e+14 | TI40: 1.183054449e+14 | TJ40: 1.218546082e+14 | TK40: 1.255102465e+14 | TL40: 1.292755539e+14 | TM40: 1.331538205e+14 | TN40: 1.371484351e+14 | TO40: 1.412628882e+14 | TP40: 1.455007748e+14 | TQ40: 1.49865798e+14 | TR40: 1.54361772e+14 | TS40: 1.589926251e+14 | TT40: 1.637624039e+14 | TU40: 1.68675276e+14 | TV40: 1.737355343e+14 | TW40: 1.789476003e+14 | TX40: 1.843160283e+14 | TY40: 1.898455092e+14 | TZ40: 1.955408745e+14 | UA40: 201407100693513 | UB40: 2.074493137e+14 | UC40: 213672793125748 | UD40: 2.200829769e+14 | UE40: 2.266854662e+14 | UF40: 2.334860302e+14 | UG40: 2.404906111e+14 | UH40: 2.477053295e+14 | UI40: 2.551364893e+14 | UJ40: 2.62790584e+14 | UK40: 2.706743015e+14 | UL40: 2.787945306e+14 | UM40: 2.871583665e+14 | UN40: 2.957731175e+14 | UO40: 3.04646311e+14 | UP40: 3.137857004e+14 | UQ40: 3.231992714e+14 | UR40: 3.328952495e+14 | US40: 342882106989111 | UT40: 3.531685702e+14 | UU40: 3.637636273e+14 | UV40: 3.746765361e+14 | UW40: 3.859168322e+14 | UX40: 3.974943372e+14 | UY40: 3.974943372e+14
C42: Growth | F42: =F40/E40-1 -> 1 | G42: =G40/F40-1 -> 0.5 | H42: 0.3333333333 | I42: 0.25 | J42: 0.2 | K42: 0.15 | L42: 0.15 | M42: 0.15 | N42: 0.15 | O42: 0.15 | P42: 0.15 | Q42: 0.15 | R42: 0.15 | S42: 0.15 | T42: 0.15 | U42: 0.15 | V42: 0.15 | W42: 0.15 | X42: 0.15 | Y42: 0.15 | Z42: 0.15 | AA42: 0.15 | AB42: 0.15 | AC42: 0.15 | AD42: 0.15 | AE42: 0.15 | AF42: 0.15 | AG42: 0.15 | AH42: 0.15 | AI42: 0.15 | AJ42: 0.15 | AK42: 0.15 | AL42: 0.15 | AM42: 0.15 | AN42: 0.15 | AO42: 0.15 | AP42: 0.15 | AQ42: 0.15 | AR42: 0.15 | AS42: 0.15 | AT42: 0.15 | AU42: 0.15 | AV42: 0.15 | AW42: 0.15 | AX42: 0.15 | AY42: 0.15 | AZ42: 0.15 | BA42: 0.15 | BB42: 0.15 | BC42: 0.15 | BD42: 0.15 | BE42: 0.15 | BF42: 0.15 | BG42: 0.15 | BH42: 0.15 | BI42: 0.15 | BJ42: 0.15 | BK42: 0.15 | BL42: 0.15 | BM42: 0.15 | BN42: 0.03 | BO42: 0.03 | BP42: 0.03 | BQ42: 0.03 | BR42: 0.03 | BS42: =BS40/BR40-1 -> 0.03 | BT42: 0.03 | BU42: 0.03 | BV42: 0.03 | BW42: 0.03 | BX42: =BX40/BW40-1 -> 0.03 | BY42: 0.03 | BZ42: 0.03 | CA42: 0.03 | CB42: 0.03 | CC42: 0.03 | CD42: 0.03 | CE42: 0.03 | CF42: 0.03 | CG42: 0.03 | CH42: 0.03 | CI42: 0.03 | CJ42: 0.03 | CK42: 0.03 | CL42: 0.03 | CM42: 0.03 | CN42: 0.03 | CO42: 0.03 | CP42: 0.03 | CQ42: 0.03 | CR42: 0.03 | CS42: 0.03 | CT42: 0.03 | CU42: 0.03 | CV42: 0.03 | CW42: 0.03 | CX42: 0.03 | CY42: 0.03 | CZ42: 0.03 | DA42: 0.03 | DB42: 0.03 | DC42: 0.03 | DD42: 0.03 | DE42: 0.03 | DF42: 0.03 | DG42: 0.03 | DH42: 0.03 | DI42: 0.03 | DJ42: 0.03 | DK42: 0.03 | DL42: 0.03 | DM42: 0.03 | DN42: 0.03 | DO42: 0.03 | DP42: 0.03 | DQ42: 0.03 | DR42: 0.03 | DS42: 0.03 | DT42: 0.03 | DU42: 0.03 | DV42: 0.03 | DW42: 0.03 | DX42: 0.03 | DY42: 0.03 | DZ42: 0.03 | EA42: 0.03 | EB42: 0.03 | EC42: 0.03 | ED42: 0.03 | EE42: =EE40/ED40-1 -> 0.03 | EF42: 0.03 | EG42: 0.03 | EH42: 0.03 | EI42: 0.03 | EJ42: 0.03 | EK42: 0.03 | EL42: 0.03 | EM42: 0.03 | EN42: 0.03 | EO42: 0.03 | EP42: 0.03 | EQ42: 0.03 | ER42: 0.03 | ES42: 0.03 | ET42: 0.03 | EU42: 0.03 | EV42: 0.03 | EW42: 0.03 | EX42: 0.03 | EY42: 0.03 | EZ42: 0.03 | FA42: 0.03 | FB42: 0.03 | FC42: 0.03 | FD42: 0.03 | FE42: 0.03 | FF42: 0.03 | FG42: 0.03 | FH42: 0.03 | FI42: 0.03 | FJ42: 0.03 | FK42: 0.03 | FL42: 0.03 | FM42: 0.03 | FN42: 0.03 | FO42: 0.03 | FP42: 0.03 | FQ42: 0.03 | FR42: 0.03 | FS42: 0.03 | FT42: 0.03 | FU42: 0.03 | FV42: 0.03 | FW42: 0.03 | FX42: 0.03 | FY42: 0.03 | FZ42: 0.03 | GA42: 0.03 | GB42: 0.03 | GC42: 0.03 | GD42: 0.03 | GE42: 0.03 | GF42: 0.03 | GG42: 0.03 | GH42: 0.03 | GI42: 0.03 | GJ42: 0.03 | GK42: 0.03 | GL42: 0.03 | GM42: 0.03 | GN42: 0.03 | GO42: 0.03 | GP42: 0.03 | GQ42: =GQ40/GP40-1 -> 0.03 | GR42: 0.03 | GS42: 0.03 | GT42: 0.03 | GU42: 0.03 | GV42: 0.03 | GW42: 0.03 | GX42: 0.03 | GY42: 0.03 | GZ42: 0.03 | HA42: 0.03 | HB42: 0.03 | HC42: 0.03 | HD42: 0.03 | HE42: 0.03 | HF42: 0.03 | HG42: 0.03 | HH42: 0.03 | HI42: 0.03 | HJ42: 0.03 | HK42: 0.03 | HL42: 0.03 | HM42: 0.03 | HN42: 0.03 | HO42: 0.03 | HP42: 0.03 | HQ42: 0.03 | HR42: 0.03 | HS42: 0.03 | HT42: 0.03 | HU42: 0.03 | HV42: 0.03 | HW42: 0.03 | HX42: 0.03 | HY42: 0.03 | HZ42: 0.03 | IA42: 0.03 | IB42: 0.03 | IC42: 0.03 | ID42: 0.03 | IE42: 0.03 | IF42: 0.03 | IG42: 0.03 | IH42: 0.03 | II42: 0.03 | IJ42: 0.03 | IK42: 0.03 | IL42: 0.03 | IM42: 0.03 | IN42: 0.03 | IO42: 0.03 | IP42: 0.03 | IQ42: 0.03 | IR42: 0.03 | IS42: 0.03 | IT42: 0.03 | IU42: 0.03 | IV42: 0.03 | IW42: 0.03 | IX42: 0.03 | IY42: 0.03 | IZ42: 0.03 | JA42: 0.03 | JB42: 0.03 | JC42: =JC40/JB40-1 -> 0.03 | JD42: 0.03 | JE42: 0.03 | JF42: 0.03 | JG42: 0.03 | JH42: 0.03 | JI42: 0.03 | JJ42: 0.03 | JK42: 0.03 | JL42: 0.03 | JM42: 0.03 | JN42: 0.03 | JO42: 0.03 | JP42: 0.03 | JQ42: 0.03 | JR42: 0.03 | JS42: 0.03 | JT42: 0.03 | JU42: 0.03 | JV42: 0.03 | JW42: 0.03 | JX42: 0.03 | JY42: 0.03 | JZ42: 0.03 | KA42: 0.03 | KB42: 0.03 | KC42: 0.03 | KD42: 0.03 | KE42: 0.03 | KF42: 0.03 | KG42: 0.03 | KH42: 0.03 | KI42: 0.03 | KJ42: 0.03 | KK42: 0.03 | KL42: 0.03 | KM42: 0.03 | KN42: 0.03 | KO42: 0.03 | KP42: 0.03 | KQ42: 0.03 | KR42: 0.03 | KS42: 0.03 | KT42: 0.03 | KU42: 0.03 | KV42: 0.03 | KW42: 0.03 | KX42: 0.03 | KY42: 0.03 | KZ42: 0.03 | LA42: 0.03 | LB42: 0.03 | LC42: 0.03 | LD42: 0.03 | LE42: 0.03 | LF42: 0.03 | LG42: 0.03 | LH42: 0.03 | LI42: 0.03 | LJ42: 0.03 | LK42: 0.03 | LL42: 0.03 | LM42: 0.03 | LN42: 0.03 | LO42: =LO40/LN40-1 -> 0.03 | LP42: 0.03 | LQ42: 0.03 | LR42: 0.03 | LS42: 0.03 | LT42: 0.03 | LU42: 0.03 | LV42: 0.03 | LW42: 0.03 | LX42: 0.03 | LY42: 0.03 | LZ42: 0.03 | MA42: 0.03 | MB42: 0.03 | MC42: 0.03 | MD42: 0.03 | ME42: 0.03 | MF42: 0.03 | MG42: 0.03 | MH42: 0.03 | MI42: 0.03 | MJ42: 0.03 | MK42: 0.03 | ML42: 0.03 | MM42: 0.03 | MN42: 0.03 | MO42: 0.03 | MP42: 0.03 | MQ42: 0.03 | MR42: 0.03 | MS42: 0.03 | MT42: 0.03 | MU42: 0.03 | MV42: 0.03 | MW42: 0.03 | MX42: 0.03 | MY42: 0.03 | MZ42: 0.03 | NA42: 0.03 | NB42: 0.03 | NC42: 0.03 | ND42: 0.03 | NE42: 0.03 | NF42: 0.03 | NG42: 0.03 | NH42: 0.03 | NI42: 0.03 | NJ42: 0.03 | NK42: 0.03 | NL42: 0.03 | NM42: 0.03 | NN42: 0.03 | NO42: 0.03 | NP42: 0.03 | NQ42: 0.03 | NR42: 0.03 | NS42: 0.03 | NT42: 0.03 | NU42: 0.03 | NV42: 0.03 | NW42: 0.03 | NX42: 0.03 | NY42: 0.03 | NZ42: 0.03 | OA42: =OA40/NZ40-1 -> 0.03 | OB42: 0.03 | OC42: 0.03 | OD42: 0.03 | OE42: 0.03 | OF42: 0.03 | OG42: 0.03 | OH42: 0.03 | OI42: 0.03 | OJ42: 0.03 | OK42: 0.03 | OL42: 0.03 | OM42: 0.03 | ON42: 0.03 | OO42: 0.03 | OP42: 0.03 | OQ42: 0.03 | OR42: 0.03 | OS42: 0.03 | OT42: 0.03 | OU42: 0.03 | OV42: 0.03 | OW42: 0.03 | OX42: 0.03 | OY42: 0.03 | OZ42: 0.03 | PA42: 0.03 | PB42: 0.03 | PC42: 0.03 | PD42: 0.03 | PE42: 0.03 | PF42: 0.03 | PG42: 0.03 | PH42: 0.03 | PI42: 0.03 | PJ42: 0.03 | PK42: 0.03 | PL42: 0.03 | PM42: 0.03 | PN42: 0.03 | PO42: 0.03 | PP42: 0.03 | PQ42: 0.03 | PR42: 0.03 | PS42: 0.03 | PT42: 0.03 | PU42: 0.03 | PV42: 0.03 | PW42: 0.03 | PX42: 0.03 | PY42: 0.03 | PZ42: 0.03 | QA42: 0.03 | QB42: 0.03 | QC42: 0.03 | QD42: 0.03 | QE42: 0.03 | QF42: 0.03 | QG42: 0.03 | QH42: 0.03 | QI42: 0.03 | QJ42: 0.03 | QK42: 0.03 | QL42: 0.03 | QM42: =QM40/QL40-1 -> 0.03 | QN42: 0.03 | QO42: 0.03 | QP42: 0.03 | QQ42: 0.03 | QR42: 0.03 | QS42: 0.03 | QT42: 0.03 | QU42: 0.03 | QV42: 0.03 | QW42: 0.03 | QX42: 0.03 | QY42: 0.03 | QZ42: 0.03 | RA42: 0.03 | RB42: 0.03 | RC42: 0.03 | RD42: 0.03 | RE42: 0.03 | RF42: 0.03 | RG42: 0.03 | RH42: 0.03 | RI42: 0.03 | RJ42: 0.03 | RK42: 0.03 | RL42: 0.03 | RM42: 0.03 | RN42: 0.03 | RO42: 0.03 | RP42: 0.03 | RQ42: 0.03 | RR42: 0.03 | RS42: 0.03 | RT42: 0.03 | RU42: 0.03 | RV42: 0.03 | RW42: 0.03 | RX42: 0.03 | RY42: 0.03 | RZ42: 0.03 | SA42: 0.03 | SB42: 0.03 | SC42: 0.03 | SD42: 0.03 | SE42: 0.03 | SF42: 0.03 | SG42: 0.03 | SH42: 0.03 | SI42: 0.03 | SJ42: 0.03 | SK42: 0.03 | SL42: 0.03 | SM42: 0.03 | SN42: 0.03 | SO42: 0.03 | SP42: 0.03 | SQ42: 0.03 | SR42: 0.03 | SS42: 0.03 | ST42: 0.03 | SU42: 0.03 | SV42: 0.03 | SW42: 0.03 | SX42: 0.03 | SY42: =SY40/SX40-1 -> 0.03 | SZ42: 0.03 | TA42: 0.03 | TB42: 0.03 | TC42: 0.03 | TD42: 0.03 | TE42: 0.03 | TF42: 0.03 | TG42: 0.03 | TH42: 0.03 | TI42: 0.03 | TJ42: 0.03 | TK42: 0.03 | TL42: 0.03 | TM42: 0.03 | TN42: 0.03 | TO42: 0.03 | TP42: 0.03 | TQ42: 0.03 | TR42: 0.03 | TS42: 0.03 | TT42: 0.03 | TU42: 0.03 | TV42: 0.03 | TW42: 0.03 | TX42: 0.03 | TY42: 0.03 | TZ42: 0.03 | UA42: 0.03 | UB42: 0.03 | UC42: 0.03 | UD42: 0.03 | UE42: 0.03 | UF42: 0.03 | UG42: 0.03 | UH42: 0.03 | UI42: 0.03 | UJ42: 0.03 | UK42: 0.03 | UL42: 0.03 | UM42: 0.03 | UN42: 0.03 | UO42: 0.03 | UP42: 0.03 | UQ42: 0.03 | UR42: 0.03 | US42: 0.03 | UT42: 0.03 | UU42: 0.03 | UV42: 0.03 | UW42: 0.03 | UX42: 0.03 | UY42: 0
C44: Depreciation Rate | E44: =1/$E$5 -> 0.03333333333 | F44: 0.03333333333 | G44: 0.03333333333 | H44: 0.03333333333 | I44: 0.03333333333 | J44: 0.03333333333 | K44: 0.03333333333 | L44: 0.03333333333 | M44: 0.03333333333 | N44: 0.03333333333 | O44: 0.03333333333 | P44: 0.03333333333 | Q44: 0.03333333333 | R44: 0.03333333333 | S44: 0.03333333333 | T44: 0.03333333333 | U44: 0.03333333333 | V44: 0.03333333333 | W44: 0.03333333333 | X44: 0.03333333333 | Y44: 0.03333333333 | Z44: 0.03333333333 | AA44: 0.03333333333 | AB44: 0.03333333333 | AC44: 0.03333333333 | AD44: 0.03333333333 | AE44: 0.03333333333 | AF44: 0.03333333333 | AG44: 0.03333333333 | AH44: 0.03333333333 | AI44: 0.03333333333 | AJ44: 0.03333333333 | AK44: 0.03333333333 | AL44: 0.03333333333 | AM44: 0.03333333333 | AN44: 0.03333333333 | AO44: 0.03333333333 | AP44: 0.03333333333 | AQ44: 0.03333333333 | AR44: 0.03333333333 | AS44: 0.03333333333 | AT44: 0.03333333333 | AU44: 0.03333333333 | AV44: 0.03333333333 | AW44: 0.03333333333 | AX44: 0.03333333333 | AY44: 0.03333333333 | AZ44: 0.03333333333 | BA44: 0.03333333333 | BB44: 0.03333333333 | BC44: 0.03333333333 | BD44: 0.03333333333 | BE44: 0.03333333333 | BF44: 0.03333333333 | BG44: 0.03333333333 | BH44: 0.03333333333 | BI44: 0.03333333333 | BJ44: 0.03333333333 | BK44: 0.03333333333 | BL44: 0.03333333333 | BM44: 0.03333333333 | BN44: 0.03333333333 | BO44: 0.03333333333 | BP44: 0.03333333333 | BQ44: =1/$E$5 -> 0.03333333333 | BR44: 0.03333333333 | BS44: 0.03333333333 | BT44: 0.03333333333 | BU44: 0.03333333333 | BV44: 0.03333333333 | BW44: 0.03333333333 | BX44: 0.03333333333 | BY44: 0.03333333333 | BZ44: 0.03333333333 | CA44: 0.03333333333 | CB44: 0.03333333333 | CC44: 0.03333333333 | CD44: 0.03333333333 | CE44: 0.03333333333 | CF44: 0.03333333333 | CG44: 0.03333333333 | CH44: 0.03333333333 | CI44: 0.03333333333 | CJ44: 0.03333333333 | CK44: 0.03333333333 | CL44: 0.03333333333 | CM44: 0.03333333333 | CN44: 0.03333333333 | CO44: 0.03333333333 | CP44: 0.03333333333 | CQ44: 0.03333333333 | CR44: 0.03333333333 | CS44: 0.03333333333 | CT44: 0.03333333333 | CU44: 0.03333333333 | CV44: 0.03333333333 | CW44: 0.03333333333 | CX44: 0.03333333333 | CY44: 0.03333333333 | CZ44: 0.03333333333 | DA44: 0.03333333333 | DB44: 0.03333333333 | DC44: 0.03333333333 | DD44: 0.03333333333 | DE44: 0.03333333333 | DF44: 0.03333333333 | DG44: 0.03333333333 | DH44: 0.03333333333 | DI44: 0.03333333333 | DJ44: 0.03333333333 | DK44: 0.03333333333 | DL44: 0.03333333333 | DM44: 0.03333333333 | DN44: 0.03333333333 | DO44: 0.03333333333 | DP44: 0.03333333333 | DQ44: 0.03333333333 | DR44: 0.03333333333 | DS44: 0.03333333333 | DT44: 0.03333333333 | DU44: 0.03333333333 | DV44: 0.03333333333 | DW44: 0.03333333333 | DX44: 0.03333333333 | DY44: 0.03333333333 | DZ44: 0.03333333333 | EA44: 0.03333333333 | EB44: 0.03333333333 | EC44: =1/$E$5 -> 0.03333333333 | ED44: 0.03333333333 | EE44: 0.03333333333 | EF44: 0.03333333333 | EG44: 0.03333333333 | EH44: 0.03333333333 | EI44: 0.03333333333 | EJ44: 0.03333333333 | EK44: 0.03333333333 | EL44: 0.03333333333 | EM44: 0.03333333333 | EN44: 0.03333333333 | EO44: 0.03333333333 | EP44: 0.03333333333 | EQ44: 0.03333333333 | ER44: 0.03333333333 | ES44: 0.03333333333 | ET44: 0.03333333333 | EU44: 0.03333333333 | EV44: 0.03333333333 | EW44: 0.03333333333 | EX44: 0.03333333333 | EY44: 0.03333333333 | EZ44: 0.03333333333 | FA44: 0.03333333333 | FB44: 0.03333333333 | FC44: 0.03333333333 | FD44: 0.03333333333 | FE44: 0.03333333333 | FF44: 0.03333333333 | FG44: 0.03333333333 | FH44: 0.03333333333 | FI44: 0.03333333333 | FJ44: 0.03333333333 | FK44: 0.03333333333 | FL44: 0.03333333333 | FM44: 0.03333333333 | FN44: 0.03333333333 | FO44: 0.03333333333 | FP44: 0.03333333333 | FQ44: 0.03333333333 | FR44: 0.03333333333 | FS44: 0.03333333333 | FT44: 0.03333333333 | FU44: 0.03333333333 | FV44: 0.03333333333 | FW44: 0.03333333333 | FX44: 0.03333333333 | FY44: 0.03333333333 | FZ44: 0.03333333333 | GA44: 0.03333333333 | GB44: 0.03333333333 | GC44: 0.03333333333 | GD44: 0.03333333333 | GE44: 0.03333333333 | GF44: 0.03333333333 | GG44: 0.03333333333 | GH44: 0.03333333333 | GI44: 0.03333333333 | GJ44: 0.03333333333 | GK44: 0.03333333333 | GL44: 0.03333333333 | GM44: 0.03333333333 | GN44: 0.03333333333 | GO44: =1/$E$5 -> 0.03333333333 | GP44: 0.03333333333 | GQ44: 0.03333333333 | GR44: 0.03333333333 | GS44: 0.03333333333 | GT44: 0.03333333333 | GU44: 0.03333333333 | GV44: 0.03333333333 | GW44: 0.03333333333 | GX44: 0.03333333333 | GY44: 0.03333333333 | GZ44: 0.03333333333 | HA44: 0.03333333333 | HB44: 0.03333333333 | HC44: 0.03333333333 | HD44: 0.03333333333 | HE44: 0.03333333333 | HF44: 0.03333333333 | HG44: 0.03333333333 | HH44: 0.03333333333 | HI44: 0.03333333333 | HJ44: 0.03333333333 | HK44: 0.03333333333 | HL44: 0.03333333333 | HM44: 0.03333333333 | HN44: 0.03333333333 | HO44: 0.03333333333 | HP44: 0.03333333333 | HQ44: 0.03333333333 | HR44: 0.03333333333 | HS44: 0.03333333333 | HT44: 0.03333333333 | HU44: 0.03333333333 | HV44: 0.03333333333 | HW44: 0.03333333333 | HX44: 0.03333333333 | HY44: 0.03333333333 | HZ44: 0.03333333333 | IA44: 0.03333333333 | IB44: 0.03333333333 | IC44: 0.03333333333 | ID44: 0.03333333333 | IE44: 0.03333333333 | IF44: 0.03333333333 | IG44: 0.03333333333 | IH44: 0.03333333333 | II44: 0.03333333333 | IJ44: 0.03333333333 | IK44: 0.03333333333 | IL44: 0.03333333333 | IM44: 0.03333333333 | IN44: 0.03333333333 | IO44: 0.03333333333 | IP44: 0.03333333333 | IQ44: 0.03333333333 | IR44: 0.03333333333 | IS44: 0.03333333333 | IT44: 0.03333333333 | IU44: 0.03333333333 | IV44: 0.03333333333 | IW44: 0.03333333333 | IX44: 0.03333333333 | IY44: 0.03333333333 | IZ44: 0.03333333333 | JA44: =1/$E$5 -> 0.03333333333 | JB44: 0.03333333333 | JC44: 0.03333333333 | JD44: 0.03333333333 | JE44: 0.03333333333 | JF44: 0.03333333333 | JG44: 0.03333333333 | JH44: 0.03333333333 | JI44: 0.03333333333 | JJ44: 0.03333333333 | JK44: 0.03333333333 | JL44: 0.03333333333 | JM44: 0.03333333333 | JN44: 0.03333333333 | JO44: 0.03333333333 | JP44: 0.03333333333 | JQ44: 0.03333333333 | JR44: 0.03333333333 | JS44: 0.03333333333 | JT44: 0.03333333333 | JU44: 0.03333333333 | JV44: 0.03333333333 | JW44: 0.03333333333 | JX44: 0.03333333333 | JY44: 0.03333333333 | JZ44: 0.03333333333 | KA44: 0.03333333333 | KB44: 0.03333333333 | KC44: 0.03333333333 | KD44: 0.03333333333 | KE44: 0.03333333333 | KF44: 0.03333333333 | KG44: 0.03333333333 | KH44: 0.03333333333 | KI44: 0.03333333333 | KJ44: 0.03333333333 | KK44: 0.03333333333 | KL44: 0.03333333333 | KM44: 0.03333333333 | KN44: 0.03333333333 | KO44: 0.03333333333 | KP44: 0.03333333333 | KQ44: 0.03333333333 | KR44: 0.03333333333 | KS44: 0.03333333333 | KT44: 0.03333333333 | KU44: 0.03333333333 | KV44: 0.03333333333 | KW44: 0.03333333333 | KX44: 0.03333333333 | KY44: 0.03333333333 | KZ44: 0.03333333333 | LA44: 0.03333333333 | LB44: 0.03333333333 | LC44: 0.03333333333 | LD44: 0.03333333333 | LE44: 0.03333333333 | LF44: 0.03333333333 | LG44: 0.03333333333 | LH44: 0.03333333333 | LI44: 0.03333333333 | LJ44: 0.03333333333 | LK44: 0.03333333333 | LL44: 0.03333333333 | LM44: =1/$E$5 -> 0.03333333333 | LN44: 0.03333333333 | LO44: 0.03333333333 | LP44: 0.03333333333 | LQ44: 0.03333333333 | LR44: 0.03333333333 | LS44: 0.03333333333 | LT44: 0.03333333333 | LU44: 0.03333333333 | LV44: 0.03333333333 | LW44: 0.03333333333 | LX44: 0.03333333333 | LY44: 0.03333333333 | LZ44: 0.03333333333 | MA44: 0.03333333333 | MB44: 0.03333333333 | MC44: 0.03333333333 | MD44: 0.03333333333 | ME44: 0.03333333333 | MF44: 0.03333333333 | MG44: 0.03333333333 | MH44: 0.03333333333 | MI44: 0.03333333333 | MJ44: 0.03333333333 | MK44: 0.03333333333 | ML44: 0.03333333333 | MM44: 0.03333333333 | MN44: 0.03333333333 | MO44: 0.03333333333 | MP44: 0.03333333333 | MQ44: 0.03333333333 | MR44: 0.03333333333 | MS44: 0.03333333333 | MT44: 0.03333333333 | MU44: 0.03333333333 | MV44: 0.03333333333 | MW44: 0.03333333333 | MX44: 0.03333333333 | MY44: 0.03333333333 | MZ44: 0.03333333333 | NA44: 0.03333333333 | NB44: 0.03333333333 | NC44: 0.03333333333 | ND44: 0.03333333333 | NE44: 0.03333333333 | NF44: 0.03333333333 | NG44: 0.03333333333 | NH44: 0.03333333333 | NI44: 0.03333333333 | NJ44: 0.03333333333 | NK44: 0.03333333333 | NL44: 0.03333333333 | NM44: 0.03333333333 | NN44: 0.03333333333 | NO44: 0.03333333333 | NP44: 0.03333333333 | NQ44: 0.03333333333 | NR44: 0.03333333333 | NS44: 0.03333333333 | NT44: 0.03333333333 | NU44: 0.03333333333 | NV44: 0.03333333333 | NW44: 0.03333333333 | NX44: 0.03333333333 | NY44: =1/$E$5 -> 0.03333333333 | NZ44: 0.03333333333 | OA44: 0.03333333333 | OB44: 0.03333333333 | OC44: 0.03333333333 | OD44: 0.03333333333 | OE44: 0.03333333333 | OF44: 0.03333333333 | OG44: 0.03333333333 | OH44: 0.03333333333 | OI44: 0.03333333333 | OJ44: 0.03333333333 | OK44: 0.03333333333 | OL44: 0.03333333333 | OM44: 0.03333333333 | ON44: 0.03333333333 | OO44: 0.03333333333 | OP44: 0.03333333333 | OQ44: 0.03333333333 | OR44: 0.03333333333 | OS44: 0.03333333333 | OT44: 0.03333333333 | OU44: 0.03333333333 | OV44: 0.03333333333 | OW44: 0.03333333333 | OX44: 0.03333333333 | OY44: 0.03333333333 | OZ44: 0.03333333333 | PA44: 0.03333333333 | PB44: 0.03333333333 | PC44: 0.03333333333 | PD44: 0.03333333333 | PE44: 0.03333333333 | PF44: 0.03333333333 | PG44: 0.03333333333 | PH44: 0.03333333333 | PI44: 0.03333333333 | PJ44: 0.03333333333 | PK44: 0.03333333333 | PL44: 0.03333333333 | PM44: 0.03333333333 | PN44: 0.03333333333 | PO44: 0.03333333333 | PP44: 0.03333333333 | PQ44: 0.03333333333 | PR44: 0.03333333333 | PS44: 0.03333333333 | PT44: 0.03333333333 | PU44: 0.03333333333 | PV44: 0.03333333333 | PW44: 0.03333333333 | PX44: 0.03333333333 | PY44: 0.03333333333 | PZ44: 0.03333333333 | QA44: 0.03333333333 | QB44: 0.03333333333 | QC44: 0.03333333333 | QD44: 0.03333333333 | QE44: 0.03333333333 | QF44: 0.03333333333 | QG44: 0.03333333333 | QH44: 0.03333333333 | QI44: 0.03333333333 | QJ44: 0.03333333333 | QK44: =1/$E$5 -> 0.03333333333 | QL44: 0.03333333333 | QM44: 0.03333333333 | QN44: 0.03333333333 | QO44: 0.03333333333 | QP44: 0.03333333333 | QQ44: 0.03333333333 | QR44: 0.03333333333 | QS44: 0.03333333333 | QT44: 0.03333333333 | QU44: 0.03333333333 | QV44: 0.03333333333 | QW44: 0.03333333333 | QX44: 0.03333333333 | QY44: 0.03333333333 | QZ44: 0.03333333333 | RA44: 0.03333333333 | RB44: 0.03333333333 | RC44: 0.03333333333 | RD44: 0.03333333333 | RE44: 0.03333333333 | RF44: 0.03333333333 | RG44: 0.03333333333 | RH44: 0.03333333333 | RI44: 0.03333333333 | RJ44: 0.03333333333 | RK44: 0.03333333333 | RL44: 0.03333333333 | RM44: 0.03333333333 | RN44: 0.03333333333 | RO44: 0.03333333333 | RP44: 0.03333333333 | RQ44: 0.03333333333 | RR44: 0.03333333333 | RS44: 0.03333333333 | RT44: 0.03333333333 | RU44: 0.03333333333 | RV44: 0.03333333333 | RW44: 0.03333333333 | RX44: 0.03333333333 | RY44: 0.03333333333 | RZ44: 0.03333333333 | SA44: 0.03333333333 | SB44: 0.03333333333 | SC44: 0.03333333333 | SD44: 0.03333333333 | SE44: 0.03333333333 | SF44: 0.03333333333 | SG44: 0.03333333333 | SH44: 0.03333333333 | SI44: 0.03333333333 | SJ44: 0.03333333333 | SK44: 0.03333333333 | SL44: 0.03333333333 | SM44: 0.03333333333 | SN44: 0.03333333333 | SO44: 0.03333333333 | SP44: 0.03333333333 | SQ44: 0.03333333333 | SR44: 0.03333333333 | SS44: 0.03333333333 | ST44: 0.03333333333 | SU44: 0.03333333333 | SV44: 0.03333333333 | SW44: =1/$E$5 -> 0.03333333333 | SX44: 0.03333333333 | SY44: 0.03333333333 | SZ44: 0.03333333333 | TA44: 0.03333333333 | TB44: 0.03333333333 | TC44: 0.03333333333 | TD44: 0.03333333333 | TE44: 0.03333333333 | TF44: 0.03333333333 | TG44: 0.03333333333 | TH44: 0.03333333333 | TI44: 0.03333333333 | TJ44: 0.03333333333 | TK44: 0.03333333333 | TL44: 0.03333333333 | TM44: 0.03333333333 | TN44: 0.03333333333 | TO44: 0.03333333333 | TP44: 0.03333333333 | TQ44: 0.03333333333 | TR44: 0.03333333333 | TS44: 0.03333333333 | TT44: 0.03333333333 | TU44: 0.03333333333 | TV44: 0.03333333333 | TW44: 0.03333333333 | TX44: 0.03333333333 | TY44: 0.03333333333 | TZ44: 0.03333333333 | UA44: 0.03333333333 | UB44: 0.03333333333 | UC44: 0.03333333333 | UD44: 0.03333333333 | UE44: 0.03333333333 | UF44: 0.03333333333 | UG44: 0.03333333333 | UH44: 0.03333333333 | UI44: 0.03333333333 | UJ44: 0.03333333333 | UK44: 0.03333333333 | UL44: 0.03333333333 | UM44: 0.03333333333 | UN44: 0.03333333333 | UO44: 0.03333333333 | UP44: 0.03333333333 | UQ44: 0.03333333333 | UR44: 0.03333333333 | US44: 0.03333333333 | UT44: 0.03333333333 | UU44: 0.03333333333 | UV44: 0.03333333333 | UW44: 0.03333333333 | UX44: 0.03333333333 | UY44: 0.03333333333
C45: Depreciation Expense | E45: =E44*E37 -> 0 | F45: 333.3333333 | G45: 666.6666667 | H45: 1000 | I45: 1333.333333 | J45: 1666.666667 | K45: 2000 | L45: 2300 | M45: 2645 | N45: 3041.75 | O45: 3498.0125 | P45: 4022.714375 | Q45: 4626.121531 | R45: 5320.039761 | S45: 6118.045725 | T45: 7035.752584 | U45: 8091.115471 | V45: 9304.782792 | W45: 10700.50021 | X45: 12305.57524 | Y45: 14151.41153 | Z45: 16274.12326 | AA45: 18715.24175 | AB45: 21522.52801 | AC45: 24750.90721 | AD45: 28463.54329 | AE45: 32733.07479 | AF45: 37643.036 | AG45: 43289.4914 | AH45: 49782.91511 | AI45: 57250.35238 | AJ45: 65837.90524 | AK45: 75713.59103 | AL45: 87070.62968 | AM45: 100131.2241 | AN45: 115150.9078 | AO45: 132423.5439 | AP45: 152287.0755 | AQ45: 175130.1368 | AR45: 201399.6573 | AS45: 231609.606 | AT45: 266351.0468 | AU45: 306303.7039 | AV45: 352249.2595 | AW45: 405086.6484 | AX45: 465849.6456 | AY45: 535727.0925 | AZ45: 616086.1563 | BA45: 708499.0798 | BB45: 814773.9418 | BC45: 936990.033 | BD45: 1077538.538 | BE45: 1239169.319 | BF45: 1425044.716 | BG45: 1638801.424 | BH45: 1884621.638 | BI45: 2167314.883 | BJ45: 2492412.116 | BK45: 2866273.933 | BL45: 3296215.023 | BM45: 3790647.276 | BN45: 4359244.368 | BO45: 4490021.699 | BP45: 4624722.35 | BQ45: =BQ44*BQ37 -> 4763464.02 | BR45: 4906367.941 | BS45: 5053558.979 | BT45: 5205165.749 | BU45: 5361320.721 | BV45: 5522160.343 | BW45: 5687825.153 | BX45: 5858459.907 | BY45: 6034213.705 | BZ45: 6215240.116 | CA45: 6401697.319 | CB45: 6593748.239 | CC45: 6791560.686 | CD45: 6995307.507 | CE45: 7205166.732 | CF45: 7421321.734 | CG45: 7643961.386 | CH45: 7873280.227 | CI45: 8109478.634 | CJ45: 8352762.993 | CK45: 8603345.883 | CL45: 8861446.26 | CM45: 9127289.647 | CN45: 9401108.337 | CO45: 9683141.587 | CP45: 9973635.834 | CQ45: 10272844.91 | CR45: 10581030.26 | CS45: 10898461.16 | CT45: 11225415 | CU45: 11562177.45 | CV45: 11909042.77 | CW45: 12266314.06 | CX45: 12634303.48 | CY45: 13013332.58 | CZ45: 13403732.56 | DA45: 13805844.54 | DB45: 14220019.87 | DC45: 14646620.47 | DD45: 15086019.08 | DE45: 15538599.66 | DF45: 16004757.64 | DG45: 16484900.37 | DH45: 16979447.39 | DI45: 17488830.81 | DJ45: 18013495.73 | DK45: 18553900.6 | DL45: 19110517.62 | DM45: 19683833.15 | DN45: 20274348.14 | DO45: 20882578.59 | DP45: 21509055.95 | DQ45: 22154327.62 | DR45: 22818957.45 | DS45: 23503526.18 | DT45: 24208631.96 | DU45: 24934890.92 | DV45: 25682937.65 | DW45: 26453425.78 | DX45: 27247028.55 | DY45: 28064439.41 | DZ45: 28906372.59 | EA45: 29773563.77 | EB45: 30666770.68 | EC45: =EC44*EC37 -> 31586773.8 | ED45: 32534377.02 | EE45: 33510408.33 | EF45: 34515720.58 | EG45: 35551192.19 | EH45: 36617727.96 | EI45: 37716259.8 | EJ45: 38847747.59 | EK45: 40013180.02 | EL45: 41213575.42 | EM45: 42449982.68 | EN45: 43723482.16 | EO45: 45035186.63 | EP45: 46386242.23 | EQ45: 47777829.49 | ER45: 49211164.38 | ES45: 50687499.31 | ET45: 52208124.29 | EU45: 53774368.02 | EV45: 55387599.06 | EW45: 57049227.03 | EX45: 58760703.84 | EY45: 60523524.96 | EZ45: 62339230.7 | FA45: 64209407.63 | FB45: 66135689.85 | FC45: 68119760.55 | FD45: 70163353.37 | FE45: 72268253.97 | FF45: 74436301.59 | FG45: 76669390.63 | FH45: 78969472.35 | FI45: 81338556.52 | FJ45: 83778713.22 | FK45: 86292074.62 | FL45: 88880836.86 | FM45: 91547261.96 | FN45: 94293679.82 | FO45: 97122490.21 | FP45: 100036164.9 | FQ45: 103037249.9 | FR45: 106128367.4 | FS45: 109312218.4 | FT45: 112591584.9 | FU45: 115969332.5 | FV45: 119448412.5 | FW45: 123031864.8 | FX45: 126722820.8 | FY45: 130524505.4 | FZ45: 134440240.6 | GA45: 138473447.8 | GB45: 142627651.2 | GC45: 146906480.8 | GD45: 151313675.2 | GE45: 155853085.4 | GF45: 160528678 | GG45: 165344538.3 | GH45: 170304874.5 | GI45: 175414020.7 | GJ45: 180676441.3 | GK45: 186096734.6 | GL45: 191679636.6 | GM45: 197430025.7 | GN45: 203352926.5 | GO45: =GO44*GO37 -> 209453514.3 | GP45: 215737119.7 | GQ45: 222209233.3 | GR45: 228875510.3 | GS45: 235741775.6 | GT45: 242814028.9 | GU45: 250098449.7 | GV45: 257601403.2 | GW45: 265329445.3 | GX45: 273289328.7 | GY45: 281488008.5 | GZ45: 289932648.8 | HA45: 298630628.3 | HB45: 307589547.1 | HC45: 316817233.5 | HD45: 326321750.5 | HE45: 336111403.1 | HF45: 346194745.1 | HG45: 356580587.5 | HH45: 367278005.1 | HI45: 378296345.3 | HJ45: 389645235.6 | HK45: 401334592.7 | HL45: 413374630.5 | HM45: 425775869.4 | HN45: 438549145.5 | HO45: 451705619.8 | HP45: 465256788.4 | HQ45: 479214492.1 | HR45: 493590926.9 | HS45: 508398654.7 | HT45: 523650614.3 | HU45: 539360132.7 | HV45: 555540936.7 | HW45: 572207164.8 | HX45: 589373379.8 | HY45: 607054581.2 | HZ45: 625266218.6 | IA45: 644024205.1 | IB45: 663344931.3 | IC45: 683245279.2 | ID45: 703742637.6 | IE45: 724854916.7 | IF45: 746600564.3 | IG45: 768998581.2 | IH45: 792068538.6 | II45: 815830594.8 | IJ45: 840305512.6 | IK45: 865514678 | IL45: 891480118.3 | IM45: 918224521.9 | IN45: 945771257.5 | IO45: 974144395.3 | IP45: 1003368727 | IQ45: 1033469789 | IR45: 1064473883 | IS45: 1096408099 | IT45: 1129300342 | IU45: 1163179352 | IV45: 1198074733 | IW45: 1234016975 | IX45: 1271037484 | IY45: 1309168609 | IZ45: 1348443667 | JA45: =JA44*JA37 -> 1388896977 | JB45: 1430563886 | JC45: 1473480803 | JD45: 1517685227 | JE45: 1563215784 | JF45: 1610112257 | JG45: 1658415625 | JH45: 1708168094 | JI45: 1759413136 | JJ45: 1812195531 | JK45: 1866561396 | JL45: 1922558238 | JM45: 1980234986 | JN45: 2039642035 | JO45: 2100831296 | JP45: 2163856235 | JQ45: 2228771922 | JR45: 2295635080 | JS45: 2364504132 | JT45: 2435439256 | JU45: 2508502434 | JV45: 2583757507 | JW45: 2661270232 | JX45: 2741108339 | JY45: 2823341589 | JZ45: 2908041837 | KA45: 2995283092 | KB45: 3085141585 | KC45: 3177695832 | KD45: 3273026707 | KE45: 3371217508 | KF45: 3472354034 | KG45: 3576524655 | KH45: 3683820394 | KI45: 3794335006 | KJ45: 3908165056 | KK45: 4025410008 | KL45: 4146172308 | KM45: 4270557477 | KN45: 4398674202 | KO45: 4530634428 | KP45: 4666553461 | KQ45: 4806550065 | KR45: 4950746566 | KS45: 5099268963 | KT45: 5252247032 | KU45: 5409814443 | KV45: 5572108877 | KW45: 5739272143 | KX45: 5911450307 | KY45: 6088793816 | KZ45: 6271457631 | LA45: 6459601360 | LB45: 6653389401 | LC45: 6852991083 | LD45: 7058580815 | LE45: 7270338240 | LF45: 7488448387 | LG45: 7713101838 | LH45: 7944494894 | LI45: 8182829740 | LJ45: 8428314633 | LK45: 8681164072 | LL45: 8941598994 | LM45: =LM44*LM37 -> 9209846964 | LN45: 9486142372 | LO45: 9770726644 | LP45: 1.006384844e+10 | LQ45: 1.03657639e+10 | LR45: 1.067673681e+10 | LS45: 1.099703892e+10 | LT45: 1.132695008e+10 | LU45: 1.166675859e+10 | LV45: 1.201676135e+10 | LW45: 1.237726419e+10 | LX45: 1.274858211e+10 | LY45: 1.313103957e+10 | LZ45: 1.352497076e+10 | MA45: 1.393071988e+10 | MB45: 1.434864148e+10 | MC45: 1.477910073e+10 | MD45: 1.522247375e+10 | ME45: 1.567914796e+10 | MF45: 1.61495224e+10 | MG45: 1.663400807e+10 | MH45: 1.713302831e+10 | MI45: 1.764701916e+10 | MJ45: 1.817642974e+10 | MK45: 1.872172263e+10 | ML45: 1.928337431e+10 | MM45: 1.986187554e+10 | MN45: 2.04577318e+10 | MO45: 2.107146376e+10 | MP45: 2.170360767e+10 | MQ45: 2.23547159e+10 | MR45: 2.302535738e+10 | MS45: 2.37161181e+10 | MT45: 2.442760164e+10 | MU45: 2.516042969e+10 | MV45: 2.591524258e+10 | MW45: 2.669269986e+10 | MX45: 2.749348085e+10 | MY45: 2.831828528e+10 | MZ45: 2.916783384e+10 | NA45: 3.004286885e+10 | NB45: 3.094415492e+10 | NC45: 3.187247957e+10 | ND45: 3.282865395e+10 | NE45: 3.381351357e+10 | NF45: 3.482791898e+10 | NG45: 3.587275655e+10 | NH45: 3.694893925e+10 | NI45: 3.805740742e+10 | NJ45: 3.919912965e+10 | NK45: 4.037510353e+10 | NL45: 4.158635664e+10 | NM45: 4.283394734e+10 | NN45: 4.411896576e+10 | NO45: 4.544253473e+10 | NP45: 4.680581077e+10 | NQ45: 4.82099851e+10 | NR45: 4.965628465e+10 | NS45: 5.114597319e+10 | NT45: 5.268035239e+10 | NU45: 5.426076296e+10 | NV45: 5.588858585e+10 | NW45: 5.756524342e+10 | NX45: 5.929220072e+10 | NY45: =NY44*NY37 -> 6.107096675e+10 | NZ45: 6.290309575e+10 | OA45: 6.479018862e+10 | OB45: 6.673389428e+10 | OC45: 6.873591111e+10 | OD45: 7.079798844e+10 | OE45: 7.292192809e+10 | OF45: 7.510958594e+10 | OG45: 7.736287352e+10 | OH45: 7.968375972e+10 | OI45: 8.207427251e+10 | OJ45: 8.453650069e+10 | OK45: 8.707259571e+10 | OL45: 8.968477358e+10 | OM45: 9.237531679e+10 | ON45: 9.514657629e+10 | OO45: 9.800097358e+10 | OP45: 1.009410028e+11 | OQ45: 1.039692329e+11 | OR45: 1.070883099e+11 | OS45: 1.103009592e+11 | OT45: 1.136099879e+11 | OU45: 1.170182876e+11 | OV45: 1.205288362e+11 | OW45: 1.241447013e+11 | OX45: 1.278690423e+11 | OY45: 1.317051136e+11 | OZ45: 1.35656267e+11 | PA45: 1.39725955e+11 | PB45: 1.439177337e+11 | PC45: 1.482352657e+11 | PD45: 1.526823236e+11 | PE45: 1.572627933e+11 | PF45: 1.619806771e+11 | PG45: 1.668400975e+11 | PH45: 1.718453004e+11 | PI45: 1.770006594e+11 | PJ45: 1.823106792e+11 | PK45: 1.877799995e+11 | PL45: 1.934133995e+11 | PM45: 1.992158015e+11 | PN45: 2.051922756e+11 | PO45: 2.113480438e+11 | PP45: 2.176884851e+11 | PQ45: 2.242191397e+11 | PR45: 2.309457139e+11 | PS45: 2.378740853e+11 | PT45: 2.450103079e+11 | PU45: 2.523606171e+11 | PV45: 2.599314356e+11 | PW45: 2.677293787e+11 | PX45: 2.7576126e+11 | PY45: 2.840340979e+11 | PZ45: 2.925551208e+11 | QA45: 3.013317744e+11 | QB45: 3.103717276e+11 | QC45: 3.196828795e+11 | QD45: 3.292733659e+11 | QE45: 3.391515668e+11 | QF45: 3.493261138e+11 | QG45: 3.598058973e+11 | QH45: 3.706000742e+11 | QI45: 3.817180764e+11 | QJ45: 3.931696187e+11 | QK45: =QK44*QK37 -> 4.049647072e+11 | QL45: 4.171136485e+11 | QM45: 4.296270579e+11 | QN45: 4.425158697e+11 | QO45: 4.557913457e+11 | QP45: 4.694650861e+11 | QQ45: 4.835490387e+11 | QR45: 4.980555099e+11 | QS45: 5.129971752e+11 | QT45: 5.283870904e+11 | QU45: 5.442387031e+11 | QV45: 5.605658642e+11 | QW45: 5.773828401e+11 | QX45: 5.947043253e+11 | QY45: 6.125454551e+11 | QZ45: 6.309218188e+11 | RA45: 6.498494733e+11 | RB45: 6.693449575e+11 | RC45: 6.894253063e+11 | RD45: 7.101080654e+11 | RE45: 7.314113074e+11 | RF45: 7.533536466e+11 | RG45: 7.75954256e+11 | RH45: 7.992328837e+11 | RI45: 8.232098702e+11 | RJ45: 8.479061663e+11 | RK45: 8.733433513e+11 | RL45: 8.995436518e+11 | RM45: 9.265299614e+11 | RN45: 9.543258602e+11 | RO45: 9.829556361e+11 | RP45: 1.012444305e+12 | RQ45: 1.042817634e+12 | RR45: 1.074102163e+12 | RS45: 1.106325228e+12 | RT45: 1.139514985e+12 | RU45: 1.173700435e+12 | RV45: 1.208911448e+12 | RW45: 1.245178791e+12 | RX45: 1.282534155e+12 | RY45: 1.321010179e+12 | RZ45: 1.360640485e+12 | SA45: 1.401459699e+12 | SB45: 1.44350349e+12 | SC45: 1.486808595e+12 | SD45: 1.531412853e+12 | SE45: 1.577355239e+12 | SF45: 1.624675896e+12 | SG45: 1.673416173e+12 | SH45: 1.723618658e+12 | SI45: 1.775327217e+12 | SJ45: 1.828587034e+12 | SK45: 1.883444645e+12 | SL45: 1.939947984e+12 | SM45: 1.998146424e+12 | SN45: 2.058090817e+12 | SO45: 2.119833541e+12 | SP45: 2.183428547e+12 | SQ45: 2.248931404e+12 | SR45: 2.316399346e+12 | SS45: 2.385891326e+12 | ST45: 2.457468066e+12 | SU45: 2.531192108e+12 | SV45: 2.607127871e+12 | SW45: =SW44*SW37 -> 2.685341707e+12 | SX45: 2.765901959e+12 | SY45: 2.848879017e+12 | SZ45: 2.934345388e+12 | TA45: 3.02237575e+12 | TB45: 3.113047022e+12 | TC45: 3.206438433e+12 | TD45: 3.302631586e+12 | TE45: 3.401710533e+12 | TF45: 3.503761849e+12 | TG45: 3.608874705e+12 | TH45: 3.717140946e+12 | TI45: 3.828655174e+12 | TJ45: 3.943514829e+12 | TK45: 4.061820274e+12 | TL45: 4.183674883e+12 | TM45: 4.309185129e+12 | TN45: 4.438460683e+12 | TO45: 4.571614503e+12 | TP45: 4.708762938e+12 | TQ45: 4.850025827e+12 | TR45: 4.995526601e+12 | TS45: 5.145392399e+12 | TT45: 5.299754171e+12 | TU45: 5.458746797e+12 | TV45: 5.622509201e+12 | TW45: 5.791184477e+12 | TX45: 5.964920011e+12 | TY45: 6.143867611e+12 | TZ45: 6.328183639e+12 | UA45: 6.518029149e+12 | UB45: 6.713570023e+12 | UC45: 6.914977124e+12 | UD45: 7.122426438e+12 | UE45: 7.336099231e+12 | UF45: 7.556182208e+12 | UG45: 7.782867674e+12 | UH45: 8.016353704e+12 | UI45: 8.256844315e+12 | UJ45: 8.504549645e+12 | UK45: 8.759686134e+12 | UL45: 9.022476718e+12 | UM45: 9.293151019e+12 | UN45: 9.57194555e+12 | UO45: 9.859103917e+12 | UP45: 1.015487703e+13 | UQ45: 1.045952335e+13 | UR45: 1.077330905e+13 | US45: 1.109650832e+13 | UT45: 1.142940357e+13 | UU45: 1.177228567e+13 | UV45: 1.212545424e+13 | UW45: 1.248921787e+13 | UX45: 1.286389441e+13 | UY45: 1.324981124e+13
B47: Accumulated Depreciation
C48: Opening Balance | E48: =D51 -> 0 | F48: 0 | G48: 333.3333333 | H48: 1000 | I48: 2000 | J48: 3333.333333 | K48: 5000 | L48: 7000 | M48: 9300 | N48: 11945 | O48: 14986.75 | P48: 18484.7625 | Q48: 22507.47687 | R48: 27133.59841 | S48: 32453.63817 | T48: 38571.68389 | U48: 45607.43648 | V48: 53698.55195 | W48: 63003.33474 | X48: 73703.83495 | Y48: 86009.41019 | Z48: 100160.8217 | AA48: 116434.945 | AB48: 135150.1867 | AC48: 156672.7147 | AD48: 181423.6219 | AE48: 209887.1652 | AF48: 242620.24 | AG48: 280263.276 | AH48: 323552.7674 | AI48: 373335.6825 | AJ48: 420586.0349 | AK48: 476423.9402 | AL48: 542137.5312 | AM48: 619208.1609 | AN48: 709339.385 | AO48: 814490.2928 | AP48: 937913.8367 | AQ48: 1079850.912 | AR48: 1243078.549 | AS48: 1430790.331 | AT48: 1646658.881 | AU48: 1894907.713 | AV48: 2180393.87 | AW48: 2508702.951 | AX48: 2886258.393 | AY48: 3320447.152 | AZ48: 3819764.225 | BA48: 4393978.859 | BB48: 5054325.688 | BC48: 5813724.541 | BD48: 6687033.222 | BE48: 7691338.205 | BF48: 8846288.936 | BG48: 10174482.28 | BH48: 11701904.62 | BI48: 13458440.31 | BJ48: 15478456.36 | BK48: 17801474.81 | BL48: 20472946.03 | BM48: 23545137.94 | BN48: 27068158.63 | BO48: 31121132.42 | BP48: 35260442.96 | BQ48: =BP51 -> 39483347.48 | BR48: 43786220.99 | BS48: 48164409.85 | BT48: 52613062.88 | BU48: 57122586.79 | BV48: 61683919.39 | BW48: 66286093.4 | BX48: 70915934.27 | BY48: 75557712.25 | BZ48: 80192741.74 | CA48: 84798920.01 | CB48: 89350196.21 | CC48: 93815960.16 | CD48: 98160338.91 | CE48: 102341387.2 | CF48: 106310155.8 | CG48: 110009619.7 | CH48: 113373444.6 | CI48: 116324567.9 | CJ48: 118773566 | CK48: 120616776.4 | CL48: 121734136.8 | CM48: 121986699.7 | CN48: 121213773.5 | CO48: 119229633.7 | CP48: 115819739.9 | CQ48: 110736385 | CR48: 103683690.6 | CS48: 110035130.3 | CT48: 116541860.8 | CU48: 123203207.8 | CV48: 130017677.2 | CW48: 136982809.7 | CX48: 144096014.7 | CY48: 151350027.2 | CZ48: 158738183 | DA48: 166251984.9 | DB48: 173880802.5 | DC48: 181611526.6 | DD48: 189428170.5 | DE48: 197311411.6 | DF48: 205238062.6 | DG48: 213180462.5 | DH48: 221105776.3 | DI48: 228975187.7 | DJ48: 236742970.4 | DK48: 244355418.7 | DL48: 251749617.6 | DM48: 258852026 | DN48: 265576847.9 | DO48: 271824156.7 | DP48: 277477738.5 | DQ48: 282402609.5 | DR48: 286442160.7 | DS48: 289414872.4 | DT48: 291110535.8 | DU48: 291285904.7 | DV48: 289649695.9 | DW48: 301580115.8 | DX48: 313833195.9 | DY48: 326413283 | DZ48: 339324054.6 | EA48: 352568378.4 | EB48: 366149150.5 | EC48: =EB51 -> 380064757 | ED48: 394314354.8 | EE48: 408895441.8 | EF48: 423803563.2 | EG48: 439031970 | EH48: 454571227.2 | EI48: 470408760.1 | EJ48: 486528331.5 | EK48: 502909439.5 | EL48: 519526622.6 | EM48: 536348659.4 | EN48: 553337646.2 | EO48: 570447934.8 | EP48: 587624909.1 | EQ48: 604803576.3 | ER48: 621906944.7 | ES48: 638844156.4 | ET48: 655508338.2 | EU48: 671774127.2 | EV48: 687494823.9 | EW48: 702499115.5 | EX48: 716587306.2 | EY48: 729526978.3 | EZ48: 741038001.7 | FA48: 766510070.7 | FB48: 792711049.4 | FC48: 819657472.1 | FD48: 847365569.4 | FE48: 875851138.7 | FF48: 905130393.6 | FG48: 935215437.4 | FH48: 966119555.6 | FI48: 997854798.7 | FJ48: 1030431701 | FK48: 1063858952 | FL48: 1098143018 | FM48: 1133287705 | FN48: 1169293645 | FO48: 1206157712 | FP48: 1243872343 | FQ48: 1282424752 | FR48: 1321796021 | FS48: 1361960061 | FT48: 1402882399 | FU48: 1444518791 | FV48: 1486813616 | FW48: 1529698028 | FX48: 1573087826 | FY48: 1616880999 | FZ48: 1660954902 | GA48: 1705162996 | GB48: 1749331103 | GC48: 1793253089 | GD48: 1836675896 | GE48: 1895017102 | GF48: 1955073292 | GG48: 2016890582 | GH48: 2080515672 | GI48: 2145995745 | GJ48: 2213379338 | GK48: 2282711850 | GL48: 2354040860 | GM48: 2427413743 | GN48: 2502877413 | GO48: =GN51 -> 2580478035 | GP48: 2660260674 | GQ48: 2742268891 | GR48: 2826544266 | GS48: 2913125852 | GT48: 3002049527 | GU48: 3093347251 | GV48: 3187046196 | GW48: 3283167741 | GX48: 3381726310 | GY48: 3482728019 | GZ48: 3586169120 | HA48: 3692034197 | HB48: 3800294081 | HC48: 3910903442 | HD48: 4023798018 | HE48: 4138891405 | HF48: 4256071365 | HG48: 4375195559 | HH48: 4496076639 | HI48: 4634199868 | HJ48: 4776431540 | HK48: 4922889578 | HL48: 5073694638 | HM48: 5228970079 | HN48: 5388842902 | HO48: 5553439322 | HP48: 5722890156 | HQ48: 5897328517 | HR48: 6076889631 | HS48: 6261710620 | HT48: 6451930237 | HU48: 6647688540 | HV48: 6849126504 | HW48: 7056385558 | HX48: 7269607024 | HY48: 7488931473 | HZ48: 7714497944 | IA48: 7946443042 | IB48: 8184899869 | IC48: 8429996785 | ID48: 8681855950 | IE48: 8940591632 | IF48: 9206308238 | IG48: 9479098024 | IH48: 9759038438 | II48: 1.004618904e+10 | IJ48: 1.034058793e+10 | IK48: 1.064224762e+10 | IL48: 1.095114026e+10 | IM48: 1.12829154e+10 | IN48: 1.162460853e+10 | IO48: 1.197651188e+10 | IP48: 1.233892561e+10 | IQ48: 1.271215798e+10 | IR48: 1.309652644e+10 | IS48: 1.349235337e+10 | IT48: 1.389997162e+10 | IU48: 1.431972243e+10 | IV48: 1.475195536e+10 | IW48: 1.519702832e+10 | IX48: 1.565530747e+10 | IY48: 1.612716709e+10 | IZ48: 1.661298941e+10 | JA48: =IZ51 -> 1.711316435e+10 | JB48: 1.762808918e+10 | JC48: 1.815816809e+10 | JD48: 1.870381166e+10 | JE48: 1.926543617e+10 | JF48: 1.984346279e+10 | JG48: 2.04383166e+10 | JH48: 2.105042536e+10 | JI48: 2.168021812e+10 | JJ48: 2.232812352e+10 | JK48: 2.299456777e+10 | JL48: 2.367997227e+10 | JM48: 2.438475089e+10 | JN48: 2.510930663e+10 | JO48: 2.585402788e+10 | JP48: 2.661927393e+10 | JQ48: 2.742109308e+10 | JR48: 2.824693155e+10 | JS48: 2.909750459e+10 | JT48: 2.99735481e+10 | JU48: 3.087581914e+10 | JV48: 3.180509744e+10 | JW48: 3.276218149e+10 | JX48: 3.374789459e+10 | JY48: 3.476308309e+10 | JZ48: 3.580861684e+10 | KA48: 3.688538964e+10 | KB48: 3.799431963e+10 | KC48: 3.913634961e+10 | KD48: 4.031244741e+10 | KE48: 4.152360609e+10 | KF48: 4.277084417e+10 | KG48: 4.405520574e+10 | KH48: 4.537776044e+10 | KI48: 4.673960341e+10 | KJ48: 4.814185505e+10 | KK48: 4.958566062e+10 | KL48: 5.10721897e+10 | KM48: 5.260263539e+10 | KN48: 5.417821331e+10 | KO48: 5.580016025e+10 | KP48: 5.746973253e+10 | KQ48: 5.918820395e+10 | KR48: 6.095686329e+10 | KS48: 6.277701124e+10 | KT48: 6.464994679e+10 | KU48: 6.659268613e+10 | KV48: 6.859367239e+10 | KW48: 7.065464765e+10 | KX48: 7.277740545e+10 | KY48: 7.496379222e+10 | KZ48: 7.72157097e+10 | LA48: 7.953511213e+10 | LB48: 8.192401315e+10 | LC48: 8.43844852e+10 | LD48: 8.691866101e+10 | LE48: 8.952873514e+10 | LF48: 9.221696549e+10 | LG48: 9.498567485e+10 | LH48: 9.783725241e+10 | LI48: 1.007741552e+11 | LJ48: 1.037989098e+11 | LK48: 1.069141133e+11 | LL48: 1.101224353e+11 | LM48: =LL51 -> 1.134266185e+11 | LN48: 1.168294806e+11 | LO48: 1.203339149e+11 | LP48: 1.239428916e+11 | LQ48: 1.276594584e+11 | LR48: 1.31486741e+11 | LS48: 1.354279437e+11 | LT48: 1.394863495e+11 | LU48: 1.436653195e+11 | LV48: 1.479682923e+11 | LW48: 1.523987831e+11 | LX48: 1.569603718e+11 | LY48: 1.616724239e+11 | LZ48: 1.665258023e+11 | MA48: 1.715247414e+11 | MB48: 1.76673602e+11 | MC48: 1.819768747e+11 | MD48: 1.874391847e+11 | ME48: 1.930652913e+11 | MF48: 1.988600977e+11 | MG48: 2.048286523e+11 | MH48: 2.109761531e+11 | MI48: 2.17307952e+11 | MJ48: 2.238295589e+11 | MK48: 2.30546646e+11 | ML48: 2.374650527e+11 | MM48: 2.445907896e+11 | MN48: 2.519300432e+11 | MO48: 2.594891807e+11 | MP48: 2.672747546e+11 | MQ48: 2.752935074e+11 | MR48: 2.835523762e+11 | MS48: 2.920584974e+11 | MT48: 3.008192116e+11 | MU48: 3.098420679e+11 | MV48: 3.191348288e+11 | MW48: 3.287054742e+11 | MX48: 3.385622059e+11 | MY48: 3.487134516e+11 | MZ48: 3.591678683e+11 | NA48: 3.699343464e+11 | NB48: 3.81022002e+11 | NC48: 3.92455903e+11 | ND48: 4.042327858e+11 | NE48: 4.163629345e+11 | NF48: 4.288569409e+11 | NG48: 4.417257137e+11 | NH48: 4.549804888e+11 | NI48: 4.686328346e+11 | NJ48: 4.826946673e+11 | NK48: 4.97178259e+11 | NL48: 5.12096248e+11 | NM48: 5.274616498e+11 | NN48: 5.432878676e+11 | NO48: 5.59588704e+11 | NP48: 5.763783724e+11 | NQ48: 5.936715088e+11 | NR48: 6.11483184e+11 | NS48: 6.298289158e+11 | NT48: 6.487246818e+11 | NU48: 6.681869324e+11 | NV48: 6.882326039e+11 | NW48: 7.088791319e+11 | NX48: 7.301444651e+11 | NY48: =NX51 -> 7.520470791e+11 | NZ48: 7.746059903e+11 | OA48: 7.978407706e+11 | OB48: 8.217715612e+11 | OC48: 8.464190875e+11 | OD48: 8.718046733e+11 | OE48: 8.979502556e+11 | OF48: 9.248783884e+11 | OG48: 9.52627981e+11 | OH48: 9.812100261e+11 | OI48: 1.010649492e+12 | OJ48: 1.040972095e+12 | OK48: 1.072204323e+12 | OL48: 1.104373456e+12 | OM48: 1.137507591e+12 | ON48: 1.171635666e+12 | OO48: 1.206787488e+12 | OP48: 1.242993754e+12 | OQ48: 1.280286081e+12 | OR48: 1.318697031e+12 | OS48: 1.358260143e+12 | OT48: 1.399009954e+12 | OU48: 1.440982038e+12 | OV48: 1.484213029e+12 | OW48: 1.528740656e+12 | OX48: 1.574603775e+12 | OY48: 1.621842398e+12 | OZ48: 1.670497733e+12 | PA48: 1.720612215e+12 | PB48: 1.772229541e+12 | PC48: 1.825394707e+12 | PD48: 1.880154047e+12 | PE48: 1.936555269e+12 | PF48: 1.994647495e+12 | PG48: 2.054481299e+12 | PH48: 2.116108751e+12 | PI48: 2.179583456e+12 | PJ48: 2.244960585e+12 | PK48: 2.312312643e+12 | PL48: 2.381685228e+12 | PM48: 2.45313895e+12 | PN48: 2.526736237e+12 | PO48: 2.602541389e+12 | PP48: 2.680620634e+12 | PQ48: 2.761042184e+12 | PR48: 2.843876298e+12 | PS48: 2.929195338e+12 | PT48: 3.01707384e+12 | PU48: 3.107588569e+12 | PV48: 3.200818594e+12 | PW48: 3.296845353e+12 | PX48: 3.39575272e+12 | PY48: 3.497627087e+12 | PZ48: 3.60255743e+12 | QA48: 3.710635389e+12 | QB48: 3.821955349e+12 | QC48: 3.93661452e+12 | QD48: 4.054713019e+12 | QE48: 4.176353959e+12 | QF48: 4.301643538e+12 | QG48: 4.430691124e+12 | QH48: 4.563609356e+12 | QI48: 4.700514237e+12 | QJ48: 4.841525232e+12 | QK48: =QJ51 -> 4.986765368e+12 | QL48: 5.136361343e+12 | QM48: 5.290443625e+12 | QN48: 5.449146559e+12 | QO48: 5.612624197e+12 | QP48: 5.781006128e+12 | QQ48: 5.954439477e+12 | QR48: 6.13307578e+12 | QS48: 6.317071118e+12 | QT48: 6.506586255e+12 | QU48: 6.701786774e+12 | QV48: 6.902843225e+12 | QW48: 7.109931273e+12 | QX48: 7.323231853e+12 | QY48: 7.542931323e+12 | QZ48: 7.769221631e+12 | RA48: 8.00230048e+12 | RB48: 8.242371502e+12 | RC48: 8.489644432e+12 | RD48: 8.744335295e+12 | RE48: 9.00666659e+12 | RF48: 9.276867486e+12 | RG48: 9.555174021e+12 | RH48: 9.841829305e+12 | RI48: 1.013708373e+13 | RJ48: 1.044119521e+13 | RK48: 1.075442934e+13 | RL48: 1.107705972e+13 | RM48: 1.140936811e+13 | RN48: 1.175164472e+13 | RO48: 1.210418844e+13 | RP48: 1.246730711e+13 | RQ48: 1.284131777e+13 | RR48: 1.322654692e+13 | RS48: 1.362334657e+13 | RT48: 1.403205018e+13 | RU48: 1.445301485e+13 | RV48: 1.488660841e+13 | RW48: 1.533320973e+13 | RX48: 1.579320902e+13 | RY48: 1.626700822e+13 | RZ48: 1.675502132e+13 | SA48: 1.725767471e+13 | SB48: 1.777540759e+13 | SC48: 1.830867234e+13 | SD48: 1.885793487e+13 | SE48: 1.942367512e+13 | SF48: 2.000638738e+13 | SG48: 2.060658079e+13 | SH48: 2.122477974e+13 | SI48: 2.186152437e+13 | SJ48: 2.2517371e+13 | SK48: 2.319289264e+13 | SL48: 2.388867948e+13 | SM48: 2.460533942e+13 | SN48: 2.534349856e+13 | SO48: 2.61038018e+13 | SP48: 2.688691335e+13 | SQ48: 2.769351735e+13 | SR48: 2.852431844e+13 | SS48: 2.938004237e+13 | ST48: 3.026143665e+13 | SU48: 3.11692712e+13 | SV48: 3.210433896e+13 | SW48: =SV51 -> 3.306747237e+13 | SX48: 3.405949974e+13 | SY48: 3.50812879e+13 | SZ48: 3.613372966e+13 | TA48: 3.721774461e+13 | TB48: 3.833427995e+13 | TC48: 3.948431128e+13 | TD48: 4.066884347e+13 | TE48: 4.188891152e+13 | TF48: 4.314558151e+13 | TG48: 4.443995147e+13 | TH48: 4.577315238e+13 | TI48: 4.714634915e+13 | TJ48: 4.856074164e+13 | TK48: 5.001756567e+13 | TL48: 5.151809417e+13 | TM48: 5.306363823e+13 | TN48: 5.465554828e+13 | TO48: 5.629521524e+13 | TP48: 5.798407176e+13 | TQ48: 5.972359346e+13 | TR48: 6.151530022e+13 | TS48: 6.336075751e+13 | TT48: 6.526157773e+13 | TU48: 6.721942166e+13 | TV48: 6.923599988e+13 | TW48: 7.131307426e+13 | TX48: 7.34524595e+13 | TY48: 7.565602473e+13 | TZ48: 7.792569509e+13 | UA48: 8.026346919e+13 | UB48: 8.267137647e+13 | UC48: 8.515152093e+13 | UD48: 8.770606967e+13 | UE48: 9.033725483e+13 | UF48: 9.304737548e+13 | UG48: 9.583879967e+13 | UH48: 9.871396651e+13 | UI48: 1.016753883e+14 | UJ48: 1.047256525e+14 | UK48: 1.078674246e+14 | UL48: 1.111034497e+14 | UM48: 1.144365554e+14 | UN48: 1.178696541e+14 | UO48: 1.214057455e+14 | UP48: 1.250479194e+14 | UQ48: 1.287993582e+14 | UR48: 1.326633399e+14 | US48: 1.366432406e+14 | UT48: 1.407425379e+14 | UU48: 1.449648135e+14 | UV48: 1.493137569e+14 | UW48: 1.537931679e+14 | UX48: 1.584069604e+14 | UY48: 1.631591659e+14
C49: Add: Depreciation | E49: =E45 -> 0 | F49: 333.3333333 | G49: 666.6666667 | H49: 1000 | I49: 1333.333333 | J49: 1666.666667 | K49: 2000 | L49: 2300 | M49: 2645 | N49: 3041.75 | O49: 3498.0125 | P49: 4022.714375 | Q49: 4626.121531 | R49: 5320.039761 | S49: 6118.045725 | T49: 7035.752584 | U49: 8091.115471 | V49: 9304.782792 | W49: 10700.50021 | X49: 12305.57524 | Y49: 14151.41153 | Z49: 16274.12326 | AA49: 18715.24175 | AB49: 21522.52801 | AC49: 24750.90721 | AD49: 28463.54329 | AE49: 32733.07479 | AF49: 37643.036 | AG49: 43289.4914 | AH49: 49782.91511 | AI49: 57250.35238 | AJ49: 65837.90524 | AK49: 75713.59103 | AL49: 87070.62968 | AM49: 100131.2241 | AN49: 115150.9078 | AO49: 132423.5439 | AP49: 152287.0755 | AQ49: 175130.1368 | AR49: 201399.6573 | AS49: 231609.606 | AT49: 266351.0468 | AU49: 306303.7039 | AV49: 352249.2595 | AW49: 405086.6484 | AX49: 465849.6456 | AY49: 535727.0925 | AZ49: 616086.1563 | BA49: 708499.0798 | BB49: 814773.9418 | BC49: 936990.033 | BD49: 1077538.538 | BE49: 1239169.319 | BF49: 1425044.716 | BG49: 1638801.424 | BH49: 1884621.638 | BI49: 2167314.883 | BJ49: 2492412.116 | BK49: 2866273.933 | BL49: 3296215.023 | BM49: 3790647.276 | BN49: 4359244.368 | BO49: 4490021.699 | BP49: 4624722.35 | BQ49: =BQ45 -> 4763464.02 | BR49: 4906367.941 | BS49: 5053558.979 | BT49: 5205165.749 | BU49: 5361320.721 | BV49: 5522160.343 | BW49: 5687825.153 | BX49: 5858459.907 | BY49: 6034213.705 | BZ49: 6215240.116 | CA49: 6401697.319 | CB49: 6593748.239 | CC49: 6791560.686 | CD49: 6995307.507 | CE49: 7205166.732 | CF49: 7421321.734 | CG49: 7643961.386 | CH49: 7873280.227 | CI49: 8109478.634 | CJ49: 8352762.993 | CK49: 8603345.883 | CL49: 8861446.26 | CM49: 9127289.647 | CN49: 9401108.337 | CO49: 9683141.587 | CP49: 9973635.834 | CQ49: 10272844.91 | CR49: 10581030.26 | CS49: 10898461.16 | CT49: 11225415 | CU49: 11562177.45 | CV49: 11909042.77 | CW49: 12266314.06 | CX49: 12634303.48 | CY49: 13013332.58 | CZ49: 13403732.56 | DA49: 13805844.54 | DB49: 14220019.87 | DC49: 14646620.47 | DD49: 15086019.08 | DE49: 15538599.66 | DF49: 16004757.64 | DG49: 16484900.37 | DH49: 16979447.39 | DI49: 17488830.81 | DJ49: 18013495.73 | DK49: 18553900.6 | DL49: 19110517.62 | DM49: 19683833.15 | DN49: 20274348.14 | DO49: 20882578.59 | DP49: 21509055.95 | DQ49: 22154327.62 | DR49: 22818957.45 | DS49: 23503526.18 | DT49: 24208631.96 | DU49: 24934890.92 | DV49: 25682937.65 | DW49: 26453425.78 | DX49: 27247028.55 | DY49: 28064439.41 | DZ49: 28906372.59 | EA49: 29773563.77 | EB49: 30666770.68 | EC49: =EC45 -> 31586773.8 | ED49: 32534377.02 | EE49: 33510408.33 | EF49: 34515720.58 | EG49: 35551192.19 | EH49: 36617727.96 | EI49: 37716259.8 | EJ49: 38847747.59 | EK49: 40013180.02 | EL49: 41213575.42 | EM49: 42449982.68 | EN49: 43723482.16 | EO49: 45035186.63 | EP49: 46386242.23 | EQ49: 47777829.49 | ER49: 49211164.38 | ES49: 50687499.31 | ET49: 52208124.29 | EU49: 53774368.02 | EV49: 55387599.06 | EW49: 57049227.03 | EX49: 58760703.84 | EY49: 60523524.96 | EZ49: 62339230.7 | FA49: 64209407.63 | FB49: 66135689.85 | FC49: 68119760.55 | FD49: 70163353.37 | FE49: 72268253.97 | FF49: 74436301.59 | FG49: 76669390.63 | FH49: 78969472.35 | FI49: 81338556.52 | FJ49: 83778713.22 | FK49: 86292074.62 | FL49: 88880836.86 | FM49: 91547261.96 | FN49: 94293679.82 | FO49: 97122490.21 | FP49: 100036164.9 | FQ49: 103037249.9 | FR49: 106128367.4 | FS49: 109312218.4 | FT49: 112591584.9 | FU49: 115969332.5 | FV49: 119448412.5 | FW49: 123031864.8 | FX49: 126722820.8 | FY49: 130524505.4 | FZ49: 134440240.6 | GA49: 138473447.8 | GB49: 142627651.2 | GC49: 146906480.8 | GD49: 151313675.2 | GE49: 155853085.4 | GF49: 160528678 | GG49: 165344538.3 | GH49: 170304874.5 | GI49: 175414020.7 | GJ49: 180676441.3 | GK49: 186096734.6 | GL49: 191679636.6 | GM49: 197430025.7 | GN49: 203352926.5 | GO49: =GO45 -> 209453514.3 | GP49: 215737119.7 | GQ49: 222209233.3 | GR49: 228875510.3 | GS49: 235741775.6 | GT49: 242814028.9 | GU49: 250098449.7 | GV49: 257601403.2 | GW49: 265329445.3 | GX49: 273289328.7 | GY49: 281488008.5 | GZ49: 289932648.8 | HA49: 298630628.3 | HB49: 307589547.1 | HC49: 316817233.5 | HD49: 326321750.5 | HE49: 336111403.1 | HF49: 346194745.1 | HG49: 356580587.5 | HH49: 367278005.1 | HI49: 378296345.3 | HJ49: 389645235.6 | HK49: 401334592.7 | HL49: 413374630.5 | HM49: 425775869.4 | HN49: 438549145.5 | HO49: 451705619.8 | HP49: 465256788.4 | HQ49: 479214492.1 | HR49: 493590926.9 | HS49: 508398654.7 | HT49: 523650614.3 | HU49: 539360132.7 | HV49: 555540936.7 | HW49: 572207164.8 | HX49: 589373379.8 | HY49: 607054581.2 | HZ49: 625266218.6 | IA49: 644024205.1 | IB49: 663344931.3 | IC49: 683245279.2 | ID49: 703742637.6 | IE49: 724854916.7 | IF49: 746600564.3 | IG49: 768998581.2 | IH49: 792068538.6 | II49: 815830594.8 | IJ49: 840305512.6 | IK49: 865514678 | IL49: 891480118.3 | IM49: 918224521.9 | IN49: 945771257.5 | IO49: 974144395.3 | IP49: 1003368727 | IQ49: 1033469789 | IR49: 1064473883 | IS49: 1096408099 | IT49: 1129300342 | IU49: 1163179352 | IV49: 1198074733 | IW49: 1234016975 | IX49: 1271037484 | IY49: 1309168609 | IZ49: 1348443667 | JA49: =JA45 -> 1388896977 | JB49: 1430563886 | JC49: 1473480803 | JD49: 1517685227 | JE49: 1563215784 | JF49: 1610112257 | JG49: 1658415625 | JH49: 1708168094 | JI49: 1759413136 | JJ49: 1812195531 | JK49: 1866561396 | JL49: 1922558238 | JM49: 1980234986 | JN49: 2039642035 | JO49: 2100831296 | JP49: 2163856235 | JQ49: 2228771922 | JR49: 2295635080 | JS49: 2364504132 | JT49: 2435439256 | JU49: 2508502434 | JV49: 2583757507 | JW49: 2661270232 | JX49: 2741108339 | JY49: 2823341589 | JZ49: 2908041837 | KA49: 2995283092 | KB49: 3085141585 | KC49: 3177695832 | KD49: 3273026707 | KE49: 3371217508 | KF49: 3472354034 | KG49: 3576524655 | KH49: 3683820394 | KI49: 3794335006 | KJ49: 3908165056 | KK49: 4025410008 | KL49: 4146172308 | KM49: 4270557477 | KN49: 4398674202 | KO49: 4530634428 | KP49: 4666553461 | KQ49: 4806550065 | KR49: 4950746566 | KS49: 5099268963 | KT49: 5252247032 | KU49: 5409814443 | KV49: 5572108877 | KW49: 5739272143 | KX49: 5911450307 | KY49: 6088793816 | KZ49: 6271457631 | LA49: 6459601360 | LB49: 6653389401 | LC49: 6852991083 | LD49: 7058580815 | LE49: 7270338240 | LF49: 7488448387 | LG49: 7713101838 | LH49: 7944494894 | LI49: 8182829740 | LJ49: 8428314633 | LK49: 8681164072 | LL49: 8941598994 | LM49: =LM45 -> 9209846964 | LN49: 9486142372 | LO49: 9770726644 | LP49: 1.006384844e+10 | LQ49: 1.03657639e+10 | LR49: 1.067673681e+10 | LS49: 1.099703892e+10 | LT49: 1.132695008e+10 | LU49: 1.166675859e+10 | LV49: 1.201676135e+10 | LW49: 1.237726419e+10 | LX49: 1.274858211e+10 | LY49: 1.313103957e+10 | LZ49: 1.352497076e+10 | MA49: 1.393071988e+10 | MB49: 1.434864148e+10 | MC49: 1.477910073e+10 | MD49: 1.522247375e+10 | ME49: 1.567914796e+10 | MF49: 1.61495224e+10 | MG49: 1.663400807e+10 | MH49: 1.713302831e+10 | MI49: 1.764701916e+10 | MJ49: 1.817642974e+10 | MK49: 1.872172263e+10 | ML49: 1.928337431e+10 | MM49: 1.986187554e+10 | MN49: 2.04577318e+10 | MO49: 2.107146376e+10 | MP49: 2.170360767e+10 | MQ49: 2.23547159e+10 | MR49: 2.302535738e+10 | MS49: 2.37161181e+10 | MT49: 2.442760164e+10 | MU49: 2.516042969e+10 | MV49: 2.591524258e+10 | MW49: 2.669269986e+10 | MX49: 2.749348085e+10 | MY49: 2.831828528e+10 | MZ49: 2.916783384e+10 | NA49: 3.004286885e+10 | NB49: 3.094415492e+10 | NC49: 3.187247957e+10 | ND49: 3.282865395e+10 | NE49: 3.381351357e+10 | NF49: 3.482791898e+10 | NG49: 3.587275655e+10 | NH49: 3.694893925e+10 | NI49: 3.805740742e+10 | NJ49: 3.919912965e+10 | NK49: 4.037510353e+10 | NL49: 4.158635664e+10 | NM49: 4.283394734e+10 | NN49: 4.411896576e+10 | NO49: 4.544253473e+10 | NP49: 4.680581077e+10 | NQ49: 4.82099851e+10 | NR49: 4.965628465e+10 | NS49: 5.114597319e+10 | NT49: 5.268035239e+10 | NU49: 5.426076296e+10 | NV49: 5.588858585e+10 | NW49: 5.756524342e+10 | NX49: 5.929220072e+10 | NY49: =NY45 -> 6.107096675e+10 | NZ49: 6.290309575e+10 | OA49: 6.479018862e+10 | OB49: 6.673389428e+10 | OC49: 6.873591111e+10 | OD49: 7.079798844e+10 | OE49: 7.292192809e+10 | OF49: 7.510958594e+10 | OG49: 7.736287352e+10 | OH49: 7.968375972e+10 | OI49: 8.207427251e+10 | OJ49: 8.453650069e+10 | OK49: 8.707259571e+10 | OL49: 8.968477358e+10 | OM49: 9.237531679e+10 | ON49: 9.514657629e+10 | OO49: 9.800097358e+10 | OP49: 1.009410028e+11 | OQ49: 1.039692329e+11 | OR49: 1.070883099e+11 | OS49: 1.103009592e+11 | OT49: 1.136099879e+11 | OU49: 1.170182876e+11 | OV49: 1.205288362e+11 | OW49: 1.241447013e+11 | OX49: 1.278690423e+11 | OY49: 1.317051136e+11 | OZ49: 1.35656267e+11 | PA49: 1.39725955e+11 | PB49: 1.439177337e+11 | PC49: 1.482352657e+11 | PD49: 1.526823236e+11 | PE49: 1.572627933e+11 | PF49: 1.619806771e+11 | PG49: 1.668400975e+11 | PH49: 1.718453004e+11 | PI49: 1.770006594e+11 | PJ49: 1.823106792e+11 | PK49: 1.877799995e+11 | PL49: 1.934133995e+11 | PM49: 1.992158015e+11 | PN49: 2.051922756e+11 | PO49: 2.113480438e+11 | PP49: 2.176884851e+11 | PQ49: 2.242191397e+11 | PR49: 2.309457139e+11 | PS49: 2.378740853e+11 | PT49: 2.450103079e+11 | PU49: 2.523606171e+11 | PV49: 2.599314356e+11 | PW49: 2.677293787e+11 | PX49: 2.7576126e+11 | PY49: 2.840340979e+11 | PZ49: 2.925551208e+11 | QA49: 3.013317744e+11 | QB49: 3.103717276e+11 | QC49: 3.196828795e+11 | QD49: 3.292733659e+11 | QE49: 3.391515668e+11 | QF49: 3.493261138e+11 | QG49: 3.598058973e+11 | QH49: 3.706000742e+11 | QI49: 3.817180764e+11 | QJ49: 3.931696187e+11 | QK49: =QK45 -> 4.049647072e+11 | QL49: 4.171136485e+11 | QM49: 4.296270579e+11 | QN49: 4.425158697e+11 | QO49: 4.557913457e+11 | QP49: 4.694650861e+11 | QQ49: 4.835490387e+11 | QR49: 4.980555099e+11 | QS49: 5.129971752e+11 | QT49: 5.283870904e+11 | QU49: 5.442387031e+11 | QV49: 5.605658642e+11 | QW49: 5.773828401e+11 | QX49: 5.947043253e+11 | QY49: 6.125454551e+11 | QZ49: 6.309218188e+11 | RA49: 6.498494733e+11 | RB49: 6.693449575e+11 | RC49: 6.894253063e+11 | RD49: 7.101080654e+11 | RE49: 7.314113074e+11 | RF49: 7.533536466e+11 | RG49: 7.75954256e+11 | RH49: 7.992328837e+11 | RI49: 8.232098702e+11 | RJ49: 8.479061663e+11 | RK49: 8.733433513e+11 | RL49: 8.995436518e+11 | RM49: 9.265299614e+11 | RN49: 9.543258602e+11 | RO49: 9.829556361e+11 | RP49: 1.012444305e+12 | RQ49: 1.042817634e+12 | RR49: 1.074102163e+12 | RS49: 1.106325228e+12 | RT49: 1.139514985e+12 | RU49: 1.173700435e+12 | RV49: 1.208911448e+12 | RW49: 1.245178791e+12 | RX49: 1.282534155e+12 | RY49: 1.321010179e+12 | RZ49: 1.360640485e+12 | SA49: 1.401459699e+12 | SB49: 1.44350349e+12 | SC49: 1.486808595e+12 | SD49: 1.531412853e+12 | SE49: 1.577355239e+12 | SF49: 1.624675896e+12 | SG49: 1.673416173e+12 | SH49: 1.723618658e+12 | SI49: 1.775327217e+12 | SJ49: 1.828587034e+12 | SK49: 1.883444645e+12 | SL49: 1.939947984e+12 | SM49: 1.998146424e+12 | SN49: 2.058090817e+12 | SO49: 2.119833541e+12 | SP49: 2.183428547e+12 | SQ49: 2.248931404e+12 | SR49: 2.316399346e+12 | SS49: 2.385891326e+12 | ST49: 2.457468066e+12 | SU49: 2.531192108e+12 | SV49: 2.607127871e+12 | SW49: =SW45 -> 2.685341707e+12 | SX49: 2.765901959e+12 | SY49: 2.848879017e+12 | SZ49: 2.934345388e+12 | TA49: 3.02237575e+12 | TB49: 3.113047022e+12 | TC49: 3.206438433e+12 | TD49: 3.302631586e+12 | TE49: 3.401710533e+12 | TF49: 3.503761849e+12 | TG49: 3.608874705e+12 | TH49: 3.717140946e+12 | TI49: 3.828655174e+12 | TJ49: 3.943514829e+12 | TK49: 4.061820274e+12 | TL49: 4.183674883e+12 | TM49: 4.309185129e+12 | TN49: 4.438460683e+12 | TO49: 4.571614503e+12 | TP49: 4.708762938e+12 | TQ49: 4.850025827e+12 | TR49: 4.995526601e+12 | TS49: 5.145392399e+12 | TT49: 5.299754171e+12 | TU49: 5.458746797e+12 | TV49: 5.622509201e+12 | TW49: 5.791184477e+12 | TX49: 5.964920011e+12 | TY49: 6.143867611e+12 | TZ49: 6.328183639e+12 | UA49: 6.518029149e+12 | UB49: 6.713570023e+12 | UC49: 6.914977124e+12 | UD49: 7.122426438e+12 | UE49: 7.336099231e+12 | UF49: 7.556182208e+12 | UG49: 7.782867674e+12 | UH49: 8.016353704e+12 | UI49: 8.256844315e+12 | UJ49: 8.504549645e+12 | UK49: 8.759686134e+12 | UL49: 9.022476718e+12 | UM49: 9.293151019e+12 | UN49: 9.57194555e+12 | UO49: 9.859103917e+12 | UP49: 1.015487703e+13 | UQ49: 1.045952335e+13 | UR49: 1.077330905e+13 | US49: 1.109650832e+13 | UT49: 1.142940357e+13 | UU49: 1.177228567e+13 | UV49: 1.212545424e+13 | UW49: 1.248921787e+13 | UX49: 1.286389441e+13 | UY49: 1.324981124e+13
C50: Less: Retirements | E50: =E39 -> 0 | F50: 0 | G50: 0 | H50: 0 | I50: 0 | J50: 0 | K50: 0 | L50: 0 | M50: 0 | N50: 0 | O50: 0 | P50: 0 | Q50: 0 | R50: 0 | S50: 0 | T50: 0 | U50: 0 | V50: 0 | W50: 0 | X50: 0 | Y50: 0 | Z50: 0 | AA50: 0 | AB50: 0 | AC50: 0 | AD50: 0 | AE50: 0 | AF50: 0 | AG50: 0 | AH50: 0 | AI50: -10000 | AJ50: -10000 | AK50: -10000 | AL50: -10000 | AM50: -10000 | AN50: -10000 | AO50: -9000 | AP50: -10350 | AQ50: -11902.5 | AR50: -13687.875 | AS50: -15741.05625 | AT50: -18102.21469 | AU50: -20817.54689 | AV50: -23940.17892 | AW50: -27531.20576 | AX50: -31660.88663 | AY50: -36410.01962 | AZ50: -41871.52256 | BA50: -48152.25095 | BB50: -55375.08859 | BC50: -63681.35188 | BD50: -73233.55466 | BE50: -84218.58786 | BF50: -96851.37604 | BG50: -111379.0824 | BH50: -128085.9448 | BI50: -147298.8365 | BJ50: -169393.662 | BK50: -194802.7113 | BL50: -224023.118 | BM50: -267626.5857 | BN50: -306270.5736 | BO50: -350711.1596 | BP50: -401817.8336 | BQ50: =BQ39 -> -460590.5086 | BR50: -528179.0849 | BS50: -604905.9476 | BT50: -695641.8398 | BU50: -799988.1157 | BV50: -919986.3331 | BW50: -1057984.283 | BX50: -1216681.925 | BY50: -1399184.214 | BZ50: -1609061.846 | CA50: -1850421.123 | CB50: -2127984.292 | CC50: -2447181.936 | CD50: -2814259.226 | CE50: -3236398.11 | CF50: -3721857.827 | CG50: -4280136.5 | CH50: -4922156.976 | CI50: -5660480.522 | CJ50: -6509552.6 | CK50: -7485985.49 | CL50: -8608883.314 | CM50: -9900215.811 | CN50: -11385248.18 | CO50: -13093035.41 | CP50: -15056990.72 | CQ50: -17325539.33 | CR50: -4229590.505 | CS50: -4391730.689 | CT50: -4564067.948 | CU50: -4747708.127 | CV50: -4943910.232 | CW50: -5153109.029 | CX50: -5380291.013 | CY50: -5625176.765 | CZ50: -5889930.641 | DA50: -6177026.921 | DB50: -6489295.842 | DC50: -6829976.549 | DD50: -7202777.951 | DE50: -7611948.711 | DF50: -8062357.707 | DG50: -8559586.553 | DH50: -9110035.982 | DI50: -9721048.169 | DJ50: -10401047.39 | DK50: -11159701.75 | DL50: -12008109.18 | DM50: -12959011.29 | DN50: -14027039.29 | DO50: -15228996.78 | DP50: -16584184.95 | DQ50: -18114776.49 | DR50: -19846245.69 | DS50: -21807862.84 | DT50: -24033262.97 | DU50: -26571099.75 | DV50: -13752517.74 | DW50: -14200345.74 | DX50: -14666941.45 | DY50: -15153667.83 | DZ50: -15662048.73 | EA50: -16192791.68 | EB50: -16751164.14 | EC50: =EC39 -> -17337176.09 | ED50: -17953289.95 | EE50: -18602287 | EF50: -19287313.73 | EG50: -20011934.97 | EH50: -20780195.13 | EI50: -21596688.4 | EJ50: -22466639.59 | EK50: -23395996.89 | EL50: -24391538.63 | EM50: -25460995.89 | EN50: -26613193.54 | EO50: -27858212.29 | EP50: -29207575.04 | EQ50: -30674461.13 | ER50: -32273952.62 | ES50: -34023317.51 | ET50: -35942335.3 | EU50: -38053671.36 | EV50: -40383307.39 | EW50: -42961036.4 | EX50: -45821031.74 | EY50: -49012501.58 | EZ50: -36867161.62 | FA50: -38008428.94 | FB50: -39189267.14 | FC50: -40411663.3 | FD50: -41677784.06 | FE50: -42988999.07 | FF50: -44351257.76 | FG50: -45765272.51 | FH50: -47234229.26 | FI50: -48761654.5 | FJ50: -50351462.25 | FK50: -52008007.94 | FL50: -53736150.29 | FM50: -55541322.22 | FN50: -57429612.42 | FO50: -59407858.91 | FP50: -61483756.51 | FQ50: -63665980.31 | FR50: -65964327.49 | FS50: -68389880.26 | FT50: -70955193.04 | FU50: -73674507.67 | FV50: -76564000.56 | FW50: -79642066.89 | FX50: -82929647.16 | FY50: -86450602.57 | FZ50: -90232146.55 | GA50: -94305340.72 | GB50: -98705665.2 | GC50: -103483674 | GD50: -92972469.25 | GE50: -95796895.8 | GF50: -98711388.01 | GG50: -101719447.8 | GH50: -104824802.1 | GI50: -108030427.6 | GJ50: -111343929.2 | GK50: -114767724.1 | GL50: -118306754.4 | GM50: -121966355.4 | GN50: -125752304.1 | GO50: =GO39 -> -129670875.1 | GP50: -133728903.5 | GQ50: -137933858 | GR50: -142293924.3 | GS50: -146818100.1 | GT50: -151516304.9 | GU50: -156399505.2 | GV50: -161479858.1 | GW50: -166770876.8 | GX50: -172287619.5 | GY50: -178046906.9 | GZ50: -184067571.8 | HA50: -190370745.2 | HB50: -196980185.9 | HC50: -203922657.4 | HD50: -211228363.1 | HE50: -218931443.7 | HF50: -227070551.3 | HG50: -235699506.7 | HH50: -229154776.9 | HI50: -236064672.7 | HJ50: -243187198.2 | HK50: -250529532.3 | HL50: -258099189.1 | HM50: -265903046.3 | HN50: -273952726.4 | HO50: -282254785.2 | HP50: -290818427.3 | HQ50: -299653378.5 | HR50: -308769938 | HS50: -318179037.9 | HT50: -327892311.2 | HU50: -337922168 | HV50: -348281883.5 | HW50: -358985698.1 | HX50: -370048930.9 | HY50: -381488110 | HZ50: -393321121 | IA50: -405567377.6 | IB50: -418248015.3 | IC50: -431386114.6 | ID50: -445006955.7 | IE50: -459138310.7 | IF50: -473810778.3 | IG50: -489058167.6 | IH50: -504917938.5 | II50: -521431706.5 | IJ50: -538645821.9 | IK50: -556622035.5 | IL50: -559704981.5 | IM50: -576531383.4 | IN50: -593867910.3 | IO50: -611730665.7 | IP50: -630136356.6 | IQ50: -649101328.7 | IR50: -668646957.3 | IS50: -688789843.1 | IT50: -709549536.9 | IU50: -730946421.4 | IV50: -753001772.2 | IW50: -775737827.1 | IX50: -799177864.1 | IY50: -823346287.4 | IZ50: -848268726.6 | JA50: =JA39 -> -873972146.5 | JB50: -900484972.7 | JC50: -927837233 | JD50: -956060717.8 | JE50: -985189162.2 | JF50: -1015258453 | JG50: -1046306866 | JH50: -1078375330 | JI50: -1111507736 | JJ50: -1145751286 | JK50: -1181156891 | JL50: -1217779623 | JM50: -1255679242 | JN50: -1294920783 | JO50: -1335585246 | JP50: -1362037088 | JQ50: -1402933453 | JR50: -1445062042 | JS50: -1488460621 | JT50: -1533168211 | JU50: -1579224139 | JV50: -1626673452 | JW50: -1675557132 | JX50: -1725919845 | JY50: -1777807838 | JZ50: -1831269032 | KA50: -1886353105 | KB50: -1943111600 | KC50: -2001598035 | KD50: -2061868027 | KE50: -2123979426 | KF50: -2187992470 | KG50: -2253969956 | KH50: -2321977422 | KI50: -2392083368 | KJ50: -2464359485 | KK50: -2538880928 | KL50: -2615726614 | KM50: -2694979559 | KN50: -2776727264 | KO50: -2861062148 | KP50: -2948082038 | KQ50: -3037890729 | KR50: -3130598615 | KS50: -3226333412 | KT50: -3309507700 | KU50: -3408828183 | KV50: -3511133614 | KW50: -3616514340 | KX50: -3725063541 | KY50: -3836876329 | KZ50: -3952055208 | LA50: -4070700341 | LB50: -4192917350 | LC50: -4318815269 | LD50: -4448506685 | LE50: -4582107887 | LF50: -4719739026 | LG50: -4861524284 | LH50: -5007592063 | LI50: -5158075183 | LJ50: -5313111101 | LK50: -5472842145 | LL50: -5637415777 | LM50: =LM39 -> -5806984873 | LN50: -5981708036 | LO50: -6161749936 | LP50: -6347281691 | LQ50: -6538481288 | LR50: -6735534045 | LS50: -6938633133 | LT50: -7147980152 | LU50: -7363785787 | LV50: -7586270525 | LW50: -7815675479 | LX50: -8036530029 | LY50: -8277661182 | LZ50: -8526031603 | MA50: -8781859269 | MB50: -9045368818 | MC50: -9316790764 | MD50: -9596367076 | ME50: -9884341565 | MF50: -1.018096781e+10 | MG50: -1.048650724e+10 | MH50: -1.080122942e+10 | MI50: -1.11254123e+10 | MJ50: -1.145934257e+10 | MK50: -1.180331594e+10 | ML50: -1.215763747e+10 | MM50: -1.252262195e+10 | MN50: -1.289859427e+10 | MO50: -1.328588981e+10 | MP50: -1.368485487e+10 | MQ50: -1.409584714e+10 | MR50: -1.451923617e+10 | MS50: -1.495540391e+10 | MT50: -1.540474529e+10 | MU50: -1.586766879e+10 | MV50: -1.634459718e+10 | MW50: -1.683596816e+10 | MX50: -1.734223523e+10 | MY50: -1.786386852e+10 | MZ50: -1.840135574e+10 | NA50: -1.895521325e+10 | NB50: -1.951025393e+10 | NC50: -2.00955968e+10 | ND50: -2.069850529e+10 | NE50: -2.131950717e+10 | NF50: -2.195914615e+10 | NG50: -2.261798142e+10 | NH50: -2.329659345e+10 | NI50: -2.399557473e+10 | NJ50: -2.471553797e+10 | NK50: -2.545711451e+10 | NL50: -2.62209549e+10 | NM50: -2.700772955e+10 | NN50: -2.781812934e+10 | NO50: -2.86528663e+10 | NP50: -2.951267434e+10 | NQ50: -3.039830993e+10 | NR50: -3.131055289e+10 | NS50: -3.225020719e+10 | NT50: -3.321810177e+10 | NU50: -3.421509145e+10 | NV50: -3.524205781e+10 | NW50: -3.62999102e+10 | NX50: -3.738958677e+10 | NY50: =NY39 -> -3.851205552e+10 | NZ50: -3.96683155e+10 | OA50: -4.085939803e+10 | OB50: -4.2086368e+10 | OC50: -4.335032527e+10 | OD50: -4.465240619e+10 | OE50: -4.599379521e+10 | OF50: -4.735999336e+10 | OG50: -4.878082841e+10 | OH50: -5.024429385e+10 | OI50: -5.175166938e+10 | OJ50: -5.330427323e+10 | OK50: -5.490346231e+10 | OL50: -5.655063877e+10 | OM50: -5.824724141e+10 | ON50: -5.999475465e+10 | OO50: -6.179470769e+10 | OP50: -6.364867588e+10 | OQ50: -6.555828215e+10 | OR50: -6.752519852e+10 | OS50: -6.955114756e+10 | OT50: -7.163790404e+10 | OU50: -7.378729652e+10 | OV50: -7.600120908e+10 | OW50: -7.828158306e+10 | OX50: -8.063041892e+10 | OY50: -8.304977811e+10 | OZ50: -8.554178507e+10 | PA50: -8.810862928e+10 | PB50: -9.075256742e+10 | PC50: -9.347592559e+10 | PD50: -9.628110167e+10 | PE50: -9.917056779e+10 | PF50: -1.021468728e+11 | PG50: -1.052126453e+11 | PH50: -1.083705958e+11 | PI50: -1.116235305e+11 | PJ50: -1.149586207e+11 | PK50: -1.184074146e+11 | PL50: -1.219596776e+11 | PM50: -1.256185146e+11 | PN50: -1.293871239e+11 | PO50: -1.332687984e+11 | PP50: -1.37266935e+11 | PQ50: -1.413850265e+11 | PR50: -1.456266733e+11 | PS50: -1.499955839e+11 | PT50: -1.544955784e+11 | PU50: -1.591305917e+11 | PV50: -1.639046774e+11 | PW50: -1.688220108e+11 | PX50: -1.738868932e+11 | PY50: -1.791037553e+11 | PZ50: -1.844771617e+11 | QA50: -1.900118142e+11 | QB50: -1.95712557e+11 | QC50: -2.015843803e+11 | QD50: -2.076324254e+11 | QE50: -2.138619888e+11 | QF50: -2.202785277e+11 | QG50: -2.268876647e+11 | QH50: -2.336951929e+11 | QI50: -2.407070818e+11 | QJ50: -2.479294823e+11 | QK50: =QK39 -> -2.55368733e+11 | QL50: -2.630313661e+11 | QM50: -2.70924124e+11 | QN50: -2.79038232e+11 | QO50: -2.874094142e+11 | QP50: -2.960317372e+11 | QQ50: -3.04912736e+11 | QR50: -3.140601719e+11 | QS50: -3.234820379e+11 | QT50: -3.331865716e+11 | QU50: -3.431822523e+11 | QV50: -3.534778158e+11 | QW50: -3.640822607e+11 | QX50: -3.750048555e+11 | QY50: -3.862551471e+11 | QZ50: -3.978429695e+11 | RA50: -4.097784516e+11 | RB50: -4.220720272e+11 | RC50: -4.347344434e+11 | RD50: -4.477767704e+11 | RE50: -4.612104112e+11 | RF50: -4.750471119e+11 | RG50: -4.892989719e+11 | RH50: -5.039784546e+11 | RI50: -5.190983989e+11 | RJ50: -5.346720302e+11 | RK50: -5.507129722e+11 | RL50: -5.672352597e+11 | RM50: -5.842533506e+11 | RN50: -6.017821391e+11 | RO50: -6.198369695e+11 | RP50: -6.384336497e+11 | RQ50: -6.575884761e+11 | RR50: -6.773025146e+11 | RS50: -6.976216253e+11 | RT50: -7.185503147e+11 | RU50: -7.401068708e+11 | RV50: -7.623101307e+11 | RW50: -7.851794955e+11 | RX50: -8.08734953e+11 | RY50: -8.329970851e+11 | RZ50: -8.579870936e+11 | SA50: -8.837268168e+11 | SB50: -9.102387483e+11 | SC50: -9.375460567e+11 | SD50: -9.656726063e+11 | SE50: -9.946429776e+11 | SF50: -1.024482489e+12 | SG50: -1.055217219e+12 | SH50: -1.086874029e+12 | SI50: -1.119480588e+12 | SJ50: -1.153065394e+12 | SK50: -1.187657802e+12 | SL50: -1.22328805e+12 | SM50: -1.259987282e+12 | SN50: -1.29778758e+12 | SO50: -1.336721988e+12 | SP50: -1.376824546e+12 | SQ50: -1.418130316e+12 | SR50: -1.460675413e+12 | SS50: -1.504497042e+12 | ST50: -1.549633524e+12 | SU50: -1.596124347e+12 | SV50: -1.643994462e+12 | SW50: =SW39 -> -1.693314331e+12 | SX50: -1.744113801e+12 | SY50: -1.796437262e+12 | SZ50: -1.850330434e+12 | TA50: -1.905840408e+12 | TB50: -1.963015692e+12 | TC50: -2.021906247e+12 | TD50: -2.08256353e+12 | TE50: -2.145040546e+12 | TF50: -2.20939189e+12 | TG50: -2.275673792e+12 | TH50: -2.343944174e+12 | TI50: -2.414262692e+12 | TJ50: -2.486690795e+12 | TK50: -2.561291774e+12 | TL50: -2.638130821e+12 | TM50: -2.717275084e+12 | TN50: -2.798793724e+12 | TO50: -2.882757983e+12 | TP50: -2.969241236e+12 | TQ50: -3.058319064e+12 | TR50: -3.150069315e+12 | TS50: -3.244572175e+12 | TT50: -3.341910239e+12 | TU50: -3.442168579e+12 | TV50: -3.545434825e+12 | TW50: -3.651799236e+12 | TX50: -3.761354784e+12 | TY50: -3.874197244e+12 | TZ50: -3.990409546e+12 | UA50: -4.110121867e+12 | UB50: -4.233425564e+12 | UC50: -4.360428378e+12 | UD50: -4.491241283e+12 | UE50: -4.625978582e+12 | UF50: -4.764758012e+12 | UG50: -4.907700836e+12 | UH50: -5.054931957e+12 | UI50: -5.206580026e+12 | UJ50: -5.362777554e+12 | UK50: -5.523661027e+12 | UL50: -5.689371025e+12 | UM50: -5.860052349e+12 | UN50: -6.035854142e+12 | UO50: -6.216930021e+12 | UP50: -6.403438216e+12 | UQ50: -6.5955417e+12 | UR50: -6.793408339e+12 | US50: -6.997211036e+12 | UT50: -7.207127881e+12 | UU50: -7.423342308e+12 | UV50: -7.646043256e+12 | UW50: -7.875425335e+12 | UX50: -8.111688993e+12 | UY50: -8.355040696e+12
C51: Closing Balance | E51: =SUM(E48:E50) -> 0 | F51: 333.3333333 | G51: 1000 | H51: 2000 | I51: 3333.333333 | J51: 5000 | K51: 7000 | L51: 9300 | M51: 11945 | N51: 14986.75 | O51: 18484.7625 | P51: 22507.47687 | Q51: 27133.59841 | R51: 32453.63817 | S51: 38571.68389 | T51: 45607.43648 | U51: 53698.55195 | V51: 63003.33474 | W51: 73703.83495 | X51: 86009.41019 | Y51: 100160.8217 | Z51: 116434.945 | AA51: 135150.1867 | AB51: 156672.7147 | AC51: 181423.6219 | AD51: 209887.1652 | AE51: 242620.24 | AF51: 280263.276 | AG51: 323552.7674 | AH51: 373335.6825 | AI51: 420586.0349 | AJ51: 476423.9402 | AK51: 542137.5312 | AL51: 619208.1609 | AM51: 709339.385 | AN51: 814490.2928 | AO51: 937913.8367 | AP51: 1079850.912 | AQ51: 1243078.549 | AR51: 1430790.331 | AS51: 1646658.881 | AT51: 1894907.713 | AU51: 2180393.87 | AV51: 2508702.951 | AW51: 2886258.393 | AX51: 3320447.152 | AY51: 3819764.225 | AZ51: 4393978.859 | BA51: 5054325.688 | BB51: 5813724.541 | BC51: 6687033.222 | BD51: 7691338.205 | BE51: 8846288.936 | BF51: 10174482.28 | BG51: 11701904.62 | BH51: 13458440.31 | BI51: 15478456.36 | BJ51: 17801474.81 | BK51: 20472946.03 | BL51: 23545137.94 | BM51: 27068158.63 | BN51: 31121132.42 | BO51: 35260442.96 | BP51: 39483347.48 | BQ51: =SUM(BQ48:BQ50) -> 43786220.99 | BR51: 48164409.85 | BS51: 52613062.88 | BT51: 57122586.79 | BU51: 61683919.39 | BV51: 66286093.4 | BW51: 70915934.27 | BX51: 75557712.25 | BY51: 80192741.74 | BZ51: 84798920.01 | CA51: 89350196.21 | CB51: 93815960.16 | CC51: 98160338.91 | CD51: 102341387.2 | CE51: 106310155.8 | CF51: 110009619.7 | CG51: 113373444.6 | CH51: 116324567.9 | CI51: 118773566 | CJ51: 120616776.4 | CK51: 121734136.8 | CL51: 121986699.7 | CM51: 121213773.5 | CN51: 119229633.7 | CO51: 115819739.9 | CP51: 110736385 | CQ51: 103683690.6 | CR51: 110035130.3 | CS51: 116541860.8 | CT51: 123203207.8 | CU51: 130017677.2 | CV51: 136982809.7 | CW51: 144096014.7 | CX51: 151350027.2 | CY51: 158738183 | CZ51: 166251984.9 | DA51: 173880802.5 | DB51: 181611526.6 | DC51: 189428170.5 | DD51: 197311411.6 | DE51: 205238062.6 | DF51: 213180462.5 | DG51: 221105776.3 | DH51: 228975187.7 | DI51: 236742970.4 | DJ51: 244355418.7 | DK51: 251749617.6 | DL51: 258852026 | DM51: 265576847.9 | DN51: 271824156.7 | DO51: 277477738.5 | DP51: 282402609.5 | DQ51: 286442160.7 | DR51: 289414872.4 | DS51: 291110535.8 | DT51: 291285904.7 | DU51: 289649695.9 | DV51: 301580115.8 | DW51: 313833195.9 | DX51: 326413283 | DY51: 339324054.6 | DZ51: 352568378.4 | EA51: 366149150.5 | EB51: 380064757 | EC51: =SUM(EC48:EC50) -> 394314354.8 | ED51: 408895441.8 | EE51: 423803563.2 | EF51: 439031970 | EG51: 454571227.2 | EH51: 470408760.1 | EI51: 486528331.5 | EJ51: 502909439.5 | EK51: 519526622.6 | EL51: 536348659.4 | EM51: 553337646.2 | EN51: 570447934.8 | EO51: 587624909.1 | EP51: 604803576.3 | EQ51: 621906944.7 | ER51: 638844156.4 | ES51: 655508338.2 | ET51: 671774127.2 | EU51: 687494823.9 | EV51: 702499115.5 | EW51: 716587306.2 | EX51: 729526978.3 | EY51: 741038001.7 | EZ51: 766510070.7 | FA51: 792711049.4 | FB51: 819657472.1 | FC51: 847365569.4 | FD51: 875851138.7 | FE51: 905130393.6 | FF51: 935215437.4 | FG51: 966119555.6 | FH51: 997854798.7 | FI51: 1030431701 | FJ51: 1063858952 | FK51: 1098143018 | FL51: 1133287705 | FM51: 1169293645 | FN51: 1206157712 | FO51: 1243872343 | FP51: 1282424752 | FQ51: 1321796021 | FR51: 1361960061 | FS51: 1402882399 | FT51: 1444518791 | FU51: 1486813616 | FV51: 1529698028 | FW51: 1573087826 | FX51: 1616880999 | FY51: 1660954902 | FZ51: 1705162996 | GA51: 1749331103 | GB51: 1793253089 | GC51: 1836675896 | GD51: 1895017102 | GE51: 1955073292 | GF51: 2016890582 | GG51: 2080515672 | GH51: 2145995745 | GI51: 2213379338 | GJ51: 2282711850 | GK51: 2354040860 | GL51: 2427413743 | GM51: 2502877413 | GN51: 2580478035 | GO51: =SUM(GO48:GO50) -> 2660260674 | GP51: 2742268891 | GQ51: 2826544266 | GR51: 2913125852 | GS51: 3002049527 | GT51: 3093347251 | GU51: 3187046196 | GV51: 3283167741 | GW51: 3381726310 | GX51: 3482728019 | GY51: 3586169120 | GZ51: 3692034197 | HA51: 3800294081 | HB51: 3910903442 | HC51: 4023798018 | HD51: 4138891405 | HE51: 4256071365 | HF51: 4375195559 | HG51: 4496076639 | HH51: 4634199868 | HI51: 4776431540 | HJ51: 4922889578 | HK51: 5073694638 | HL51: 5228970079 | HM51: 5388842902 | HN51: 5553439322 | HO51: 5722890156 | HP51: 5897328517 | HQ51: 6076889631 | HR51: 6261710620 | HS51: 6451930237 | HT51: 6647688540 | HU51: 6849126504 | HV51: 7056385558 | HW51: 7269607024 | HX51: 7488931473 | HY51: 7714497944 | HZ51: 7946443042 | IA51: 8184899869 | IB51: 8429996785 | IC51: 8681855950 | ID51: 8940591632 | IE51: 9206308238 | IF51: 9479098024 | IG51: 9759038438 | IH51: 1.004618904e+10 | II51: 1.034058793e+10 | IJ51: 1.064224762e+10 | IK51: 1.095114026e+10 | IL51: 1.12829154e+10 | IM51: 1.162460853e+10 | IN51: 1.197651188e+10 | IO51: 1.233892561e+10 | IP51: 1.271215798e+10 | IQ51: 1.309652644e+10 | IR51: 1.349235337e+10 | IS51: 1.389997162e+10 | IT51: 1.431972243e+10 | IU51: 1.475195536e+10 | IV51: 1.519702832e+10 | IW51: 1.565530747e+10 | IX51: 1.612716709e+10 | IY51: 1.661298941e+10 | IZ51: 1.711316435e+10 | JA51: =SUM(JA48:JA50) -> 1.762808918e+10 | JB51: 1.815816809e+10 | JC51: 1.870381166e+10 | JD51: 1.926543617e+10 | JE51: 1.984346279e+10 | JF51: 2.04383166e+10 | JG51: 2.105042536e+10 | JH51: 2.168021812e+10 | JI51: 2.232812352e+10 | JJ51: 2.299456777e+10 | JK51: 2.367997227e+10 | JL51: 2.438475089e+10 | JM51: 2.510930663e+10 | JN51: 2.585402788e+10 | JO51: 2.661927393e+10 | JP51: 2.742109308e+10 | JQ51: 2.824693155e+10 | JR51: 2.909750459e+10 | JS51: 2.99735481e+10 | JT51: 3.087581914e+10 | JU51: 3.180509744e+10 | JV51: 3.276218149e+10 | JW51: 3.374789459e+10 | JX51: 3.476308309e+10 | JY51: 3.580861684e+10 | JZ51: 3.688538964e+10 | KA51: 3.799431963e+10 | KB51: 3.913634961e+10 | KC51: 4.031244741e+10 | KD51: 4.152360609e+10 | KE51: 4.277084417e+10 | KF51: 4.405520574e+10 | KG51: 4.537776044e+10 | KH51: 4.673960341e+10 | KI51: 4.814185505e+10 | KJ51: 4.958566062e+10 | KK51: 5.10721897e+10 | KL51: 5.260263539e+10 | KM51: 5.417821331e+10 | KN51: 5.580016025e+10 | KO51: 5.746973253e+10 | KP51: 5.918820395e+10 | KQ51: 6.095686329e+10 | KR51: 6.277701124e+10 | KS51: 6.464994679e+10 | KT51: 6.659268613e+10 | KU51: 6.859367239e+10 | KV51: 7.065464765e+10 | KW51: 7.277740545e+10 | KX51: 7.496379222e+10 | KY51: 7.72157097e+10 | KZ51: 7.953511213e+10 | LA51: 8.192401315e+10 | LB51: 8.43844852e+10 | LC51: 8.691866101e+10 | LD51: 8.952873514e+10 | LE51: 9.221696549e+10 | LF51: 9.498567485e+10 | LG51: 9.783725241e+10 | LH51: 1.007741552e+11 | LI51: 1.037989098e+11 | LJ51: 1.069141133e+11 | LK51: 1.101224353e+11 | LL51: 1.134266185e+11 | LM51: =SUM(LM48:LM50) -> 1.168294806e+11 | LN51: 1.203339149e+11 | LO51: 1.239428916e+11 | LP51: 1.276594584e+11 | LQ51: 1.31486741e+11 | LR51: 1.354279437e+11 | LS51: 1.394863495e+11 | LT51: 1.436653195e+11 | LU51: 1.479682923e+11 | LV51: 1.523987831e+11 | LW51: 1.569603718e+11 | LX51: 1.616724239e+11 | LY51: 1.665258023e+11 | LZ51: 1.715247414e+11 | MA51: 1.76673602e+11 | MB51: 1.819768747e+11 | MC51: 1.874391847e+11 | MD51: 1.930652913e+11 | ME51: 1.988600977e+11 | MF51: 2.048286523e+11 | MG51: 2.109761531e+11 | MH51: 2.17307952e+11 | MI51: 2.238295589e+11 | MJ51: 2.30546646e+11 | MK51: 2.374650527e+11 | ML51: 2.445907896e+11 | MM51: 2.519300432e+11 | MN51: 2.594891807e+11 | MO51: 2.672747546e+11 | MP51: 2.752935074e+11 | MQ51: 2.835523762e+11 | MR51: 2.920584974e+11 | MS51: 3.008192116e+11 | MT51: 3.098420679e+11 | MU51: 3.191348288e+11 | MV51: 3.287054742e+11 | MW51: 3.385622059e+11 | MX51: 3.487134516e+11 | MY51: 3.591678683e+11 | MZ51: 3.699343464e+11 | NA51: 3.81022002e+11 | NB51: 3.92455903e+11 | NC51: 4.042327858e+11 | ND51: 4.163629345e+11 | NE51: 4.288569409e+11 | NF51: 4.417257137e+11 | NG51: 4.549804888e+11 | NH51: 4.686328346e+11 | NI51: 4.826946673e+11 | NJ51: 4.97178259e+11 | NK51: 5.12096248e+11 | NL51: 5.274616498e+11 | NM51: 5.432878676e+11 | NN51: 5.59588704e+11 | NO51: 5.763783724e+11 | NP51: 5.936715088e+11 | NQ51: 6.11483184e+11 | NR51: 6.298289158e+11 | NS51: 6.487246818e+11 | NT51: 6.681869324e+11 | NU51: 6.882326039e+11 | NV51: 7.088791319e+11 | NW51: 7.301444651e+11 | NX51: 7.520470791e+11 | NY51: =SUM(NY48:NY50) -> 7.746059903e+11 | NZ51: 7.978407706e+11 | OA51: 8.217715612e+11 | OB51: 8.464190875e+11 | OC51: 8.718046733e+11 | OD51: 8.979502556e+11 | OE51: 9.248783884e+11 | OF51: 9.52627981e+11 | OG51: 9.812100261e+11 | OH51: 1.010649492e+12 | OI51: 1.040972095e+12 | OJ51: 1.072204323e+12 | OK51: 1.104373456e+12 | OL51: 1.137507591e+12 | OM51: 1.171635666e+12 | ON51: 1.206787488e+12 | OO51: 1.242993754e+12 | OP51: 1.280286081e+12 | OQ51: 1.318697031e+12 | OR51: 1.358260143e+12 | OS51: 1.399009954e+12 | OT51: 1.440982038e+12 | OU51: 1.484213029e+12 | OV51: 1.528740656e+12 | OW51: 1.574603775e+12 | OX51: 1.621842398e+12 | OY51: 1.670497733e+12 | OZ51: 1.720612215e+12 | PA51: 1.772229541e+12 | PB51: 1.825394707e+12 | PC51: 1.880154047e+12 | PD51: 1.936555269e+12 | PE51: 1.994647495e+12 | PF51: 2.054481299e+12 | PG51: 2.116108751e+12 | PH51: 2.179583456e+12 | PI51: 2.244960585e+12 | PJ51: 2.312312643e+12 | PK51: 2.381685228e+12 | PL51: 2.45313895e+12 | PM51: 2.526736237e+12 | PN51: 2.602541389e+12 | PO51: 2.680620634e+12 | PP51: 2.761042184e+12 | PQ51: 2.843876298e+12 | PR51: 2.929195338e+12 | PS51: 3.01707384e+12 | PT51: 3.107588569e+12 | PU51: 3.200818594e+12 | PV51: 3.296845353e+12 | PW51: 3.39575272e+12 | PX51: 3.497627087e+12 | PY51: 3.60255743e+12 | PZ51: 3.710635389e+12 | QA51: 3.821955349e+12 | QB51: 3.93661452e+12 | QC51: 4.054713019e+12 | QD51: 4.176353959e+12 | QE51: 4.301643538e+12 | QF51: 4.430691124e+12 | QG51: 4.563609356e+12 | QH51: 4.700514237e+12 | QI51: 4.841525232e+12 | QJ51: 4.986765368e+12 | QK51: =SUM(QK48:QK50) -> 5.136361343e+12 | QL51: 5.290443625e+12 | QM51: 5.449146559e+12 | QN51: 5.612624197e+12 | QO51: 5.781006128e+12 | QP51: 5.954439477e+12 | QQ51: 6.13307578e+12 | QR51: 6.317071118e+12 | QS51: 6.506586255e+12 | QT51: 6.701786774e+12 | QU51: 6.902843225e+12 | QV51: 7.109931273e+12 | QW51: 7.323231853e+12 | QX51: 7.542931323e+12 | QY51: 7.769221631e+12 | QZ51: 8.00230048e+12 | RA51: 8.242371502e+12 | RB51: 8.489644432e+12 | RC51: 8.744335295e+12 | RD51: 9.00666659e+12 | RE51: 9.276867486e+12 | RF51: 9.555174021e+12 | RG51: 9.841829305e+12 | RH51: 1.013708373e+13 | RI51: 1.044119521e+13 | RJ51: 1.075442934e+13 | RK51: 1.107705972e+13 | RL51: 1.140936811e+13 | RM51: 1.175164472e+13 | RN51: 1.210418844e+13 | RO51: 1.246730711e+13 | RP51: 1.284131777e+13 | RQ51: 1.322654692e+13 | RR51: 1.362334657e+13 | RS51: 1.403205018e+13 | RT51: 1.445301485e+13 | RU51: 1.488660841e+13 | RV51: 1.533320973e+13 | RW51: 1.579320902e+13 | RX51: 1.626700822e+13 | RY51: 1.675502132e+13 | RZ51: 1.725767471e+13 | SA51: 1.777540759e+13 | SB51: 1.830867234e+13 | SC51: 1.885793487e+13 | SD51: 1.942367512e+13 | SE51: 2.000638738e+13 | SF51: 2.060658079e+13 | SG51: 2.122477974e+13 | SH51: 2.186152437e+13 | SI51: 2.2517371e+13 | SJ51: 2.319289264e+13 | SK51: 2.388867948e+13 | SL51: 2.460533942e+13 | SM51: 2.534349856e+13 | SN51: 2.61038018e+13 | SO51: 2.688691335e+13 | SP51: 2.769351735e+13 | SQ51: 2.852431844e+13 | SR51: 2.938004237e+13 | SS51: 3.026143665e+13 | ST51: 3.11692712e+13 | SU51: 3.210433896e+13 | SV51: 3.306747237e+13 | SW51: =SUM(SW48:SW50) -> 3.405949974e+13 | SX51: 3.50812879e+13 | SY51: 3.613372966e+13 | SZ51: 3.721774461e+13 | TA51: 3.833427995e+13 | TB51: 3.948431128e+13 | TC51: 4.066884347e+13 | TD51: 4.188891152e+13 | TE51: 4.314558151e+13 | TF51: 4.443995147e+13 | TG51: 4.577315238e+13 | TH51: 4.714634915e+13 | TI51: 4.856074164e+13 | TJ51: 5.001756567e+13 | TK51: 5.151809417e+13 | TL51: 5.306363823e+13 | TM51: 5.465554828e+13 | TN51: 5.629521524e+13 | TO51: 5.798407176e+13 | TP51: 5.972359346e+13 | TQ51: 6.151530022e+13 | TR51: 6.336075751e+13 | TS51: 6.526157773e+13 | TT51: 6.721942166e+13 | TU51: 6.923599988e+13 | TV51: 7.131307426e+13 | TW51: 7.34524595e+13 | TX51: 7.565602473e+13 | TY51: 7.792569509e+13 | TZ51: 8.026346919e+13 | UA51: 8.267137647e+13 | UB51: 8.515152093e+13 | UC51: 8.770606967e+13 | UD51: 9.033725483e+13 | UE51: 9.304737548e+13 | UF51: 9.583879967e+13 | UG51: 9.871396651e+13 | UH51: 1.016753883e+14 | UI51: 1.047256525e+14 | UJ51: 1.078674246e+14 | UK51: 1.111034497e+14 | UL51: 1.144365554e+14 | UM51: 1.178696541e+14 | UN51: 1.214057455e+14 | UO51: 1.250479194e+14 | UP51: 1.287993582e+14 | UQ51: 1.326633399e+14 | UR51: 1.366432406e+14 | US51: 1.407425379e+14 | UT51: 1.449648135e+14 | UU51: 1.493137569e+14 | UV51: 1.537931679e+14 | UW51: 1.584069604e+14 | UX51: 1.631591659e+14 | UY51: 1.680539364e+14
C53: Net Plant Balance | E53: =E40-E51 -> 10000 | F53: 19666.66667 | G53: 29000 | H53: 38000 | I53: 46666.66667 | J53: 55000 | K53: 62000 | L53: 70050 | M53: 79307.5 | N53: 89953.625 | O53: 102196.6687 | P53: 116276.1691 | Q53: 132467.5944 | R53: 151087.7336 | S53: 172500.8936 | T53: 197126.0277 | U53: 225444.9318 | V53: 258011.6716 | W53: 295463.4223 | X53: 338532.9357 | Y53: 388062.876 | Z53: 445022.3074 | AA53: 510525.6535 | AB53: 585854.5016 | AC53: 672482.6768 | AD53: 772105.0783 | AE53: 886670.8401 | AF53: 1018421.466 | AG53: 1169934.686 | AH53: 1344174.889 | AI53: 1554551.122 | AJ53: 1794983.791 | AK53: 2069981.359 | AL53: 2384728.563 | AM53: 2745187.848 | AN53: 3158216.025 | AO53: 3630698.428 | AP53: 4174053.193 | AQ53: 4798911.171 | AR53: 5517497.847 | AS53: 6343872.524 | AT53: 7294203.403 | AU53: 8387083.913 | AV53: 9643896.5 | AW53: 11089230.98 | AX53: 12751365.62 | AY53: 14662820.47 | AZ53: 16860993.53 | BA53: 19388892.56 | BB53: 22295976.45 | BC53: 25639122.92 | BD53: 29483741.35 | BE53: 33905052.56 | BF53: 38989560.44 | BG53: 44836744.51 | BH53: 51561006.18 | BI53: 59293907.11 | BJ53: 68186743.18 | BK53: 78413504.66 | BL53: 90174280.35 | BM53: 103709172.4 | BN53: 103579518.5 | BO53: 103481227.5 | BP53: 103420573.1 | BQ53: =BQ40-BQ51 -> 103404817.2 | BR53: 103442359.5 | BS53: 103541909.6 | BT53: 103717034.8 | BU53: 103980890.9 | BV53: 104348661.2 | BW53: 104837863 | BX53: 105468698.9 | BY53: 106264461.7 | BZ53: 107251999.6 | CA53: 108462251 | CB53: 109930860.4 | CC53: 111698886.3 | CD53: 113813614.8 | CE53: 116329496.2 | CF53: 119309221.9 | CG53: 122824962.2 | CH53: 126959791.2 | CI53: 131809323.8 | CJ53: 137483600.1 | CK53: 144109251 | CL53: 151831989.7 | CM53: 160819476.6 | CN53: 171264613.9 | CO53: 183389335.2 | CP53: 197448962.3 | CQ53: 213747217.1 | CR53: 216918704.6 | CS53: 220220589.2 | CT53: 223662115.6 | CU53: 227253606 | CV53: 231006612 | CW53: 234933089.6 | CX53: 239049950.3 | CY53: 243373793.8 | CZ53: 247923351.2 | DA53: 252719793.6 | DB53: 257787087.5 | DC53: 263152402 | DD53: 268846578 | DE53: 274904666.8 | DF53: 281366548.7 | DG53: 288277645.2 | DH53: 295689736.5 | DI53: 303661901.6 | DJ53: 312261599.4 | DK53: 321565911.1 | DL53: 331662968.5 | DM53: 342653596.5 | DN53: 354653200.9 | DO53: 367793939.9 | DP53: 382227219.2 | DQ53: 398126562.9 | DR53: 415690912.9 | DS53: 435148423.1 | DT53: 456760822.9 | DU53: 480838433.5 | DV53: 492022657.5 | DW53: 503577660.7 | DX53: 515519899.3 | DY53: 527867123.2 | DZ53: 540638534.6 | EA53: 553853969.9 | EB53: 567538457 | EC53: =EC40-EC51 -> 581716955.7 | ED53: 596416808 | EE53: 611668054.1 | EF53: 627503795.8 | EG53: 643960611.5 | EH53: 661079033.9 | EI53: 678904096.3 | EJ53: 697485961.1 | EK53: 716880640 | EL53: 737150821.1 | EM53: 758366818.7 | EN53: 780607664.1 | EO53: 803962357.7 | EP53: 828531308.5 | EQ53: 854427986.7 | ER53: 881780822.9 | ES53: 910735390.4 | ET53: 941456913.3 | EU53: 974133147.9 | EV53: 1008977695 | EW53: 1046233809 | EX53: 1086178770 | EY53: 1129138919 | EZ53: 1159772158 | FA53: 1191359646 | FB53: 1223935344 | FC53: 1257535032 | FD53: 1292196480 | FE53: 1327958654 | FF53: 1364866282 | FG53: 1402964615 | FH53: 1442301897 | FI53: 1482929696 | FJ53: 1524903287 | FK53: 1568282087 | FL53: 1613130154 | FM53: 1659516750 | FN53: 1707516994 | FO53: 1757212604 | FP53: 1808692744 | FQ53: 1862055000 | FR53: 1917406490 | FS53: 1974865149 | FT53: 2034561183 | FU53: 2096638758 | FV53: 2161257917 | FW53: 2228596797 | FX53: 2298854163 | FY53: 2372252315 | FZ53: 2449040437 | GA53: 2529498433 | GB53: 2613941333 | GC53: 2702734359 | GD53: 2780575461 | GE53: 2860787048 | GF53: 2943445568 | GG53: 3028630562 | GH53: 3116424877 | GI53: 3206913902 | GJ53: 3300190188 | GK53: 3396348238 | GL53: 3495487029 | GM53: 3597710382 | GN53: 3703127393 | GO53: =GO40-GO51 -> 3811852917 | GP53: 3924008108 | GQ53: 4039721043 | GR53: 4159127416 | GS53: 4282371339 | GT53: 4409606241 | GU53: 4540995901 | GV53: 4676715619 | GW53: 4816953551 | GX53: 4961912238 | GY53: 5111810344 | GZ53: 5266884651 | HA53: 5427392333 | HB53: 5593613564 | HC53: 5765854498 | HD53: 5944450686 | HE53: 6129770990 | HF53: 6322222066 | HG53: 6522263514 | HH53: 6714690491 | HI53: 6912925529 | HJ53: 7117148204 | HK53: 7327544277 | HL53: 7544306003 | HM53: 7767631462 | HN53: 7997729274 | HO53: 8234813497 | HP53: 8479106246 | HQ53: 8730838175 | HR53: 8990249020 | HS53: 9257588193 | HT53: 9533115442 | HU53: 9817101597 | HV53: 1.010982939e+10 | HW53: 1.041159437e+10 | HX53: 1.072270596e+10 | HY53: 1.104348861e+10 | HZ53: 1.137428311e+10 | IA53: 1.171544807e+10 | IB53: 1.206736159e+10 | IC53: 1.243042318e+10 | ID53: 1.280505587e+10 | IE53: 1.319170869e+10 | IF53: 1.359085941e+10 | IG53: 1.400301772e+10 | IH53: 1.442872881e+10 | II53: 1.486857745e+10 | IJ53: 1.532319272e+10 | IK53: 1.579326329e+10 | IL53: 1.626382026e+10 | IM53: 1.674852919e+10 | IN53: 1.724781998e+10 | IO53: 1.77621362e+10 | IP53: 1.829193569e+10 | IQ53: 1.883769004e+10 | IR53: 1.939988961e+10 | IS53: 1.997903864e+10 | IT53: 2.057565814e+10 | IU53: 2.119028663e+10 | IV53: 2.182348093e+10 | IW53: 2.247581706e+10 | IX53: 2.314789117e+10 | IY53: 2.38403206e+10 | IZ53: 2.455374496e+10 | JA53: =JA40-JA51 -> 2.528882741e+10 | JB53: 2.604625599e+10 | JC53: 2.682674514e+10 | JD53: 2.763103734e+10 | JE53: 2.845990492e+10 | JF53: 2.931415215e+10 | JG53: 3.019461745e+10 | JH53: 3.110217597e+10 | JI53: 3.20377424e+10 | JJ53: 3.300227413e+10 | JK53: 3.399677488e+10 | JL53: 3.502229868e+10 | JM53: 3.607995442e+10 | JN53: 3.7170911e+10 | JO53: 3.829641312e+10 | JP53: 3.944206458e+10 | JQ53: 4.062212084e+10 | JR53: 4.183761938e+10 | JS53: 4.308962959e+10 | JT53: 4.437925387e+10 | JU53: 4.570762777e+10 | JV53: 4.707592547e+10 | JW53: 4.848535558e+10 | JX53: 4.993716459e+10 | JY53: 5.143263827e+10 | JZ53: 5.297310312e+10 | KA53: 5.455992791e+10 | KB53: 5.619452535e+10 | KC53: 5.78783538e+10 | KD53: 5.961291916e+10 | KE53: 6.139977684e+10 | KF53: 6.32405339e+10 | KG53: 6.513685139e+10 | KH53: 6.709044677e+10 | KI53: 6.910309664e+10 | KJ53: 7.117663962e+10 | KK53: 7.331297955e+10 | KL53: 7.551408893e+10 | KM53: 7.778201274e+10 | KN53: 8.011887259e+10 | KO53: 8.252687129e+10 | KP53: 8.500829798e+10 | KQ53: 8.75655337e+10 | KR53: 9.020105766e+10 | KS53: 9.291746418e+10 | KT53: 9.570174717e+10 | KU53: 9.856959391e+10 | KV53: 1.015235166e+11 | KW53: 1.045661038e+11 | KX53: 1.077000223e+11 | KY53: 1.109280192e+11 | KZ53: 1.142529287e+11 | LA53: 1.176776689e+11 | LB53: 1.212052473e+11 | LC53: 1.248387634e+11 | LD53: 1.28581412e+11 | LE53: 1.324364861e+11 | LF53: 1.364073803e+11 | LG53: 1.404975944e+11 | LH53: 1.44710737e+11 | LI53: 1.490505292e+11 | LJ53: 1.535208088e+11 | LK53: 1.581255346e+11 | LL53: 1.628687904e+11 | LM53: =LM40-LM51 -> 1.677547906e+11 | LN53: 1.727878844e+11 | LO53: 1.779725617e+11 | LP53: 1.833134585e+11 | LQ53: 1.888153634e+11 | LR53: 1.944832238e+11 | LS53: 2.00322153e+11 | LT53: 2.063374382e+11 | LU53: 2.125345481e+11 | LV53: 2.189191425e+11 | LW53: 2.254970916e+11 | LX53: 2.322587634e+11 | LY53: 2.392233206e+11 | LZ53: 2.463968551e+11 | MA53: 2.537856424e+11 | MB53: 2.613961471e+11 | MC53: 2.692350278e+11 | MD53: 2.773091475e+11 | ME53: 2.856255742e+11 | MF53: 2.941915898e+11 | MG53: 3.030146962e+11 | MH53: 3.121026228e+11 | MI53: 3.214633332e+11 | MJ53: 3.311050328e+11 | MK53: 3.410361765e+11 | ML53: 3.512654765e+11 | MM53: 3.618019109e+11 | MN53: 3.72654732e+11 | MO53: 3.838334754e+11 | MP53: 3.953479696e+11 | MQ53: 4.072083451e+11 | MR53: 4.194250455e+11 | MS53: 4.320088376e+11 | MT53: 4.449708228e+11 | MU53: 4.583224486e+11 | MV53: 4.720755215e+11 | MW53: 4.862422197e+11 | MX53: 5.008351068e+11 | MY53: 5.158671468e+11 | MZ53: 5.313517192e+11 | NA53: 5.473026455e+11 | NB53: 5.63718484e+11 | NC53: 5.806268328e+11 | ND53: 5.980424727e+11 | NE53: 6.159806285e+11 | NF53: 6.344569828e+11 | NG53: 6.534876885e+11 | NH53: 6.73089388e+11 | NI53: 6.93279222e+11 | NJ53: 7.14074847e+11 | NK53: 7.354944512e+11 | NL53: 7.575567704e+11 | NM53: 7.802811052e+11 | NN53: 8.03687338e+11 | NO53: 8.277959508e+11 | NP53: 8.526280441e+11 | NQ53: 8.782053555e+11 | NR53: 9.045502799e+11 | NS53: 9.316858898e+11 | NT53: 9.596359564e+11 | NU53: 9.884249715e+11 | NV53: 1.018078171e+12 | NW53: 1.048621557e+12 | NX53: 1.080081923e+12 | NY53: =NY40-NY51 -> 1.112486882e+12 | NZ53: 1.145864888e+12 | OA53: 1.180245267e+12 | OB53: 1.215658246e+12 | OC53: 1.25213498e+12 | OD53: 1.289707587e+12 | OE53: 1.32840919e+12 | OF53: 1.368258224e+12 | OG53: 1.409302766e+12 | OH53: 1.451578683e+12 | OI53: 1.495122926e+12 | OJ53: 1.539973549e+12 | OK53: 1.586169751e+12 | OL53: 1.633751913e+12 | OM53: 1.682761623e+12 | ON53: 1.73324172e+12 | OO53: 1.78523633e+12 | OP53: 1.838790906e+12 | OQ53: 1.893952264e+12 | OR53: 1.950768632e+12 | OS53: 2.009289684e+12 | OT53: 2.069566589e+12 | OU53: 2.131652057e+12 | OV53: 2.195600382e+12 | OW53: 2.261467495e+12 | OX53: 2.32931101e+12 | OY53: 2.399190276e+12 | OZ53: 2.471166435e+12 | PA53: 2.545302469e+12 | PB53: 2.621663263e+12 | PC53: 2.700315662e+12 | PD53: 2.781328531e+12 | PE53: 2.864772819e+12 | PF53: 2.950721625e+12 | PG53: 3.03925026e+12 | PH53: 3.130436326e+12 | PI53: 3.22435979e+12 | PJ53: 3.321087343e+12 | PK53: 3.420716758e+12 | PL53: 3.523335095e+12 | PM53: 3.62903203e+12 | PN53: 3.737899926e+12 | PO53: 3.85003392e+12 | PP53: 3.965532007e+12 | PQ53: 4.084495119e+12 | PR53: 4.207027221e+12 | PS53: 4.333235397e+12 | PT53: 4.463229944e+12 | PU53: 4.597124474e+12 | PV53: 4.735036008e+12 | PW53: 4.877085081e+12 | PX53: 5.023395848e+12 | PY53: 5.174096194e+12 | PZ53: 5.329317843e+12 | QA53: 5.48919648e+12 | QB53: 5.653871864e+12 | QC53: 5.823487957e+12 | QD53: 5.998193045e+12 | QE53: 6.178139878e+12 | QF53: 6.363485794e+12 | QG53: 6.554392869e+12 | QH53: 6.751028054e+12 | QI53: 6.953563329e+12 | QJ53: 7.162175849e+12 | QK53: =QK40-QK51 -> 7.377048111e+12 | QL53: 7.598368112e+12 | QM53: 7.826329531e+12 | QN53: 8.061116176e+12 | QO53: 8.302946455e+12 | QP53: 8.552031684e+12 | QQ53: 8.808589516e+12 | QR53: 9.072844137e+12 | QS53: 9.345026457e+12 | QT53: 9.62537432e+12 | QU53: 9.914132702e+12 | QV53: 1.021155393e+13 | QW53: 1.051789791e+13 | QX53: 1.083343233e+13 | QY53: 1.115843293e+13 | QZ53: 1.149318372e+13 | RA53: 1.183797722e+13 | RB53: 1.219311476e+13 | RC53: 1.255890667e+13 | RD53: 1.293567263e+13 | RE53: 1.332374191e+13 | RF53: 1.372345366e+13 | RG53: 1.413515721e+13 | RH53: 1.455921237e+13 | RI53: 1.499598978e+13 | RJ53: 1.54458712e+13 | RK53: 1.590924983e+13 | RL53: 1.638653073e+13 | RM53: 1.687813108e+13 | RN53: 1.738448064e+13 | RO53: 1.790602204e+13 | RP53: 1.844321126e+13 | RQ53: 1.899651797e+13 | RR53: 1.956641027e+13 | RS53: 2.015339938e+13 | RT53: 2.075799819e+13 | RU53: 2.138073502e+13 | RV53: 2.202215401e+13 | RW53: 2.268281562e+13 | RX53: 2.336329716e+13 | RY53: 2.406419323e+13 | RZ53: 2.478611627e+13 | SA53: 2.552969712e+13 | SB53: 2.629558552e+13 | SC53: 2.708445071e+13 | SD53: 2.789698204e+13 | SE53: 2.873388949e+13 | SF53: 2.959590439e+13 | SG53: 3.048377999e+13 | SH53: 3.139829215e+13 | SI53: 3.234024002e+13 | SJ53: 3.331044671e+13 | SK53: 3.430976005e+13 | SL53: 3.53390533e+13 | SM53: 3.639922594e+13 | SN53: 3.749120444e+13 | SO53: 3.861594307e+13 | SP53: 3.977442476e+13 | SQ53: 4.096766194e+13 | SR53: 4.219669742e+13 | SS53: 4.346260533e+13 | ST53: 4.476649205e+13 | SU53: 4.610949718e+13 | SV53: 4.749277886e+13 | SW53: =SW40-SW51 -> 4.891755902e+13 | SX53: 5.038508262e+13 | SY53: 5.189663198e+13 | SZ53: 5.345352788e+13 | TA53: 5.505713071e+13 | TB53: 5.67088417e+13 | TC53: 5.84101041e+13 | TD53: 6.016240447e+13 | TE53: 6.196727397e+13 | TF53: 6.382628967e+13 | TG53: 6.574107599e+13 | TH53: 6.771330607e+13 | TI53: 6.974470325e+13 | TJ53: 7.183704256e+13 | TK53: 7.399215231e+13 | TL53: 7.621191564e+13 | TM53: 7.849827221e+13 | TN53: 8.085321987e+13 | TO53: 8.32788164e+13 | TP53: 8.577718134e+13 | TQ53: 8.835049782e+13 | TR53: 9.100101448e+13 | TS53: 9.373104741e+13 | TT53: 9.654298223e+13 | TU53: 9.943927613e+13 | TV53: 1.0242246e+14 | TW53: 1.054951408e+14 | TX53: 1.086600036e+14 | TY53: 1.119198141e+14 | TZ53: 1.152774053e+14 | UA53: 1.187357242e+14 | UB53: 1.222977928e+14 | UC53: 1.259667235e+14 | UD53: 1.297457221e+14 | UE53: 1.336380908e+14 | UF53: 1.376472305e+14 | UG53: 1.417766446e+14 | UH53: 1.460299412e+14 | UI53: 1.504108368e+14 | UJ53: 1.549231594e+14 | UK53: 1.595708518e+14 | UL53: 1.643579751e+14 | UM53: 1.692887124e+14 | UN53: 1.74367372e+14 | UO53: 1.795983916e+14 | UP53: 1.849863421e+14 | UQ53: 1.905359315e+14 | UR53: 1.962520089e+14 | US53: 2.021395691e+14 | UT53: 2.082037567e+14 | UU53: 214449870391144 | UV53: 2.208833682e+14 | UW53: 2.275098718e+14 | UX53: 2.343351713e+14 | UY53: 2.294404008e+14
